Workbook

Sheet Spielberichte-Blanko (hidden)
B2: Spielbericht BOWLING
B3: Betriebssportverband Hamburg e.V. | L3: Punktspielserie
B4: alle Felder sind unbedingt auszufüllen,da sonst der Spielbericht ungültig ist
B6: Klasse | C6: Herren | E6: Antritt Nr. | H6: Datum | J6: BSG
C8: X) | D8: Pass-Nr. | G8: Vor-und Zuname | I8: I | J8: II | K8: III | L8: Gesamt
B9: 1
B10: 2
B11: 3
B12: 4
B13: 5
B14: Bitte mit einem x) versehen | E14: Unterschrift des Spiel-
B15: wenn Ersatzspieler/in | E15: partners
B17: Spielbericht BOWLING
B18: Betriebssportverband Hamburg e.V. | L18: Punktspielserie
B19: alle Felder sind unbedingt auszufüllen,da sonst der Spielbericht ungültig ist
B21: Klasse | C21: Herren | E21: Antritt Nr. | H21: Datum | J21: BSG
C23: X) | D23: Pass-Nr. | G23: Vor-und Zuname | I23: I | J23: II | K23: III | L23: Gesamt
B24: 1
B25: 2
B26: 3
B27: 4
B28: 5
B29: Bitte mit einem x) versehen | E29: Unterschrift des Spiel-
B30: wenn Ersatzspieler/in | E30: partners

Sheet Anhang Blanko (hidden)
A1: Anhang zum Spielbericht B O W L I N G
L2: Punktspielserie
A3: alle Felder sind unbedingt auszufüllen und mit dem Original-Spielbericht einzusenden.
A5: Klasse: | D5: Antritt-Nr. : | F5: Datum : | I5: Halle :
C7: Ausrichter BSG: | F7: Mannschaftsführer: | J7: Telefon:
A9: Durch- gänge | C9: BSG | D9: BSG | E9: BSG | F9: BSG | G9: BSG | H9: BSG | I9: BSG | J9: BSG | K9: BSG | L9: BSG | M9: BSG | N9: BSG
M10: =VLOOKUP(M11,Hilfstabelle!$L$5:$M$16,2,0) -> EAG 1 | N10: =VLOOKUP(N11,Hilfstabelle!$L$5:$M$16,2,0) -> ESV 2
M11: =+Hilfstabelle!$L15 -> Eppendorf AG 1 | N11: =+Hilfstabelle!$L16 -> Energie Sportvereinigung 2
A12: 1
A13: 2
A14: 1 + 2 | C14: =+C13+C12 -> 0 | D14: =+D13+D12 -> 0 | E14: 0 | F14: 0 | G14: 0 | H14: 0 | I14: 0 | J14: 0 | K14: 0 | L14: 0 | M14: 0 | N14: 0
A15: 3
A16: Pins Gesamt | C16: =+C15+C14 -> 0 | D16: =+D15+D14 -> 0 | E16: 0 | F16: 0 | G16: 0 | H16: 0 | I16: 0 | J16: 0 | K16: 0 | L16: 0 | M16: 0 | N16: 0
A17: Punkte Antritt | C17: =IF(C12>0,RANK(C16,$C$16:$N$16,12)," ") ->  | D17: =IF(D12>0,RANK(D16,$C$16:$N$16,12)," ") -> 
A18: Punkte A L T
A19: Punkte N E U

Sheet MI-DO (hidden)
A1: BOWLING - Punktspielsaison 2025 / 26
C2: MITTWOCH | G2: DONNERSTAG
A4: KLASSE | C4: A 3 | D4: B 3 | G4: A 4 | H4: B 4
C5: 17.35 | D5: 17.35 | G5: 17.35 | H5: 17.35
C7: BWV 4 | D7: BAL 1 | G7: BWV 3 | H7: ELB 4
C8: DB 3 | D8: STI 2 | G8: COM 1 | H8: STI 3
C9: DSO 1 | D9: LSV 2 | G9: JUL 1 | H9: BAL 2
C10: HAS 4 | D10: HAN 1 | G10: ED 2 | H10: CLP 1
C11: STI 1 | D11: HHA 5 | G11: FAH 2 | H11: HAS 7
C12: LSV 1 | D12: B36 1 | G12: GEN 1 | H12: KAH 1
C13: HPA 2 | D13: COM 3 | G13: HHA 3 | H13: PAN 1
C14: DAK 1 | D14: HAS 6 | G14: SID 2 | H14: SGS 1
C15: AU 2 | D15: ALL 2 | G15: KS 2 | H15: ALL 3
C16: ELB 2 | D16: ELB 5 | G16: HPA 1 | H16: SID 3
D17: JH 3 | H17: ELB 3
A20: 37 | B20: 2025-09-10 | C20: WB | F20: 2025-09-11 | H20: WB
A21: 39 | B21: 2025-09-24 | C21: OT | F21: 2025-09-25 | H21: OT
A22: 41 | B22: 2025-10-08 | C22: WB | F22: 2025-10-09 | H22: WB
A23: 43 | B23: 2025-10-22 | C23: OT | F23: 2025-10-23 | H23: OT
A24: 45 | B24: 2025-11-05 | C24: WB | F24: 2025-11-06 | H24: WB
A25: 3. | B25: 2026-01-14 | C25: OT | F25: 2026-01-15 | G25: WB | H25: OT
A26: 5. | B26: 2026-01-28 | C26: WB | F26: 2026-01-29 | H26: WB
A27: 7. | B27: 2026-02-11 | C27: OT | F27: 2026-02-12 | H27: OT
A28: 9. | B28: 2026-02-25 | C28: WB | F28: 2026-02-26 | H28: WB
A29: 11. | B29: 2026-03-11 | C29: OT | F29: 2026-03-12 | G29: WB | H29: OT
A30: 13. | B30: 2026-03-25 | C30: WB | F30: 2026-03-26 | H30: WB
A31: 15. | B31: 2026-04-08 | C31: OT | F31: 2026-04-09 | H31: OT
A32: 17. | B32: 2026-04-22 | C32: WB | F32: 2026-04-23 | H32: WB
A33: 19. | B33: 2026-05-06 | C33: OT | F33: 2026-05-07 | H33: OT
G34: Stand : | H34: 2025-07-20
C38: 0 | D38: 0 | G38: 0 | H38: 0

Sheet Start
B3: ="PUNKTSPIELSAISON "&+'Hilfstabelle Mannschaften'!I6 -> PUNKTSPIELSAISON 2025/2026
B5: PANA-Rangliste | F5: Damen
B6: Mannschaftsübersicht | F6: Annegret Schmidt
B7: ="Übersicht aller Spiele der Klasse "&'Hilfstabelle Mannschaften'!I4 -> Übersicht aller Spiele der Klasse B2 | F7: Ilona Wetzel
B8: Spielereinteilung
B9: Spielberichte | F9: Herren
B10: Anhang zum Spielbericht | F10: Kai Roßberg
B11: Spielbogen | F11: Deniz Hagelstein
B12: Ergebnisse nach BVH | F12: Frank Nijholt
F13: Jörg Frahm
B14: =+B3 -> PUNKTSPIELSAISON 2025/2026 | F14: Mario Jurk
B15: Anmeldegruppen / Turnierplanung | F15: Matthias Nolte | G15: Zuletzt aktualisiert am:
B16: ="Rangliste PANA-Spieler Saison "&'Hilfstabelle Mannschaften'!I7 -> Rangliste PANA-Spieler Saison 24/25 | F16: Michael Wetzel | G16: =NOW() -> 2025-11-16T15:41:11.980
G17: =NOW() -> 45977.65361
B19: BSG-Kürzel 2025 | F19: ="Abschlusstabelle "&'Hilfstabelle Mannschaften'!I7 -> Abschlusstabelle 24/25
F20: ="BSG-Schnittliste Saison "&'Hilfstabelle Mannschaften'!I7 -> BSG-Schnittliste Saison 24/25
F21: "Alters"-Übersicht (Nur mal so)

Sheet PANA-Rangliste
B2: Start | C2: =+"Rangliste Saison "&+'Hilfstabelle Mannschaften'!I6 -> Rangliste Saison 2025/2026
D4: DAMEN NEU | L4: Höchstes Einzel
C5: Name | D5: Pass.-Nr. | E5: Pins | F5: Spiele | G5: Schnitt | H5: +/- | I5: ="Ø "&+'Hilfstabelle Mannschaften'!$I$7 -> Ø 24/25 | K5: D. | L5: =+IF('Hilfstabelle Spieler'!$E$18,'Hilfstabelle Spieler'!$F$18,"") -> Annegret Schmidt | M5: =+IF('Hilfstabelle Spieler'!$E$18,":","") -> : | N5: =+IF('Hilfstabelle Spieler'!$E$18,'Hilfstabelle Spieler'!$E$18,"") -> 192 | O5: =+IF('Hilfstabelle Spieler'!$E$18,"Pins","") -> Pins
C6: Ilona Wetzel | D6: =VLOOKUP(C6,Rangliste_Mannschaften_Passnummern,2,0) -> 22115 | E6: =+'Ilona W.'!G8 -> 4052 | F6: =+'Ilona W.'!H8 -> 27 | G6: =+'Ilona W.'!I8 -> 150.0740741 | H6: =IFERROR(+G6-I6,) -> -3.681027967 | I6: =VLOOKUP(D6,'Anmeldegruppen Turniere'!$H$7:$M$15,4,0) -> 153.755102 | K6: H. | L6: =+IF('Hilfstabelle Spieler'!E13,'Hilfstabelle Spieler'!F13,"") -> Jörg Frahm | M6: =+IF('Hilfstabelle Spieler'!$E$13,":","") -> : | N6: =+IF('Hilfstabelle Spieler'!E13,'Hilfstabelle Spieler'!E13,"") -> 227 | O6: =+IF('Hilfstabelle Spieler'!$E$13,"Pins","") -> Pins
C7: Annegret Schmidt | D7: =VLOOKUP(C7,Rangliste_Mannschaften_Passnummern,2,0) -> 19222 | E7: =+'Annegret S.'!G8 -> 4391 | F7: =+'Annegret S.'!H8 -> 32 | G7: =+'Annegret S.'!I8 -> 137.21875 | H7: =IFERROR(+G7-I7,) -> -0.2891865079 | I7: =VLOOKUP(D7,'Anmeldegruppen Turniere'!$H$7:$M$15,4,0) -> 137.5079365
E8: =SUM(E6:E7) -> 8443 | F8: =SUM(F6:F7) -> 59 | G8: =IF(E8>1,+E8/F8,"") -> 143.1016949 | L8: Höchste 3.er Serie
K9: D. | L9: =+IF('Hilfstabelle Spieler'!G18,'Hilfstabelle Spieler'!H18,"") -> Ilona Wetzel | M9: =+IF(+'Hilfstabelle Spieler'!$G$18>1,":","") -> : | N9: =+IF('Hilfstabelle Spieler'!G18,'Hilfstabelle Spieler'!G18,"") -> 475 | O9: =+IF(+'Hilfstabelle Spieler'!$G$18>1,"Pins","") -> Pins | P9: =+IF(+'Hilfstabelle Spieler'!$G$18>1,"=","") -> = | Q9: =+IF(+'Hilfstabelle Spieler'!G18>1,'Hilfstabelle Spieler'!G19,"") -> 158.3333333 | R9: =+IF(+'Hilfstabelle Spieler'!G18>1,"Schnitt","") -> Schnitt
D10: HERREN NEU | G10: Schnitt | K10: H. | L10: =+IF('Hilfstabelle Spieler'!G13,'Hilfstabelle Spieler'!H13,"") -> Mario Jurk | M10: =+IF(+'Hilfstabelle Spieler'!$G$13>1,":","") -> : | N10: =+IF(+'Hilfstabelle Spieler'!G13>1,'Hilfstabelle Spieler'!G13,"") -> 628 | O10: =+IF(+'Hilfstabelle Spieler'!$G$13>1,"Pins","") -> Pins | P10: =+IF(+'Hilfstabelle Spieler'!$G$13>1,"=","") -> = | Q10: =+IF(+'Hilfstabelle Spieler'!G13>1,'Hilfstabelle Spieler'!G14,"") -> 209.3333333 | R10: =+IF(+'Hilfstabelle Spieler'!G13>1,"Schnitt","") -> Schnitt
C11: Name | D11: Pass.-Nr. | E11: Pins | F11: Spiele | G11: Schnitt | H11: +/- | I11: =+I5 -> Ø 24/25
C12: Mario Jurk | D12: =VLOOKUP(C12,Rangliste_Mannschaften_Passnummern,2,0) -> 23302 | E12: =+'Mario J.'!G8 -> 1167 | F12: =+'Mario J.'!H8 -> 6 | G12: =+'Mario J.'!I8 -> 194.5 | H12: =IFERROR(+G12-I12,) -> 14.22222222 | I12: =VLOOKUP(D12,'Anmeldegruppen Turniere'!$H$7:$M$15,4,0) -> 180.2777778 | J12: =VLOOKUP(D12,'Anmeldegruppen Turniere'!$H$7:$N$15,2,0) -> 0 | L12: Höchste 4.er Serie
C13: Kai Roßberg | D13: 21889 | E13: =+'Kai R.'!$G$8 -> 2116 | F13: =+'Kai R.'!$H$8 -> 12 | G13: =+'Kai R.'!$I$8 -> 176.3333333 | H13: -3.083333333 | I13: =VLOOKUP(D13,'Anmeldegruppen Turniere'!$H$7:$M$15,4,0) -> 179.4166667 | K13: D. | L13: =+IF(+'Hilfstabelle Spieler'!$I$18>1,+'Hilfstabelle Spieler'!$J$18,"") -> Ilona Wetzel | M13: =+IF(+'Hilfstabelle Spieler'!$I$18>1,":","") -> : | N13: =+IF(+'Hilfstabelle Spieler'!$I$18>1,'Hilfstabelle Spieler'!$I$18,"") -> 646 | O13: =+IF(+'Hilfstabelle Spieler'!$I$18>1,"Pins","") -> Pins | P13: =+IF(+'Hilfstabelle Spieler'!$I$18>1,"=","") -> = | Q13: =+IF(+'Hilfstabelle Spieler'!$I$18>1,'Hilfstabelle Spieler'!$I$19,"") -> 161.5 | R13: =+IF(+'Hilfstabelle Spieler'!$I$18>1,"Schnitt","") -> Schnitt
C14: Jörg Frahm | D14: 19221 | E14: =+'Jörg F.'!G8 -> 2769 | F14: =+'Jörg F.'!H8 -> 16 | G14: =+'Jörg F.'!I8 -> 173.0625 | H14: 2.094758065 | I14: =VLOOKUP(D14,'Anmeldegruppen Turniere'!$H$7:$M$15,4,0) -> 170.9677419 | K14: H. | L14: =+IF('Hilfstabelle Spieler'!I13,'Hilfstabelle Spieler'!J13,"") -> Jörg Frahm | M14: =+IF('Hilfstabelle Spieler'!$I$13,":","") -> : | N14: =+IF('Hilfstabelle Spieler'!I13,'Hilfstabelle Spieler'!I13,"") -> 761 | O14: =+IF('Hilfstabelle Spieler'!$I$13,"Pins","") -> Pins | P14: =+IF('Hilfstabelle Spieler'!$I$13,"=","") -> = | Q14: =+IF('Hilfstabelle Spieler'!I13,'Hilfstabelle Spieler'!I14,"") -> 190.25 | R14: =+IF('Hilfstabelle Spieler'!I13,"Schnitt","") -> Schnitt
C15: Michael Wetzel | D15: 22113 | E15: =+'Michael W.'!G8 -> 2764 | F15: =+'Michael W.'!H8 -> 16 | G15: =+'Michael W.'!I8 -> 172.75 | H15: -4.035714286 | I15: =VLOOKUP(D15,'Anmeldegruppen Turniere'!$H$7:$M$15,4,0) -> 176.7857143
C16: Deniz Hagelstein | D16: 24775 | E16: =+'Deniz H.'!G8 -> 485 | F16: =+'Deniz H.'!H8 -> 3 | G16: =+'Deniz H.'!I8 -> 161.6666667 | H16: 27.47619048 | I16: =VLOOKUP(D16,'Anmeldegruppen Turniere'!$H$7:$M$15,4,0) -> 134.1904762 | L16: Höchste 6.er Serie
C17: Frank Nijholt | D17: 24774 | E17: =+'Frank N.'!G8 -> 931 | F17: =+'Frank N.'!H8 -> 6 | G17: =+'Frank N.'!I8 -> 155.1666667 | H17: 18.43333333 | I17: =VLOOKUP(D17,'Anmeldegruppen Turniere'!$H$7:$M$15,4,0) -> 136.7333333 | K17: D. | L17: =+IF('Hilfstabelle Spieler'!K18,'Hilfstabelle Spieler'!L18,"") -> Ilona Wetzel | M17: =+IF(+'Hilfstabelle Spieler'!$K$18>1,":","") -> : | N17: =+IF(+'Hilfstabelle Spieler'!K18>1,'Hilfstabelle Spieler'!K18,"") -> 876 | O17: =+IF(+'Hilfstabelle Spieler'!$K$18>1,"Pins","") -> Pins | P17: =+IF(+'Hilfstabelle Spieler'!$K$18>1,"=","") -> = | Q17: =+IF(+'Hilfstabelle Spieler'!K18>1,'Hilfstabelle Spieler'!K19,"") -> 146 | R17: =+IF(+'Hilfstabelle Spieler'!K18>1,"Schnitt","") -> Schnitt
C18: Matthias Nolte | D18: 20137 | E18: =+'Matthias N.'!G8 -> 821 | F18: =+'Matthias N.'!H8 -> 6 | G18: =+'Matthias N.'!I8 -> 136.8333333 | H18: 3.5 | I18: =VLOOKUP(D18,'Anmeldegruppen Turniere'!$H$7:$M$15,4,0) -> 133.3333333 | K18: H. | L18: =+IF('Hilfstabelle Spieler'!K13,'Hilfstabelle Spieler'!L13,"") -> Jörg Frahm | M18: =+IF(+'Hilfstabelle Spieler'!$K$13>1,":","") -> : | N18: =+IF(+'Hilfstabelle Spieler'!K13>1,'Hilfstabelle Spieler'!K13,"") -> 1081 | O18: =+IF(+'Hilfstabelle Spieler'!$K$13>1,"Pins","") -> Pins | P18: =+IF(+'Hilfstabelle Spieler'!$K$13>1,"=","") -> = | Q18: =+IF(+'Hilfstabelle Spieler'!K13>1,'Hilfstabelle Spieler'!K14,"") -> 180.1666667 | R18: =+IF(+'Hilfstabelle Spieler'!K13>1,"Schnitt","") -> Schnitt
E19: =SUM(E12:E18) -> 11053 | F19: =SUM(F12:F18) -> 65 | G19: =IF(E19>1,+E19/F19,"") -> 170.0461538
C21: Gesamter PANA-Schnitt
C22: ="Ø "&+'Hilfstabelle Mannschaften'!$I$8 -> Ø 2025/2026 | D22: Ø Damen: | E22: Ø Herren: | F22: Ø Liga: | G22: Ø Sonstige: | I22: Ø Gesamt:
C23: Spiele | D23: =+F8 -> 59 | E23: =+F19 -> 65 | F23: =+Mannschaftsübersicht!G13 -> 60 | G23: =+'Hilfstabelle Spieler'!BH11 -> 64 | I23: =SUM(E23,D23) -> 124
C24: Pins | D24: =+E8 -> 8443 | E24: =+E19 -> 11053 | F24: =+Mannschaftsübersicht!E14 -> 8772 | G24: =+'Hilfstabelle Spieler'!BI11 -> 9862 | I24: =SUM(E24,D24) -> 19496
C25: Schnitt | D25: =IF(D24>1,+D24/D23," ") -> 143.1016949 | E25: =IF(E24>1,+E24/E23," ") -> 170.0461538 | F25: =IFERROR(+F24/F23,"") -> 146.2 | G25: =IFERROR(+G24/G23,"") -> 154.09375 | I25: =IF(I24>1,+I24/I23," ") -> 157.2258065
C27: ="Ø "&+'Hilfstabelle Mannschaften'!$I$9 -> Ø 2024/2025 | D27: Ø Damen: | E27: Ø Herren: | F27: Ø Gesamt:
C28: Spiele | D28: =+'Offizielle BSV-Rangliste'!S12 -> 0 | E28: =+'Offizielle BSV-Rangliste'!S24 -> 0 | F28: =+E28+D28 -> 0
C29: Pins | D29: =+'Offizielle BSV-Rangliste'!R12 -> 0 | E29: =+'Offizielle BSV-Rangliste'!R24 -> 0 | F29: =+E29+D29 -> 0
C30: Schnitt | D30: =+'Offizielle BSV-Rangliste'!T12 -> 0 | E30: =+'Offizielle BSV-Rangliste'!T24 -> 0 | F30: =IFERROR(+F29/F28,"") -> 

Sheet Mannschaftsübersicht
B2: Start
B3: Rangliste
C4: Übersicht
C6: ="1. Mannschaft, "&+'Hilfstabelle Mannschaften'!I3&" "&+'Hilfstabelle Mannschaften'!I4 -> 1. Mannschaft, Klasse B2
C7: Platz | D7: Mannschaft | E7: Pins | F7: Pkt. | G7: Spiele | H7: Schnitt | J7: Vorjahres- Schnitt
C8: 1. | D8: =+'Hilfstabelle Mannschaften'!L9 -> Panasonic 1 | E8: =VLOOKUP(D8,'Hilfstabelle Mannschaften'!$L$4:$M$11,2,0) -> 9634 | F8: =VLOOKUP(D8,'Übersicht der Klasse B4'!$D$8:$E$29,2,0) -> 42 | G8: =VLOOKUP(D8,'Hilfstabelle Mannschaften'!$L$34:$M$45,2,0) -> 60 | H8: =IF(F8>=1,+E8/G8,"") -> 160.5666667 | J8: 156.2738095
C9: 2. | D9: =+'Hilfstabelle Mannschaften'!L6 -> AXA 1 | E9: =VLOOKUP(D9,'Hilfstabelle Mannschaften'!$L$4:$M$11,2,0) -> 9487 | F9: =VLOOKUP(D9,'Übersicht der Klasse B4'!$D$8:$E$29,2,0) -> 41 | G9: =VLOOKUP(D9,'Hilfstabelle Mannschaften'!$L$34:$M$45,2,0) -> 60 | H9: 158.1166667 | J9: 156.8518519
C10: 3. | D10: =+'Hilfstabelle Mannschaften'!L8 -> Dataport 2 | E10: =VLOOKUP(D10,'Hilfstabelle Mannschaften'!$L$4:$M$11,2,0) -> 9425 | F10: =VLOOKUP(D10,'Übersicht der Klasse B4'!$D$8:$E$29,2,0) -> 35 | G10: =VLOOKUP(D10,'Hilfstabelle Mannschaften'!$L$34:$M$45,2,0) -> 60 | H10: 157.0833333 | J10: 150.3630952
C11: 4. | D11: =+'Hilfstabelle Mannschaften'!L12 -> HASPA 5 | E11: =VLOOKUP(D11,'Hilfstabelle Mannschaften'!$L$4:$M$15,2,0) -> 9100 | F11: =VLOOKUP(D11,'Übersicht der Klasse B4'!$D$8:$E$29,2,0) -> 32 | G11: =VLOOKUP(D11,'Hilfstabelle Mannschaften'!$L$34:$M$45,2,0) -> 60 | H11: 151.6666667 | J11: 141
C12: 5. | D12: =+'Hilfstabelle Mannschaften'!L13 -> BWVL 5 | E12: =VLOOKUP(D12,'Hilfstabelle Mannschaften'!$L$4:$M$15,2,0) -> 8727 | F12: =VLOOKUP(D12,'Übersicht der Klasse B4'!$D$8:$E$29,2,0) -> 28 | G12: =VLOOKUP(D12,'Hilfstabelle Mannschaften'!$L$34:$M$45,2,0) -> 60 | H12: 145.45 | J12: 149.3333333
C13: 6. | D13: =+'Hilfstabelle Mannschaften'!L14 -> Eppendorf AG 1 | E13: =VLOOKUP(D13,'Hilfstabelle Mannschaften'!$L$4:$M$15,2,0) -> 8859 | F13: =VLOOKUP(D13,'Übersicht der Klasse B4'!$D$8:$E$29,2,0) -> 26 | G13: =VLOOKUP(D13,'Hilfstabelle Mannschaften'!$L$34:$M$45,2,0) -> 60 | H13: 147.65 | J13: 149.0297619
C14: 7. | D14: =+'Hilfstabelle Mannschaften'!L10 -> Generali 3 | E14: =VLOOKUP(D14,'Hilfstabelle Mannschaften'!$L$4:$M$11,2,0) -> 8772 | F14: =VLOOKUP(D14,'Übersicht der Klasse B4'!$D$8:$E$29,2,0) -> 26 | G14: =VLOOKUP(D14,'Hilfstabelle Mannschaften'!$L$34:$M$45,2,0) -> 60 | H14: 146.2 | J14: 143.9761905
C15: 8. | D15: =+'Hilfstabelle Mannschaften'!L11 -> Finanzamt 3 | E15: =VLOOKUP(D15,'Hilfstabelle Mannschaften'!$L$4:$M$11,2,0) -> 8223 | F15: =VLOOKUP(D15,'Übersicht der Klasse B4'!$D$8:$E$29,2,0) -> 20 | G15: =VLOOKUP(D15,'Hilfstabelle Mannschaften'!$L$34:$M$45,2,0) -> 60 | H15: 137.05 | J15: 143.1151515
C16: 9. | D16: =+'Hilfstabelle Mannschaften'!L7 -> ERGO Sports 3 | E16: =VLOOKUP(D16,'Hilfstabelle Mannschaften'!$L$4:$M$11,2,0) -> 8054 | F16: =VLOOKUP(D16,'Übersicht der Klasse B4'!$D$8:$E$29,2,0) -> 13 | G16: =VLOOKUP(D16,'Hilfstabelle Mannschaften'!$L$34:$M$45,2,0) -> 60 | H16: 134.2333333 | J16: 139.3933333
C17: 10. | D17: =+'Hilfstabelle Mannschaften'!L5 -> Energie Sportvereinigung 2 | E17: =VLOOKUP(D17,'Hilfstabelle Mannschaften'!$L$4:$M$11,2,0) -> 7877 | F17: =VLOOKUP(D17,'Übersicht der Klasse B4'!$D$8:$E$29,2,0) -> 12 | G17: =VLOOKUP(D17,'Hilfstabelle Mannschaften'!$L$34:$M$45,2,0) -> 60 | H17: 131.2833333 | J17: 139.7202381
C18: 11. | D18: =+'Hilfstabelle Mannschaften'!L4 -> Eppendorf AG 1 | E18: =VLOOKUP(D18,'Hilfstabelle Mannschaften'!$L$4:$M$11,2,0) -> 8859 | F18: =VLOOKUP(D18,'Übersicht der Klasse B4'!$D$8:$E$29,2,0) -> 26 | G18: =VLOOKUP(D18,'Hilfstabelle Mannschaften'!$L$34:$M$45,2,0) -> 60 | H18: =IF(F18>=1,+E18/G18,"") -> 147.65 | J18: 130.9047619

Sheet Übersicht der Klasse B4
B2: Start | G2: ="Übersicht aller Spiele der Klasse "&+'Hilfstabelle Mannschaften'!I4&" der 1. Mannschaft in der Saison "&+'Hilfstabelle Mannschaften'!I6 -> Übersicht aller Spiele der Klasse B2 der 1. Mannschaft in der Saison 2025/2026
B3: Rangliste
G4: Datum | H4: =+Hilfstabelle!BS5 -> 2025-09-09 | I4: =+Hilfstabelle!BT5 -> 2025-09-23 | J4: =+Hilfstabelle!BU5 -> 2025-10-07 | K4: =+Hilfstabelle!BV5 -> 2025-10-21 | L4: =+Hilfstabelle!BW5 -> 2025-11-04 | M4: =+Hilfstabelle!BX5 -> 2025-11-18 | N4: =+Hilfstabelle!BY5 -> 2026-01-13 | O4: =+Hilfstabelle!BZ5 -> 2026-01-27 | P4: =+Hilfstabelle!CA5 -> 2026-02-10 | Q4: =+Hilfstabelle!CB5 -> 2026-02-24 | R4: =+Hilfstabelle!CC5 -> 2026-03-10 | S4: =+Hilfstabelle!CD5 -> 2026-03-24 | T4: =+Hilfstabelle!CE5 -> 2026-04-07 | U4: =+Hilfstabelle!CF5 -> 2026-04-21
G5: Bahn | H5: =+Hilfstabelle!BS4 -> OT | I5: =+Hilfstabelle!BT4 -> WB | J5: =+Hilfstabelle!BU4 -> OT | K5: =+Hilfstabelle!BV4 -> WB | L5: =+Hilfstabelle!BW4 -> OT | M5: =+Hilfstabelle!BX4 -> WB | N5: =+Hilfstabelle!BY4 -> OT | O5: =+Hilfstabelle!BZ4 -> WB | P5: =+Hilfstabelle!CA4 -> OT | Q5: =+Hilfstabelle!CB4 -> WB | R5: =+Hilfstabelle!CC4 -> OT | S5: =+Hilfstabelle!CD4 -> WB | T5: =+Hilfstabelle!CE4 -> OT | U5: =+Hilfstabelle!CF4 -> WB
D6: Mannschaften | E6: Punkte | F6: Pins | H6: Antritt | I6: Antritt | J6: Antritt | K6: Antritt | L6: Antritt | M6: Antritt | N6: Antritt | O6: Antritt | P6: Antritt | Q6: Antritt | R6: Antritt | S6: Antritt | T6: Antritt | U6: Antritt
B7: Kurzf. | H7: 1 | I7: =+H7+1 -> 2 | J7: 3 | K7: 4 | L7: 5 | M7: 6 | N7: 7 | O7: 8 | P7: 9 | Q7: 10 | R7: 11 | S7: 12 | T7: 13 | U7: 14
B8: =VLOOKUP(D8,Hilfstabelle!$L$5:$M$18,2,0) -> EAG 1 | D8: =+Hilfstabelle!L5 -> Eppendorf AG 1 | E8: =SUM(H9:U9) -> 26 | F8: =SUM(H8:U8) -> 8859 | G8: Pins | H8: =VLOOKUP(B8,'Hilfstabelle Mannschaften'!$AD$53:$AE$62,2,0) -> 1886 | I8: =VLOOKUP(B8,'Hilfstabelle Mannschaften'!$AD$53:$AF$62,3,0) -> 1744 | J8: =VLOOKUP(B8,'Hilfstabelle Mannschaften'!$AD$53:$AG$62,4,0) -> 1556 | K8: =VLOOKUP(B8,'Hilfstabelle Mannschaften'!$AD$53:$AH$62,5,0) -> 2006 | L8: =VLOOKUP(B8,'Hilfstabelle Mannschaften'!$AD$53:$AI$62,6,0) -> 1667 | M8: =VLOOKUP(B8,'Hilfstabelle Mannschaften'!$AD$53:$AJ$62,7,0) -> 0 | N8: =VLOOKUP(B8,'Hilfstabelle Mannschaften'!$AD$53:$AK$62,8,0) -> 0 | O8: =VLOOKUP(B8,'Hilfstabelle Mannschaften'!$AD$53:$AL$62,9,0) -> 0 | P8: =VLOOKUP(B8,'Hilfstabelle Mannschaften'!$AD$53:$AM$62,10,0) -> 0 | Q8: =VLOOKUP(B8,'Hilfstabelle Mannschaften'!$AD$53:$AN$62,11,0) -> 0 | R8: =VLOOKUP(B8,'Hilfstabelle Mannschaften'!$AD$53:$AO$62,12,0) -> 0 | S8: =VLOOKUP(B8,'Hilfstabelle Mannschaften'!$AD$53:$AP$62,13,0) -> 0 | T8: =VLOOKUP(B8,'Hilfstabelle Mannschaften'!$AD$53:$AQ$62,14,0) -> 0 | U8: =VLOOKUP(B8,'Hilfstabelle Mannschaften'!$AD$53:$AR$62,15,0) -> 0
G9: Punkte | H9: =IF(H8<1,"",'Hilfstabelle Mannschaften'!Q24) -> 8 | I9: =IF(I8<1,"",+'Hilfstabelle Mannschaften'!$Q29) -> 5 | J9: =IF(J8<1,"",+'Hilfstabelle Mannschaften'!$Q34) -> 2 | K9: =IF(K8<1,"",+'Hilfstabelle Mannschaften'!$Q39) -> 7 | L9: =IF(L8<1,"",+'Hilfstabelle Mannschaften'!$Q44) -> 4 | M9: =IF(M8<1,"",+'Hilfstabelle Mannschaften'!$Q49) ->  | N9: =IF(N8<1,"",+'Hilfstabelle Mannschaften'!$Q54) ->  | O9: =IF(O8<1,"",+'Hilfstabelle Mannschaften'!$Q59) ->  | P9: =IF(P8<1,"",+'Hilfstabelle Mannschaften'!$Q64) ->  | Q9: =IF(Q8<1,"",+'Hilfstabelle Mannschaften'!$Q69) ->  | R9: =IF(R8<1,"",+'Hilfstabelle Mannschaften'!$Q74) ->  | S9: =IF(S8<1,"",+'Hilfstabelle Mannschaften'!$Q79) ->  | T9: =IF(T8<1,"",+'Hilfstabelle Mannschaften'!$Q84) ->  | U9: =IF(U8<1,"",'Hilfstabelle Mannschaften'!Q89) -> 
B10: =VLOOKUP(D10,Hilfstabelle!$L$5:$M$18,2,0) -> ESV 2 | D10: =+Hilfstabelle!L6 -> Energie Sportvereinigung 2 | E10: =SUM(H11:U11) -> 12 | F10: =SUM(H10:U10) -> 7877 | G10: Pins | H10: =VLOOKUP(B10,'Hilfstabelle Mannschaften'!$AD$53:$AE$62,2,0) -> 1512 | I10: =VLOOKUP(B10,'Hilfstabelle Mannschaften'!$AD$53:$AF$62,3,0) -> 1687 | J10: =VLOOKUP(B10,'Hilfstabelle Mannschaften'!$AD$53:$AG$62,4,0) -> 1438 | K10: =VLOOKUP(B10,'Hilfstabelle Mannschaften'!$AD$53:$AH$62,5,0) -> 1569 | L10: =VLOOKUP(B10,'Hilfstabelle Mannschaften'!$AD$53:$AI$62,6,0) -> 1671 | M10: =VLOOKUP(B10,'Hilfstabelle Mannschaften'!$AD$53:$AJ$62,7,0) -> 0 | N10: =VLOOKUP(B10,'Hilfstabelle Mannschaften'!$AD$53:$AK$62,8,0) -> 0 | O10: =VLOOKUP(B10,'Hilfstabelle Mannschaften'!$AD$53:$AL$62,9,0) -> 0 | P10: =VLOOKUP(B10,'Hilfstabelle Mannschaften'!$AD$53:$AM$62,10,0) -> 0 | Q10: =VLOOKUP(B10,'Hilfstabelle Mannschaften'!$AD$53:$AN$62,11,0) -> 0 | R10: =VLOOKUP(B10,'Hilfstabelle Mannschaften'!$AD$53:$AO$62,12,0) -> 0 | S10: =VLOOKUP(B10,'Hilfstabelle Mannschaften'!$AD$53:$AP$62,13,0) -> 0 | T10: =VLOOKUP(B10,'Hilfstabelle Mannschaften'!$AD$53:$AQ$62,14,0) -> 0 | U10: =VLOOKUP(B10,'Hilfstabelle Mannschaften'!$AD$53:$AR$62,15,0) -> 0
G11: Punkte | H11: =IF(H10<1,"",+'Hilfstabelle Mannschaften'!$R24) -> 1 | I11: =IF(I10<1,"",+'Hilfstabelle Mannschaften'!$R29) -> 4 | J11: =IF(J10<1,"",+'Hilfstabelle Mannschaften'!$R34) -> 1 | K11: =IF(K10<1,"",+'Hilfstabelle Mannschaften'!$R39) -> 1 | L11: =IF(L10<1,"",+'Hilfstabelle Mannschaften'!$R44) -> 5 | M11: =IF(M10<1,"",+'Hilfstabelle Mannschaften'!$R49) ->  | N11: =IF(N10<1,"",+'Hilfstabelle Mannschaften'!$R54) ->  | O11: =IF(O10<1,"",+'Hilfstabelle Mannschaften'!$R59) ->  | P11: =IF(P10<1,"",+'Hilfstabelle Mannschaften'!$R64) ->  | Q11: =IF(Q10<1,"",+'Hilfstabelle Mannschaften'!$R69) ->  | R11: =IF(R10<1,"",+'Hilfstabelle Mannschaften'!$R74) ->  | S11: =IF(S10<1,"",+'Hilfstabelle Mannschaften'!$R79) ->  | T11: =IF(T10<1,"",+'Hilfstabelle Mannschaften'!$R84) ->  | U11: =IF(U10<1,"",'Hilfstabelle Mannschaften'!R89) -> 
B12: =VLOOKUP(D12,Hilfstabelle!$L$5:$M$18,2,0) -> AXA 1 | D12: =+Hilfstabelle!L7 -> AXA 1 | E12: =SUM(H13:U13) -> 41 | F12: 9487 | G12: Pins | H12: =VLOOKUP(B12,'Hilfstabelle Mannschaften'!$AD$53:$AE$62,2,0) -> 1599 | I12: =VLOOKUP(B12,'Hilfstabelle Mannschaften'!$AD$53:$AF$62,3,0) -> 2044 | J12: =VLOOKUP(B12,'Hilfstabelle Mannschaften'!$AD$53:$AG$62,4,0) -> 1865 | K12: =VLOOKUP(B12,'Hilfstabelle Mannschaften'!$AD$53:$AH$62,5,0) -> 2034 | L12: =VLOOKUP(B12,'Hilfstabelle Mannschaften'!$AD$53:$AI$62,6,0) -> 1945 | M12: =VLOOKUP(B12,'Hilfstabelle Mannschaften'!$AD$53:$AJ$62,7,0) -> 0 | N12: =VLOOKUP(B12,'Hilfstabelle Mannschaften'!$AD$53:$AK$62,8,0) -> 0 | O12: =VLOOKUP(B12,'Hilfstabelle Mannschaften'!$AD$53:$AL$62,9,0) -> 0 | P12: =VLOOKUP(B12,'Hilfstabelle Mannschaften'!$AD$53:$AM$62,10,0) -> 0 | Q12: =VLOOKUP(B12,'Hilfstabelle Mannschaften'!$AD$53:$AN$62,11,0) -> 0 | R12: =VLOOKUP(B12,'Hilfstabelle Mannschaften'!$AD$53:$AO$62,12,0) -> 0 | S12: =VLOOKUP(B12,'Hilfstabelle Mannschaften'!$AD$53:$AP$62,13,0) -> 0 | T12: =VLOOKUP(B12,'Hilfstabelle Mannschaften'!$AD$53:$AQ$62,14,0) -> 0 | U12: =VLOOKUP(B12,'Hilfstabelle Mannschaften'!$AD$53:$AR$62,15,0) -> 0
G13: Punkte | H13: =IF(H12<1,"",'Hilfstabelle Mannschaften'!$S24) -> 3 | I13: =IF(I12<1,"",'Hilfstabelle Mannschaften'!$S29) -> 10 | J13: =IF(J12<1,"",'Hilfstabelle Mannschaften'!$S34) -> 9 | K13: =IF(K12<1,"",'Hilfstabelle Mannschaften'!$S39) -> 10 | L13: =IF(L12<1,"",'Hilfstabelle Mannschaften'!$S44) -> 9 | M13: =IF(M12<1,"",'Hilfstabelle Mannschaften'!$S49) ->  | N13: =IF(N12<1,"",'Hilfstabelle Mannschaften'!$S54) ->  | O13: =IF(O12<1,"",'Hilfstabelle Mannschaften'!$S59) ->  | P13: =IF(P12<1,"",'Hilfstabelle Mannschaften'!$S64) ->  | Q13: =IF(Q12<1,"",'Hilfstabelle Mannschaften'!$S69) ->  | R13: =IF(R12<1,"",'Hilfstabelle Mannschaften'!$S74) ->  | S13: =IF(S12<1,"",'Hilfstabelle Mannschaften'!$S79) ->  | T13: =IF(T12<1,"",'Hilfstabelle Mannschaften'!$S84) ->  | U13: =IF(U12<1,"",'Hilfstabelle Mannschaften'!S89) -> 
B14: =VLOOKUP(D14,Hilfstabelle!$L$5:$M$18,2,0) -> ERG 3 | D14: =+Hilfstabelle!L8 -> ERGO Sports 3 | E14: =SUM(H15:U15) -> 13 | F14: =SUM(H14:U14) -> 8054 | G14: Pins | H14: =VLOOKUP(B14,'Hilfstabelle Mannschaften'!$AD$53:$AE$62,2,0) -> 1547 | I14: =VLOOKUP(B14,'Hilfstabelle Mannschaften'!$AD$53:$AF$62,3,0) -> 1586 | J14: =VLOOKUP(B14,'Hilfstabelle Mannschaften'!$AD$53:$AG$62,4,0) -> 1696 | K14: =VLOOKUP(B14,'Hilfstabelle Mannschaften'!$AD$53:$AH$62,5,0) -> 1656 | L14: =VLOOKUP(B14,'Hilfstabelle Mannschaften'!$AD$53:$AI$62,6,0) -> 1569 | M14: =VLOOKUP(B14,'Hilfstabelle Mannschaften'!$AD$53:$AJ$62,7,0) -> 0 | N14: =VLOOKUP(B14,'Hilfstabelle Mannschaften'!$AD$53:$AK$62,8,0) -> 0 | O14: =VLOOKUP(B14,'Hilfstabelle Mannschaften'!$AD$53:$AL$62,9,0) -> 0 | P14: =VLOOKUP(B14,'Hilfstabelle Mannschaften'!$AD$53:$AM$62,10,0) -> 0 | Q14: =VLOOKUP(B14,'Hilfstabelle Mannschaften'!$AD$53:$AN$62,11,0) -> 0 | R14: =VLOOKUP(B14,'Hilfstabelle Mannschaften'!$AD$53:$AO$62,12,0) -> 0 | S14: =VLOOKUP(B14,'Hilfstabelle Mannschaften'!$AD$53:$AP$62,13,0) -> 0 | T14: =VLOOKUP(B14,'Hilfstabelle Mannschaften'!$AD$53:$AQ$62,14,0) -> 0 | U14: =VLOOKUP(B14,'Hilfstabelle Mannschaften'!$AD$53:$AR$62,15,0) -> 0
G15: Punkte | H15: =IF(H14<1,"",'Hilfstabelle Mannschaften'!$T24) -> 2 | I15: =IF(I14<1,"",'Hilfstabelle Mannschaften'!$T29) -> 2 | J15: =IF(J14<1,"",'Hilfstabelle Mannschaften'!$T34) -> 5 | K15: =IF(K14<1,"",'Hilfstabelle Mannschaften'!$T39) -> 2 | L15: =IF(L14<1,"",'Hilfstabelle Mannschaften'!$T44) -> 2 | M15: =IF(M14<1,"",'Hilfstabelle Mannschaften'!$T49) ->  | N15: =IF(N14<1,"",'Hilfstabelle Mannschaften'!$T54) ->  | O15: =IF(O14<1,"",'Hilfstabelle Mannschaften'!$T59) ->  | P15: =IF(P14<1,"",'Hilfstabelle Mannschaften'!$T64) ->  | Q15: =IF(Q14<1,"",'Hilfstabelle Mannschaften'!$T69) ->  | R15: =IF(R14<1,"",'Hilfstabelle Mannschaften'!$T74) ->  | S15: =IF(S14<1,"",'Hilfstabelle Mannschaften'!$T79) ->  | T15: =IF(T14<1,"",'Hilfstabelle Mannschaften'!$T84) ->  | U15: =IF(U14<1,"",'Hilfstabelle Mannschaften'!T89) -> 
B16: =VLOOKUP(D16,Hilfstabelle!$L$5:$M$18,2,0) -> DAT 2 | D16: =+Hilfstabelle!L9 -> Dataport 2 | E16: =SUM(H17:U17) -> 35 | F16: 9425 | G16: Pins | H16: =VLOOKUP(B16,'Hilfstabelle Mannschaften'!$AD$53:$AE$62,2,0) -> 1817 | I16: =VLOOKUP(B16,'Hilfstabelle Mannschaften'!$AD$53:$AF$62,3,0) -> 1967 | J16: =VLOOKUP(B16,'Hilfstabelle Mannschaften'!$AD$53:$AG$62,4,0) -> 1661 | K16: =VLOOKUP(B16,'Hilfstabelle Mannschaften'!$AD$53:$AH$62,5,0) -> 2005 | L16: =VLOOKUP(B16,'Hilfstabelle Mannschaften'!$AD$53:$AI$62,6,0) -> 1975 | M16: =VLOOKUP(B16,'Hilfstabelle Mannschaften'!$AD$53:$AJ$62,7,0) -> 0 | N16: =VLOOKUP(B16,'Hilfstabelle Mannschaften'!$AD$53:$AK$62,8,0) -> 0 | O16: =VLOOKUP(B16,'Hilfstabelle Mannschaften'!$AD$53:$AL$62,9,0) -> 0 | P16: =VLOOKUP(B16,'Hilfstabelle Mannschaften'!$AD$53:$AM$62,10,0) -> 0 | Q16: =VLOOKUP(B16,'Hilfstabelle Mannschaften'!$AD$53:$AN$62,11,0) -> 0 | R16: =VLOOKUP(B16,'Hilfstabelle Mannschaften'!$AD$53:$AO$62,12,0) -> 0 | S16: =VLOOKUP(B16,'Hilfstabelle Mannschaften'!$AD$53:$AP$62,13,0) -> 0 | T16: =VLOOKUP(B16,'Hilfstabelle Mannschaften'!$AD$53:$AQ$62,14,0) -> 0 | U16: =VLOOKUP(B16,'Hilfstabelle Mannschaften'!$AD$53:$AR$62,15,0) -> 0
G17: Punkte | H17: =IF(H16<1,"",'Hilfstabelle Mannschaften'!$U24) -> 6 | I17: =IF(I16<1,"",'Hilfstabelle Mannschaften'!$U29) -> 9 | J17: =IF(J16<1,"",'Hilfstabelle Mannschaften'!$U34) -> 4 | K17: =IF(K16<1,"",'Hilfstabelle Mannschaften'!$U39) -> 6 | L17: =IF(L16<1,"",'Hilfstabelle Mannschaften'!$U44) -> 10 | M17: =IF(M16<1,"",'Hilfstabelle Mannschaften'!$U49) ->  | N17: =IF(N16<1,"",'Hilfstabelle Mannschaften'!$U54) ->  | O17: =IF(O16<1,"",'Hilfstabelle Mannschaften'!$U59) ->  | P17: =IF(P16<1,"",'Hilfstabelle Mannschaften'!$U64) ->  | Q17: =IF(Q16<1,"",'Hilfstabelle Mannschaften'!$U69) ->  | R17: =IF(R16<1,"",'Hilfstabelle Mannschaften'!$U74) ->  | S17: =IF(S16<1,"",'Hilfstabelle Mannschaften'!$U79) ->  | T17: =IF(T16<1,"",'Hilfstabelle Mannschaften'!$U84) ->  | U17: =IF(U16<1,"",'Hilfstabelle Mannschaften'!U89) -> 
B18: =VLOOKUP(D18,Hilfstabelle!$L$5:$M$18,2,0) -> PAN 1 | D18: =+Hilfstabelle!L10 -> Panasonic 1 | E18: =SUM(H19:U19) -> 42 | F18: 9634 | G18: Pins | H18: =VLOOKUP(B18,'Hilfstabelle Mannschaften'!$AD$53:$AE$62,2,0) -> 1921 | I18: =VLOOKUP(B18,'Hilfstabelle Mannschaften'!$AD$53:$AF$62,3,0) -> 1955 | J18: =VLOOKUP(B18,'Hilfstabelle Mannschaften'!$AD$53:$AG$62,4,0) -> 1847 | K18: =VLOOKUP(B18,'Hilfstabelle Mannschaften'!$AD$53:$AH$62,5,0) -> 2032 | L18: =VLOOKUP(B18,'Hilfstabelle Mannschaften'!$AD$53:$AI$62,6,0) -> 1879 | M18: =VLOOKUP(B18,'Hilfstabelle Mannschaften'!$AD$53:$AJ$62,7,0) -> 0 | N18: =VLOOKUP(B18,'Hilfstabelle Mannschaften'!$AD$53:$AK$62,8,0) -> 0 | O18: =VLOOKUP(B18,'Hilfstabelle Mannschaften'!$AD$53:$AL$62,9,0) -> 0 | P18: =VLOOKUP(B18,'Hilfstabelle Mannschaften'!$AD$53:$AM$62,10,0) -> 0 | Q18: =VLOOKUP(B18,'Hilfstabelle Mannschaften'!$AD$53:$AN$62,11,0) -> 0 | R18: =VLOOKUP(B18,'Hilfstabelle Mannschaften'!$AD$53:$AO$62,12,0) -> 0 | S18: =VLOOKUP(B18,'Hilfstabelle Mannschaften'!$AD$53:$AP$62,13,0) -> 0 | T18: =VLOOKUP(B18,'Hilfstabelle Mannschaften'!$AD$53:$AQ$62,14,0) -> 0 | U18: =VLOOKUP(B18,'Hilfstabelle Mannschaften'!$AD$53:$AR$62,15,0) -> 0
G19: Punkte | H19: =IF(H18<1,"",'Hilfstabelle Mannschaften'!$V24) -> 9 | I19: =IF(I18<1,"",'Hilfstabelle Mannschaften'!$V29) -> 8 | J19: =IF(J18<1,"",'Hilfstabelle Mannschaften'!$V34) -> 8 | K19: =IF(K18<1,"",'Hilfstabelle Mannschaften'!$V39) -> 9 | L19: =IF(L18<1,"",'Hilfstabelle Mannschaften'!$V44) -> 8 | M19: =IF(M18<1,"",'Hilfstabelle Mannschaften'!$V49) ->  | N19: =IF(N18<1,"",'Hilfstabelle Mannschaften'!$V54) ->  | O19: =IF(O18<1,"",'Hilfstabelle Mannschaften'!$V59) ->  | P19: =IF(P18<1,"",'Hilfstabelle Mannschaften'!$V64) ->  | Q19: =IF(Q18<1,"",'Hilfstabelle Mannschaften'!$V69) ->  | R19: =IF(R18<1,"",'Hilfstabelle Mannschaften'!$V74) ->  | S19: =IF(S18<1,"",'Hilfstabelle Mannschaften'!$V79) ->  | T19: =IF(T18<1,"",'Hilfstabelle Mannschaften'!$V84) ->  | U19: =IF(U18<1,"",'Hilfstabelle Mannschaften'!V89) -> 
B20: =VLOOKUP(D20,Hilfstabelle!$L$5:$M$18,2,0) -> GEN 3 | D20: =+Hilfstabelle!L11 -> Generali 3 | E20: =SUM(H21:U21) -> 26 | F20: 8772 | G20: Pins | H20: =VLOOKUP(B20,'Hilfstabelle Mannschaften'!$AD$53:$AE$62,2,0) -> 1734 | I20: =VLOOKUP(B20,'Hilfstabelle Mannschaften'!$AD$53:$AF$62,3,0) -> 1646 | J20: =VLOOKUP(B20,'Hilfstabelle Mannschaften'!$AD$53:$AG$62,4,0) -> 1758 | K20: =VLOOKUP(B20,'Hilfstabelle Mannschaften'!$AD$53:$AH$62,5,0) -> 1845 | L20: =VLOOKUP(B20,'Hilfstabelle Mannschaften'!$AD$53:$AI$62,6,0) -> 1789 | M20: =VLOOKUP(B20,'Hilfstabelle Mannschaften'!$AD$53:$AJ$62,7,0) -> 0 | N20: =VLOOKUP(B20,'Hilfstabelle Mannschaften'!$AD$53:$AK$62,8,0) -> 0 | O20: =VLOOKUP(B20,'Hilfstabelle Mannschaften'!$AD$53:$AL$62,9,0) -> 0 | P20: =VLOOKUP(B20,'Hilfstabelle Mannschaften'!$AD$53:$AM$62,10,0) -> 0 | Q20: =VLOOKUP(B20,'Hilfstabelle Mannschaften'!$AD$53:$AN$62,11,0) -> 0 | R20: =VLOOKUP(B20,'Hilfstabelle Mannschaften'!$AD$53:$AO$62,12,0) -> 0 | S20: =VLOOKUP(B20,'Hilfstabelle Mannschaften'!$AD$53:$AP$62,13,0) -> 0 | T20: =VLOOKUP(B20,'Hilfstabelle Mannschaften'!$AD$53:$AQ$62,14,0) -> 0 | U20: =VLOOKUP(B20,'Hilfstabelle Mannschaften'!$AD$53:$AR$62,15,0) -> 0
G21: Punkte | H21: =IF(H20<1,"",'Hilfstabelle Mannschaften'!$W$24) -> 4 | I21: =IF(I20<1,"",'Hilfstabelle Mannschaften'!$W29) -> 3 | J21: =IF(J20<1,"",'Hilfstabelle Mannschaften'!$W34) -> 7 | K21: =IF(K20<1,"",'Hilfstabelle Mannschaften'!$W39) -> 5 | L21: =IF(L20<1,"",'Hilfstabelle Mannschaften'!$W44) -> 7 | M21: =IF(M20<1,"",'Hilfstabelle Mannschaften'!$W49) ->  | N21: =IF(N20<1,"",'Hilfstabelle Mannschaften'!$W54) ->  | O21: =IF(O20<1,"",'Hilfstabelle Mannschaften'!$W59) ->  | P21: =IF(P20<1,"",'Hilfstabelle Mannschaften'!$W64) ->  | Q21: =IF(Q20<1,"",'Hilfstabelle Mannschaften'!$W69) ->  | R21: =IF(R20<1,"",'Hilfstabelle Mannschaften'!$W74) ->  | S21: =IF(S20<1,"",'Hilfstabelle Mannschaften'!$W79) ->  | T21: =IF(T20<1,"",'Hilfstabelle Mannschaften'!$W84) ->  | U21: =IF(U20<1,"",'Hilfstabelle Mannschaften'!W89) -> 
B22: =VLOOKUP(D22,Hilfstabelle!$L$5:$M$18,2,0) -> FAH 3 | D22: =+Hilfstabelle!L12 -> Finanzamt 3 | E22: =SUM(H23:U23) -> 20 | F22: =SUM(H22:U22) -> 8223 | G22: Pins | H22: =VLOOKUP(B22,'Hilfstabelle Mannschaften'!$AD$53:$AE$62,2,0) -> 1951 | I22: =VLOOKUP(B22,'Hilfstabelle Mannschaften'!$AD$53:$AF$62,3,0) -> 1438 | J22: =VLOOKUP(B22,'Hilfstabelle Mannschaften'!$AD$53:$AG$62,4,0) -> 1588 | K22: =VLOOKUP(B22,'Hilfstabelle Mannschaften'!$AD$53:$AH$62,5,0) -> 1671 | L22: =VLOOKUP(B22,'Hilfstabelle Mannschaften'!$AD$53:$AI$62,6,0) -> 1575 | M22: =VLOOKUP(B22,'Hilfstabelle Mannschaften'!$AD$53:$AJ$62,7,0) -> 0 | N22: =VLOOKUP(B22,'Hilfstabelle Mannschaften'!$AD$53:$AK$62,8,0) -> 0 | O22: =VLOOKUP(B22,'Hilfstabelle Mannschaften'!$AD$53:$AL$62,9,0) -> 0 | P22: =VLOOKUP(B22,'Hilfstabelle Mannschaften'!$AD$53:$AM$62,10,0) -> 0 | Q22: =VLOOKUP(B22,'Hilfstabelle Mannschaften'!$AD$53:$AN$62,11,0) -> 0 | R22: =VLOOKUP(B22,'Hilfstabelle Mannschaften'!$AD$53:$AO$62,12,0) -> 0 | S22: =VLOOKUP(B22,'Hilfstabelle Mannschaften'!$AD$53:$AP$62,13,0) -> 0 | T22: =VLOOKUP(B22,'Hilfstabelle Mannschaften'!$AD$53:$AQ$62,14,0) -> 0 | U22: =VLOOKUP(B22,'Hilfstabelle Mannschaften'!$AD$53:$AR$62,15,0) -> 0
G23: Punkte | H23: =IF(H22<1,"",'Hilfstabelle Mannschaften'!$X$24) -> 10 | I23: =IF(I22<1,"",'Hilfstabelle Mannschaften'!$X$29) -> 1 | J23: =IF(J22<1,"",'Hilfstabelle Mannschaften'!$X$34) -> 3 | K23: =IF(K22<1,"",'Hilfstabelle Mannschaften'!$X$39) -> 3 | L23: =IF(L22<1,"",'Hilfstabelle Mannschaften'!$X$44) -> 3 | M23: =IF(M22<1,"",'Hilfstabelle Mannschaften'!$X$49) ->  | N23: =IF(N22<1,"",'Hilfstabelle Mannschaften'!$X$54) ->  | O23: =IF(O22<1,"",'Hilfstabelle Mannschaften'!$X$59) ->  | P23: =IF(P22<1,"",'Hilfstabelle Mannschaften'!$X$64) ->  | Q23: =IF(Q22<1,"",'Hilfstabelle Mannschaften'!$X$69) ->  | R23: =IF(R22<1,"",'Hilfstabelle Mannschaften'!$X$74) ->  | S23: =IF(S22<1,"",'Hilfstabelle Mannschaften'!$X$79) ->  | T23: =IF(T22<1,"",'Hilfstabelle Mannschaften'!$X$84) ->  | U23: =IF(U22<1,"",'Hilfstabelle Mannschaften'!X$89) -> 
B24: =VLOOKUP(D24,Hilfstabelle!$L$5:$M$18,2,0) -> HAS 5 | D24: =+Hilfstabelle!L13 -> HASPA 5 | E24: 32 | F24: 9100 | G24: Pins | H24: =VLOOKUP(B24,'Hilfstabelle Mannschaften'!$AD$53:$AE$62,2,0) -> 1756 | I24: =VLOOKUP(B24,'Hilfstabelle Mannschaften'!$AD$53:$AF$62,3,0) -> 1854 | J24: =VLOOKUP(B24,'Hilfstabelle Mannschaften'!$AD$53:$AG$62,4,0) -> 1928 | K24: =VLOOKUP(B24,'Hilfstabelle Mannschaften'!$AD$53:$AH$62,5,0) -> 1792 | L24: =VLOOKUP(B24,'Hilfstabelle Mannschaften'!$AD$53:$AI$62,6,0) -> 1770 | M24: =VLOOKUP(B24,'Hilfstabelle Mannschaften'!$AD$53:$AJ$62,7,0) -> 0 | N24: =VLOOKUP(B24,'Hilfstabelle Mannschaften'!$AD$53:$AK$62,8,0) -> 0 | O24: =VLOOKUP(B24,'Hilfstabelle Mannschaften'!$AD$53:$AL$62,9,0) -> 0 | P24: =VLOOKUP(B24,'Hilfstabelle Mannschaften'!$AD$53:$AM$62,10,0) -> 0 | Q24: =VLOOKUP(B24,'Hilfstabelle Mannschaften'!$AD$53:$AN$62,11,0) -> 0 | R24: =VLOOKUP(B24,'Hilfstabelle Mannschaften'!$AD$53:$AO$62,12,0) -> 0 | S24: =VLOOKUP(B24,'Hilfstabelle Mannschaften'!$AD$53:$AP$62,13,0) -> 0 | T24: =VLOOKUP(B24,'Hilfstabelle Mannschaften'!$AD$53:$AQ$62,14,0) -> 0 | U24: =VLOOKUP(B24,'Hilfstabelle Mannschaften'!$AD$53:$AR$62,15,0) -> 0
G25: Punkte | H25: =IF(H24<1,"",'Hilfstabelle Mannschaften'!$Y24) -> 5 | I25: =IF(I24<1,"",'Hilfstabelle Mannschaften'!$Y29) -> 7 | J25: =IF(J24<1,"",'Hilfstabelle Mannschaften'!$Y34) -> 10 | K25: =IF(K24<1,"",'Hilfstabelle Mannschaften'!$Y39) -> 4 | L25: =IF(L24<1,"",'Hilfstabelle Mannschaften'!$Y44) -> 6 | M25: =IF(M24<1,"",'Hilfstabelle Mannschaften'!$Y49) ->  | N25: =IF(N24<1,"",'Hilfstabelle Mannschaften'!$Y54) ->  | O25: =IF(O24<1,"",'Hilfstabelle Mannschaften'!$Y59) ->  | P25: =IF(P24<1,"",'Hilfstabelle Mannschaften'!$Y64) ->  | Q25: =IF(Q24<1,"",'Hilfstabelle Mannschaften'!$Y69) ->  | R25: =IF(R24<1,"",'Hilfstabelle Mannschaften'!$Y74) ->  | S25: =IF(S24<1,"",'Hilfstabelle Mannschaften'!$Y79) ->  | T25: =IF(T24<1,"",'Hilfstabelle Mannschaften'!$Y84) ->  | U25: =IF(U24<1,"",'Hilfstabelle Mannschaften'!Y89) -> 
B26: =VLOOKUP(D26,Hilfstabelle!$L$5:$M$18,2,0) -> BWV 5 | D26: =+Hilfstabelle!L14 -> BWVL 5 | E26: 28 | F26: 8727 | G26: Pins | H26: =VLOOKUP(B26,'Hilfstabelle Mannschaften'!$AD$53:$AE$62,2,0) -> 1827 | I26: =VLOOKUP(B26,'Hilfstabelle Mannschaften'!$AD$53:$AF$62,3,0) -> 1835 | J26: =VLOOKUP(B26,'Hilfstabelle Mannschaften'!$AD$53:$AG$62,4,0) -> 1746 | K26: =VLOOKUP(B26,'Hilfstabelle Mannschaften'!$AD$53:$AH$62,5,0) -> 2024 | L26: =VLOOKUP(B26,'Hilfstabelle Mannschaften'!$AD$53:$AI$62,6,0) -> 1295 | M26: =VLOOKUP(B26,'Hilfstabelle Mannschaften'!$AD$53:$AJ$62,7,0) -> 0 | N26: =VLOOKUP(B26,'Hilfstabelle Mannschaften'!$AD$53:$AK$62,8,0) -> 0 | O26: =VLOOKUP(B26,'Hilfstabelle Mannschaften'!$AD$53:$AL$62,9,0) -> 0 | P26: =VLOOKUP(B26,'Hilfstabelle Mannschaften'!$AD$53:$AM$62,10,0) -> 0 | Q26: =VLOOKUP(B26,'Hilfstabelle Mannschaften'!$AD$53:$AN$62,11,0) -> 0 | R26: =VLOOKUP(B26,'Hilfstabelle Mannschaften'!$AD$53:$AO$62,12,0) -> 0 | S26: =VLOOKUP(B26,'Hilfstabelle Mannschaften'!$AD$53:$AP$62,13,0) -> 0 | T26: =VLOOKUP(B26,'Hilfstabelle Mannschaften'!$AD$53:$AQ$62,14,0) -> 0 | U26: =VLOOKUP(B26,'Hilfstabelle Mannschaften'!$AD$53:$AR$62,15,0) -> 0
G27: Punkte | H27: =IF(H26<1,"",'Hilfstabelle Mannschaften'!$Z$24) -> 7 | I27: =IF(I26<1,"",'Hilfstabelle Mannschaften'!$Z$29) -> 6 | J27: =IF(J26<1,"",'Hilfstabelle Mannschaften'!$Z$34) -> 6 | K27: =IF(K26<1,"",'Hilfstabelle Mannschaften'!$Z$39) -> 8 | L27: =IF(L26<1,"",'Hilfstabelle Mannschaften'!$Z$44) -> 1 | M27: =IF(M26<1,"",'Hilfstabelle Mannschaften'!$Z$49) ->  | N27: =IF(N26<1,"",'Hilfstabelle Mannschaften'!$Z$54) ->  | O27: =IF(O26<1,"",'Hilfstabelle Mannschaften'!$Z$59) ->  | P27: =IF(P26<1,"",'Hilfstabelle Mannschaften'!$Z$64) ->  | Q27: =IF(Q26<1,"",'Hilfstabelle Mannschaften'!$Z$69) ->  | R27: =IF(R26<1,"",'Hilfstabelle Mannschaften'!$Z$74) ->  | S27: =IF(S26<1,"",'Hilfstabelle Mannschaften'!$Z$79) ->  | T27: =IF(T26<1,"",'Hilfstabelle Mannschaften'!$Z$84) ->  | U27: =IF(U26<1,"",'Hilfstabelle Mannschaften'!Z$89) -> 
B28: =_xlfn.XLOOKUP(D28,Hilfstabelle!$L$5:$L$18,Hilfstabelle!$M$5:$M$18) -> EAG 1 | D28: =+Hilfstabelle!L15 -> Eppendorf AG 1 | E28: =SUM(H29:U29) -> 124 | F28: =SUM(H28:U28) -> 26404 | G28: Pins | H28: =VLOOKUP($B$28,'Hilfstabelle Mannschaften'!$AD$53:$AR$62,2,0) -> 1886 | I28: =VLOOKUP($B$28,'Hilfstabelle Mannschaften'!$AD$53:$AR$62,2,0) -> 1886 | J28: =VLOOKUP($B$28,'Hilfstabelle Mannschaften'!$AD$53:$AR$62,2,0) -> 1886 | K28: =VLOOKUP($B$28,'Hilfstabelle Mannschaften'!$AD$53:$AR$62,2,0) -> 1886 | L28: =VLOOKUP($B$28,'Hilfstabelle Mannschaften'!$AD$53:$AR$62,2,0) -> 1886 | M28: =VLOOKUP($B$28,'Hilfstabelle Mannschaften'!$AD$53:$AR$62,2,0) -> 1886 | N28: =VLOOKUP($B$28,'Hilfstabelle Mannschaften'!$AD$53:$AR$62,2,0) -> 1886 | O28: =VLOOKUP($B$28,'Hilfstabelle Mannschaften'!$AD$53:$AR$62,2,0) -> 1886 | P28: =VLOOKUP($B$28,'Hilfstabelle Mannschaften'!$AD$53:$AR$62,2,0) -> 1886 | Q28: =VLOOKUP($B$28,'Hilfstabelle Mannschaften'!$AD$53:$AR$62,2,0) -> 1886 | R28: =VLOOKUP($B$28,'Hilfstabelle Mannschaften'!$AD$53:$AR$62,2,0) -> 1886 | S28: =VLOOKUP($B$28,'Hilfstabelle Mannschaften'!$AD$53:$AR$62,2,0) -> 1886 | T28: =VLOOKUP($B$28,'Hilfstabelle Mannschaften'!$AD$53:$AR$62,2,0) -> 1886 | U28: =VLOOKUP($B$28,'Hilfstabelle Mannschaften'!$AD$53:$AR$62,2,0) -> 1886
F29: =SUM(H29:U29) -> 124 | G29: Punkte | H29: =IF(H28<1,"",'Hilfstabelle Mannschaften'!$AA$24) -> 0 | I29: =IF(I28<1,"",'Hilfstabelle Mannschaften'!$AA$29) -> 0 | J29: =IF(J28<1,"",'Hilfstabelle Mannschaften'!$AA$34) -> 10 | K29: =IF(K28<1,"",'Hilfstabelle Mannschaften'!$AA$39) -> 6 | L29: =IF(L28<1,"",'Hilfstabelle Mannschaften'!$AA$44) -> 9 | M29: =IF(M28<1,"",'Hilfstabelle Mannschaften'!$AA$49) -> 11 | N29: =IF(N28<1,"",'Hilfstabelle Mannschaften'!$AA$54) -> 11 | O29: =IF(O28<1,"",'Hilfstabelle Mannschaften'!$AA$59) -> 11 | P29: =IF(P28<1,"",'Hilfstabelle Mannschaften'!$AA$64) -> 11 | Q29: =IF(Q28<1,"",'Hilfstabelle Mannschaften'!$AA$69) -> 11 | R29: =IF(R28<1,"",'Hilfstabelle Mannschaften'!$AA$74) -> 11 | S29: =IF(S28<1,"",'Hilfstabelle Mannschaften'!$AA$79) -> 11 | T29: =IF(T28<1,"",'Hilfstabelle Mannschaften'!$AA$84) -> 11 | U29: =IF(U28<1,"",'Hilfstabelle Mannschaften'!AA$89) -> 11
B30: =+'Spielbogen 1.'!F20 | D30: =+#REF! ->  | F30: =SUM(H30:U30) -> 0 | G30: Pins
F31: =SUM(H31:U31) -> 0 | G31: Punkte | H31: =IF(H30<1,"",'Hilfstabelle Mannschaften'!$AB$24) ->  | I31: =IF(I30<1,"",'Hilfstabelle Mannschaften'!$AB$29) ->  | J31: =IF(J30<1,"",'Hilfstabelle Mannschaften'!$AB$34) ->  | K31: =IF(K30<1,"",'Hilfstabelle Mannschaften'!$AB$39) ->  | L31: =IF(L30<1,"",'Hilfstabelle Mannschaften'!$AB$44) ->  | M31: =IF(M30<1,"",'Hilfstabelle Mannschaften'!$AB$49) ->  | N31: =IF(N30<1,"",'Hilfstabelle Mannschaften'!$AB$54) ->  | O31: =IF(O30<1,"",'Hilfstabelle Mannschaften'!$AB$59) ->  | P31: =IF(P30<1,"",'Hilfstabelle Mannschaften'!$AB$64) ->  | Q31: =IF(Q30<1,"",'Hilfstabelle Mannschaften'!$AB$69) ->  | R31: =IF(R30<1,"",'Hilfstabelle Mannschaften'!$AB$74) ->  | S31: =IF(S30<1,"",'Hilfstabelle Mannschaften'!$AB$79) ->  | T31: =IF(T30<1,"",'Hilfstabelle Mannschaften'!$AB$84) ->  | U31: =IF(U30<1,"",'Hilfstabelle Mannschaften'!AB$89) -> 

Sheet Hilfstabelle Spieler (hidden)
AR1: 1. Ant. | AS1: 2. Ant. | AT1: 3. Ant. | AU1: 4. Ant. | AV1: 5. Ant. | AW1: 6. Ant. | AX1: 7. Ant. | AY1: 8. Ant. | AZ1: 9. Ant. | BA1: 10. Ant. | BB1: 11. Ant. | BC1: 12. Ant. | BD1: 13. Ant. | BE1: 14. Ant. | BG1: Summe Pins sonstige | BI1: Anzahl Spiele sonstige
P2: 1. Mannschaft | AG2: Annegret Schmidt | AH2: Ilona Wetzel | AI2: Jörg Frahm | AJ2: Kai Roßberg | AK2: Mario Jurk | AL2: Matthias Nolte | AM2: Michael Wetzel | AN2: Deniz Hagelstein | AP2: Annegret Schmidt | AQ2: =+'Annegret S.'!$J$12 ->  | AR2: =+'Annegret S.'!$J$13 -> 413 | AS2: =+'Annegret S.'!$J$14 -> 443 | AT2: =+'Annegret S.'!$J$15 ->  | AU2: =+'Annegret S.'!$J$16 ->  | AV2: =+'Annegret S.'!$J$17 ->  | AW2: =+'Annegret S.'!$J$18 ->  | AX2: =+'Annegret S.'!$J$19 ->  | AY2: =+'Annegret S.'!$J$20 ->  | AZ2: =+'Annegret S.'!$J$21 ->  | BA2: =+'Annegret S.'!$J$22 ->  | BB2: =+'Annegret S.'!$J$23 ->  | BC2: =+'Annegret S.'!$J$24 ->  | BD2: =+'Annegret S.'!$J$25 ->  | BG2: Annegret Schmidt | BH2: =+'Annegret S.'!H7 -> 26 | BI2: =+'Annegret S.'!G7 -> 3535
B3: Pass.-Nr. | P3: 1. Ant. | Q3: 2. Ant. | R3: 3. Ant. | S3: 4. Ant. | T3: 5. Ant. | U3: 6. Ant. | V3: 7. Ant. | W3: 8. Ant. | X3: 9. Ant. | Y3: 10. Ant. | Z3: 11. Ant. | AA3: 12. Ant. | AB3: 13. Ant. | AC3: 14. Ant. | AP3: Ilona Wetzel | AQ3: =+'Ilona W.'!$J$12 -> 420 | AR3: =+'Ilona W.'!$J$13 ->  | AS3: =+'Ilona W.'!$J$14 -> 424 | AT3: =+'Ilona W.'!$J$15 ->  | AU3: =+'Ilona W.'!$J$16 -> 475 | AV3: =+'Ilona W.'!$J$17 ->  | AW3: =+'Ilona W.'!$J$18 ->  | AX3: =+'Ilona W.'!$J$19 ->  | AY3: =+'Ilona W.'!$J$20 ->  | AZ3: =+'Ilona W.'!$J$21 ->  | BA3: =+'Ilona W.'!$J$22 ->  | BB3: =+'Ilona W.'!$J$23 ->  | BC3: =+'Ilona W.'!$J$24 ->  | BD3: =+'Ilona W.'!$J$25 ->  | BG3: Deniz Hagelstein | BH3: =+'Deniz H.'!H7 ->  | BI3: =+'Deniz H.'!G7 -> 
E4: Max Wert Einzel Ergebnis | G4: Max Wert 3er Ergebnis | I4: Max Wert 4er Ergebnis | K4: Max Wert 6er Ergebnis | O4: Deniz Hagelstein | P4: =+'Deniz H.'!$J12 ->  | Q4: =+'Deniz H.'!$J13 ->  | R4: =+'Deniz H.'!$J14 ->  | S4: =+'Deniz H.'!$J15 -> 485 | T4: =+'Deniz H.'!$J16 ->  | U4: =+'Deniz H.'!$J17 ->  | V4: =+'Deniz H.'!$J18 ->  | W4: =+'Deniz H.'!$J19 ->  | X4: =+'Deniz H.'!$J20 ->  | Y4: =+'Deniz H.'!$J21 ->  | Z4: =+'Deniz H.'!$J22 ->  | AA4: =+'Deniz H.'!$J23 ->  | AB4: =+'Deniz H.'!$J24 ->  | AC4: =+'Deniz H.'!$J25 ->  | AP4: Jörg Frahm | AQ4: =+'Jörg F.'!$J$12 -> 431 | AR4: =+'Jörg F.'!$J$13 -> 496 | AS4: =+'Jörg F.'!$J$14 ->  | AT4: =+'Jörg F.'!$J$15 ->  | AU4: =+'Jörg F.'!$J$16 ->  | AV4: =+'Jörg F.'!$J$17 ->  | AW4: =+'Jörg F.'!$J$18 ->  | AX4: =+'Jörg F.'!$J$19 ->  | AY4: =+'Jörg F.'!$J$20 ->  | AZ4: =+'Jörg F.'!$J$21 ->  | BA4: =+'Jörg F.'!$J$22 ->  | BB4: =+'Jörg F.'!$J$23 ->  | BC4: =+'Jörg F.'!$J$24 ->  | BD4: =+'Jörg F.'!$J$25 ->  | BG4: Frank Nijholt | BH4: =+'Frank N.'!H7 ->  | BI4: =+'Frank N.'!G7 -> 
A5: Mannschaft 1 | E5: =+MAX('Michael W.'!J8,'Michael W.'!V8,'Michael W.'!S8) -> 220 | F5: Michael Wetzel | G5: =+'Michael W.'!L8 -> 524 | H5: Michael Wetzel | I5: =+MAX('Michael W.'!$R$12:$R$20) -> 722 | J5: Michael Wetzel | K5: =+MAX('Michael W.'!$S$12:$S$20) -> 1030 | L5: Michael Wetzel | O5: Matthias Nolte | P5: =+'Matthias N.'!$J12 ->  | Q5: =+'Matthias N.'!$J13 ->  | R5: =+'Matthias N.'!$J14 -> 428 | S5: =+'Matthias N.'!$J15 ->  | T5: =+'Matthias N.'!$J16 -> 393 | U5: =+'Matthias N.'!$J17 ->  | V5: =+'Matthias N.'!$J18 ->  | W5: =+'Matthias N.'!$J19 ->  | X5: =+'Matthias N.'!$J20 ->  | Y5: =+'Matthias N.'!$J21 ->  | Z5: =+'Matthias N.'!$J22 ->  | AA5: =+'Matthias N.'!$J23 ->  | AB5: =+'Matthias N.'!$J24 ->  | AC5: =+'Matthias N.'!$J25 ->  | AP5: Kai Roßberg | AQ5: =+'Kai R.'!$J$12 -> 546 | AR5: =+'Kai R.'!$J$13 -> 546 | AS5: =+'Kai R.'!$J$14 -> 552 | AT5: =+'Kai R.'!$J$15 ->  | AU5: =+'Kai R.'!$J$16 -> 472 | AV5: =+'Kai R.'!$J$17 ->  | AW5: =+'Kai R.'!$J$18 ->  | AX5: =+'Kai R.'!$J$19 ->  | AY5: =+'Kai R.'!$J$20 ->  | AZ5: =+'Kai R.'!$J$21 ->  | BA5: =+'Kai R.'!$J$22 ->  | BB5: =+'Kai R.'!$J$23 ->  | BC5: =+'Kai R.'!$J$24 ->  | BD5: =+'Kai R.'!$J$25 ->  | BG5: Ilona Wetzel | BH5: =+'Ilona W.'!H7 -> 18 | BI5: =+'Ilona W.'!G7 -> 2733
A6: Annegret Schmidt | B6: 19222 | E6: =+MAX('Kai R.'!J8,'Kai R.'!V8,'Kai R.'!S8) -> 222 | F6: Kai Roßberg | G6: =+'Kai R.'!L8 -> 552 | H6: Kai Roßberg | I6: =+MAX('Kai R.'!$R$12:$R$20) -> 0 | J6: Kai Roßberg | K6: =+MAX('Kai R.'!$S$12:$S$20) -> 0 | L6: Kai Roßberg | O6: Jörg Frahm | P6: =+'Jörg F.'!$J$12 -> 431 | Q6: =+'Jörg F.'!$J$13 -> 496 | R6: =+'Jörg F.'!$J$14 ->  | S6: =+'Jörg F.'!$J$15 ->  | T6: =+'Jörg F.'!$J$16 ->  | U6: =+'Jörg F.'!$J$17 ->  | V6: =+'Jörg F.'!$J$18 ->  | W6: =+'Jörg F.'!$J$19 ->  | X6: =+'Jörg F.'!$J$20 ->  | Y6: =+'Jörg F.'!$J$21 ->  | Z6: =+'Jörg F.'!$J$22 ->  | AA6: =+'Jörg F.'!$J$23 ->  | AB6: =+'Jörg F.'!$J$24 ->  | AC6: =+'Jörg F.'!$J$25 ->  | AP6: Mario Jurk | AQ6: =+'Mario J.'!$J$12 ->  | AR6: =+'Mario J.'!$J$13 ->  | AS6: =+'Mario J.'!$J$14 ->  | AT6: =+'Mario J.'!$J$15 -> 628 | AU6: =+'Mario J.'!$J$16 -> 539 | AV6: =+'Mario J.'!$J$17 ->  | AW6: =+'Mario J.'!$J$18 ->  | AX6: =+'Mario J.'!$J$19 ->  | AY6: =+'Mario J.'!$J$20 ->  | AZ6: =+'Mario J.'!$J$21 ->  | BA6: =+'Mario J.'!$J$22 ->  | BB6: =+'Mario J.'!$J$23 ->  | BC6: =+'Mario J.'!$J$24 ->  | BD6: =+'Mario J.'!$J$25 ->  | BG6: Jörg Frahm | BH6: =+'Jörg F.'!H7 -> 10 | BI6: =+'Jörg F.'!G7 -> 1842
A7: Deniz Hagelstein | B7: 24775 | E7: =+MAX('Mario J.'!J8,'Mario J.'!V8,'Mario J.'!S8) -> 224 | F7: Mario Jurk | G7: =+'Mario J.'!L8 -> 628 | H7: Mario Jurk | I7: =+MAX('Mario J.'!$R$12:$R$20) -> 0 | J7: Mario Jurk | K7: =+MAX('Mario J.'!$S$12:$S$20) -> 0 | L7: Mario Jurk | O7: Michael Wetzel | P7: =+'Michael W.'!$J$12 -> 524 | Q7: =+'Michael W.'!$J$13 ->  | R7: =+'Michael W.'!$J$14 ->  | S7: =+'Michael W.'!$J$15 -> 488 | T7: =+'Michael W.'!$J$16 ->  | U7: =+'Michael W.'!$J$17 ->  | V7: =+'Michael W.'!$J$18 ->  | W7: =+'Michael W.'!$J$19 ->  | X7: =+'Michael W.'!$J$20 ->  | Y7: =+'Michael W.'!$J$21 ->  | Z7: =+'Michael W.'!$J$22 ->  | AA7: =+'Michael W.'!$J$23 ->  | AB7: =+'Michael W.'!$J$24 ->  | AC7: =+'Michael W.'!$J$25 ->  | AF7: 1. Antritt | AG7: =+'Annegret S.'!$J$12 ->  | AH7: =+'Ilona W.'!$J$12 -> 420 | AI7: =+'Jörg F.'!$J$12 -> 431 | AJ7: =+'Kai R.'!$J$13 -> 546 | AK7: =+'Mario J.'!$J$12 ->  | AL7: =+'Matthias N.'!$J$12 ->  | AM7: =+'Michael W.'!$J$12 -> 524 | AN7: =+'Deniz H.'!$J$12 ->  | AP7: Matthias Nolte | AQ7: =+'Matthias N.'!$J$12 ->  | AR7: =+'Matthias N.'!$J$13 ->  | AS7: =+'Matthias N.'!$J$14 -> 428 | AT7: =+'Matthias N.'!$J$15 ->  | AU7: =+'Matthias N.'!$J$16 -> 393 | AV7: =+'Matthias N.'!$J$17 ->  | AW7: =+'Matthias N.'!$J$18 ->  | AX7: =+'Matthias N.'!$J$19 ->  | AY7: =+'Matthias N.'!$J$20 ->  | AZ7: =+'Matthias N.'!$J$21 ->  | BA7: =+'Matthias N.'!$J$22 ->  | BB7: =+'Matthias N.'!$J$23 ->  | BC7: =+'Matthias N.'!$J$24 ->  | BD7: =+'Matthias N.'!$J$25 ->  | BG7: Kai Roßberg | BH7: =+'Kai R.'!H7 ->  | BI7: =+'Kai R.'!G7 -> 
A8: Frank Nijholt | B8: 24774 | E8: =+MAX('Jörg F.'!J8,'Jörg F.'!V8,'Jörg F.'!S8) -> 227 | F8: Jörg Frahm | G8: =+'Jörg F.'!L8 -> 496 | H8: Jörg Frahm | I8: =+MAX('Jörg F.'!$R$12:$R$20) -> 761 | J8: Jörg Frahm | K8: =+MAX('Jörg F.'!$S$12:$S$20) -> 1081 | L8: Jörg Frahm | O8: Kai Roßberg | P8: =+'Kai R.'!$J$12 -> 546 | Q8: =+'Kai R.'!$J$13 -> 546 | R8: =+'Kai R.'!$J$14 -> 552 | S8: =+'Kai R.'!$J$15 ->  | T8: =+'Kai R.'!$J$16 -> 472 | U8: =+'Kai R.'!$J$17 ->  | V8: =+'Kai R.'!$J$18 ->  | W8: =+'Kai R.'!$J$19 ->  | X8: =+'Kai R.'!$J$20 ->  | Y8: =+'Kai R.'!$J$21 ->  | Z8: =+'Kai R.'!$J$22 ->  | AA8: =+'Kai R.'!$J$23 ->  | AB8: =+'Kai R.'!$J$24 ->  | AC8: =+'Kai R.'!$J$25 ->  | AF8: 2. Antritt | AG8: =+'Annegret S.'!$J$13 -> 413 | AH8: =+'Ilona W.'!$J$13 ->  | AI8: =+'Jörg F.'!$J$13 -> 496 | AJ8: =+'Kai R.'!$J$14 -> 552 | AK8: =+'Mario J.'!$J$13 ->  | AL8: =+'Matthias N.'!$J$13 ->  | AM8: =+'Michael W.'!$J$13 ->  | AN8: =+'Deniz H.'!$J$13 ->  | AP8: Michael Wetzel | AQ8: =+'Michael W.'!$J$12 -> 524 | AR8: =+'Michael W.'!$J$13 ->  | AS8: =+'Michael W.'!$J$14 ->  | AT8: =+'Michael W.'!$J$15 -> 488 | AU8: =+'Michael W.'!$J$16 ->  | AV8: =+'Michael W.'!$J$17 ->  | AW8: =+'Michael W.'!$J$18 ->  | AX8: =+'Michael W.'!$J$19 ->  | AY8: =+'Michael W.'!$J$20 ->  | AZ8: =+'Michael W.'!$J$21 ->  | BA8: =+'Michael W.'!$J$22 ->  | BB8: =+'Michael W.'!$J$23 ->  | BC8: =+'Michael W.'!$J$24 ->  | BD8: =+'Michael W.'!$J$25 ->  | BG8: Mario Jurk | BH8: =+'Mario J.'!H7 ->  | BI8: =+'Mario J.'!G7 -> 
A9: Ilona Wetzel | B9: 22115 | E9: =+MAX('Matthias N.'!$J$8,'Matthias N.'!$V$8,'Matthias N.'!$S$8) -> 168 | F9: Matthias Nolte | G9: =+'Matthias N.'!$L$8 -> 428 | H9: Matthias Nolte | I9: =+MAX('Matthias N.'!$R$12:$R$20) -> 0 | J9: Matthias Nolte | K9: =+MAX('Matthias N.'!$S$12:$S$20) -> 0 | L9: Matthias Nolte | O9: Mario Jurk | P9: =+'Mario J.'!$J$12 ->  | Q9: =+'Mario J.'!$J$13 ->  | R9: =+'Mario J.'!$J$14 ->  | S9: =+'Mario J.'!$J$15 -> 628 | T9: =+'Mario J.'!$J$16 -> 539 | U9: =+'Mario J.'!$J$17 ->  | V9: =+'Mario J.'!$J$18 ->  | W9: =+'Mario J.'!$J$19 ->  | X9: =+'Mario J.'!$J$20 ->  | Y9: =+'Mario J.'!$J$21 ->  | Z9: =+'Mario J.'!$J$22 ->  | AA9: =+'Mario J.'!$J$23 ->  | AB9: =+'Mario J.'!$J$24 ->  | AC9: =+'Mario J.'!$J$25 ->  | AF9: 3. Antritt | AG9: =+'Annegret S.'!$J$14 -> 443 | AH9: =+'Ilona W.'!$J$14 -> 424 | AI9: =+'Jörg F.'!$J$14 ->  | AJ9: =+'Kai R.'!$J$15 ->  | AK9: =+'Mario J.'!$J$14 ->  | AL9: =+'Matthias N.'!$J$14 -> 428 | AM9: =+'Michael W.'!$J$14 ->  | AN9: =+'Deniz H.'!$J$14 ->  | AP9: Deniz Hagelstein | AQ9: =+'Deniz H.'!$J$12 ->  | AR9: =+'Deniz H.'!$J$13 ->  | AS9: =+'Deniz H.'!$J$14 ->  | AT9: =+'Deniz H.'!$J$15 -> 485 | AU9: =+'Deniz H.'!$J$16 ->  | AV9: =+'Deniz H.'!$J$17 ->  | AW9: =+'Deniz H.'!$J$18 ->  | AX9: =+'Deniz H.'!$J$19 ->  | AY9: =+'Deniz H.'!$J$20 ->  | AZ9: =+'Deniz H.'!$J$21 ->  | BA9: =+'Deniz H.'!$J$22 ->  | BB9: =+'Deniz H.'!$J$23 ->  | BC9: =+'Deniz H.'!$J$24 ->  | BD9: =+'Deniz H.'!$J$25 ->  | BG9: Matthias Nolte | BH9: =+'Matthias N.'!H7 ->  | BI9: =+'Matthias N.'!G7 -> 
A10: Jörg Frahm | B10: 19221 | E10: =+MAX('Deniz H.'!$J$8,'Deniz H.'!$V$8,'Deniz H.'!$S$8) -> 187 | F10: Deniz Hagelstein | G10: =+'Deniz H.'!$L$8 -> 485 | H10: Deniz Hagelstein | I10: =+MAX('Deniz H.'!$R$12:$R$20) -> 0 | J10: Deniz Hagelstein | K10: =+MAX('Deniz H.'!$S$12:$S$20) -> 0 | L10: Deniz Hagelstein | O10: Ilona Wetzel | P10: =+'Ilona W.'!$J$12 -> 420 | Q10: =+'Ilona W.'!$J$13 ->  | R10: =+'Ilona W.'!$J$14 -> 424 | S10: =+'Ilona W.'!$J$15 ->  | T10: =+'Ilona W.'!$J$16 -> 475 | U10: =+'Ilona W.'!$J$17 ->  | V10: =+'Ilona W.'!$J$18 ->  | W10: =+'Ilona W.'!$J$19 ->  | X10: =+'Ilona W.'!$J$20 ->  | Y10: =+'Ilona W.'!$J$21 ->  | Z10: =+'Ilona W.'!$J$22 ->  | AA10: =+'Ilona W.'!$J$23 ->  | AB10: =+'Ilona W.'!$J$24 ->  | AC10: =+'Ilona W.'!$J$25 ->  | AF10: 4. Antritt | AG10: =+'Annegret S.'!$J$15 ->  | AH10: =+'Ilona W.'!$J$15 ->  | AI10: =+'Jörg F.'!$J$15 ->  | AJ10: =+'Kai R.'!$J$16 -> 472 | AK10: =+'Mario J.'!$J$15 -> 628 | AL10: =+'Matthias N.'!$J$15 ->  | AM10: =+'Michael W.'!$J$15 -> 488 | AN10: =+'Deniz H.'!$J$15 -> 485 | BG10: Michael Wetzel | BH10: =+'Michael W.'!H7 -> 10 | BI10: =+'Michael W.'!G7 -> 1752
A11: Kai Roßberg | B11: 21889 | E11: =+MAX('Frank N.'!$J$8,'Frank N.'!$V$8,'Frank N.'!$S$8) -> 170 | F11: Frank Nijholt | G11: =+'Frank N.'!$L$8 -> 500 | H11: Frank Nijholt | I11: =+MAX('Frank N.'!$R$12:$R$20) -> 0 | J11: Frank Nijholt | K11: =+MAX('Frank N.'!$S$12:$S$20) -> 0 | L11: Frank Nijholt | O11: Annegret Schmidt | P11: =+'Annegret S.'!$J$12 ->  | Q11: =+'Annegret S.'!$J$13 -> 413 | R11: =+'Annegret S.'!$J$14 -> 443 | S11: =+'Annegret S.'!$J$15 ->  | T11: =+'Annegret S.'!$J$16 ->  | U11: =+'Annegret S.'!$J$17 ->  | V11: =+'Annegret S.'!$J$18 ->  | W11: =+'Annegret S.'!$J$19 ->  | X11: =+'Annegret S.'!$J$20 ->  | Y11: =+'Annegret S.'!$J$21 ->  | Z11: =+'Annegret S.'!$J$22 ->  | AA11: =+'Annegret S.'!$J$23 ->  | AB11: =+'Annegret S.'!$J$24 ->  | AC11: =+'Annegret S.'!$J$25 ->  | AF11: 5. Antritt | AG11: =+'Annegret S.'!$J$16 ->  | AH11: =+'Ilona W.'!$J$16 -> 475 | AI11: =+'Jörg F.'!$J$16 ->  | AJ11: =+'Kai R.'!$J$17 ->  | AK11: =+'Mario J.'!$J$16 -> 539 | AL11: =+'Matthias N.'!$J$16 -> 393 | AM11: =+'Michael W.'!$J$16 ->  | AN11: =+'Deniz H.'!$J$17 ->  | BG11: Gesamt | BH11: =SUM(BH2:BH10) -> 64 | BI11: =SUM(BI2:BI10) -> 9862
A12: Mario Jurk | B12: 23302 | G12: =+G10/3 -> 161.6666667 | I12: =+I10/4 -> 0 | K12: =+K10/6 -> 0 | O12: Frank Nijholt | P12: =+'Frank N.'!$J$12 ->  | Q12: =+'Frank N.'!$J$13 -> 500 | R12: =+'Frank N.'!$J$14 ->  | S12: =+'Frank N.'!$J$15 -> 431 | T12: =+'Frank N.'!$J$16 ->  | U12: =+'Frank N.'!$J$17 ->  | V12: =+'Frank N.'!$J$18 ->  | W12: =+'Frank N.'!$J$19 ->  | X12: =+'Frank N.'!$J$20 ->  | Y12: =+'Frank N.'!$J$21 ->  | Z12: =+'Frank N.'!$J$22 ->  | AA12: =+'Frank N.'!$J$23 ->  | AB12: =+'Frank N.'!$J$24 ->  | AC12: =+'Frank N.'!$J$25 ->  | AF12: 6. Antritt | AG12: =+'Annegret S.'!$J$17 ->  | AH12: =+'Ilona W.'!$J$17 ->  | AI12: =+'Jörg F.'!$J$17 ->  | AJ12: =+'Kai R.'!$J$18 ->  | AK12: =+'Mario J.'!$J$17 ->  | AL12: =+'Matthias N.'!$J$17 ->  | AM12: =+'Michael W.'!$J$17 ->  | AN12: =+'Deniz H.'!$J$17 -> 
A13: Matthias Nolte | B13: 20137 | E13: =MAX(E5:E11) -> 227 | F13: =VLOOKUP(E13,E5:F10,2,0) -> Jörg Frahm | G13: =MAX(G5:G11) -> 628 | H13: =VLOOKUP(G13,G5:H10,2,0) -> Mario Jurk | I13: =MAX(I5:I11) -> 761 | J13: =VLOOKUP(I13,I5:J10,2,0) -> Jörg Frahm | K13: =MAX(K5:K11) -> 1081 | L13: =VLOOKUP(K13,K5:L10,2,0) -> Jörg Frahm | AF13: 7. Antritt | AG13: =+'Annegret S.'!$J$18 ->  | AH13: =+'Ilona W.'!$J$18 ->  | AI13: =+'Jörg F.'!$J$18 ->  | AJ13: =+'Kai R.'!$J$19 ->  | AK13: =+'Mario J.'!$J$18 ->  | AL13: =+'Matthias N.'!$J$18 ->  | AM13: =+'Michael W.'!$J$18 ->  | AN13: =+'Deniz H.'!$J$18 -> 
A14: Michael Wetzel | B14: 22113 | G14: =+G13/3 -> 209.3333333 | I14: =+I13/4 -> 190.25 | K14: =+K13/6 -> 180.1666667 | AF14: 8. Antritt | AG14: =+'Annegret S.'!$J$19 ->  | AH14: =+'Ilona W.'!$J$19 ->  | AI14: =+'Jörg F.'!$J$19 ->  | AJ14: =+'Kai R.'!$J$20 ->  | AK14: =+'Mario J.'!$J$19 ->  | AL14: =+'Matthias N.'!$J$19 ->  | AM14: =+'Michael W.'!$J$19 ->  | AN14: =+'Deniz H.'!$J$19 -> 
E15: =+MAX('Annegret S.'!J8,'Annegret S.'!V8,'Annegret S.'!S8) -> 192 | F15: Annegret Schmidt | G15: =+'Annegret S.'!L8 -> 443 | H15: Annegret Schmidt | I15: =+MAX('Annegret S.'!$R$12:$R$28) -> 627 | J15: Annegret Schmidt | K15: =+MAX('Annegret S.'!$S$12:$S$20) -> 770 | L15: Annegret Schmidt | AF15: 9. Antritt | AG15: =+'Annegret S.'!$J$20 ->  | AH15: =+'Ilona W.'!$J$20 ->  | AI15: =+'Jörg F.'!$J$20 ->  | AJ15: =+'Kai R.'!$J$21 ->  | AK15: =+'Mario J.'!$J$20 ->  | AL15: =+'Matthias N.'!$J$20 ->  | AM15: =+'Michael W.'!$J$20 ->  | AN15: =+'Deniz H.'!$J$20 -> 
E16: =+MAX('Ilona W.'!J8,'Ilona W.'!V8,'Ilona W.'!S8) -> 185 | F16: Ilona Wetzel | G16: =+'Ilona W.'!L8 -> 475 | H16: Ilona Wetzel | I16: =+MAX('Ilona W.'!$R$12:$R$28) -> 646 | J16: Ilona Wetzel | K16: =+MAX('Ilona W.'!$S$12:$S$20) -> 876 | L16: Ilona Wetzel | AF16: 10. Antritt | AG16: =+'Annegret S.'!$J$21 ->  | AH16: =+'Ilona W.'!$J$21 ->  | AI16: =+'Jörg F.'!$J$21 ->  | AJ16: =+'Kai R.'!$J$22 ->  | AK16: =+'Mario J.'!$J$21 ->  | AL16: =+'Matthias N.'!$J$21 ->  | AM16: =+'Michael W.'!$J$21 ->  | AN16: =+'Deniz H.'!$J$21 -> 
AF17: 11. Antritt | AG17: =+'Annegret S.'!$J$22 ->  | AH17: =+'Ilona W.'!$J$22 ->  | AI17: =+'Jörg F.'!$J$22 ->  | AJ17: =+'Kai R.'!$J$23 ->  | AK17: =+'Mario J.'!$J$22 ->  | AL17: =+'Matthias N.'!$J$22 ->  | AM17: =+'Michael W.'!$J$22 ->  | AN17: =+'Deniz H.'!$J$22 -> 
E18: =MAX(E15:E16) -> 192 | F18: =VLOOKUP(E18,E15:F16,2,0) -> Annegret Schmidt | G18: =MAX(G15:G16) -> 475 | H18: =VLOOKUP(G18,G15:H16,2,0) -> Ilona Wetzel | I18: =MAX(I15:I16) -> 646 | J18: =VLOOKUP(I18,I15:J16,2,0) -> Ilona Wetzel | K18: =MAX(K15:K16) -> 876 | L18: =VLOOKUP(K18,K15:L16,2,0) -> Ilona Wetzel | AF18: 12. Antritt | AG18: =+'Annegret S.'!$J$23 ->  | AH18: =+'Ilona W.'!$J$23 ->  | AI18: =+'Jörg F.'!$J$23 ->  | AJ18: =+'Kai R.'!$J$24 ->  | AK18: =+'Mario J.'!$J$23 ->  | AL18: =+'Matthias N.'!$J$23 ->  | AM18: =+'Michael W.'!$J$23 ->  | AN18: =+'Deniz H.'!$J$23 -> 
G19: =+G18/3 -> 158.3333333 | I19: =+I18/4 -> 161.5 | K19: =+K18/6 -> 146 | AF19: 13. Antritt | AG19: =+'Annegret S.'!$J$24 ->  | AH19: =+'Ilona W.'!$J$24 ->  | AI19: =+'Jörg F.'!$J$24 ->  | AJ19: =+'Kai R.'!$J$25 ->  | AK19: =+'Mario J.'!$J$24 ->  | AL19: =+'Matthias N.'!$J$24 ->  | AM19: =+'Michael W.'!$J$24 ->  | AN19: =+'Deniz H.'!$J$24 -> 
AF20: 14. Antritt | AG20: =+'Annegret S.'!$J$25 ->  | AH20: =+'Ilona W.'!$J$25 ->  | AI20: =+'Jörg F.'!$J$25 ->  | AJ20: =+'Kai R.'!$K$26 -> 0 | AK20: =+'Mario J.'!$J$25 ->  | AL20: =+'Matthias N.'!$J$25 ->  | AM20: =+'Michael W.'!$J$25 ->  | AN20: =+'Deniz H.'!$J$25 -> 
E25: Zuletzt aktualisiert am: | F25: =NOW() -> 2025-11-16T15:41:11.980 | G25: >>>>>>>>> | H25: ='Hilfstabelle Spieler'!$E$25&" "&TEXT('Hilfstabelle Spieler'!$F$25,"TT.MM.JJJJ") -> Zuletzt aktualisiert am: 16.11.2025
H26: ='Hilfstabelle Spieler'!$E$25&" "&TEXT('Hilfstabelle Spieler'!$F$25,"hh:mm:ss") -> Zuletzt aktualisiert am: 15:41:12
H28: =+H26 -> Zuletzt aktualisiert am: 15:41:12
H29: =NOW() -> 45977.65361

Sheet Annegret S.
B1: Start
B2: Rangliste | G2: =+'Hilfstabelle Mannschaften'!H6&" "&+'Hilfstabelle Mannschaften'!I6 -> PUNKTSPIELSAISON 2025/2026
D3: =+'Hilfstabelle Spieler'!A6 -> Annegret Schmidt
D5: Pass.-Nr.: | E5: =VLOOKUP(D3,'Hilfstabelle Spieler'!A6:B19,2,0) -> 19222 | G5: Pins | H5: Spiele | I5: Schnitt | J5: Ligaergebnisse | Q5: Sonstige Antritte:
D6: Ligaergebnisse: | G6: =IF(SUM(J12:J25)>1,SUM(J12:J25)," ") -> 856 | H6: =COUNT(G12:I25) -> 6 | I6: =IF(SUM(G12:I25)>1,SUM(G6/H6)," ") -> 142.6666667 | J6: MAX. | K6: MIN. | L6: MAX. | N6: MIN. | O6: Schnitt | Q6: 4.er Serie: | T6: 6.er Serie:
D7: Sonstige Antritte: | G7: =IF(SUM(R12:S28)>1,SUM(R12:S28)," ") -> 3535 | H7: =IF(SUM(R12:S28)>1,SUM(V12:V28)," ") -> 26 | I7: =IF(SUM(R12:S28)>1,G7/H7," ") -> 135.9615385 | J7: ERG. | K7: ERG. | L7: 3.ER | N7: 3.ER | O7: 3.ER | Q7: Höchstes 4.er Erg. : | S7: =MAX(R13:R18,R23:R28) -> 627 | T7: Höchstes 6.er Erg. : | V7: =MAX(S12:S20) -> 770
D8: GESAMTSCHNITT: | G8: =IF(SUM(G6:G7)>1,SUM(G6:G7)," ") -> 4391 | H8: =IF(SUM(H6:H7)>1,SUM(H6:H7)," ") -> 32 | I8: =IF(SUM(G8)>1,SUM(G8/H8)," ") -> 137.21875 | J8: =MAX(G12:I25) -> 162 | K8: =IF(SUM(G12:I25)<1," ",MIN(G12:I25)) -> 111 | L8: =MAX(J12:J25) -> 443 | N8: =IF(SUM(G12:J25)>1,MIN(J12:J25)," ") -> 413 | O8: =IF(J8>0,AVERAGE(J12:J25),"") -> 428 | Q8: Höchste Einzel-Erg. : | S8: 192 | T8: Höchste Einzel-Erg. : | V8: 150
D10: Einzelspielergebnisse Liga | M10: Sonstige Antritte
D11: Datum | E11: Antr. | F11: Bahn | G11: 1. Spiel | H11: 2. Spiel | I11: 3. Spiel | J11: 3. er Serie | K11: 3. er Ø | M11: Datum - Turnier | R11: 4.er Erg. | S11: 6.er Erg. | T11: Schnitt | U11: Ges. Pins | V11: Spiele
D12: =+'Spielbogen 10er'!K5 -> 2025-09-09 | E12: 1 | F12: =+'Spielbogen 10er'!J5 -> OT | J12: =IF(G12>1,+G12+H12+I12,"") ->  | K12: =IF(G12>1,SUM(G12:I12)/3," ") ->  | M12: =+'Anmeldegruppen Turniere'!AB8&" - "&W12 -> 13. / 14. 09. 2025 - Eröffnungs Doppel | S12: 770 | T12: =IF(S12>1,+S12/V12,"") -> 128.3333333 | U12: =IF(S12>1,SUM($R$12:S12)," ") -> 770 | V12: =IF(S12>0,6,0) -> 6 | W12: Eröffnungs Doppel
D13: =+'Spielbogen 10er'!K6 -> 2025-09-23 | E13: 2 | F13: =+'Spielbogen 10er'!J6 -> WB | G13: 111 | H13: 146 | I13: 156 | J13: 413 | K13: 137.6666667 | M13: =+'Anmeldegruppen Turniere'!AB11&" - "&W13 -> 27. / 28. 09. 2025 - 1. Antritt HH-Cup | R13: 490 | T13: =IF(R13>1,+R13/V13,"") -> 122.5 | U13: =IF(R13>1,SUM($R$12:S13)," ") -> 1260 | V13: =IF(R13,4,0) -> 4 | W13: 1. Antritt HH-Cup
D14: =+'Spielbogen 10er'!K7 -> 2025-10-07 | E14: 3 | F14: =+'Spielbogen 10er'!J7 -> OT | G14: 141 | H14: 140 | I14: 162 | J14: 443 | K14: 147.6666667 | M14: =+'Anmeldegruppen Turniere'!AB12&" - "&W14 -> 11. / 12. 10. 2025 - 2. Antritt HH-Cup | R14: 582 | T14: =IF(R14>1,+R14/V14,"") -> 145.5 | U14: =IF(R14>1,SUM($R$12:S14)," ") -> 1842 | V14: =IF(R14,4,0) -> 4 | W14: 2. Antritt HH-Cup
D15: =+'Spielbogen 10er'!K8 -> 2025-10-21 | E15: 4 | F15: =+'Spielbogen 10er'!J8 -> WB | M15: =+'Hilfstabelle Mannschaften'!I11&" - "&W15 -> 15. / 16. 11. 2025 - Herbst-Mix | R15: 555 | T15: =IF(R15>1,+R15/V15,"") -> 138.75 | U15: =IF(R15>1,SUM($R$12:S15)," ") -> 2397 | V15: =IF(R15,4,0) -> 4 | W15: Herbst-Mix
D16: =+'Spielbogen 10er'!K9 -> 2025-11-04 | E16: 5 | F16: =+'Spielbogen 10er'!J9 -> OT | M16: =+'Anmeldegruppen Turniere'!AB22&" - "&W16 -> 17. / 18. 01. 2026 - 1. Antritt Einzel | T16: =IF(S16>1,+S16/V16,"") ->  | U16: =IF(S16>1,SUM($R$12:S16)," ") ->  | V16: =IF(S16>0,6,0) -> 0 | W16: 1. Antritt Einzel
D17: =+'Spielbogen 10er'!K10 -> 2025-11-18 | E17: 6 | F17: =+'Spielbogen 10er'!J10 -> WB | M17: =+'Anmeldegruppen Turniere'!AB23&" - "&W17 -> 31. / 01. 02. 2026 - 2. Antritt Einzel | T17: =IF(S17>1,+S17/V17,"") ->  | U17: =IF(S17>1,SUM($R$12:S17)," ") ->  | V17: =IF(S17>0,6,0) -> 0 | W17: 2. Antritt Einzel
D18: =+'Spielbogen 10er'!K11 -> 2026-01-13 | E18: 7 | F18: =+'Spielbogen 10er'!J11 -> OT | M18: =+'Hilfstabelle Mannschaften'!I12&" - "&W18 -> 21. / 22. 03. 2026 - Frühjahrs-Mix | T18: =IF(R18>1,+R18/V18,"") ->  | U18: =IF(R18>1,SUM($R$12:S18)," ") ->  | V18: =IF(R18,4,0) -> 0 | W18: Frühjahrs-Mix
D19: =+'Spielbogen 10er'!K12 -> 2026-01-27 | E19: 8 | F19: =+'Spielbogen 10er'!J12 -> WB | M19: =+'Anmeldegruppen Turniere'!AB30&" - "&W19 -> 25. / 26. 04. 2026 - 1. Antritt Doppel | T19: =IF(S19>1,+S19/V19,"") ->  | U19: =IF(S19>1,SUM($R$12:S19)," ") ->  | V19: =IF(S19>0,6,0) -> 0 | W19: 1. Antritt Doppel
D20: =+'Spielbogen 10er'!K13 -> 2026-02-10 | E20: 9 | F20: =+'Spielbogen 10er'!J13 -> OT | K20: =IF(G20>1,SUM(G20:I20)/3," ") ->  | M20: =+'Anmeldegruppen Turniere'!AB31&" - "&W20 -> 09. / 10. 05. 2026 - 2. Antritt Doppel | T20: =IF(S20>1,+S20/V20,"") ->  | U20: =IF(S20>1,SUM($R$12:S20)," ") ->  | V20: =IF(S20>0,6,0) -> 0 | W20: 2. Antritt Doppel
D21: =+'Spielbogen 10er'!K14 -> 2026-02-24 | E21: 10 | F21: =+'Spielbogen 10er'!J14 -> WB | K21: =IF(G21>1,SUM(G21:I21)/3," ") -> 
D22: =+'Spielbogen 10er'!K15 -> 2026-03-10 | E22: 11 | F22: =+'Spielbogen 10er'!J15 -> OT | M22: D U O
D23: =+'Spielbogen 10er'!K16 -> 2026-03-24 | E23: 12 | F23: =+'Spielbogen 10er'!J16 -> WB | M23: 14.10.2025 - 1. Antritt - Otmarschen | R23: 627 | T23: =IF(R23>1,+R23/V23,"") -> 156.75 | V23: =IF(R23,4,0) -> 4
D24: =+'Spielbogen 10er'!K17 -> 2026-04-07 | E24: 13 | F24: =+'Spielbogen 10er'!J17 -> OT | M24: 21.10.2025 - 2. Antritt - Otmarschen | R24: 511 | T24: =IF(R24>1,+R24/V24,"") -> 127.75 | V24: =IF(R24>0,4,0) -> 4
D25: =+'Spielbogen 10er'!K18 -> 2026-04-21 | E25: 14 | F25: =+'Spielbogen 10er'!J18 -> WB | J25: =IF(G25>1,+G25+H25+I25,"") ->  | K25: =IF(G25>1,SUM(G25:I25)/3," ") ->  | M25: 14.10.2025 - 3. Antritt | V25: =IF(R25>0,4,0) -> 0
M26: 14.10.2025 - 4. Antritt | V26: 0
M27: 14.10.2025 - 5. Antritt | V27: 0
M28: 14.10.2025 - 6. Antritt | V28: 0
M29: Gesamt DUO-Ergebnis | R29: =SUM(R23:R28) -> 1138 | T29: =IF(R29>1,+R29/V29,"") -> 142.25 | V29: =SUM(V23:V28) -> 8

Sheet Ilona W.
B1: Start
B2: Rangliste | G2: =+'Hilfstabelle Mannschaften'!H6&" "&+'Hilfstabelle Mannschaften'!I6 -> PUNKTSPIELSAISON 2025/2026
D3: =+'Hilfstabelle Spieler'!A9 -> Ilona Wetzel
D5: Pass.-Nr.: | E5: =VLOOKUP(D3,'Hilfstabelle Spieler'!A6:B19,2,0) -> 22115 | G5: Pins | H5: Spiele | I5: Schnitt | J5: Ligaergebnisse | Q5: Sonstige Antritte:
D6: Ligaergebnisse: | G6: =IF(SUM(J12:J25)>1,SUM(J12:J25)," ") -> 1319 | H6: =COUNT(G12:I25) -> 9 | I6: =IF(SUM(G12:I25)>1,SUM(G6/H6)," ") -> 146.5555556 | J6: MAX. | K6: MIN. | L6: MAX. | N6: MIN. | O6: Schnitt | Q6: 4.er Serie: | T6: 6.er Serie:
D7: Sonstige Antritte: | G7: =IF(SUM(R12:S28)>1,SUM(R12:S28)," ") -> 2733 | H7: =IF(SUM(R12:S28)>1,SUM(V12:V28)," ") -> 18 | I7: =IF(SUM(R12:S28)>1,G7/H7," ") -> 151.8333333 | J7: ERG. | K7: ERG. | L7: 3.ER | N7: 3.ER | O7: 3.ER | Q7: Höchstes 4.er Erg. : | S7: =MAX(R13:R18,R23:R28) -> 646 | T7: Höchstes 6.er Erg. : | V7: =MAX(S12:S20) -> 876
D8: GESAMTSCHNITT: | G8: =IF(SUM(G6:G7)>1,SUM(G6:G7)," ") -> 4052 | H8: =IF(SUM(H6:H7)>1,SUM(H6:H7)," ") -> 27 | I8: =IF(SUM(G8)>1,SUM(G8/H8)," ") -> 150.0740741 | J8: =MAX(G12:I25) -> 185 | K8: =IF(SUM(G12:I25)<1," ",MIN(G12:I25)) -> 118 | L8: =MAX(J12:J25) -> 475 | N8: =IF(SUM(G12:J25)>1,MIN(J12:J25)," ") -> 420 | O8: =IF(J8>0,AVERAGE(J12:J25),"") -> 439.6666667 | Q8: Höchste Einzel-Erg. : | S8: 177 | T8: Höchste Einzel-Erg. : | V8: 178
D10: Einzelspielergebnisse Liga | M10: Sonstige Antritte
D11: Datum | E11: Antr. | F11: Bahn | G11: 1. Spiel | H11: 2. Spiel | I11: 3. Spiel | J11: 3. er Serie | K11: 3. er Ø | M11: Datum - Turnier | R11: 4.er Erg. | S11: 6.er Erg. | T11: Schnitt | U11: Ges. Pins | V11: Spiele
D12: =+'Spielbogen 10er'!K5 -> 2025-09-09 | E12: 1 | F12: =+'Spielbogen 10er'!J5 -> OT | G12: 128 | H12: 130 | I12: 162 | J12: =IF(G12>1,+G12+H12+I12,"") -> 420 | K12: =IF(G12>1,SUM(G12:I12)/3," ") -> 140 | M12: =+'Anmeldegruppen Turniere'!AB8&" - "&W12 -> 13. / 14. 09. 2025 - Eröffnungs Doppel | S12: 876 | T12: =IF(S12>1,+S12/V12,"") -> 146 | U12: =IF(S12>1,SUM($R$12:S12)," ") -> 876 | V12: =IF(S12>0,6,0) -> 6 | W12: Eröffnungs Doppel
D13: =+'Spielbogen 10er'!K6 -> 2025-09-23 | E13: 2 | F13: =+'Spielbogen 10er'!J6 -> WB | M13: =+'Anmeldegruppen Turniere'!AB11&" - "&W13 -> 27. / 28. 09. 2025 - 1. Antritt HH-Cup | T13: =IF(R13>1,+R13/V13,"") ->  | U13: =IF(R13>1,SUM($R$12:S13)," ") ->  | V13: =IF(R13,4,0) -> 0 | W13: 1. Antritt HH-Cup
D14: =+'Spielbogen 10er'!K7 -> 2025-10-07 | E14: 3 | F14: =+'Spielbogen 10er'!J7 -> OT | G14: 171 | H14: 135 | I14: 118 | J14: 424 | K14: 141.3333333 | M14: =+'Anmeldegruppen Turniere'!AB12&" - "&W14 -> 11. / 12. 10. 2025 - 2. Antritt HH-Cup | T14: =IF(R14>1,+R14/V14,"") ->  | U14: =IF(R14>1,SUM($R$12:S14)," ") ->  | V14: =IF(R14,4,0) -> 0 | W14: 2. Antritt HH-Cup
D15: =+'Spielbogen 10er'!K8 -> 2025-10-21 | E15: 4 | F15: =+'Spielbogen 10er'!J8 -> WB | M15: =+'Hilfstabelle Mannschaften'!I11&" - "&W15 -> 15. / 16. 11. 2025 - Herbst-Mix | R15: 582 | T15: =IF(R15>1,+R15/V15,"") -> 145.5 | U15: =IF(R15>1,SUM($R$12:S15)," ") -> 1458 | V15: =IF(R15,4,0) -> 4 | W15: Herbst-Mix
D16: =+'Spielbogen 10er'!K9 -> 2025-11-04 | E16: 5 | F16: =+'Spielbogen 10er'!J9 -> OT | G16: 132 | H16: 185 | I16: 158 | J16: 475 | K16: 158.3333333 | M16: =+'Anmeldegruppen Turniere'!AB22&" - "&W16 -> 17. / 18. 01. 2026 - 1. Antritt Einzel | T16: =IF(S16>1,+S16/V16,"") ->  | U16: =IF(S16>1,SUM($R$12:S16)," ") ->  | V16: =IF(S16>0,6,0) -> 0 | W16: 1. Antritt Einzel
D17: =+'Spielbogen 10er'!K10 -> 2025-11-18 | E17: 6 | F17: =+'Spielbogen 10er'!J10 -> WB | M17: =+'Anmeldegruppen Turniere'!AB23&" - "&W17 -> 31. / 01. 02. 2026 - 2. Antritt Einzel | T17: =IF(S17>1,+S17/V17,"") ->  | U17: =IF(S17>1,SUM($R$12:S17)," ") ->  | V17: =IF(S17>0,6,0) -> 0 | W17: 2. Antritt Einzel
D18: =+'Spielbogen 10er'!K11 -> 2026-01-13 | E18: 7 | F18: =+'Spielbogen 10er'!J11 -> OT | M18: =+'Hilfstabelle Mannschaften'!I12&" - "&W18 -> 21. / 22. 03. 2026 - Frühjahrs-Mix | T18: =IF(R18>1,+R18/V18,"") ->  | U18: =IF(R18>1,SUM($R$12:S18)," ") ->  | V18: =IF(R18,4,0) -> 0 | W18: Frühjahrs-Mix
D19: =+'Spielbogen 10er'!K12 -> 2026-01-27 | E19: 8 | F19: =+'Spielbogen 10er'!J12 -> WB | M19: =+'Anmeldegruppen Turniere'!AB30&" - "&W19 -> 25. / 26. 04. 2026 - 1. Antritt Doppel | T19: =IF(S19>1,+S19/V19,"") ->  | U19: =IF(S19>1,SUM($R$12:S19)," ") ->  | V19: =IF(S19>0,6,0) -> 0 | W19: 1. Antritt Doppel
D20: =+'Spielbogen 10er'!K13 -> 2026-02-10 | E20: 9 | F20: =+'Spielbogen 10er'!J13 -> OT | K20: =IF(G20>1,SUM(G20:I20)/3," ") ->  | M20: =+'Anmeldegruppen Turniere'!AB31&" - "&W20 -> 09. / 10. 05. 2026 - 2. Antritt Doppel | T20: =IF(S20>1,+S20/V20,"") ->  | U20: =IF(S20>1,SUM($R$12:S20)," ") ->  | V20: =IF(S20>0,6,0) -> 0 | W20: 2. Antritt Doppel
D21: =+'Spielbogen 10er'!K14 -> 2026-02-24 | E21: 10 | F21: =+'Spielbogen 10er'!J14 -> WB | K21: =IF(G21>1,SUM(G21:I21)/3," ") -> 
D22: =+'Spielbogen 10er'!K15 -> 2026-03-10 | E22: 11 | F22: =+'Spielbogen 10er'!J15 -> OT | M22: D U O
D23: =+'Spielbogen 10er'!K16 -> 2026-03-24 | E23: 12 | F23: =+'Spielbogen 10er'!J16 -> WB | M23: 14.10.2025 - 1. Antritt - Otmarschen | R23: 629 | T23: =IF(R23>1,+R23/V23,"") -> 157.25 | V23: =IF(R23,4,0) -> 4
D24: =+'Spielbogen 10er'!K17 -> 2026-04-07 | E24: 13 | F24: =+'Spielbogen 10er'!J17 -> OT | M24: 14.10.2025 - 2. Antritt | R24: 646 | T24: =IF(R24>1,+R24/V24,"") -> 161.5 | V24: =IF(R24>0,4,0) -> 4
D25: =+'Spielbogen 10er'!K18 -> 2026-04-21 | E25: 14 | F25: =+'Spielbogen 10er'!J18 -> WB | J25: =IF(G25>1,+G25+H25+I25,"") ->  | K25: =IF(G25>1,SUM(G25:I25)/3," ") ->  | M25: 14.10.2025 - 3. Antritt | V25: =IF(R25>0,4,0) -> 0
D26: =+"Ausgeholfen in der 1. Mannschaft Anzahl Spiele:"&" "&+COUNT(G27:I30) -> Ausgeholfen in der 1. Mannschaft Anzahl Spiele: 0 | M26: 14.10.2025 - 4. Antritt | V26: 0
J27: =IF(G27>1,+G27+H27+I27,"") ->  | M27: 14.10.2025 - 5. Antritt | V27: 0
J28: =IF(G28>1,+G28+H28+I28,"") ->  | K28: =IF(G28>1,SUM(G28:I28)/3," ") ->  | M28: 14.10.2025 - 6. Antritt | V28: 0
J29: =IF(G29>1,+G29+H29+I29,"") ->  | K29: =IF(G29>1,SUM(G29:I29)/3," ") ->  | M29: Gesamt DUO-Ergebnis | R29: =SUM(R23:R28) -> 1275 | T29: =IF(R29>1,+R29/V29,"") -> 159.375 | V29: =SUM(V23:V28) -> 8
J30: =IF(G30>1,+G30+H30+I30,"") ->  | K30: =IF(G30>1,SUM(G30:I30)/3," ") -> 
J31: =IF(G31>1,+G31+H31+I31,"") ->  | K31: =IF(G31>1,SUM(G31:I31)/3," ") -> 

Sheet Michael W.
B1: Start
B2: Rangliste | G2: =+'Hilfstabelle Mannschaften'!H6&" "&+'Hilfstabelle Mannschaften'!I6 -> PUNKTSPIELSAISON 2025/2026
D3: =+'Hilfstabelle Spieler'!A14 -> Michael Wetzel
D5: Pass.-Nr.: | E5: =VLOOKUP(D3,'Hilfstabelle Spieler'!A6:B19,2,0) -> 22113 | G5: Pins | H5: Spiele | I5: Schnitt | J5: Ligaergebnisse | Q5: Sonstige Antritte:
D6: Ligaergebnisse: | G6: =IF(SUM(J12:J25)>1,SUM(J12:J25)," ") -> 1012 | H6: =COUNT(G12:I25) -> 6 | I6: =IF(SUM(G12:I25)>1,SUM(G6/H6)," ") -> 168.6666667 | J6: MAX. | K6: MIN. | L6: MAX. | N6: MIN. | O6: Schnitt | Q6: 4.er Serie: | T6: 6.er Serie:
D7: Sonstige Antritte: | G7: =IF(SUM(R12:S20)>1,SUM(R12:S20)," ") -> 1752 | H7: =IF(SUM(R12:S20)>1,SUM(V12:V20)," ") -> 10 | I7: =IF(SUM(R12:S20)>1,G7/H7," ") -> 175.2 | J7: ERG. | K7: ERG. | L7: 3.ER | N7: 3.ER | O7: 3.ER | Q7: Höchstes 4.er Erg. : | S7: =MAX(R13:R18) -> 722 | T7: Höchstes 6.er Erg. : | V7: =MAX(S12:S20) -> 1030
D8: GESAMTSCHNITT: | G8: =IF(SUM(G6:G7)>1,SUM(G6:G7)," ") -> 2764 | H8: =IF(SUM(H6:H7)>1,SUM(H6:H7)," ") -> 16 | I8: =IF(SUM(G8)>1,SUM(G8/H8)," ") -> 172.75 | J8: =MAX(G12:I25) -> 199 | K8: =IF(SUM(G12:I25)<1," ",MIN(G12:I25)) -> 148 | L8: =MAX(J12:J25) -> 524 | N8: =IF(SUM(G12:J25)>1,MIN(J12:J25)," ") -> 488 | O8: =IF(J8>0,AVERAGE(J12:J25),"") -> 506 | Q8: Höchste Einzel-Erg. : | S8: 220 | T8: Höchste Einzel-Erg. : | V8: 203
D10: Einzelspielergebnisse Liga | M10: Sonstige Antritte
D11: Datum | E11: Antr. | F11: Bahn | G11: 1. Spiel | H11: 2. Spiel | I11: 3. Spiel | J11: 3. er Serie | K11: 3. er Ø | M11: Datum - Turnier | R11: 4.er Erg. | S11: 6.er Erg. | T11: Schnitt | U11: Ges. Pins | V11: Spiele
D12: =+'Spielbogen 10er'!K5 -> 2025-09-09 | E12: 1 | F12: =+'Spielbogen 10er'!J5 -> OT | G12: 168 | H12: 157 | I12: 199 | J12: =IF(G12>1,+G12+H12+I12,"") -> 524 | K12: =IF(G12>1,SUM(G12:I12)/3," ") -> 174.6666667 | M12: =+'Anmeldegruppen Turniere'!AB8&" - "&W12 -> 13. / 14. 09. 2025 - Eröffnungs Doppel | S12: 1030 | T12: =IF(S12>1,+S12/V12,"") -> 171.6666667 | U12: =IF(S12>1,SUM($R$12:S12)," ") -> 1030 | V12: =IF(S12>0,6,0) -> 6 | W12: Eröffnungs Doppel
D13: =+'Spielbogen 10er'!K6 -> 2025-09-23 | E13: 2 | F13: =+'Spielbogen 10er'!J6 -> WB | M13: =+'Anmeldegruppen Turniere'!AB11&" - "&W13 -> 27. / 28. 09. 2025 - 1. Antritt HH-Cup | T13: =IF(R13>1,+R13/V13,"") ->  | U13: =IF(R13>1,SUM($R$12:S13)," ") ->  | V13: =IF(R13,4,0) -> 0 | W13: 1. Antritt HH-Cup
D14: =+'Spielbogen 10er'!K7 -> 2025-10-07 | E14: 3 | F14: =+'Spielbogen 10er'!J7 -> OT | M14: =+'Anmeldegruppen Turniere'!AB12&" - "&W14 -> 11. / 12. 10. 2025 - 2. Antritt HH-Cup | T14: =IF(R14>1,+R14/V14,"") ->  | U14: =IF(R14>1,SUM($R$12:S14)," ") ->  | V14: =IF(R14,4,0) -> 0 | W14: 2. Antritt HH-Cup
D15: =+'Spielbogen 10er'!K8 -> 2025-10-21 | E15: 4 | F15: =+'Spielbogen 10er'!J8 -> WB | G15: 148 | H15: 148 | I15: 192 | J15: 488 | K15: 162.6666667 | M15: =+'Hilfstabelle Mannschaften'!I11&" - "&W15 -> 15. / 16. 11. 2025 - Herbst-Mix | R15: 722 | T15: =IF(R15>1,+R15/V15,"") -> 180.5 | U15: =IF(R15>1,SUM($R$12:S15)," ") -> 1752 | V15: =IF(R15,4,0) -> 4 | W15: Herbst-Mix
D16: =+'Spielbogen 10er'!K9 -> 2025-11-04 | E16: 5 | F16: =+'Spielbogen 10er'!J9 -> OT | M16: =+'Anmeldegruppen Turniere'!AB22&" - "&W16 -> 17. / 18. 01. 2026 - 1. Antritt Einzel | T16: =IF(S16>1,+S16/V16,"") ->  | U16: =IF(S16>1,SUM($R$12:S16)," ") ->  | V16: =IF(S16>0,6,0) -> 0 | W16: 1. Antritt Einzel
D17: =+'Spielbogen 10er'!K10 -> 2025-11-18 | E17: 6 | F17: =+'Spielbogen 10er'!J10 -> WB | M17: =+'Anmeldegruppen Turniere'!AB23&" - "&W17 -> 31. / 01. 02. 2026 - 2. Antritt Einzel | T17: =IF(S17>1,+S17/V17,"") ->  | U17: =IF(S17>1,SUM($R$12:S17)," ") ->  | V17: =IF(S17>0,6,0) -> 0 | W17: 2. Antritt Einzel
D18: =+'Spielbogen 10er'!K11 -> 2026-01-13 | E18: 7 | F18: =+'Spielbogen 10er'!J11 -> OT | M18: =+'Hilfstabelle Mannschaften'!I12&" - "&W18 -> 21. / 22. 03. 2026 - Frühjahrs-Mix | T18: =IF(R18>1,+R18/V18,"") ->  | U18: =IF(R18>1,SUM($R$12:S18)," ") ->  | V18: =IF(R18,4,0) -> 0 | W18: Frühjahrs-Mix
D19: =+'Spielbogen 10er'!K12 -> 2026-01-27 | E19: 8 | F19: =+'Spielbogen 10er'!J12 -> WB | M19: =+'Anmeldegruppen Turniere'!AB30&" - "&W19 -> 25. / 26. 04. 2026 - 1. Antritt Doppel | T19: =IF(S19>1,+S19/V19,"") ->  | U19: =IF(S19>1,SUM($R$12:S19)," ") ->  | V19: =IF(S19>0,6,0) -> 0 | W19: 1. Antritt Doppel
D20: =+'Spielbogen 10er'!K13 -> 2026-02-10 | E20: 9 | F20: =+'Spielbogen 10er'!J13 -> OT | K20: =IF(G20>1,SUM(G20:I20)/3," ") ->  | M20: =+'Anmeldegruppen Turniere'!AB31&" - "&W20 -> 09. / 10. 05. 2026 - 2. Antritt Doppel | T20: =IF(S20>1,+S20/V20,"") ->  | U20: =IF(S20>1,SUM($R$12:S20)," ") ->  | V20: =IF(S20>0,6,0) -> 0 | W20: 2. Antritt Doppel
D21: =+'Spielbogen 10er'!K14 -> 2026-02-24 | E21: 10 | F21: =+'Spielbogen 10er'!J14 -> WB | K21: =IF(G21>1,SUM(G21:I21)/3," ") -> 
D22: =+'Spielbogen 10er'!K15 -> 2026-03-10 | E22: 11 | F22: =+'Spielbogen 10er'!J15 -> OT
D23: =+'Spielbogen 10er'!K16 -> 2026-03-24 | E23: 12 | F23: =+'Spielbogen 10er'!J16 -> WB
D24: =+'Spielbogen 10er'!K17 -> 2026-04-07 | E24: 13 | F24: =+'Spielbogen 10er'!J17 -> OT
D25: =+'Spielbogen 10er'!K18 -> 2026-04-21 | E25: 14 | F25: =+'Spielbogen 10er'!J18 -> WB | J25: =IF(G25>1,+G25+H25+I25,"") ->  | K25: =IF(G25>1,SUM(G25:I25)/3," ") -> 

Sheet Mario J.
B1: Start
B2: Rangliste | G2: =+'Hilfstabelle Mannschaften'!H6&" "&+'Hilfstabelle Mannschaften'!I6 -> PUNKTSPIELSAISON 2025/2026
D3: =+'Hilfstabelle Spieler'!A12 -> Mario Jurk
D5: Pass.-Nr.: | E5: =VLOOKUP(D3,'Hilfstabelle Spieler'!A6:B19,2,0) -> 23302 | G5: Pins | H5: Spiele | I5: Schnitt | J5: Ligaergebnisse | Q5: Sonstige Antritte:
D6: Ligaergebnisse: | G6: =IF(SUM(J12:J25)>1,SUM(J12:J25)," ") -> 1167 | H6: =COUNT(G12:I25) -> 6 | I6: =IF(SUM(G12:I25)>1,SUM(G6/H6)," ") -> 194.5 | J6: MAX. | K6: MIN. | L6: MAX. | N6: MIN. | O6: Schnitt | Q6: 4.er Serie: | T6: 6.er Serie:
D7: Sonstige Antritte: | G7: =IF(SUM(R12:S20)>1,SUM(R12:S20)," ") ->  | H7: =IF(SUM(R12:S20)>1,SUM(V12:V20)," ") ->  | I7: =IF(SUM(R12:S20)>1,G7/H7," ") ->  | J7: ERG. | K7: ERG. | L7: 3.ER | N7: 3.ER | O7: 3.ER | Q7: Höchstes 4.er Erg. : | S7: =MAX(R13:R18) -> 0 | T7: Höchstes 6.er Erg. :
D8: GESAMTSCHNITT: | G8: =IF(SUM(G6:G7)>1,SUM(G6:G7)," ") -> 1167 | H8: =IF(SUM(H6:H7)>1,SUM(H6:H7)," ") -> 6 | I8: =IF(SUM(G8)>1,SUM(G8/H8)," ") -> 194.5 | J8: =MAX(G12:I25) -> 224 | K8: =IF(SUM(G12:I25)<1," ",MIN(G12:I25)) -> 163 | L8: =MAX(J12:J25) -> 628 | N8: =IF(SUM(G12:J25)>1,MIN(J12:J25)," ") -> 539 | O8: =IF(J8>0,AVERAGE(J12:J25),"") -> 583.5 | Q8: Höchste Einzel-Erg. : | T8: Höchste Einzel-Erg. :
D10: Einzelspielergebnisse Liga | M10: Sonstige Antritte
D11: Datum | E11: Antr. | F11: Bahn | G11: 1. Spiel | H11: 2. Spiel | I11: 3. Spiel | J11: 3. er Serie | K11: 3. er Ø | M11: Datum - Turnier | R11: 4.er Erg. | S11: 6.er Erg. | T11: Schnitt | U11: Ges. Pins | V11: Spiele
D12: =+'Spielbogen 10er'!K5 -> 2025-09-09 | E12: 1 | F12: =+'Spielbogen 10er'!J5 -> OT | J12: =IF(G12>1,+G12+H12+I12,"") ->  | K12: =IF(G12>1,SUM(G12:I12)/3," ") ->  | M12: =+'Anmeldegruppen Turniere'!AB8&" - "&W12 -> 13. / 14. 09. 2025 - Eröffnungs Doppel | T12: =IF(S12>1,+S12/V12,"") ->  | U12: =IF(S12>1,SUM($R$12:S12)," ") ->  | V12: =IF(S12>0,6,0) -> 0 | W12: Eröffnungs Doppel
D13: =+'Spielbogen 10er'!K6 -> 2025-09-23 | E13: 2 | F13: =+'Spielbogen 10er'!J6 -> WB | M13: =+'Anmeldegruppen Turniere'!AB11&" - "&W13 -> 27. / 28. 09. 2025 - 1. Antritt HH-Cup | T13: =IF(R13>1,+R13/V13,"") ->  | U13: =IF(R13>1,SUM($R$12:S13)," ") ->  | V13: =IF(R13,4,0) -> 0 | W13: 1. Antritt HH-Cup
D14: =+'Spielbogen 10er'!K7 -> 2025-10-07 | E14: 3 | F14: =+'Spielbogen 10er'!J7 -> OT | M14: =+'Anmeldegruppen Turniere'!AB12&" - "&W14 -> 11. / 12. 10. 2025 - 2. Antritt HH-Cup | T14: =IF(R14>1,+R14/V14,"") ->  | U14: =IF(R14>1,SUM($R$12:S14)," ") ->  | V14: =IF(R14,4,0) -> 0 | W14: 2. Antritt HH-Cup
D15: =+'Spielbogen 10er'!K8 -> 2025-10-21 | E15: 4 | F15: =+'Spielbogen 10er'!J8 -> WB | G15: 214 | H15: 190 | I15: 224 | J15: 628 | K15: 209.3333333 | M15: =+'Hilfstabelle Mannschaften'!I11&" - "&W15 -> 15. / 16. 11. 2025 - Herbst-Mix | T15: =IF(R15>1,+R15/V15,"") ->  | U15: =IF(R15>1,SUM($R$12:S15)," ") ->  | V15: =IF(R15,4,0) -> 0 | W15: Herbst-Mix
D16: =+'Spielbogen 10er'!K9 -> 2025-11-04 | E16: 5 | F16: =+'Spielbogen 10er'!J9 -> OT | G16: 188 | H16: 163 | I16: 188 | J16: 539 | K16: 179.6666667 | M16: =+'Anmeldegruppen Turniere'!AB22&" - "&W16 -> 17. / 18. 01. 2026 - 1. Antritt Einzel | T16: =IF(S16>1,+S16/V16,"") ->  | U16: =IF(S16>1,SUM($R$12:S16)," ") ->  | V16: =IF(S16>0,6,0) -> 0 | W16: 1. Antritt Einzel
D17: =+'Spielbogen 10er'!K10 -> 2025-11-18 | E17: 6 | F17: =+'Spielbogen 10er'!J10 -> WB | M17: =+'Anmeldegruppen Turniere'!AB23&" - "&W17 -> 31. / 01. 02. 2026 - 2. Antritt Einzel | T17: =IF(S17>1,+S17/V17,"") ->  | U17: =IF(S17>1,SUM($R$12:S17)," ") ->  | V17: =IF(S17>0,6,0) -> 0 | W17: 2. Antritt Einzel
D18: =+'Spielbogen 10er'!K11 -> 2026-01-13 | E18: 7 | F18: =+'Spielbogen 10er'!J11 -> OT | M18: =+'Hilfstabelle Mannschaften'!I12&" - "&W18 -> 21. / 22. 03. 2026 - Frühjahrs-Mix | T18: =IF(R18>1,+R18/V18,"") ->  | U18: =IF(R18>1,SUM($R$12:S18)," ") ->  | V18: =IF(R18,4,0) -> 0 | W18: Frühjahrs-Mix
D19: =+'Spielbogen 10er'!K12 -> 2026-01-27 | E19: 8 | F19: =+'Spielbogen 10er'!J12 -> WB | M19: =+'Anmeldegruppen Turniere'!AB30&" - "&W19 -> 25. / 26. 04. 2026 - 1. Antritt Doppel | T19: =IF(S19>1,+S19/V19,"") ->  | U19: =IF(S19>1,SUM($R$12:S19)," ") ->  | V19: =IF(S19>0,6,0) -> 0 | W19: 1. Antritt Doppel
D20: =+'Spielbogen 10er'!K13 -> 2026-02-10 | E20: 9 | F20: =+'Spielbogen 10er'!J13 -> OT | K20: =IF(G20>1,SUM(G20:I20)/3," ") ->  | M20: =+'Anmeldegruppen Turniere'!AB31&" - "&W20 -> 09. / 10. 05. 2026 - 2. Antritt Doppel | T20: =IF(S20>1,+S20/V20,"") ->  | U20: =IF(S20>1,SUM($R$12:S20)," ") ->  | V20: =IF(S20>0,6,0) -> 0 | W20: 2. Antritt Doppel
D21: =+'Spielbogen 10er'!K14 -> 2026-02-24 | E21: 10 | F21: =+'Spielbogen 10er'!J14 -> WB | K21: =IF(G21>1,SUM(G21:I21)/3," ") -> 
D22: =+'Spielbogen 10er'!K15 -> 2026-03-10 | E22: 11 | F22: =+'Spielbogen 10er'!J15 -> OT
D23: =+'Spielbogen 10er'!K16 -> 2026-03-24 | E23: 12 | F23: =+'Spielbogen 10er'!J16 -> WB
D24: =+'Spielbogen 10er'!K17 -> 2026-04-07 | E24: 13 | F24: =+'Spielbogen 10er'!J17 -> OT
D25: =+'Spielbogen 10er'!K18 -> 2026-04-21 | E25: 14 | F25: =+'Spielbogen 10er'!J18 -> WB

Sheet Kai R.
B1: Start
B2: Rangliste | G2: =+'Hilfstabelle Mannschaften'!H6&" "&+'Hilfstabelle Mannschaften'!I6 -> PUNKTSPIELSAISON 2025/2026
D3: =+'Hilfstabelle Spieler'!A11 -> Kai Roßberg
D5: Pass.-Nr.: | E5: =VLOOKUP(D3,'Hilfstabelle Spieler'!A6:B19,2,0) -> 21889 | G5: Pins | H5: Spiele | I5: Schnitt | J5: Ligaergebnisse | Q5: Sonstige Antritte:
D6: Ligaergebnisse: | G6: =IF(SUM(J12:J25)>1,SUM(J12:J25)," ") -> 2116 | H6: =COUNT(G12:I25) -> 12 | I6: =IF(SUM(G12:I25)>1,SUM(G6/H6)," ") -> 176.3333333 | J6: MAX. | K6: MIN. | L6: MAX. | N6: MIN. | O6: Schnitt | Q6: 4.er Serie: | T6: 6.er Serie:
D7: Sonstige Antritte: | G7: =IF(SUM(R12:S20)>1,SUM(R12:S20)," ") ->  | H7: =IF(SUM(R12:S20)>1,SUM(V12:V20)," ") ->  | I7: =IF(SUM(R12:S20)>1,G7/H7," ") ->  | J7: ERG. | K7: ERG. | L7: 3.ER | N7: 3.ER | O7: 3.ER | Q7: Höchstes 4.er Erg. : | S7: =MAX(R13:R18) -> 0 | T7: Höchstes 6.er Erg. :
D8: GESAMTSCHNITT: | G8: =IF(SUM(G6:G7)>1,SUM(G6:G7)," ") -> 2116 | H8: =IF(SUM(H6:H7)>1,SUM(H6:H7)," ") -> 12 | I8: =IF(SUM(G8)>1,SUM(G8/H8)," ") -> 176.3333333 | J8: =MAX(G12:I25) -> 222 | K8: =IF(SUM(G12:I25)<1," ",MIN(G12:I25)) -> 144 | L8: =MAX(J12:J25) -> 552 | N8: =IF(SUM(G12:J25)>1,MIN(J12:J25)," ") -> 472 | O8: =IF(J8>0,AVERAGE(J12:J25),"") -> 529 | Q8: Höchste Einzel-Erg. : | T8: Höchste Einzel-Erg. :
D10: Einzelspielergebnisse Liga | M10: Sonstige Antritte
D11: Datum | E11: Antr. | F11: Bahn | G11: 1. Spiel | H11: 2. Spiel | I11: 3. Spiel | J11: 3. er Serie | K11: 3. er Ø | M11: Datum - Turnier | R11: 4.er Erg. | S11: 6.er Erg. | T11: Schnitt | U11: Ges. Pins | V11: Spiele
D12: =+'Spielbogen 10er'!K5 -> 2025-09-09 | E12: 1 | F12: =+'Spielbogen 10er'!J5 -> OT | G12: 208 | H12: 153 | I12: 185 | J12: =IF(G12>1,+G12+H12+I12,"") -> 546 | K12: =IF(G12>1,SUM(G12:I12)/3," ") -> 182 | M12: =+'Anmeldegruppen Turniere'!AB8&" - "&W12 -> 13. / 14. 09. 2025 - Eröffnungs Doppel | T12: =IF(S12>1,+S12/V12,"") ->  | U12: =IF(S12>1,SUM($R$12:S12)," ") ->  | V12: =IF(S12>0,6,0) -> 0 | W12: Eröffnungs Doppel
D13: =+'Spielbogen 10er'!K6 -> 2025-09-23 | E13: 2 | F13: =+'Spielbogen 10er'!J6 -> WB | G13: 190 | H13: 202 | I13: 154 | J13: 546 | K13: 182 | M13: =+'Anmeldegruppen Turniere'!AB11&" - "&W13 -> 27. / 28. 09. 2025 - 1. Antritt HH-Cup | T13: =IF(R13>1,+R13/V13,"") ->  | U13: =IF(R13>1,SUM($R$12:S13)," ") ->  | V13: =IF(R13,4,0) -> 0 | W13: 1. Antritt HH-Cup
D14: =+'Spielbogen 10er'!K7 -> 2025-10-07 | E14: 3 | F14: =+'Spielbogen 10er'!J7 -> OT | G14: 165 | H14: 165 | I14: 222 | J14: 552 | K14: 184 | M14: =+'Anmeldegruppen Turniere'!AB12&" - "&W14 -> 11. / 12. 10. 2025 - 2. Antritt HH-Cup | T14: =IF(R14>1,+R14/V14,"") ->  | U14: =IF(R14>1,SUM($R$12:S14)," ") ->  | V14: =IF(R14,4,0) -> 0 | W14: 2. Antritt HH-Cup
D15: =+'Spielbogen 10er'!K8 -> 2025-10-21 | E15: 4 | F15: =+'Spielbogen 10er'!J8 -> WB | M15: =+'Hilfstabelle Mannschaften'!I11&" - "&W15 -> 15. / 16. 11. 2025 - Herbst-Mix | T15: =IF(R15>1,+R15/V15,"") ->  | U15: =IF(R15>1,SUM($R$12:S15)," ") ->  | V15: =IF(R15,4,0) -> 0 | W15: Herbst-Mix
D16: =+'Spielbogen 10er'!K9 -> 2025-11-04 | E16: 5 | F16: =+'Spielbogen 10er'!J9 -> OT | G16: 159 | H16: 144 | I16: 169 | J16: 472 | K16: 157.3333333 | M16: =+'Anmeldegruppen Turniere'!AB22&" - "&W16 -> 17. / 18. 01. 2026 - 1. Antritt Einzel | T16: =IF(S16>1,+S16/V16,"") ->  | U16: =IF(S16>1,SUM($R$12:S16)," ") ->  | V16: =IF(S16>0,6,0) -> 0 | W16: 1. Antritt Einzel
D17: =+'Spielbogen 10er'!K10 -> 2025-11-18 | E17: 6 | F17: =+'Spielbogen 10er'!J10 -> WB | M17: =+'Anmeldegruppen Turniere'!AB23&" - "&W17 -> 31. / 01. 02. 2026 - 2. Antritt Einzel | T17: =IF(S17>1,+S17/V17,"") ->  | U17: =IF(S17>1,SUM($R$12:S17)," ") ->  | V17: =IF(S17>0,6,0) -> 0 | W17: 2. Antritt Einzel
D18: =+'Spielbogen 10er'!K11 -> 2026-01-13 | E18: 7 | F18: =+'Spielbogen 10er'!J11 -> OT | M18: =+'Hilfstabelle Mannschaften'!I12&" - "&W18 -> 21. / 22. 03. 2026 - Frühjahrs-Mix | T18: =IF(R18>1,+R18/V18,"") ->  | U18: =IF(R18>1,SUM($R$12:S18)," ") ->  | V18: =IF(R18,4,0) -> 0 | W18: Frühjahrs-Mix
D19: =+'Spielbogen 10er'!K12 -> 2026-01-27 | E19: 8 | F19: =+'Spielbogen 10er'!J12 -> WB | M19: =+'Anmeldegruppen Turniere'!AB30&" - "&W19 -> 25. / 26. 04. 2026 - 1. Antritt Doppel | T19: =IF(S19>1,+S19/V19,"") ->  | U19: =IF(S19>1,SUM($R$12:S19)," ") ->  | V19: =IF(S19>0,6,0) -> 0 | W19: 1. Antritt Doppel
D20: =+'Spielbogen 10er'!K13 -> 2026-02-10 | E20: 9 | F20: =+'Spielbogen 10er'!J13 -> OT | K20: =IF(G20>1,SUM(G20:I20)/3," ") ->  | M20: =+'Anmeldegruppen Turniere'!AB31&" - "&W20 -> 09. / 10. 05. 2026 - 2. Antritt Doppel | T20: =IF(S20>1,+S20/V20,"") ->  | U20: =IF(S20>1,SUM($R$12:S20)," ") ->  | V20: =IF(S20>0,6,0) -> 0 | W20: 2. Antritt Doppel
D21: =+'Spielbogen 10er'!K14 -> 2026-02-24 | E21: 10 | F21: =+'Spielbogen 10er'!J14 -> WB | K21: =IF(G21>1,SUM(G21:I21)/3," ") -> 
D22: =+'Spielbogen 10er'!K15 -> 2026-03-10 | E22: 11 | F22: =+'Spielbogen 10er'!J15 -> OT
D23: =+'Spielbogen 10er'!K16 -> 2026-03-24 | E23: 12 | F23: =+'Spielbogen 10er'!J16 -> WB
D24: =+'Spielbogen 10er'!K17 -> 2026-04-07 | E24: 13 | F24: =+'Spielbogen 10er'!J17 -> OT
D25: =+'Spielbogen 10er'!K18 -> 2026-04-21 | E25: 14 | F25: =+'Spielbogen 10er'!J18 -> WB | J25: =IF(G25>1,+G25+H25+I25,"") ->  | K25: =IF(G25>1,SUM(G25:I25)/3," ") -> 

Sheet Frank N.
B1: Start
B2: Rangliste | G2: =+'Hilfstabelle Mannschaften'!H6&" "&+'Hilfstabelle Mannschaften'!I6 -> PUNKTSPIELSAISON 2025/2026
D3: =+'Hilfstabelle Spieler'!A8 -> Frank Nijholt
D5: Pass.-Nr.: | E5: =VLOOKUP(D3,'Hilfstabelle Spieler'!A6:B19,2,0) -> 24774 | G5: Pins | H5: Spiele | I5: Schnitt | J5: Ligaergebnisse | Q5: Sonstige Antritte:
D6: Ligaergebnisse: | G6: =IF(SUM(J12:J25)>1,SUM(J12:J25)," ") -> 931 | H6: =COUNT(G12:I25) -> 6 | I6: =IF(SUM(G12:I25)>1,SUM(G6/H6)," ") -> 155.1666667 | J6: MAX. | K6: MIN. | L6: MAX. | N6: MIN. | O6: Schnitt | Q6: 4.er Serie: | T6: 6.er Serie:
D7: Sonstige Antritte: | G7: =IF(SUM(R12:S20)>1,SUM(R12:S20)," ") ->  | H7: =IF(SUM(R12:S20)>1,SUM(V12:V20)," ") ->  | I7: =IF(SUM(R12:S20)>1,G7/H7," ") ->  | J7: ERG. | K7: ERG. | L7: 3.ER | N7: 3.ER | O7: 3.ER | Q7: Höchstes 4.er Erg. : | S7: =MAX(R13:R18) -> 0 | T7: Höchstes 6.er Erg. :
D8: GESAMTSCHNITT: | G8: =IF(SUM(G6:G7)>1,SUM(G6:G7)," ") -> 931 | H8: =IF(SUM(H6:H7)>1,SUM(H6:H7)," ") -> 6 | I8: =IF(SUM(G8)>1,SUM(G8/H8)," ") -> 155.1666667 | J8: =MAX(G12:I25) -> 170 | K8: =IF(SUM(G12:I25)<1," ",MIN(G12:I25)) -> 129 | L8: =MAX(J12:J25) -> 500 | N8: =IF(SUM(G12:J25)>1,MIN(J12:J25)," ") -> 431 | O8: =IF(J8>0,AVERAGE(J12:J25),"") -> 465.5 | Q8: Höchste Einzel-Erg. : | T8: Höchste Einzel-Erg. :
D10: Einzelspielergebnisse Liga | M10: Sonstige Antritte
D11: Datum | E11: Antr. | F11: Bahn | G11: 1. Spiel | H11: 2. Spiel | I11: 3. Spiel | J11: 3. er Serie | K11: 3. er Ø | M11: Datum - Turnier | R11: 4.er Erg. | S11: 6.er Erg. | T11: Schnitt | U11: Ges. Pins | V11: Spiele
D12: =+'Spielbogen 10er'!K5 -> 2025-09-09 | E12: 1 | F12: =+'Spielbogen 10er'!J5 -> OT | J12: =IF(G12>1,+G12+H12+I12,"") ->  | K12: =IF(G12>1,SUM(G12:I12)/3," ") ->  | M12: =+'Anmeldegruppen Turniere'!AB8&" - "&W12 -> 13. / 14. 09. 2025 - Eröffnungs Doppel | T12: =IF(S12>1,+S12/V12,"") ->  | U12: =IF(S12>1,SUM($R$12:S12)," ") ->  | V12: =IF(S12>0,6,0) -> 0 | W12: Eröffnungs Doppel
D13: =+'Spielbogen 10er'!K6 -> 2025-09-23 | E13: 2 | F13: =+'Spielbogen 10er'!J6 -> WB | G13: 165 | H13: 165 | I13: 170 | J13: 500 | K13: 166.6666667 | M13: =+'Anmeldegruppen Turniere'!AB11&" - "&W13 -> 27. / 28. 09. 2025 - 1. Antritt HH-Cup | T13: =IF(R13>1,+R13/V13,"") ->  | U13: =IF(R13>1,SUM($R$12:S13)," ") ->  | V13: =IF(R13,4,0) -> 0 | W13: 1. Antritt HH-Cup
D14: =+'Spielbogen 10er'!K7 -> 2025-10-07 | E14: 3 | F14: =+'Spielbogen 10er'!J7 -> OT | M14: =+'Anmeldegruppen Turniere'!AB12&" - "&W14 -> 11. / 12. 10. 2025 - 2. Antritt HH-Cup | T14: =IF(R14>1,+R14/V14,"") ->  | U14: =IF(R14>1,SUM($R$12:S14)," ") ->  | V14: =IF(R14,4,0) -> 0 | W14: 2. Antritt HH-Cup
D15: =+'Spielbogen 10er'!K8 -> 2025-10-21 | E15: 4 | F15: =+'Spielbogen 10er'!J8 -> WB | G15: 167 | H15: 135 | I15: 129 | J15: 431 | K15: 143.6666667 | M15: =+'Hilfstabelle Mannschaften'!I11&" - "&W15 -> 15. / 16. 11. 2025 - Herbst-Mix | T15: =IF(R15>1,+R15/V15,"") ->  | U15: =IF(R15>1,SUM($R$12:S15)," ") ->  | V15: =IF(R15,4,0) -> 0 | W15: Herbst-Mix
D16: =+'Spielbogen 10er'!K9 -> 2025-11-04 | E16: 5 | F16: =+'Spielbogen 10er'!J9 -> OT | M16: =+'Anmeldegruppen Turniere'!AB22&" - "&W16 -> 17. / 18. 01. 2026 - 1. Antritt Einzel | T16: =IF(S16>1,+S16/V16,"") ->  | U16: =IF(S16>1,SUM($R$12:S16)," ") ->  | V16: =IF(S16>0,6,0) -> 0 | W16: 1. Antritt Einzel
D17: =+'Spielbogen 10er'!K10 -> 2025-11-18 | E17: 6 | F17: =+'Spielbogen 10er'!J10 -> WB | M17: =+'Anmeldegruppen Turniere'!AB23&" - "&W17 -> 31. / 01. 02. 2026 - 2. Antritt Einzel | T17: =IF(S17>1,+S17/V17,"") ->  | U17: =IF(S17>1,SUM($R$12:S17)," ") ->  | V17: =IF(S17>0,6,0) -> 0 | W17: 2. Antritt Einzel
D18: =+'Spielbogen 10er'!K11 -> 2026-01-13 | E18: 7 | F18: =+'Spielbogen 10er'!J11 -> OT | M18: =+'Hilfstabelle Mannschaften'!I12&" - "&W18 -> 21. / 22. 03. 2026 - Frühjahrs-Mix | T18: =IF(R18>1,+R18/V18,"") ->  | U18: =IF(R18>1,SUM($R$12:S18)," ") ->  | V18: =IF(R18,4,0) -> 0 | W18: Frühjahrs-Mix
D19: =+'Spielbogen 10er'!K12 -> 2026-01-27 | E19: 8 | F19: =+'Spielbogen 10er'!J12 -> WB | M19: =+'Anmeldegruppen Turniere'!AB30&" - "&W19 -> 25. / 26. 04. 2026 - 1. Antritt Doppel | T19: =IF(S19>1,+S19/V19,"") ->  | U19: =IF(S19>1,SUM($R$12:S19)," ") ->  | V19: =IF(S19>0,6,0) -> 0 | W19: 1. Antritt Doppel
D20: =+'Spielbogen 10er'!K13 -> 2026-02-10 | E20: 9 | F20: =+'Spielbogen 10er'!J13 -> OT | K20: =IF(G20>1,SUM(G20:I20)/3," ") ->  | M20: =+'Anmeldegruppen Turniere'!AB31&" - "&W20 -> 09. / 10. 05. 2026 - 2. Antritt Doppel | T20: =IF(S20>1,+S20/V20,"") ->  | U20: =IF(S20>1,SUM($R$12:S20)," ") ->  | V20: =IF(S20>0,6,0) -> 0 | W20: 2. Antritt Doppel
D21: =+'Spielbogen 10er'!K14 -> 2026-02-24 | E21: 10 | F21: =+'Spielbogen 10er'!J14 -> WB | K21: =IF(G21>1,SUM(G21:I21)/3," ") -> 
D22: =+'Spielbogen 10er'!K15 -> 2026-03-10 | E22: 11 | F22: =+'Spielbogen 10er'!J15 -> OT
D23: =+'Spielbogen 10er'!K16 -> 2026-03-24 | E23: 12 | F23: =+'Spielbogen 10er'!J16 -> WB
D24: =+'Spielbogen 10er'!K17 -> 2026-04-07 | E24: 13 | F24: =+'Spielbogen 10er'!J17 -> OT
D25: =+'Spielbogen 10er'!K18 -> 2026-04-21 | E25: 14 | F25: =+'Spielbogen 10er'!J18 -> WB | J25: =IF(G25>1,+G25+H25+I25,"") ->  | K25: =IF(G25>1,SUM(G25:I25)/3," ") -> 

Sheet Jörg F.
B1: Start
B2: Rangliste | G2: =+'Hilfstabelle Mannschaften'!H6&" "&+'Hilfstabelle Mannschaften'!I6 -> PUNKTSPIELSAISON 2025/2026
D3: =+'Hilfstabelle Spieler'!A10 -> Jörg Frahm
D5: Pass.-Nr.: | E5: =VLOOKUP(D3,'Hilfstabelle Spieler'!A6:B19,2,0) -> 19221 | G5: Pins | H5: Spiele | I5: Schnitt | J5: Ligaergebnisse | Q5: Sonstige Antritte:
D6: Ligaergebnisse: | G6: =IF(SUM(J12:J25)>1,SUM(J12:J25)," ") -> 927 | H6: =COUNT(G12:I25) -> 6 | I6: =IF(SUM(G12:I25)>1,SUM(G6/H6)," ") -> 154.5 | J6: MAX. | K6: MIN. | L6: MAX. | N6: MIN. | O6: Schnitt | Q6: 4.er Serie: | T6: 6.er Serie:
D7: Sonstige Antritte: | G7: =IF(SUM(R12:S20)>1,SUM(R12:S20)," ") -> 1842 | H7: =IF(SUM(R12:S20)>1,SUM(V12:V20)," ") -> 10 | I7: =IF(SUM(R12:S20)>1,G7/H7," ") -> 184.2 | J7: ERG. | K7: ERG. | L7: 3.ER | N7: 3.ER | O7: 3.ER | Q7: Höchstes 4.er Erg. : | S7: =MAX(R13:R18) -> 761 | T7: Höchstes 6.er Erg. : | V7: =MAX(S12:S20) -> 1081
D8: GESAMTSCHNITT: | G8: =IF(SUM(G6:G7)>1,SUM(G6:G7)," ") -> 2769 | H8: =IF(SUM(H6:H7)>1,SUM(H6:H7)," ") -> 16 | I8: =IF(SUM(G8)>1,SUM(G8/H8)," ") -> 173.0625 | J8: =MAX(G12:I25) -> 181 | K8: =IF(SUM(G12:I25)<1," ",MIN(G12:I25)) -> 129 | L8: =MAX(J12:J25) -> 496 | N8: =IF(SUM(G12:J25)>1,MIN(J12:J25)," ") -> 431 | O8: =IF(J8>0,AVERAGE(J12:J25),"") -> 463.5 | Q8: Höchste Einzel-Erg. : | S8: 227 | T8: Höchste Einzel-Erg. : | V8: 216
D10: Einzelspielergebnisse Liga | M10: Sonstige Antritte
D11: Datum | E11: Antr. | F11: Bahn | G11: 1. Spiel | H11: 2. Spiel | I11: 3. Spiel | J11: 3. er Serie | K11: 3. er Ø | M11: Datum - Turnier | R11: 4.er Erg. | S11: 6.er Erg. | T11: Schnitt | U11: Ges. Pins | V11: Spiele
D12: =+'Spielbogen 10er'!K5 -> 2025-09-09 | E12: 1 | F12: =+'Spielbogen 10er'!J5 -> OT | G12: 129 | H12: 142 | I12: 160 | J12: =IF(G12>1,+G12+H12+I12,"") -> 431 | K12: =IF(G12>1,SUM(G12:I12)/3," ") -> 143.6666667 | M12: =+'Anmeldegruppen Turniere'!AB8&" - "&W12 -> 13. / 14. 09. 2025 - Eröffnungs Doppel | S12: 1081 | T12: =IF(S12>1,+S12/V12,"") -> 180.1666667 | U12: =IF(S12>1,SUM($R$12:S12)," ") -> 1081 | V12: =IF(S12>0,6,0) -> 6 | W12: Eröffnungs Doppel
D13: =+'Spielbogen 10er'!K6 -> 2025-09-23 | E13: 2 | F13: =+'Spielbogen 10er'!J6 -> WB | G13: 148 | H13: 181 | I13: 167 | J13: 496 | K13: 165.3333333 | M13: =+'Anmeldegruppen Turniere'!AB11&" - "&W13 -> 27. / 28. 09. 2025 - 1. Antritt HH-Cup | T13: =IF(R13>1,+R13/V13,"") ->  | U13: =IF(R13>1,SUM($R$12:S13)," ") ->  | V13: =IF(R13,4,0) -> 0 | W13: 1. Antritt HH-Cup
D14: =+'Spielbogen 10er'!K7 -> 2025-10-07 | E14: 3 | F14: =+'Spielbogen 10er'!J7 -> OT | M14: =+'Anmeldegruppen Turniere'!AB12&" - "&W14 -> 11. / 12. 10. 2025 - 2. Antritt HH-Cup | T14: =IF(R14>1,+R14/V14,"") ->  | U14: =IF(R14>1,SUM($R$12:S14)," ") ->  | V14: =IF(R14,4,0) -> 0 | W14: 2. Antritt HH-Cup
D15: =+'Spielbogen 10er'!K8 -> 2025-10-21 | E15: 4 | F15: =+'Spielbogen 10er'!J8 -> WB | M15: =+'Hilfstabelle Mannschaften'!I11&" - "&W15 -> 15. / 16. 11. 2025 - Herbst-Mix | R15: 761 | T15: =IF(R15>1,+R15/V15,"") -> 190.25 | U15: =IF(R15>1,SUM($R$12:S15)," ") -> 1842 | V15: =IF(R15,4,0) -> 4 | W15: Herbst-Mix
D16: =+'Spielbogen 10er'!K9 -> 2025-11-04 | E16: 5 | F16: =+'Spielbogen 10er'!J9 -> OT | M16: =+'Anmeldegruppen Turniere'!AB22&" - "&W16 -> 17. / 18. 01. 2026 - 1. Antritt Einzel | T16: =IF(S16>1,+S16/V16,"") ->  | U16: =IF(S16>1,SUM($R$12:S16)," ") ->  | V16: =IF(S16>0,6,0) -> 0 | W16: 1. Antritt Einzel
D17: =+'Spielbogen 10er'!K10 -> 2025-11-18 | E17: 6 | F17: =+'Spielbogen 10er'!J10 -> WB | M17: =+'Anmeldegruppen Turniere'!AB23&" - "&W17 -> 31. / 01. 02. 2026 - 2. Antritt Einzel | T17: =IF(S17>1,+S17/V17,"") ->  | U17: =IF(S17>1,SUM($R$12:S17)," ") ->  | V17: =IF(S17>0,6,0) -> 0 | W17: 2. Antritt Einzel
D18: =+'Spielbogen 10er'!K11 -> 2026-01-13 | E18: 7 | F18: =+'Spielbogen 10er'!J11 -> OT | M18: =+'Hilfstabelle Mannschaften'!I12&" - "&W18 -> 21. / 22. 03. 2026 - Frühjahrs-Mix | T18: =IF(R18>1,+R18/V18,"") ->  | U18: =IF(R18>1,SUM($R$12:S18)," ") ->  | V18: =IF(R18,4,0) -> 0 | W18: Frühjahrs-Mix
D19: =+'Spielbogen 10er'!K12 -> 2026-01-27 | E19: 8 | F19: =+'Spielbogen 10er'!J12 -> WB | M19: =+'Anmeldegruppen Turniere'!AB30&" - "&W19 -> 25. / 26. 04. 2026 - 1. Antritt Doppel | T19: =IF(S19>1,+S19/V19,"") ->  | U19: =IF(S19>1,SUM($R$12:S19)," ") ->  | V19: =IF(S19>0,6,0) -> 0 | W19: 1. Antritt Doppel
D20: =+'Spielbogen 10er'!K13 -> 2026-02-10 | E20: 9 | F20: =+'Spielbogen 10er'!J13 -> OT | K20: =IF(G20>1,SUM(G20:I20)/3," ") ->  | M20: =+'Anmeldegruppen Turniere'!AB31&" - "&W20 -> 09. / 10. 05. 2026 - 2. Antritt Doppel | T20: =IF(S20>1,+S20/V20,"") ->  | U20: =IF(S20>1,SUM($R$12:S20)," ") ->  | V20: =IF(S20>0,6,0) -> 0 | W20: 2. Antritt Doppel
D21: =+'Spielbogen 10er'!K14 -> 2026-02-24 | E21: 10 | F21: =+'Spielbogen 10er'!J14 -> WB | K21: =IF(G21>1,SUM(G21:I21)/3," ") -> 
D22: =+'Spielbogen 10er'!K15 -> 2026-03-10 | E22: 11 | F22: =+'Spielbogen 10er'!J15 -> OT
D23: =+'Spielbogen 10er'!K16 -> 2026-03-24 | E23: 12 | F23: =+'Spielbogen 10er'!J16 -> WB
D24: =+'Spielbogen 10er'!K17 -> 2026-04-07 | E24: 13 | F24: =+'Spielbogen 10er'!J17 -> OT
D25: =+'Spielbogen 10er'!K18 -> 2026-04-21 | E25: 14 | F25: =+'Spielbogen 10er'!J18 -> WB | J25: =IF(G25>1,+G25+H25+I25,"") ->  | K25: =IF(G25>1,SUM(G25:I25)/3," ") -> 
D26: =+"Ausgeholfen in der 1. Mannschaft Anzahl Spiele:"&" "&+COUNT(G27:I30) -> Ausgeholfen in der 1. Mannschaft Anzahl Spiele: 0
J27: =IF(G27>1,+G27+H27+I27,"") ->  | K27: =IF(G27>1,SUM(G27:I27)/3," ") -> 
J28: =IF(G28>1,+G28+H28+I28,"") ->  | K28: =IF(G28>1,SUM(G28:I28)/3," ") -> 
J29: =IF(G29>1,+G29+H29+I29,"") ->  | K29: =IF(G29>1,SUM(G29:I29)/3," ") -> 
J30: =IF(G30>1,+G30+H30+I30,"") ->  | K30: =IF(G30>1,SUM(G30:I30)/3," ") -> 
J31: =IF(G31>1,+G31+H31+I31,"") ->  | K31: =IF(G31>1,SUM(G31:I31)/3," ") -> 

Sheet Matthias N.
B1: Start
B2: Rangliste | G2: =+'Hilfstabelle Mannschaften'!H6&" "&+'Hilfstabelle Mannschaften'!I6 -> PUNKTSPIELSAISON 2025/2026
D3: =+'Hilfstabelle Spieler'!A13 -> Matthias Nolte
D5: Pass.-Nr.: | E5: =VLOOKUP(D3,'Hilfstabelle Spieler'!A6:B19,2,0) -> 20137 | G5: Pins | H5: Spiele | I5: Schnitt | J5: Ligaergebnisse | Q5: Sonstige Antritte:
D6: Ligaergebnisse: | G6: =IF(SUM(J12:J25)>1,SUM(J12:J25)," ") -> 821 | H6: =COUNT(G12:I25) -> 6 | I6: =IF(SUM(G12:I25)>1,SUM(G6/H6)," ") -> 136.8333333 | J6: MAX. | K6: MIN. | L6: MAX. | N6: MIN. | O6: Schnitt | Q6: 4.er Serie: | T6: 6.er Serie:
D7: Sonstige Antritte: | G7: =IF(SUM(R12:S20)>1,SUM(R12:S20)," ") ->  | H7: =IF(SUM(R12:S20)>1,SUM(V12:V20)," ") ->  | I7: =IF(SUM(R12:S20)>1,G7/H7," ") ->  | J7: ERG. | K7: ERG. | L7: 3.ER | N7: 3.ER | O7: 3.ER | Q7: Höchstes 4.er Erg. : | S7: =MAX(R13:R18) -> 0 | T7: Höchstes 6.er Erg. :
D8: GESAMTSCHNITT: | G8: =IF(SUM(G6:G7)>1,SUM(G6:G7)," ") -> 821 | H8: =IF(SUM(H6:H7)>1,SUM(H6:H7)," ") -> 6 | I8: =IF(SUM(G8)>1,SUM(G8/H8)," ") -> 136.8333333 | J8: =MAX(G12:I25) -> 168 | K8: =IF(SUM(G12:I25)<1," ",MIN(G12:I25)) -> 112 | L8: =MAX(J12:J25) -> 428 | N8: =IF(SUM(G12:J25)>1,MIN(J12:J25)," ") -> 393 | O8: =IF(J8>0,AVERAGE(J12:J25),"") -> 410.5 | Q8: Höchste Einzel-Erg. : | T8: Höchste Einzel-Erg. :
D10: Einzelspielergebnisse Liga | M10: Sonstige Antritte
D11: Datum | E11: Antr. | F11: Bahn | G11: 1. Spiel | H11: 2. Spiel | I11: 3. Spiel | J11: 3. er Serie | K11: 3. er Ø | M11: Datum - Turnier | R11: 4.er Erg. | S11: 6.er Erg. | T11: Schnitt | U11: Ges. Pins | V11: Spiele
D12: =+'Spielbogen 10er'!K5 -> 2025-09-09 | E12: 1 | F12: =+'Spielbogen 10er'!J5 -> OT | J12: =IF(G12>1,+G12+H12+I12,"") ->  | K12: =IF(G12>1,SUM(G12:I12)/3," ") ->  | M12: =+'Anmeldegruppen Turniere'!AB8&" - "&W12 -> 13. / 14. 09. 2025 - Eröffnungs Doppel | T12: =IF(S12>1,+S12/V12,"") ->  | U12: =IF(S12>1,SUM($R$12:S12)," ") ->  | V12: =IF(S12>0,6,0) -> 0 | W12: Eröffnungs Doppel
D13: =+'Spielbogen 10er'!K6 -> 2025-09-23 | E13: 2 | F13: =+'Spielbogen 10er'!J6 -> WB | M13: =+'Anmeldegruppen Turniere'!AB11&" - "&W13 -> 27. / 28. 09. 2025 - 1. Antritt HH-Cup | T13: =IF(R13>1,+R13/V13,"") ->  | U13: =IF(R13>1,SUM($R$12:S13)," ") ->  | V13: =IF(R13,4,0) -> 0 | W13: 1. Antritt HH-Cup
D14: =+'Spielbogen 10er'!K7 -> 2025-10-07 | E14: 3 | F14: =+'Spielbogen 10er'!J7 -> OT | G14: 133 | H14: 168 | I14: 127 | J14: 428 | K14: 142.6666667 | M14: =+'Anmeldegruppen Turniere'!AB12&" - "&W14 -> 11. / 12. 10. 2025 - 2. Antritt HH-Cup | T14: =IF(R14>1,+R14/V14,"") ->  | U14: =IF(R14>1,SUM($R$12:S14)," ") ->  | V14: =IF(R14,4,0) -> 0 | W14: 2. Antritt HH-Cup
D15: =+'Spielbogen 10er'!K8 -> 2025-10-21 | E15: 4 | F15: =+'Spielbogen 10er'!J8 -> WB | M15: =+'Hilfstabelle Mannschaften'!I11&" - "&W15 -> 15. / 16. 11. 2025 - Herbst-Mix | T15: =IF(R15>1,+R15/V15,"") ->  | U15: =IF(R15>1,SUM($R$12:S15)," ") ->  | V15: =IF(R15,4,0) -> 0 | W15: Herbst-Mix
D16: =+'Spielbogen 10er'!K9 -> 2025-11-04 | E16: 5 | F16: =+'Spielbogen 10er'!J9 -> OT | G16: 112 | H16: 141 | I16: 140 | J16: 393 | K16: 131 | M16: =+'Anmeldegruppen Turniere'!AB22&" - "&W16 -> 17. / 18. 01. 2026 - 1. Antritt Einzel | T16: =IF(S16>1,+S16/V16,"") ->  | U16: =IF(S16>1,SUM($R$12:S16)," ") ->  | V16: =IF(S16>0,6,0) -> 0 | W16: 1. Antritt Einzel
D17: =+'Spielbogen 10er'!K10 -> 2025-11-18 | E17: 6 | F17: =+'Spielbogen 10er'!J10 -> WB | M17: =+'Anmeldegruppen Turniere'!AB23&" - "&W17 -> 31. / 01. 02. 2026 - 2. Antritt Einzel | T17: =IF(S17>1,+S17/V17,"") ->  | U17: =IF(S17>1,SUM($R$12:S17)," ") ->  | V17: =IF(S17>0,6,0) -> 0 | W17: 2. Antritt Einzel
D18: =+'Spielbogen 10er'!K11 -> 2026-01-13 | E18: 7 | F18: =+'Spielbogen 10er'!J11 -> OT | M18: =+'Hilfstabelle Mannschaften'!I12&" - "&W18 -> 21. / 22. 03. 2026 - Frühjahrs-Mix | T18: =IF(R18>1,+R18/V18,"") ->  | U18: =IF(R18>1,SUM($R$12:S18)," ") ->  | V18: =IF(R18,4,0) -> 0 | W18: Frühjahrs-Mix
D19: =+'Spielbogen 10er'!K12 -> 2026-01-27 | E19: 8 | F19: =+'Spielbogen 10er'!J12 -> WB | M19: =+'Anmeldegruppen Turniere'!AB30&" - "&W19 -> 25. / 26. 04. 2026 - 1. Antritt Doppel | T19: =IF(S19>1,+S19/V19,"") ->  | U19: =IF(S19>1,SUM($R$12:S19)," ") ->  | V19: =IF(S19>0,6,0) -> 0 | W19: 1. Antritt Doppel
D20: =+'Spielbogen 10er'!K13 -> 2026-02-10 | E20: 9 | F20: =+'Spielbogen 10er'!J13 -> OT | K20: =IF(G20>1,SUM(G20:I20)/3," ") ->  | M20: =+'Anmeldegruppen Turniere'!AB31&" - "&W20 -> 09. / 10. 05. 2026 - 2. Antritt Doppel | T20: =IF(S20>1,+S20/V20,"") ->  | U20: =IF(S20>1,SUM($R$12:S20)," ") ->  | V20: =IF(S20>0,6,0) -> 0 | W20: 2. Antritt Doppel
D21: =+'Spielbogen 10er'!K14 -> 2026-02-24 | E21: 10 | F21: =+'Spielbogen 10er'!J14 -> WB | K21: =IF(G21>1,SUM(G21:I21)/3," ") -> 
D22: =+'Spielbogen 10er'!K15 -> 2026-03-10 | E22: 11 | F22: =+'Spielbogen 10er'!J15 -> OT
D23: =+'Spielbogen 10er'!K16 -> 2026-03-24 | E23: 12 | F23: =+'Spielbogen 10er'!J16 -> WB
D24: =+'Spielbogen 10er'!K17 -> 2026-04-07 | E24: 13 | F24: =+'Spielbogen 10er'!J17 -> OT
D25: =+'Spielbogen 10er'!K18 -> 2026-04-21 | E25: 14 | F25: =+'Spielbogen 10er'!J18 -> WB | J25: =IF(G25>1,+G25+H25+I25,"") ->  | K25: =IF(G25>1,SUM(G25:I25)/3," ") -> 
D26: =+"Ausgeholfen in der 2 Mannschaft Anzahl Spiele:"&" "&+COUNT(G27:I30) -> Ausgeholfen in der 2 Mannschaft Anzahl Spiele: 0
J27: =IF(G27>1,+G27+H27+I27,"") ->  | K27: =IF(G27>1,SUM(G27:I27)/3," ") -> 
J28: =IF(G28>1,+G28+H28+I28,"") ->  | K28: =IF(G28>1,SUM(G28:I28)/3," ") -> 
J29: =IF(G29>1,+G29+H29+I29,"") ->  | K29: =IF(G29>1,SUM(G29:I29)/3," ") -> 
J30: =IF(G30>1,+G30+H30+I30,"") ->  | K30: =IF(G30>1,SUM(G30:I30)/3," ") -> 
J31: =IF(G31>1,+G31+H31+I31,"") ->  | K31: =IF(G31>1,SUM(G31:I31)/3," ") -> 

Sheet Deniz H.
B1: Start
B2: Rangliste | G2: =+'Hilfstabelle Mannschaften'!H6&" "&+'Hilfstabelle Mannschaften'!I6 -> PUNKTSPIELSAISON 2025/2026
D3: =+'Hilfstabelle Spieler'!A7 -> Deniz Hagelstein
D5: Pass.-Nr.: | E5: =VLOOKUP(D3,'Hilfstabelle Spieler'!A6:B19,2,0) -> 24775 | G5: Pins | H5: Spiele | I5: Schnitt | J5: Ligaergebnisse | Q5: Sonstige Antritte:
D6: Ligaergebnisse: | G6: =IF(SUM(J12:J25)>1,SUM(J12:J25)," ") -> 485 | H6: =COUNT(G12:I25) -> 3 | I6: =IF(SUM(G12:I25)>1,SUM(G6/H6)," ") -> 161.6666667 | J6: MAX. | K6: MIN. | L6: MAX. | N6: MIN. | O6: Schnitt | Q6: 4.er Serie: | T6: 6.er Serie
D7: Sonstige Antritte: | G7: =IF(SUM(R12:S20)>1,SUM(R12:S20)," ") ->  | H7: =IF(SUM(R12:S20)>1,SUM(V12:V20)," ") ->  | I7: =IF(SUM(R12:S20)>1,G7/H7," ") ->  | J7: ERG. | K7: ERG. | L7: 3.ER | N7: 3.ER | O7: 3.ER | Q7: Höchstes 4.er Erg. : | S7: =MAX(R13:R18) -> 0 | T7: Höchstes 6.er Erg. :
D8: GESAMTSCHNITT: | G8: =IF(SUM(G6:G7)>1,SUM(G6:G7)," ") -> 485 | H8: =IF(SUM(H6:H7)>1,SUM(H6:H7)," ") -> 3 | I8: =IF(SUM(G8)>1,SUM(G8/H8)," ") -> 161.6666667 | J8: =MAX(G12:I25) -> 187 | K8: =IF(SUM(G12:I25)<1," ",MIN(G12:I25)) -> 135 | L8: =MAX(J12:J25) -> 485 | N8: =IF(SUM(G12:J25)>1,MIN(J12:J25)," ") -> 485 | O8: =IF(J8>0,AVERAGE(J12:J25),"") -> 485 | Q8: Höchste Einzel-Erg. : | T8: Höchste Einzel-Erg. :
D10: Einzelspielergebnisse Liga | M10: Sonstige Antritte
D11: Datum | E11: Antr. | F11: Bahn | G11: 1. Spiel | H11: 2. Spiel | I11: 3. Spiel | J11: 3. er Serie | K11: 3. er Ø | M11: Datum - Turnier | R11: 4.er Erg. | S11: 6.er Erg. | T11: Schnitt | U11: Ges. Pins | V11: Spiele
D12: =+'Spielbogen 10er'!K5 -> 2025-09-09 | E12: 1 | F12: =+'Spielbogen 10er'!J5 -> OT | J12: =IF(G12>1,+G12+H12+I12,"") ->  | K12: =IF(G12>1,SUM(G12:I12)/3," ") ->  | M12: =+'Anmeldegruppen Turniere'!AB8&" - "&W12 -> 13. / 14. 09. 2025 - Eröffnungs Doppel | T12: =IF(S12>1,+S12/V12,"") ->  | U12: =IF(S12>1,SUM($R$12:S12)," ") ->  | V12: =IF(S12>0,6,0) -> 0 | W12: Eröffnungs Doppel
D13: =+'Spielbogen 10er'!K6 -> 2025-09-23 | E13: 2 | F13: =+'Spielbogen 10er'!J6 -> WB | M13: =+'Anmeldegruppen Turniere'!AB11&" - "&W13 -> 27. / 28. 09. 2025 - 1. Antritt HH-Cup | T13: =IF(R13>1,+R13/V13,"") ->  | U13: =IF(R13>1,SUM($R$12:S13)," ") ->  | V13: =IF(R13,4,0) -> 0 | W13: 1. Antritt HH-Cup
D14: =+'Spielbogen 10er'!K7 -> 2025-10-07 | E14: 3 | F14: =+'Spielbogen 10er'!J7 -> OT | M14: =+'Anmeldegruppen Turniere'!AB12&" - "&W14 -> 11. / 12. 10. 2025 - 2. Antritt HH-Cup | T14: =IF(R14>1,+R14/V14,"") ->  | U14: =IF(R14>1,SUM($R$12:S14)," ") ->  | V14: =IF(R14,4,0) -> 0 | W14: 2. Antritt HH-Cup
D15: =+'Spielbogen 10er'!K8 -> 2025-10-21 | E15: 4 | F15: =+'Spielbogen 10er'!J8 -> WB | G15: 187 | H15: 163 | I15: 135 | J15: 485 | K15: 161.6666667 | M15: =+'Hilfstabelle Mannschaften'!I11&" - "&W15 -> 15. / 16. 11. 2025 - Herbst-Mix | T15: =IF(R15>1,+R15/V15,"") ->  | U15: =IF(R15>1,SUM($R$12:S15)," ") ->  | V15: =IF(R15,4,0) -> 0 | W15: Herbst-Mix
D16: =+'Spielbogen 10er'!K9 -> 2025-11-04 | E16: 5 | F16: =+'Spielbogen 10er'!J9 -> OT | M16: =+'Anmeldegruppen Turniere'!AB22&" - "&W16 -> 17. / 18. 01. 2026 - 1. Antritt Einzel | T16: =IF(S16>1,+S16/V16,"") ->  | U16: =IF(S16>1,SUM($R$12:S16)," ") ->  | V16: =IF(S16>0,6,0) -> 0 | W16: 1. Antritt Einzel
D17: =+'Spielbogen 10er'!K10 -> 2025-11-18 | E17: 6 | F17: =+'Spielbogen 10er'!J10 -> WB | M17: =+'Anmeldegruppen Turniere'!AB23&" - "&W17 -> 31. / 01. 02. 2026 - 2. Antritt Einzel | T17: =IF(S17>1,+S17/V17,"") ->  | U17: =IF(S17>1,SUM($R$12:S17)," ") ->  | V17: =IF(S17>0,6,0) -> 0 | W17: 2. Antritt Einzel
D18: =+'Spielbogen 10er'!K11 -> 2026-01-13 | E18: 7 | F18: =+'Spielbogen 10er'!J11 -> OT | M18: =+'Hilfstabelle Mannschaften'!I12&" - "&W18 -> 21. / 22. 03. 2026 - Frühjahrs-Mix | T18: =IF(R18>1,+R18/V18,"") ->  | U18: =IF(R18>1,SUM($R$12:S18)," ") ->  | V18: =IF(R18,4,0) -> 0 | W18: Frühjahrs-Mix
D19: =+'Spielbogen 10er'!K12 -> 2026-01-27 | E19: 8 | F19: =+'Spielbogen 10er'!J12 -> WB | M19: =+'Anmeldegruppen Turniere'!AB30&" - "&W19 -> 25. / 26. 04. 2026 - 1. Antritt Doppel | T19: =IF(S19>1,+S19/V19,"") ->  | U19: =IF(S19>1,SUM($R$12:S19)," ") ->  | V19: =IF(S19>0,6,0) -> 0 | W19: 1. Antritt Doppel
D20: =+'Spielbogen 10er'!K13 -> 2026-02-10 | E20: 9 | F20: =+'Spielbogen 10er'!J13 -> OT | K20: =IF(G20>1,SUM(G20:I20)/3," ") ->  | M20: =+'Anmeldegruppen Turniere'!AB31&" - "&W20 -> 09. / 10. 05. 2026 - 2. Antritt Doppel | T20: =IF(S20>1,+S20/V20,"") ->  | U20: =IF(S20>1,SUM($R$12:S20)," ") ->  | V20: =IF(S20>0,6,0) -> 0 | W20: 2. Antritt Doppel
D21: =+'Spielbogen 10er'!K14 -> 2026-02-24 | E21: 10 | F21: =+'Spielbogen 10er'!J14 -> WB | K21: =IF(G21>1,SUM(G21:I21)/3," ") -> 
D22: =+'Spielbogen 10er'!K15 -> 2026-03-10 | E22: 11 | F22: =+'Spielbogen 10er'!J15 -> OT
D23: =+'Spielbogen 10er'!K16 -> 2026-03-24 | E23: 12 | F23: =+'Spielbogen 10er'!J16 -> WB
D24: =+'Spielbogen 10er'!K17 -> 2026-04-07 | E24: 13 | F24: =+'Spielbogen 10er'!J17 -> OT
D25: =+'Spielbogen 10er'!K18 -> 2026-04-21 | E25: 14 | F25: =+'Spielbogen 10er'!J18 -> WB | J25: =IF(G25>1,+G25+H25+I25,"") ->  | K25: =IF(G25>1,SUM(G25:I25)/3," ") -> 
D26: =+"Ausgeholfen in der 2 Mannschaft Anzahl Spiele:"&" "&+COUNT(G27:I30) -> Ausgeholfen in der 2 Mannschaft Anzahl Spiele: 0
J27: =IF(G27>1,+G27+H27+I27,"") ->  | K27: =IF(G27>1,SUM(G27:I27)/3," ") -> 
J28: =IF(G28>1,+G28+H28+I28,"") ->  | K28: =IF(G28>1,SUM(G28:I28)/3," ") -> 
J29: =IF(G29>1,+G29+H29+I29,"") ->  | K29: =IF(G29>1,SUM(G29:I29)/3," ") -> 
J30: =IF(G30>1,+G30+H30+I30,"") ->  | K30: =IF(G30>1,SUM(G30:I30)/3," ") -> 
J31: =IF(G31>1,+G31+H31+I31,"") ->  | K31: =IF(G31>1,SUM(G31:I31)/3," ") -> 

Sheet Spielbogen 7er (hidden)
A1: Start | C1: Betriebssportverband Hamburg e.V.
A2: Rangliste | C2: - Sparte Bowling - | M2: - Spielsystembogen -
M3: Antritt Bahn | P3: Datum | R3: Ausrichter
M4: 1. | N4: OT | P4: 2024-09-12 | R4: 1 | S4: =I10 -> PAN 1
C5: Klasse | F5: =+'Hilfstabelle Mannschaften'!I4 -> B2 | M5: 2. | N5: OT | P5: 2024-09-26 | R5: 2 | S5: =I11 -> DAT 2
M6: 3. | N6: WB | P6: 2024-10-10 | R6: 3 | S6: =I12 -> STI 3
M7: 4. | N7: OT | P7: 2024-10-24 | R7: 4 | S7: SGS 1
M8: 5. | N8: WB | P8: 2024-11-07 | R8: 5 | S8: JUS 2
D9: BSG | I9: Kurzf. | M9: 6. | N9: WB | P9: 2025-01-16 | R9: 6 | S9: P2 2
C10: 1 | D10: Panasonic 1 | I10: PAN 1 | M10: 7. | N10: OT | P10: 2025-01-30 | R10: 7 | S10: KS 2
C11: 2 | D11: Dataport 2 | I11: DAT 2 | M11: 8. | N11: WB | P11: 2025-02-13 | R11: 1 | S11: =I10 -> PAN 1
C12: 3 | D12: Still 3 | I12: STI 3 | M12: 9. | N12: OT | P12: 2025-02-27 | R12: 2 | S12: =I11 -> DAT 2
C13: 4 | D13: SG Stern Hamburg 1 | I13: SGS 1 | M13: 10. | N13: WB | P13: 2025-03-13 | R13: 3 | S13: STI 3
C14: 5 | D14: Justitzbehörde 2 | I14: JUS 2 | M14: 11. | N14: OT | P14: 2025-03-27 | R14: 4 | S14: SGS 1
C15: 6 | D15: Postamt 2 | I15: P2 2 | M15: 12. | N15: WB | P15: 2025-04-10 | R15: 5 | S15: JUS 2
C16: 7 | D16: Körber Sports 2 | I16: KS 2 | M16: 13. | N16: OT | P16: 2025-04-24 | R16: 6 | S16: P2 2
M17: 14. | N17: WB | P17: 2025-05-08 | R17: 7 | S17: =I16 -> KS 2
C19: Antritt | D19: Halle
C20: Datum
C21: 1 . A. | D21: OT | G21: 7 | I21: 6 | K21: 4 | M21: 5 | O21: 3 | Q21: 1 | S21: 2
C22: 2024-09-12 | G22: =VLOOKUP(G21,$C$10:$J$17,7,0) -> KS 2 | I22: =VLOOKUP(I21,$C$10:$J$17,7,0) -> P2 2 | K22: =VLOOKUP(K21,$C$10:$J$17,7,0) -> SGS 1 | M22: =VLOOKUP(M21,$C$10:$J$17,7,0) -> JUS 2 | O22: =VLOOKUP(O21,$C$10:$J$17,7,0) -> STI 3 | Q22: =VLOOKUP(Q21,$C$10:$J$17,7,0) -> PAN 1 | S22: =VLOOKUP(S21,$C$10:$J$17,7,0) -> DAT 2
C23: 2 . A. | D23: OT | G23: 3 | I23: 4 | K23: 2 | M23: 1 | O23: 5 | Q23: 6 | S23: 7
C24: 2024-09-26 | G24: =VLOOKUP(G23,$C$10:$J$17,7,0) -> STI 3 | I24: =VLOOKUP(I23,$C$10:$J$17,7,0) -> SGS 1 | K24: =VLOOKUP(K23,$C$10:$J$17,7,0) -> DAT 2 | M24: =VLOOKUP(M23,$C$10:$J$17,7,0) -> PAN 1 | O24: =VLOOKUP(O23,$C$10:$J$17,7,0) -> JUS 2 | Q24: =VLOOKUP(Q23,$C$10:$J$17,7,0) -> P2 2 | S24: =VLOOKUP(S23,$C$10:$J$17,7,0) -> KS 2
C25: 3 . A. | D25: WB | G25: 5 | I25: 7 | K25: 3 | M25: 2 | O25: 1 | Q25: 4 | S25: 6
C26: 2024-10-10 | G26: =VLOOKUP(G25,$C$10:$J$17,7,0) -> JUS 2 | I26: =VLOOKUP(I25,$C$10:$J$17,7,0) -> KS 2 | K26: =VLOOKUP(K25,$C$10:$J$17,7,0) -> STI 3 | M26: =VLOOKUP(M25,$C$10:$J$17,7,0) -> DAT 2 | O26: =VLOOKUP(O25,$C$10:$J$17,7,0) -> PAN 1 | Q26: =VLOOKUP(Q25,$C$10:$J$17,7,0) -> SGS 1 | S26: =VLOOKUP(S25,$C$10:$J$17,7,0) -> P2 2
C27: 4 . A. | D27: OT | G27: 4 | I27: 2 | K27: 6 | M27: 1 | O27: 7 | Q27: 3 | S27: 5
C28: 24.10.24 | G28: =VLOOKUP(G27,$C$10:$J$17,7,0) -> SGS 1 | I28: =VLOOKUP(I27,$C$10:$J$17,7,0) -> DAT 2 | K28: =VLOOKUP(K27,$C$10:$J$17,7,0) -> P2 2 | M28: =VLOOKUP(M27,$C$10:$J$17,7,0) -> PAN 1 | O28: =VLOOKUP(O27,$C$10:$J$17,7,0) -> KS 2 | Q28: =VLOOKUP(Q27,$C$10:$J$17,7,0) -> STI 3 | S28: =VLOOKUP(S27,$C$10:$J$17,7,0) -> JUS 2
C29: 5 . A. | D29: WB | G29: 1 | I29: 5 | K29: 2 | M29: 7 | O29: 4 | Q29: 6 | S29: 3
C30: 2024-11-07 | G30: =VLOOKUP(G29,$C$10:$J$17,7,0) -> PAN 1 | I30: =VLOOKUP(I29,$C$10:$J$17,7,0) -> JUS 2 | K30: =VLOOKUP(K29,$C$10:$J$17,7,0) -> DAT 2 | M30: =VLOOKUP(M29,$C$10:$J$17,7,0) -> KS 2 | O30: =VLOOKUP(O29,$C$10:$J$17,7,0) -> SGS 1 | Q30: =VLOOKUP(Q29,$C$10:$J$17,7,0) -> P2 2 | S30: =VLOOKUP(S29,$C$10:$J$17,7,0) -> STI 3
C31: 6 . A. | D31: WB | G31: 6 | I31: 3 | K31: 7 | M31: 4 | O31: 2 | Q31: 5 | S31: 1
C32: 2025-01-16 | G32: =VLOOKUP(G31,$C$10:$J$17,7,0) -> P2 2 | I32: =VLOOKUP(I31,$C$10:$J$17,7,0) -> STI 3 | K32: =VLOOKUP(K31,$C$10:$J$17,7,0) -> KS 2 | M32: =VLOOKUP(M31,$C$10:$J$17,7,0) -> SGS 1 | O32: =VLOOKUP(O31,$C$10:$J$17,7,0) -> DAT 2 | Q32: =VLOOKUP(Q31,$C$10:$J$17,7,0) -> JUS 2 | S32: =VLOOKUP(S31,$C$10:$J$17,7,0) -> PAN 1
C33: 7 . A. | D33: OT | G33: 7 | I33: 1 | K33: 5 | M33: 3 | O33: 6 | Q33: 2 | S33: 4
C34: 2025-01-30 | G34: =VLOOKUP(G33,$C$10:$J$17,7,0) -> KS 2 | I34: =VLOOKUP(I33,$C$10:$J$17,7,0) -> PAN 1 | K34: =VLOOKUP(K33,$C$10:$J$17,7,0) -> JUS 2 | M34: =VLOOKUP(M33,$C$10:$J$17,7,0) -> STI 3 | O34: =VLOOKUP(O33,$C$10:$J$17,7,0) -> P2 2 | Q34: =VLOOKUP(Q33,$C$10:$J$17,7,0) -> DAT 2 | S34: =VLOOKUP(S33,$C$10:$J$17,7,0) -> SGS 1
C35: 8 . A. | D35: WB | G35: 5 | I35: 2 | K35: 1 | M35: 4 | O35: 3 | Q35: 7 | S35: 6
C36: 2025-02-13 | G36: =VLOOKUP(G35,$C$10:$J$17,7,0) -> JUS 2 | I36: =VLOOKUP(I35,$C$10:$J$17,7,0) -> DAT 2 | K36: =VLOOKUP(K35,$C$10:$J$17,7,0) -> PAN 1 | M36: =VLOOKUP(M35,$C$10:$J$17,7,0) -> SGS 1 | O36: =VLOOKUP(O35,$C$10:$J$17,7,0) -> STI 3 | Q36: =VLOOKUP(Q35,$C$10:$J$17,7,0) -> KS 2 | S36: =VLOOKUP(S35,$C$10:$J$17,7,0) -> P2 2
C37: 9 . A. | D37: OT | G37: 2 | I37: 4 | K37: 3 | M37: 6 | O37: 7 | Q37: 1 | S37: 5
C38: 2025-02-27 | G38: =VLOOKUP(G37,$C$10:$J$17,7,0) -> DAT 2 | I38: =VLOOKUP(I37,$C$10:$J$17,7,0) -> SGS 1 | K38: =VLOOKUP(K37,$C$10:$J$17,7,0) -> STI 3 | M38: =VLOOKUP(M37,$C$10:$J$17,7,0) -> P2 2 | O38: =VLOOKUP(O37,$C$10:$J$17,7,0) -> KS 2 | Q38: =VLOOKUP(Q37,$C$10:$J$17,7,0) -> PAN 1 | S38: =VLOOKUP(S37,$C$10:$J$17,7,0) -> JUS 2
C39: 10 . A. | D39: WB | G39: 3 | I39: 1 | K39: 5 | M39: 7 | O39: 6 | Q39: 4 | S39: 2
C40: 2025-03-13 | G40: =VLOOKUP(G39,$C$10:$J$17,7,0) -> STI 3 | I40: =VLOOKUP(I39,$C$10:$J$17,7,0) -> PAN 1 | K40: =VLOOKUP(K39,$C$10:$J$17,7,0) -> JUS 2 | M40: =VLOOKUP(M39,$C$10:$J$17,7,0) -> KS 2 | O40: =VLOOKUP(O39,$C$10:$J$17,7,0) -> P2 2 | Q40: =VLOOKUP(Q39,$C$10:$J$17,7,0) -> SGS 1 | S40: =VLOOKUP(S39,$C$10:$J$17,7,0) -> DAT 2
C41: 11 . A. | D41: OT | G41: 6 | I41: 5 | K41: 4 | M41: 3 | O41: 1 | Q41: 2 | S41: 7
C42: 2025-03-27 | G42: =VLOOKUP(G41,$C$10:$J$17,7,0) -> P2 2 | I42: =VLOOKUP(I41,$C$10:$J$17,7,0) -> JUS 2 | K42: =VLOOKUP(K41,$C$10:$J$17,7,0) -> SGS 1 | M42: =VLOOKUP(M41,$C$10:$J$17,7,0) -> STI 3 | O42: =VLOOKUP(O41,$C$10:$J$17,7,0) -> PAN 1 | Q42: =VLOOKUP(Q41,$C$10:$J$17,7,0) -> DAT 2 | S42: =VLOOKUP(S41,$C$10:$J$17,7,0) -> KS 2
C43: 12 . A. | D43: WB | G43: 2 | I43: 3 | K43: 7 | M43: 6 | O43: 4 | Q43: 5 | S43: 1
C44: 2025-04-10 | G44: =VLOOKUP(G43,$C$10:$J$17,7,0) -> DAT 2 | I44: =VLOOKUP(I43,$C$10:$J$17,7,0) -> STI 3 | K44: =VLOOKUP(K43,$C$10:$J$17,7,0) -> KS 2 | M44: =VLOOKUP(M43,$C$10:$J$17,7,0) -> P2 2 | O44: =VLOOKUP(O43,$C$10:$J$17,7,0) -> SGS 1 | Q44: =VLOOKUP(Q43,$C$10:$J$17,7,0) -> JUS 2 | S44: =VLOOKUP(S43,$C$10:$J$17,7,0) -> PAN 1
C45: 13 . A. | D45: OT | G45: 1 | I45: 6 | K45: 3 | M45: 5 | O45: 2 | Q45: 7 | S45: 4
C46: 2025-04-24 | G46: =VLOOKUP(G45,$C$10:$J$17,7,0) -> PAN 1 | I46: =VLOOKUP(I45,$C$10:$J$17,7,0) -> P2 2 | K46: =VLOOKUP(K45,$C$10:$J$17,7,0) -> STI 3 | M46: =VLOOKUP(M45,$C$10:$J$17,7,0) -> JUS 2 | O46: =VLOOKUP(O45,$C$10:$J$17,7,0) -> DAT 2 | Q46: =VLOOKUP(Q45,$C$10:$J$17,7,0) -> KS 2 | S46: =VLOOKUP(S45,$C$10:$J$17,7,0) -> SGS 1
C47: 14 . A. | D47: WB | G47: 6 . | I47: 7 . | K47: 3 . | M47: 4 . | O47: 1 . | Q47: 2 . | S47: 5 .
C48: 2025-05-08
C49: Stand Mai 2015

Sheet Hilfstabelle Mannschaften (hidden)
C1: Spielbogen | Q1: ="1. Mannschaft "&$I$4 -> 1. Mannschaft B2
B2: 1. Mannschaft Ausrichter | H2: Mannschaftsklassen | L2: Übersicht aller Mannschaften / Pins | W2: 7er | X2: 8er | Y2: 9er | Z2: 10er | AA2: 11er | AB2: 12er
B3: Antritt | C3: Datum | D3: Bahn | E3: BSG | F3: BSG-Kurzf. | H3: Mannschaft | I3: Klasse | L3: 1. Mannschaft | M3: Pins | Q3: =+Hilfstabelle!$AA$9 -> EAG 1 | R3: =+Hilfstabelle!$AB$9 -> ESV 2 | S3: =+Hilfstabelle!$AC$9 -> AXA 1 | T3: =+Hilfstabelle!$AD$9 -> ERG 3 | U3: =+Hilfstabelle!$AE$9 -> DAT 2 | V3: =+Hilfstabelle!$AF$9 -> PAN 1 | W3: =+Hilfstabelle!$AG$9 -> GEN 3 | X3: =+Hilfstabelle!$AH$9 -> FAH 3 | Y3: =+Hilfstabelle!$AI$9 -> HAS 5 | Z3: =+Hilfstabelle!$AJ$9 -> BWV 5 | AA3: =+Hilfstabelle!$AK$9 -> EAG 1
B4: =+'Spielbogen 7er'!$M$4 -> 1. | C4: =+'Spielbogen 10er'!$K$5 -> 2025-09-09 | D4: =+'Spielbogen 10er'!$J$5 -> OT | E4: =+'Spielbogen 10er'!$D$9 -> Eppendorf AG 1 | F4: =+'Spielbogen 10er'!$M$5 -> EAG 1 | H4: 1. Mannschaft | I4: B2 | L4: =+$E$4 -> Eppendorf AG 1 | M4: =+'Übersicht der Klasse B4'!$F$8 -> 8859 | P4: 1. Antritt | Q4: =+'Übersicht der Klasse B4'!$H$8 -> 1886 | R4: =+'Übersicht der Klasse B4'!$H$10 -> 1512 | S4: =+'Übersicht der Klasse B4'!$H$12 -> 1599 | T4: =+'Übersicht der Klasse B4'!$H$14 -> 1547 | U4: =+'Übersicht der Klasse B4'!$H$16 -> 1817 | V4: =+'Übersicht der Klasse B4'!$H$18 -> 1921 | W4: =+'Übersicht der Klasse B4'!$H$20 -> 1734 | X4: =+'Übersicht der Klasse B4'!$H$22 -> 1951 | Y4: =+'Übersicht der Klasse B4'!$H$24 -> 1756 | Z4: =+'Übersicht der Klasse B4'!$H$26 -> 1827 | AA4: =+'Übersicht der Klasse B4'!$H$28 -> 1886 | AB4: =+'Übersicht der Klasse B4'!$H$30 -> 0
B5: =+'Spielbogen 7er'!$M$5 -> 2. | C5: =+'Spielbogen 10er'!$K$6 -> 2025-09-23 | D5: =+'Spielbogen 10er'!$J$6 -> WB | E5: =+'Spielbogen 10er'!$D$10 -> Energie Sportvereinigung 2 | F5: =+'Spielbogen 10er'!$M$6 -> ESV 2 | L5: =+$E$5 -> Energie Sportvereinigung 2 | M5: =+'Übersicht der Klasse B4'!$F$10 -> 7877 | P5: 2. Antritt | Q5: =+'Übersicht der Klasse B4'!$I$8 -> 1744 | R5: =+'Übersicht der Klasse B4'!$I$10 -> 1687 | S5: =+'Übersicht der Klasse B4'!$I$12 -> 2044 | T5: =+'Übersicht der Klasse B4'!$I$14 -> 1586 | U5: =+'Übersicht der Klasse B4'!$I$16 -> 1967 | V5: =+'Übersicht der Klasse B4'!$I$18 -> 1955 | W5: =+'Übersicht der Klasse B4'!$I$20 -> 1646 | X5: =+'Übersicht der Klasse B4'!$I$22 -> 1438 | Y5: =+'Übersicht der Klasse B4'!$I$24 -> 1854 | Z5: =+'Übersicht der Klasse B4'!$I$26 -> 1835 | AA5: =+'Übersicht der Klasse B4'!$I$28 -> 1886 | AB5: =+'Übersicht der Klasse B4'!$I$30 -> 0
B6: =+'Spielbogen 7er'!$M$6 -> 3. | C6: =+'Spielbogen 10er'!$K$7 -> 2025-10-07 | D6: =+'Spielbogen 10er'!$J$7 -> OT | E6: =+'Spielbogen 10er'!$D$11 -> AXA 1 | F6: =+'Spielbogen 10er'!$M$7 -> AXA 1 | H6: PUNKTSPIELSAISON | I6: 2025/2026 | L6: =+$E$6 -> AXA 1 | M6: =+'Übersicht der Klasse B4'!$F$12 -> 9487 | P6: 3. Antritt | Q6: =+'Übersicht der Klasse B4'!$J$8 -> 1556 | R6: =+'Übersicht der Klasse B4'!$J$10 -> 1438 | S6: =+'Übersicht der Klasse B4'!$J$12 -> 1865 | T6: =+'Übersicht der Klasse B4'!$J$14 -> 1696 | U6: =+'Übersicht der Klasse B4'!$J$16 -> 1661 | V6: =+'Übersicht der Klasse B4'!$J$18 -> 1847 | W6: =+'Übersicht der Klasse B4'!$J$20 -> 1758 | X6: =+'Übersicht der Klasse B4'!$J$22 -> 1588 | Y6: =+'Übersicht der Klasse B4'!$J$24 -> 1928 | Z6: =+'Übersicht der Klasse B4'!$J$26 -> 1746 | AA6: =+'Übersicht der Klasse B4'!$J$28 -> 1886 | AB6: =+'Übersicht der Klasse B4'!$J$30 -> 0
B7: =+'Spielbogen 7er'!$M$7 -> 4. | C7: =+'Spielbogen 10er'!$K$8 -> 2025-10-21 | D7: =+'Spielbogen 10er'!$J$8 -> WB | E7: =+'Spielbogen 10er'!$D$12 -> ERGO Sports 3 | F7: =+'Spielbogen 10er'!$M$8 -> ERG 3 | I7: 24/25 | L7: =+$E$7 -> ERGO Sports 3 | M7: =+'Übersicht der Klasse B4'!$F$14 -> 8054 | P7: 4. Antritt | Q7: =+'Übersicht der Klasse B4'!$K$8 -> 2006 | R7: =+'Übersicht der Klasse B4'!$K$10 -> 1569 | S7: =+'Übersicht der Klasse B4'!$K$12 -> 2034 | T7: =+'Übersicht der Klasse B4'!$K$14 -> 1656 | U7: =+'Übersicht der Klasse B4'!$K$16 -> 2005 | V7: =+'Übersicht der Klasse B4'!$K$18 -> 2032 | W7: =+'Übersicht der Klasse B4'!$K$20 -> 1845 | X7: =+'Übersicht der Klasse B4'!$K$22 -> 1671 | Y7: =+'Übersicht der Klasse B4'!$K$24 -> 1792 | Z7: =+'Übersicht der Klasse B4'!$K$26 -> 2024 | AA7: =+'Übersicht der Klasse B4'!$K$28 -> 1886 | AB7: =+'Übersicht der Klasse B4'!$K$30 -> 0
B8: =+'Spielbogen 7er'!$M$8 -> 5. | C8: =+'Spielbogen 10er'!$K$9 -> 2025-11-04 | D8: =+'Spielbogen 10er'!$J$9 -> OT | E8: =+'Spielbogen 10er'!$D$13 -> Dataport 2 | F8: =+'Spielbogen 10er'!$M$9 -> DAT 2 | I8: =+I6 -> 2025/2026 | L8: =+$E$8 -> Dataport 2 | M8: =+'Übersicht der Klasse B4'!$F$16 -> 9425 | P8: 5. Antritt | Q8: =+'Übersicht der Klasse B4'!$L$8 -> 1667 | R8: =+'Übersicht der Klasse B4'!$L$10 -> 1671 | S8: =+'Übersicht der Klasse B4'!$L$12 -> 1945 | T8: =+'Übersicht der Klasse B4'!$L$14 -> 1569 | U8: =+'Übersicht der Klasse B4'!$L$16 -> 1975 | V8: =+'Übersicht der Klasse B4'!$L$18 -> 1879 | W8: =+'Übersicht der Klasse B4'!$L$20 -> 1789 | X8: =+'Übersicht der Klasse B4'!$L$22 -> 1575 | Y8: =+'Übersicht der Klasse B4'!$L$24 -> 1770 | Z8: =+'Übersicht der Klasse B4'!$L$26 -> 1295 | AA8: =+'Übersicht der Klasse B4'!$L$28 -> 1886 | AB8: =+'Übersicht der Klasse B4'!$L$30 -> 0
B9: =+'Spielbogen 7er'!$M$9 -> 6. | C9: =+'Spielbogen 10er'!$K$10 -> 2025-11-18 | D9: =+'Spielbogen 10er'!$J$10 -> WB | E9: =+'Spielbogen 10er'!$D$14 -> Panasonic 1 | F9: =+'Spielbogen 10er'!$M$10 -> PAN 1 | I9: 2024/2025 | L9: =+$E$9 -> Panasonic 1 | M9: =+'Übersicht der Klasse B4'!$F$18 -> 9634 | P9: 6. Antritt | Q9: =+'Übersicht der Klasse B4'!$M$8 -> 0 | R9: =+'Übersicht der Klasse B4'!$M$10 -> 0 | S9: =+'Übersicht der Klasse B4'!$M$12 -> 0 | T9: =+'Übersicht der Klasse B4'!$M$14 -> 0 | U9: =+'Übersicht der Klasse B4'!$M$16 -> 0 | V9: =+'Übersicht der Klasse B4'!$M$18 -> 0 | W9: =+'Übersicht der Klasse B4'!$M$20 -> 0 | X9: =+'Übersicht der Klasse B4'!$M$22 -> 0 | Y9: =+'Übersicht der Klasse B4'!$M$24 -> 0 | Z9: =+'Übersicht der Klasse B4'!$M$26 -> 0 | AA9: =+'Übersicht der Klasse B4'!$M$28 -> 1886 | AB9: =+'Übersicht der Klasse B4'!$M$30 -> 0
B10: =+'Spielbogen 7er'!$M$10 -> 7. | C10: =+'Spielbogen 10er'!$K$11 -> 2026-01-13 | D10: =+'Spielbogen 10er'!$J$11 -> OT | E10: =+'Spielbogen 10er'!$D$15 -> Generali 3 | F10: =+'Spielbogen 10er'!$M$11 -> GEN 3 | L10: =+$E$10 -> Generali 3 | M10: =+'Übersicht der Klasse B4'!$F$20 -> 8772 | P10: 7. Antritt | Q10: =+'Übersicht der Klasse B4'!$N$8 -> 0 | R10: =+'Übersicht der Klasse B4'!$N$10 -> 0 | S10: =+'Übersicht der Klasse B4'!$N$12 -> 0 | T10: =+'Übersicht der Klasse B4'!$N$14 -> 0 | U10: =+'Übersicht der Klasse B4'!$N$16 -> 0 | V10: =+'Übersicht der Klasse B4'!$N$18 -> 0 | W10: =+'Übersicht der Klasse B4'!$N$20 -> 0 | X10: =+'Übersicht der Klasse B4'!$N$22 -> 0 | Y10: =+'Übersicht der Klasse B4'!$N$24 -> 0 | Z10: =+'Übersicht der Klasse B4'!$N$26 -> 0 | AA10: =+'Übersicht der Klasse B4'!$N$28 -> 1886 | AB10: =+'Übersicht der Klasse B4'!$N$30 -> 0
B11: =+'Spielbogen 7er'!$M$11 -> 8. | C11: =+'Spielbogen 10er'!$K$12 -> 2026-01-27 | D11: =+'Spielbogen 10er'!$J$12 -> WB | E11: =+'Spielbogen 10er'!$D$16 -> Finanzamt 3 | F11: =+'Spielbogen 10er'!$M$12 -> FAH 3 | H11: Herbst-Mix | I11: 15. / 16. 11. 2025 | L11: =+$E$11 -> Finanzamt 3 | M11: =+'Übersicht der Klasse B4'!$F$22 -> 8223 | P11: 8. Antritt | Q11: =+'Übersicht der Klasse B4'!$O$8 -> 0 | R11: =+'Übersicht der Klasse B4'!$O$10 -> 0 | S11: =+'Übersicht der Klasse B4'!$O$12 -> 0 | T11: =+'Übersicht der Klasse B4'!$O$14 -> 0 | U11: =+'Übersicht der Klasse B4'!$O$16 -> 0 | V11: =+'Übersicht der Klasse B4'!$O$18 -> 0 | W11: =+'Übersicht der Klasse B4'!$O$20 -> 0 | X11: =+'Übersicht der Klasse B4'!$O$22 -> 0 | Y11: =+'Übersicht der Klasse B4'!$O$24 -> 0 | Z11: =+'Übersicht der Klasse B4'!$O$26 -> 0 | AA11: =+'Übersicht der Klasse B4'!$O$28 -> 1886 | AB11: =+'Übersicht der Klasse B4'!$O$30 -> 0
B12: =+'Spielbogen 7er'!$M$12 -> 9. | C12: =+'Spielbogen 10er'!$K$13 -> 2026-02-10 | D12: =+'Spielbogen 10er'!$J$13 -> OT | E12: =+'Spielbogen 10er'!$D$17 -> HASPA 5 | F12: =+'Spielbogen 10er'!$M$13 -> HAS 5 | H12: Frühjahrs-Mix | I12: 21. / 22. 03. 2026 | L12: =+$E$12 -> HASPA 5 | M12: =+'Übersicht der Klasse B4'!$F$24 -> 9100 | P12: 9. Antritt | Q12: =+'Übersicht der Klasse B4'!$P$8 -> 0 | R12: =+'Übersicht der Klasse B4'!$P$10 -> 0 | S12: =+'Übersicht der Klasse B4'!$P$12 -> 0 | T12: =+'Übersicht der Klasse B4'!$P$14 -> 0 | U12: =+'Übersicht der Klasse B4'!$P$16 -> 0 | V12: =+'Übersicht der Klasse B4'!$P$18 -> 0 | W12: =+'Übersicht der Klasse B4'!$P$20 -> 0 | X12: =+'Übersicht der Klasse B4'!$P$22 -> 0 | Y12: =+'Übersicht der Klasse B4'!$P$24 -> 0 | Z12: =+'Übersicht der Klasse B4'!$P$26 -> 0 | AA12: =+'Übersicht der Klasse B4'!$P$28 -> 1886 | AB12: =+'Übersicht der Klasse B4'!$P$30 -> 0
B13: =+'Spielbogen 7er'!$M$13 -> 10. | C13: =+'Spielbogen 10er'!$K$14 -> 2026-02-24 | D13: =+'Spielbogen 10er'!$J$14 -> WB | E13: =+'Spielbogen 10er'!$D$18 -> BWVL 5 | F13: =+'Spielbogen 10er'!$M$14 -> BWV 5 | L13: =+$E$13 -> BWVL 5 | M13: =+'Übersicht der Klasse B4'!$F$26 -> 8727 | P13: 10. Antritt | Q13: =+'Übersicht der Klasse B4'!$Q$8 -> 0 | R13: =+'Übersicht der Klasse B4'!$Q$10 -> 0 | S13: =+'Übersicht der Klasse B4'!$Q$12 -> 0 | T13: =+'Übersicht der Klasse B4'!$Q$14 -> 0 | U13: =+'Übersicht der Klasse B4'!$Q$16 -> 0 | V13: =+'Übersicht der Klasse B4'!$Q$18 -> 0 | W13: =+'Übersicht der Klasse B4'!$Q$20 -> 0 | X13: =+'Übersicht der Klasse B4'!$Q$22 -> 0 | Y13: =+'Übersicht der Klasse B4'!$Q$24 -> 0 | Z13: =+'Übersicht der Klasse B4'!$Q$26 -> 0 | AA13: =+'Übersicht der Klasse B4'!$Q$28 -> 1886 | AB13: =+'Übersicht der Klasse B4'!$Q$30 -> 0
B14: =+'Spielbogen 7er'!$M$14 -> 11. | C14: =+'Spielbogen 10er'!$K$15 -> 2026-03-10 | D14: =+'Spielbogen 10er'!$J$15 -> OT | E14: =+$E$4 -> Eppendorf AG 1 | F14: =+$F$4 -> EAG 1 | L14: =+$E$14 -> Eppendorf AG 1 | M14: =+'Übersicht der Klasse B4'!$F$28 -> 26404 | P14: 11. Antritt | Q14: =+'Übersicht der Klasse B4'!$R$8 -> 0 | R14: =+'Übersicht der Klasse B4'!$R$10 -> 0 | S14: =+'Übersicht der Klasse B4'!$R$12 -> 0 | T14: =+'Übersicht der Klasse B4'!$R$14 -> 0 | U14: =+'Übersicht der Klasse B4'!$R$16 -> 0 | V14: =+'Übersicht der Klasse B4'!$R$18 -> 0 | W14: =+'Übersicht der Klasse B4'!$R$20 -> 0 | X14: =+'Übersicht der Klasse B4'!$R$22 -> 0 | Y14: =+'Übersicht der Klasse B4'!$R$24 -> 0 | Z14: =+'Übersicht der Klasse B4'!$R$26 -> 0 | AA14: =+'Übersicht der Klasse B4'!$R$28 -> 1886 | AB14: =+'Übersicht der Klasse B4'!$R$30 -> 0
B15: =+'Spielbogen 7er'!$M$15 -> 12. | C15: =+'Spielbogen 10er'!$K$16 -> 2026-03-24 | D15: =+'Spielbogen 10er'!$J$16 -> WB | E15: =+$E$5 -> Energie Sportvereinigung 2 | F15: =+$F$5 -> ESV 2 | P15: 12. Antritt | Q15: =+'Übersicht der Klasse B4'!$S$8 -> 0 | R15: =+'Übersicht der Klasse B4'!$S$10 -> 0 | S15: =+'Übersicht der Klasse B4'!$S$12 -> 0 | T15: =+'Übersicht der Klasse B4'!$S$14 -> 0 | U15: =+'Übersicht der Klasse B4'!$S$16 -> 0 | V15: =+'Übersicht der Klasse B4'!$S$18 -> 0 | W15: =+'Übersicht der Klasse B4'!$S$20 -> 0 | X15: =+'Übersicht der Klasse B4'!$S$22 -> 0 | Y15: =+'Übersicht der Klasse B4'!$S$24 -> 0 | Z15: =+'Übersicht der Klasse B4'!$S$26 -> 0 | AA15: =+'Übersicht der Klasse B4'!$S$28 -> 1886 | AB15: =+'Übersicht der Klasse B4'!$S$30 -> 0
B16: =+'Spielbogen 7er'!$M$16 -> 13. | C16: =+'Spielbogen 10er'!$K$17 -> 2026-04-07 | D16: =+'Spielbogen 10er'!$J$17 -> OT | E16: =+$E$6 -> AXA 1 | F16: =+$F$6 -> AXA 1 | P16: 13. Antritt | Q16: =+'Übersicht der Klasse B4'!$T$8 -> 0 | R16: =+'Übersicht der Klasse B4'!$T$10 -> 0 | S16: =+'Übersicht der Klasse B4'!$T$12 -> 0 | T16: =+'Übersicht der Klasse B4'!$T$14 -> 0 | U16: =+'Übersicht der Klasse B4'!$T$16 -> 0 | V16: =+'Übersicht der Klasse B4'!$T$18 -> 0 | W16: =+'Übersicht der Klasse B4'!$T$20 -> 0 | X16: =+'Übersicht der Klasse B4'!$T$22 -> 0 | Y16: =+'Übersicht der Klasse B4'!$T$24 -> 0 | Z16: =+'Übersicht der Klasse B4'!$T$26 -> 0 | AA16: =+'Übersicht der Klasse B4'!$T$28 -> 1886 | AB16: =+'Übersicht der Klasse B4'!$T$30 -> 0
B17: =+'Spielbogen 7er'!$M$17 -> 14. | C17: =+'Spielbogen 10er'!$K$18 -> 2026-04-21 | D17: =+'Spielbogen 10er'!$J$18 -> WB | E17: =+$E$7 -> ERGO Sports 3 | F17: =+$F$7 -> ERG 3 | L17: Übersicht aller Mannschaften / Punkte | P17: 14. Antritt | Q17: =+'Übersicht der Klasse B4'!$U$8 -> 0 | R17: =+'Übersicht der Klasse B4'!$U$10 -> 0 | S17: =+'Übersicht der Klasse B4'!$U$12 -> 0 | T17: =+'Übersicht der Klasse B4'!$U$14 -> 0 | U17: =+'Übersicht der Klasse B4'!$U$16 -> 0 | V17: =+'Übersicht der Klasse B4'!$U$18 -> 0 | W17: =+'Übersicht der Klasse B4'!$U$20 -> 0 | X17: =+'Übersicht der Klasse B4'!$U$22 -> 0 | Y17: =+'Übersicht der Klasse B4'!$U$24 -> 0 | Z17: =+'Übersicht der Klasse B4'!$U$26 -> 0 | AA17: =+'Übersicht der Klasse B4'!$U$28 -> 1886 | AB17: =+'Übersicht der Klasse B4'!$U$30 -> 0
L18: 1. Mannschaft | M18: Punkte | P18: Gesamt Pins: | Q18: =SUM($Q$4:$Q$17) -> 8859 | R18: =SUM($R$4:$R$17) -> 7877 | S18: =SUM($S$4:$S$17) -> 9487 | T18: =SUM($T$4:$T$17) -> 8054 | U18: =SUM($U$4:$U$17) -> 9425 | V18: =SUM($V$4:$V$17) -> 9634 | W18: =SUM($W$4:$W$17) -> 8772 | X18: =SUM($X$4:$X$17) -> 8223 | Y18: =SUM($Y$4:$Y$17) -> 9100 | Z18: =SUM($Z$4:$Z$17) -> 8727 | AA18: =SUM($AA$4:$AA$17) -> 26404 | AB18: =SUM($AB$4:$AB$17) -> 0
L19: =+$E$4 -> Eppendorf AG 1 | M19: =+'Übersicht der Klasse B4'!$E$8 -> 26
L20: =+$E$5 -> Energie Sportvereinigung 2 | M20: =+'Übersicht der Klasse B4'!$E$10 -> 12 | AE20: 1. Antritt | AF20: 2. Antritt | AG20: 3. Antritt | AH20: 4. Antritt | AI20: 5. Antritt | AJ20: 6. Antritt | AK20: 7. Antritt | AL20: 8. Antritt | AM20: 9. Antritt | AN20: 10. Antritt | AO20: 11. Antritt | AP20: 12. Antritt | AQ20: 13. Antritt | AR20: 14. Antritt | AS20: Gesamt Pins:
L21: =+$E$6 -> AXA 1 | M21: =+'Übersicht der Klasse B4'!$E$12 -> 41 | P21: Gesamt Punkte: | Q21: =+'Übersicht der Klasse B4'!$E$8 -> 26 | R21: =+'Übersicht der Klasse B4'!$E$10 -> 12 | S21: =+'Übersicht der Klasse B4'!$E$12 -> 41 | T21: =+'Übersicht der Klasse B4'!$E$14 -> 13 | U21: =+'Übersicht der Klasse B4'!$E$16 -> 35 | V21: =+'Übersicht der Klasse B4'!$E$18 -> 42 | W21: =+'Übersicht der Klasse B4'!$E$20 -> 26 | X21: =+'Übersicht der Klasse B4'!$E$22 -> 20 | Y21: =+'Übersicht der Klasse B4'!$E$24 -> 32 | Z21: =+'Übersicht der Klasse B4'!$E$26 -> 28 | AA21: =+'Übersicht der Klasse B4'!$E$28 -> 124 | AB21: =+'Übersicht der Klasse B4'!$F$31 -> 0 | AD21: =+'Spielbogen 10er'!G9 -> EAG 1 | AE21: =+'Übersicht der Klasse B4'!$H$8 -> 1886 | AF21: =+'Übersicht der Klasse B4'!$I$8 -> 1744 | AG21: =+'Übersicht der Klasse B4'!$J$8 -> 1556 | AH21: =+'Übersicht der Klasse B4'!$K$8 -> 2006 | AI21: =+'Übersicht der Klasse B4'!$L$8 -> 1667 | AJ21: =+'Übersicht der Klasse B4'!$M$8 -> 0 | AK21: =+'Übersicht der Klasse B4'!$N$8 -> 0 | AL21: =+'Übersicht der Klasse B4'!$O$8 -> 0 | AM21: =+'Übersicht der Klasse B4'!$P$8 -> 0 | AN21: =+'Übersicht der Klasse B4'!$Q$8 -> 0 | AO21: =+'Übersicht der Klasse B4'!$R$8 -> 0 | AP21: =+'Übersicht der Klasse B4'!$S$8 -> 0 | AQ21: =+'Übersicht der Klasse B4'!$T$8 -> 0 | AR21: =+'Übersicht der Klasse B4'!$U$8 -> 0 | AS21: =SUM($AE$21:$AR$21) -> 8859
L22: =+$E$7 -> ERGO Sports 3 | M22: =+'Übersicht der Klasse B4'!$E$14 -> 13 | AD22: =+'Spielbogen 10er'!G10 -> ESV 2 | AE22: =+'Übersicht der Klasse B4'!$H$10 -> 1512 | AF22: =+'Übersicht der Klasse B4'!$I$10 -> 1687 | AG22: =+'Übersicht der Klasse B4'!$J$10 -> 1438 | AH22: =+'Übersicht der Klasse B4'!$K$10 -> 1569 | AI22: =+'Übersicht der Klasse B4'!$L$10 -> 1671 | AJ22: =+'Übersicht der Klasse B4'!$M$10 -> 0 | AK22: =+'Übersicht der Klasse B4'!$N$10 -> 0 | AL22: =+'Übersicht der Klasse B4'!$O$10 -> 0 | AM22: =+'Übersicht der Klasse B4'!$P$10 -> 0 | AN22: =+'Übersicht der Klasse B4'!$Q$10 -> 0 | AO22: =+'Übersicht der Klasse B4'!$R$10 -> 0 | AP22: =+'Übersicht der Klasse B4'!$S$10 -> 0 | AQ22: =+'Übersicht der Klasse B4'!$T$10 -> 0 | AR22: =+'Übersicht der Klasse B4'!$U$10 -> 0 | AS22: =SUM($AE$22:$AR$22) -> 7877
L23: =+$E$8 -> Dataport 2 | M23: =+'Übersicht der Klasse B4'!$E$16 -> 35 | Q23: 1. Antritt | AD23: =+'Spielbogen 10er'!G11 -> AXA 1 | AE23: =+'Übersicht der Klasse B4'!$H$12 -> 1599 | AF23: =+'Übersicht der Klasse B4'!$I$12 -> 2044 | AG23: =+'Übersicht der Klasse B4'!$J$12 -> 1865 | AH23: =+'Übersicht der Klasse B4'!$K$12 -> 2034 | AI23: =+'Übersicht der Klasse B4'!$L$12 -> 1945 | AJ23: =+'Übersicht der Klasse B4'!$M$12 -> 0 | AK23: =+'Übersicht der Klasse B4'!$N$12 -> 0 | AL23: =+'Übersicht der Klasse B4'!$O$12 -> 0 | AM23: =+'Übersicht der Klasse B4'!$P$12 -> 0 | AN23: =+'Übersicht der Klasse B4'!$Q$12 -> 0 | AO23: =+'Übersicht der Klasse B4'!$R$12 -> 0 | AP23: =+'Übersicht der Klasse B4'!$S$12 -> 0 | AQ23: =+'Übersicht der Klasse B4'!$T$12 -> 0 | AR23: =+'Übersicht der Klasse B4'!$U$12 -> 0 | AS23: =SUM($AE$23:$AR$23) -> 9487
L24: =+$E$9 -> Panasonic 1 | M24: =+'Übersicht der Klasse B4'!$E$18 -> 42 | Q24: =IF($Q$26="1",+$Q$25+0.5,+$Q$25) -> 8 | R24: =IF($R$26="1",+$R$25+0.5,+$R$25) -> 1 | S24: =IF($S$26="1",+$S$25+0.5,+$S$25) -> 3 | T24: =IF($T$26="1",+$T$25+0.5,+$T$25) -> 2 | U24: =IF($U$26="1",+$U$25+0.5,+$U$25) -> 6 | V24: =IF($V$26="1",+$V$25+0.5,+$V$25) -> 9 | W24: =IF($W$26="1",+$W$25+0.5,+$W$25) -> 4 | X24: =IF($X$26="1",+$X$25+0.5,+$X$25) -> 10 | Y24: =IF($Y$26="1",+$Y$25+0.5,+$Y$25) -> 5 | Z24: =IF($Z$26="1",+$Z$25+0.5,+$Z$25) -> 7 | AD24: =+'Spielbogen 10er'!G12 -> ERG 3 | AE24: =+'Übersicht der Klasse B4'!$H$14 -> 1547 | AF24: =+'Übersicht der Klasse B4'!$I$14 -> 1586 | AG24: =+'Übersicht der Klasse B4'!$J$14 -> 1696 | AH24: =+'Übersicht der Klasse B4'!$K$14 -> 1656 | AI24: =+'Übersicht der Klasse B4'!$L$14 -> 1569 | AJ24: =+'Übersicht der Klasse B4'!$M$14 -> 0 | AK24: =+'Übersicht der Klasse B4'!$N$14 -> 0 | AL24: =+'Übersicht der Klasse B4'!$O$14 -> 0 | AM24: =+'Übersicht der Klasse B4'!$P$14 -> 0 | AN24: =+'Übersicht der Klasse B4'!$Q$14 -> 0 | AO24: =+'Übersicht der Klasse B4'!$R$14 -> 0 | AP24: =+'Übersicht der Klasse B4'!$S$14 -> 0 | AQ24: =+'Übersicht der Klasse B4'!$T$14 -> 0 | AR24: =+'Übersicht der Klasse B4'!$U$14 -> 0 | AS24: =SUM($AE$24:$AR$24) -> 8054
L25: =+$E$10 -> Generali 3 | M25: =+'Übersicht der Klasse B4'!$E$20 -> 26 | Q25: =IF(Q4>0,RANK(Q4,$Q$4:$Z$4,10),"0") -> 8 | R25: =IF(R4>0,RANK(R4,$Q$4:$Z$4,10),"0") -> 1 | S25: 3 | T25: 2 | U25: 6 | V25: 9 | W25: 4 | X25: 10 | Y25: 5 | Z25: 7 | AD25: =+'Spielbogen 10er'!G13 -> DAT 2 | AE25: =+'Übersicht der Klasse B4'!$H$16 -> 1817 | AF25: =+'Übersicht der Klasse B4'!$I$16 -> 1967 | AG25: =+'Übersicht der Klasse B4'!$J$16 -> 1661 | AH25: =+'Übersicht der Klasse B4'!$K$16 -> 2005 | AI25: =+'Übersicht der Klasse B4'!$L$16 -> 1975 | AJ25: =+'Übersicht der Klasse B4'!$M$16 -> 0 | AK25: =+'Übersicht der Klasse B4'!$N$16 -> 0 | AL25: =+'Übersicht der Klasse B4'!$O$16 -> 0 | AM25: =+'Übersicht der Klasse B4'!$P$16 -> 0 | AN25: =+'Übersicht der Klasse B4'!$Q$16 -> 0 | AO25: =+'Übersicht der Klasse B4'!$R$16 -> 0 | AP25: =+'Übersicht der Klasse B4'!$S$16 -> 0 | AQ25: =+'Übersicht der Klasse B4'!$T$16 -> 0 | AR25: =+'Übersicht der Klasse B4'!$U$16 -> 0 | AS25: =SUM($AE$25:$AR$25) -> 9425
L26: =+$E$11 -> Finanzamt 3 | M26: =+'Übersicht der Klasse B4'!$E$22 -> 20 | Q26: =IF(COUNTIF($Q$4:$Z$4,Q4)>1,"1","") ->  | R26: =IF(COUNTIF($Q$4:$Z$4,R4)>1,"1","") ->  | AD26: =+'Spielbogen 10er'!G14 -> PAN 1 | AE26: =+'Übersicht der Klasse B4'!$H$18 -> 1921 | AF26: =+'Übersicht der Klasse B4'!$I$18 -> 1955 | AG26: =+'Übersicht der Klasse B4'!$J$18 -> 1847 | AH26: =+'Übersicht der Klasse B4'!$K$18 -> 2032 | AI26: =+'Übersicht der Klasse B4'!$L$18 -> 1879 | AJ26: =+'Übersicht der Klasse B4'!$M$18 -> 0 | AK26: =+'Übersicht der Klasse B4'!$N$18 -> 0 | AL26: =+'Übersicht der Klasse B4'!$O$18 -> 0 | AM26: =+'Übersicht der Klasse B4'!$P$18 -> 0 | AN26: =+'Übersicht der Klasse B4'!$Q$18 -> 0 | AO26: =+'Übersicht der Klasse B4'!$R$18 -> 0 | AP26: =+'Übersicht der Klasse B4'!$S$18 -> 0 | AQ26: =+'Übersicht der Klasse B4'!$T$18 -> 0 | AR26: =+'Übersicht der Klasse B4'!$U$18 -> 0 | AS26: =SUM($AE$26:$AR$26) -> 9634
L27: =+$E$12 -> HASPA 5 | M27: =+'Übersicht der Klasse B4'!$E$24 -> 32 | AD27: =+'Spielbogen 10er'!G15 -> GEN 3 | AE27: =+'Übersicht der Klasse B4'!$H$20 -> 1734 | AF27: =+'Übersicht der Klasse B4'!$I$20 -> 1646 | AG27: =+'Übersicht der Klasse B4'!$J$20 -> 1758 | AH27: =+'Übersicht der Klasse B4'!$K$20 -> 1845 | AI27: =+'Übersicht der Klasse B4'!$L$20 -> 1789 | AJ27: =+'Übersicht der Klasse B4'!$M$20 -> 0 | AK27: =+'Übersicht der Klasse B4'!$N$20 -> 0 | AL27: =+'Übersicht der Klasse B4'!$O$20 -> 0 | AM27: =+'Übersicht der Klasse B4'!$P$20 -> 0 | AN27: =+'Übersicht der Klasse B4'!$Q$20 -> 0 | AO27: =+'Übersicht der Klasse B4'!$R$20 -> 0 | AP27: =+'Übersicht der Klasse B4'!$S$20 -> 0 | AQ27: =+'Übersicht der Klasse B4'!$T$20 -> 0 | AR27: =+'Übersicht der Klasse B4'!$U$20 -> 0 | AS27: =SUM($AE$27:$AR$27) -> 8772
L28: =+$E$13 -> BWVL 5 | M28: =+'Übersicht der Klasse B4'!$E$26 -> 28 | Q28: 2. Antritt | AD28: =+'Spielbogen 10er'!G16 -> FAH 3 | AE28: =+'Übersicht der Klasse B4'!$H$22 -> 1951 | AF28: =+'Übersicht der Klasse B4'!$I$22 -> 1438 | AG28: =+'Übersicht der Klasse B4'!$J$22 -> 1588 | AH28: =+'Übersicht der Klasse B4'!$K$22 -> 1671 | AI28: =+'Übersicht der Klasse B4'!$L$22 -> 1575 | AJ28: =+'Übersicht der Klasse B4'!$M$22 -> 0 | AK28: =+'Übersicht der Klasse B4'!$N$22 -> 0 | AL28: =+'Übersicht der Klasse B4'!$O$22 -> 0 | AM28: =+'Übersicht der Klasse B4'!$P$22 -> 0 | AN28: =+'Übersicht der Klasse B4'!$Q$22 -> 0 | AO28: =+'Übersicht der Klasse B4'!$R$22 -> 0 | AP28: =+'Übersicht der Klasse B4'!$S$22 -> 0 | AQ28: =+'Übersicht der Klasse B4'!$T$22 -> 0 | AR28: =+'Übersicht der Klasse B4'!$U$22 -> 0 | AS28: =SUM($AE$28:$AR$28) -> 8223
L29: =+$E$14 -> Eppendorf AG 1 | M29: =+'Übersicht der Klasse B4'!$E$28 -> 124 | Q29: =IF($Q$31="1",+$Q$30+0.5,+$Q$30) -> 5 | R29: =IF($R$31="1",+$R$30+0.5,+$R$30) -> 4 | S29: =IF($S$31="1",+$S$30+0.5,+$S$30) -> 10 | T29: =IF($T$31="1",+$T$30+0.5,+$T$30) -> 2 | U29: =IF($U$31="1",+$U$30+0.5,+$U$30) -> 9 | V29: =IF($V$31="1",+$V$30+0.5,+$V$30) -> 8 | W29: =IF($W$31="1",+$W$30+0.5,+$W$30) -> 3 | X29: =IF($X$31="1",+$X$30+0.5,+$X$30) -> 1 | Y29: =IF($Y$31="1",+$Y$30+0.5,+$Y$30) -> 7 | Z29: =IF($Z$31="1",+$Z$30+0.5,+$Z$30) -> 6 | AD29: =+'Spielbogen 10er'!G17 -> HAS 5 | AE29: =+'Übersicht der Klasse B4'!$H$24 -> 1756 | AF29: =+'Übersicht der Klasse B4'!$I$24 -> 1854 | AG29: =+'Übersicht der Klasse B4'!$J$24 -> 1928 | AH29: =+'Übersicht der Klasse B4'!$K$24 -> 1792 | AI29: =+'Übersicht der Klasse B4'!$L$24 -> 1770 | AJ29: =+'Übersicht der Klasse B4'!$M$24 -> 0 | AK29: =+'Übersicht der Klasse B4'!$N$24 -> 0 | AL29: =+'Übersicht der Klasse B4'!$O$24 -> 0 | AM29: =+'Übersicht der Klasse B4'!$P$24 -> 0 | AN29: =+'Übersicht der Klasse B4'!$Q$24 -> 0 | AO29: =+'Übersicht der Klasse B4'!$R$24 -> 0 | AP29: =+'Übersicht der Klasse B4'!$S$24 -> 0 | AQ29: =+'Übersicht der Klasse B4'!$T$24 -> 0 | AR29: =+'Übersicht der Klasse B4'!$U$24 -> 0 | AS29: =SUM($AE$29:$AR$29) -> 9100
Q30: =IF(Q5>0,RANK(Q5,$Q$5:$Z$5,10),"0") -> 5 | R30: =IF(R5>0,RANK(R5,$Q$5:$Z$5,10),"0") -> 4 | S30: 10 | T30: 2 | U30: 9 | V30: 8 | W30: 3 | X30: 1 | Y30: 7 | Z30: 6 | AD30: =+'Spielbogen 10er'!G18 -> BWV 5 | AE30: =+'Übersicht der Klasse B4'!$H$26 -> 1827 | AF30: =+'Übersicht der Klasse B4'!$I$26 -> 1835 | AG30: =+'Übersicht der Klasse B4'!$J$26 -> 1746 | AH30: =+'Übersicht der Klasse B4'!$K$26 -> 2024 | AI30: =+'Übersicht der Klasse B4'!$L$26 -> 1295 | AJ30: =+'Übersicht der Klasse B4'!$M$26 -> 0 | AK30: =+'Übersicht der Klasse B4'!$N$26 -> 0 | AL30: =+'Übersicht der Klasse B4'!$O$26 -> 0 | AM30: =+'Übersicht der Klasse B4'!$P$26 -> 0 | AN30: =+'Übersicht der Klasse B4'!$Q$26 -> 0 | AO30: =+'Übersicht der Klasse B4'!$R$26 -> 0 | AP30: =+'Übersicht der Klasse B4'!$S$26 -> 0 | AQ30: =+'Übersicht der Klasse B4'!$T$26 -> 0 | AR30: =+'Übersicht der Klasse B4'!$U$26 -> 0 | AS30: =SUM($AE$30:$AR$30) -> 8727
Q31: =IF(COUNTIF($Q$5:$Z$5,Q5)>1,"1","") ->  | R31: =IF(COUNTIF($Q$5:$Z$5,R5)>1,"1","") ->  | AD31: =+'Spielbogen 10er'!G19 -> 0 | AE31: =+'Übersicht der Klasse B4'!$H$28 -> 1886 | AF31: =+'Übersicht der Klasse B4'!$I$28 -> 1886 | AG31: =+'Übersicht der Klasse B4'!$J$28 -> 1886 | AH31: =+'Übersicht der Klasse B4'!$K$28 -> 1886 | AI31: =+'Übersicht der Klasse B4'!$L$28 -> 1886 | AJ31: =+'Übersicht der Klasse B4'!$M$28 -> 1886 | AK31: =+'Übersicht der Klasse B4'!$N$28 -> 1886 | AL31: =+'Übersicht der Klasse B4'!$O$28 -> 1886 | AM31: =+'Übersicht der Klasse B4'!$P$28 -> 1886 | AN31: =+'Übersicht der Klasse B4'!$Q$28 -> 1886 | AO31: =+'Übersicht der Klasse B4'!$R$28 -> 1886 | AP31: =+'Übersicht der Klasse B4'!$S$28 -> 1886 | AQ31: =+'Übersicht der Klasse B4'!$T$28 -> 1886 | AR31: =+'Übersicht der Klasse B4'!$U$28 -> 1886 | AS31: =SUM($AE$31:$AR$31) -> 26404
L32: Übersicht aller Mannschaften / Spiele
L33: 1. Mannschaft | M33: Spiele | Q33: 3. Antritt
L34: =+$E$4 -> Eppendorf AG 1 | M34: =COUNTIF('Übersicht der Klasse B4'!$H$8:$U$8,">1")*12 -> 60 | Q34: =IF($Q$36="1",+$Q$35+0.5,+$Q$35) -> 2 | R34: =IF($R$36="1",+$R$35+0.5,+$R$35) -> 1 | S34: =IF($S$36="1",+$S$35+0.5,+$S$35) -> 9 | T34: =IF($T$36="1",+$T$35+0.5,+$T$35) -> 5 | U34: =IF($U$36="1",+$U$35+0.5,+$U$35) -> 4 | V34: =IF($V$36="1",+$V$35+0.5,+$V$35) -> 8 | W34: =IF($W$36="1",+$W$35+0.5,+$W$35) -> 7 | X34: =IF($X$36="1",+$X$35+0.5,+$X$35) -> 3 | Y34: =IF($Y$36="1",+$Y$35+0.5,+$Y$35) -> 10 | Z34: =IF($Z$36="1",+$Z$35+0.5,+$Z$35) -> 6 | AA34: =IF($AA$36="1",+$AA$35+0.5,+$AA$35) -> 10 | AB34: =IF($AB$36="1",+$AB$35+0.5,+$AB$35) -> 0
L35: =+$E$5 -> Energie Sportvereinigung 2 | M35: =COUNTIF('Übersicht der Klasse B4'!$H$10:$U$10,">1")*12 -> 60 | Q35: =IF(Q6>0,RANK(Q6,$Q$6:$Z$6,10),"0") -> 2 | R35: =IF(R6>0,RANK(R6,$Q$6:$Z$6,10),"0") -> 1 | S35: 9 | T35: 5 | U35: 4 | V35: 8 | W35: 7 | X35: 3 | Y35: 10 | Z35: 6 | AA35: =IF($AA$6>0,RANK($AA$6,$Q$6:$AA$6,10),"0") -> 10 | AB35: =IF($AB$6>0,RANK($AB$6,$Q$6:$W$6,10),"0") -> 0 | AE35: =+Hilfstabelle!$AA$9 -> EAG 1 | AF35: =+Hilfstabelle!$AB$9 -> ESV 2 | AG35: =+Hilfstabelle!$AC$9 -> AXA 1 | AH35: =+Hilfstabelle!$AD$9 -> ERG 3 | AI35: =+Hilfstabelle!$AE$9 -> DAT 2 | AJ35: =+Hilfstabelle!$AF$9 -> PAN 1 | AK35: =+Hilfstabelle!$AG$9 -> GEN 3 | AL35: =+Hilfstabelle!$AH$9 -> FAH 3 | AM35: =+Hilfstabelle!$AI$9 -> HAS 5 | AN35: =+Hilfstabelle!$AJ$9 -> BWV 5 | AO35: =+Hilfstabelle!$AK$9 -> EAG 1
L36: =+$E$6 -> AXA 1 | M36: =COUNTIF('Übersicht der Klasse B4'!$H$12:$U$12,">1")*12 -> 60 | Q36: =IF(COUNTIF($Q$6:$Z$6,Q6)>1,"1","") ->  | R36: =IF(COUNTIF($Q$6:$Z$6,R6)>1,"1","") ->  | AA36: =IF(COUNTIF($Q$6:$AA$6,$AA$6)>1,"1","") ->  | AB36: =IF(COUNTIF($Q$6:$W$6,$AB$6)>1,"1","") ->  | AD36: 1. Antritt | AE36: =+'Anhang zum Spielbericht'!$G$19 -> 1886 | AF36: =+'Anhang zum Spielbericht'!$H$19 -> 1512 | AG36: =+'Anhang zum Spielbericht'!$I$19 -> 1599 | AH36: =+'Anhang zum Spielbericht'!$J$19 -> 1547 | AI36: =+'Anhang zum Spielbericht'!$K$19 -> 1817 | AJ36: =+'Anhang zum Spielbericht'!L19 -> 1921 | AK36: =+'Anhang zum Spielbericht'!M19 -> 1734 | AL36: =+'Anhang zum Spielbericht'!N19 -> 1951 | AM36: =+'Anhang zum Spielbericht'!O19 -> 1756 | AN36: =+'Anhang zum Spielbericht'!P19 -> 1827 | AO36: =+'Anhang zum Spielbericht'!Q19 -> 0
L37: =+$E$7 -> ERGO Sports 3 | M37: =COUNTIF('Übersicht der Klasse B4'!$H$14:$U$14,">1")*12 -> 60 | AD37: 2. Antritt | AE37: =+'Anhang zum Spielbericht'!$G$40 -> 1744 | AF37: =+'Anhang zum Spielbericht'!$H$40 -> 1687 | AG37: =+'Anhang zum Spielbericht'!$I$40 -> 2044 | AH37: =+'Anhang zum Spielbericht'!$J$40 -> 1586 | AI37: =+'Anhang zum Spielbericht'!$K$40 -> 1967 | AJ37: =+'Anhang zum Spielbericht'!L40 -> 1955 | AK37: =+'Anhang zum Spielbericht'!M40 -> 1646 | AL37: =+'Anhang zum Spielbericht'!N40 -> 1438 | AM37: =+'Anhang zum Spielbericht'!O40 -> 1854 | AN37: =+'Anhang zum Spielbericht'!P40 -> 1835 | AO37: =+'Anhang zum Spielbericht'!Q40 -> 0
L38: =+$E$8 -> Dataport 2 | M38: =COUNTIF('Übersicht der Klasse B4'!$H$16:$U$16,">1")*12 -> 60 | Q38: 4. Antritt | AD38: 3. Antritt | AE38: =+'Anhang zum Spielbericht'!$G$63 -> 1556 | AF38: =+'Anhang zum Spielbericht'!$H$63 -> 1438 | AG38: =+'Anhang zum Spielbericht'!$I$63 -> 1865 | AH38: =+'Anhang zum Spielbericht'!$J$63 -> 1696 | AI38: =+'Anhang zum Spielbericht'!$K$63 -> 1661 | AJ38: =+'Anhang zum Spielbericht'!L63 -> 1847 | AK38: =+'Anhang zum Spielbericht'!M63 -> 1758 | AL38: =+'Anhang zum Spielbericht'!N63 -> 1588 | AM38: =+'Anhang zum Spielbericht'!O63 -> 1928 | AN38: =+'Anhang zum Spielbericht'!P63 -> 1746 | AO38: =+'Anhang zum Spielbericht'!Q63 -> 541
L39: =+$E$9 -> Panasonic 1 | M39: =COUNTIF('Übersicht der Klasse B4'!$H$18:$U$18,">1")*12 -> 60 | Q39: =IF($Q$41="1",+$Q$40+0.5,+$Q$40) -> 7 | R39: =IF($R$41="1",+$R$40+0.5,+$R$40) -> 1 | S39: =IF($S$41="1",+$S$40+0.5,+$S$40) -> 10 | T39: =IF($T$41="1",+$T$40+0.5,+$T$40) -> 2 | U39: =IF($U$41="1",+$U$40+0.5,+$U$40) -> 6 | V39: =IF($V$41="1",+$V$40+0.5,+$V$40) -> 9 | W39: =IF($W$41="1",+$W$40+0.5,+$W$40) -> 5 | X39: =IF($X$41="1",+$X$40+0.5,+$X$40) -> 3 | Y39: =IF($Y$41="1",+$Y$40+0.5,+$Y$40) -> 4 | Z39: =IF($Z$41="1",+$Z$40+0.5,+$Z$40) -> 8 | AA39: =IF($AA$41="1",+$AA$40+0.5,+$AA$40) -> 6 | AB39: =IF($AB$41="1",+$AB$40+0.5,+$AB$40) -> 0 | AD39: 4. Antritt | AE39: =+'Anhang zum Spielbericht'!$G$87 -> 2006 | AF39: =+'Anhang zum Spielbericht'!$H$87 -> 1569 | AG39: =+'Anhang zum Spielbericht'!$I$87 -> 2034 | AH39: =+'Anhang zum Spielbericht'!$J$87 -> 1656 | AI39: =+'Anhang zum Spielbericht'!$K$87 -> 2005 | AJ39: =+'Anhang zum Spielbericht'!L87 -> 2032 | AK39: =+'Anhang zum Spielbericht'!M87 -> 1845 | AL39: =+'Anhang zum Spielbericht'!N87 -> 1671 | AM39: =+'Anhang zum Spielbericht'!O87 -> 1792 | AN39: =+'Anhang zum Spielbericht'!P87 -> 2024 | AO39: =+'Anhang zum Spielbericht'!Q87 -> 0
L40: =+$E$10 -> Generali 3 | M40: =COUNTIF('Übersicht der Klasse B4'!$H$20:$U$20,">1")*12 -> 60 | Q40: =IF(Q7>0,RANK(Q7,$Q$7:$Z$7,10),"0") -> 7 | R40: =IF(R7>0,RANK(R7,$Q$7:$Z$7,10),"0") -> 1 | S40: 10 | T40: 2 | U40: 6 | V40: 9 | W40: 5 | X40: 3 | Y40: 4 | Z40: 8 | AA40: =IF($AA$7>0,RANK($AA$7,$Q$7:$AA$7,10),"0") -> 6 | AB40: =IF($AB$7>0,RANK($AB$7,$Q$7:$W$7,10),"0") -> 0 | AD40: 5. Antritt | AE40: =+'Anhang zum Spielbericht'!$G$110 -> 1667 | AF40: =+'Anhang zum Spielbericht'!$H$110 -> 1671 | AG40: =+'Anhang zum Spielbericht'!$I$110 -> 1945 | AH40: =+'Anhang zum Spielbericht'!$J$110 -> 1569 | AI40: =+'Anhang zum Spielbericht'!$K$110 -> 1975 | AJ40: =+'Anhang zum Spielbericht'!L110 -> 1879 | AK40: =+'Anhang zum Spielbericht'!M110 -> 1789 | AL40: =+'Anhang zum Spielbericht'!N110 -> 1575 | AM40: =+'Anhang zum Spielbericht'!O110 -> 1770 | AN40: =+'Anhang zum Spielbericht'!P110 -> 1295 | AO40: =+'Anhang zum Spielbericht'!Q110 -> 0
L41: =+$E$11 -> Finanzamt 3 | M41: =COUNTIF('Übersicht der Klasse B4'!$H$22:$U$22,">1")*12 -> 60 | Q41: =IF(COUNTIF($Q$7:$Z$7,Q7)>1,"1","") ->  | R41: =IF(COUNTIF($Q$7:$Z$7,R7)>1,"1","") ->  | AA41: =IF(COUNTIF($Q$7:$AA$7,$AA$7)>1,"1","") ->  | AB41: =IF(COUNTIF($Q$7:$W$7,$AB$7)>1,"1","") ->  | AD41: 6. Antritt | AE41: =+'Anhang zum Spielbericht'!$G$133 -> 0 | AF41: =+'Anhang zum Spielbericht'!$H$133 -> 0 | AG41: =+'Anhang zum Spielbericht'!$I$133 -> 0 | AH41: =+'Anhang zum Spielbericht'!$J$133 -> 0 | AI41: =+'Anhang zum Spielbericht'!$K$133 -> 0 | AJ41: =+'Anhang zum Spielbericht'!L133 -> 0 | AK41: =+'Anhang zum Spielbericht'!M133 -> 0 | AL41: =+'Anhang zum Spielbericht'!N133 -> 0 | AM41: =+'Anhang zum Spielbericht'!O133 -> 0 | AN41: =+'Anhang zum Spielbericht'!P133 -> 0 | AO41: =+'Anhang zum Spielbericht'!Q133 -> 0
L42: =+$E$12 -> HASPA 5 | M42: =COUNTIF('Übersicht der Klasse B4'!$H$24:$U$24,">1")*12 -> 60 | AD42: 7. Antritt | AE42: =+'Anhang zum Spielbericht'!$G$156 -> 0 | AF42: =+'Anhang zum Spielbericht'!$H$156 -> 0 | AG42: =+'Anhang zum Spielbericht'!$I$156 -> 0 | AH42: =+'Anhang zum Spielbericht'!$J$156 -> 0 | AI42: =+'Anhang zum Spielbericht'!$K$156 -> 0 | AJ42: =+'Anhang zum Spielbericht'!L156 -> 0 | AK42: =+'Anhang zum Spielbericht'!M156 -> 0 | AL42: =+'Anhang zum Spielbericht'!N156 -> 0 | AM42: =+'Anhang zum Spielbericht'!O156 -> 0 | AN42: =+'Anhang zum Spielbericht'!P156 -> 0 | AO42: =+'Anhang zum Spielbericht'!Q156 -> 0
L43: =+$E$13 -> BWVL 5 | M43: =COUNTIF('Übersicht der Klasse B4'!$H$26:$U$26,">1")*12 -> 60 | Q43: 5. Antritt | AD43: 8. Antritt | AE43: =+'Anhang zum Spielbericht'!$G$179 -> 0 | AF43: =+'Anhang zum Spielbericht'!$H$179 -> 0 | AG43: =+'Anhang zum Spielbericht'!$I$179 -> 0 | AH43: =+'Anhang zum Spielbericht'!$J$179 -> 0 | AI43: =+'Anhang zum Spielbericht'!$K$179 -> 0 | AJ43: =+'Anhang zum Spielbericht'!L179 -> 0 | AK43: =+'Anhang zum Spielbericht'!M179 -> 0 | AL43: =+'Anhang zum Spielbericht'!N179 -> 0 | AM43: =+'Anhang zum Spielbericht'!O179 -> 0 | AN43: =+'Anhang zum Spielbericht'!P179 -> 0 | AO43: =+'Anhang zum Spielbericht'!Q179 -> 0
L44: =+$E$14 -> Eppendorf AG 1 | M44: =COUNTIF('Übersicht der Klasse B4'!$H$28:$U$28,">1")*12 -> 168 | Q44: =IF($Q$46="1",+$Q$45+0.5,+$Q$45) -> 4 | R44: =IF($R$46="1",+$R$45+0.5,+$R$45) -> 5 | S44: =IF($S$46="1",+$S$45+0.5,+$S$45) -> 9 | T44: =IF($T$46="1",+$T$45+0.5,+$T$45) -> 2 | U44: =IF($U$46="1",+$U$45+0.5,+$U$45) -> 10 | V44: =IF($V$46="1",+$V$45+0.5,+$V$45) -> 8 | W44: =IF($W$46="1",+$W$45+0.5,+$W$45) -> 7 | X44: =IF($X$46="1",+$X$45+0.5,+$X$45) -> 3 | Y44: =IF($Y$46="1",+$Y$45+0.5,+$Y$45) -> 6 | Z44: =IF($Z$46="1",+$Z$45+0.5,+$Z$45) -> 1 | AA44: =IF($AA$46="1",+$AA$45+0.5,+$AA$45) -> 9 | AB44: =IF($AB$46="1",+$AB$45+0.5,+$AB$45) -> 0 | AD44: 9. Antritt | AE44: =+'Anhang zum Spielbericht'!$G$202 -> 0 | AF44: =+'Anhang zum Spielbericht'!$H$202 -> 0 | AG44: =+'Anhang zum Spielbericht'!$I$202 -> 0 | AH44: =+'Anhang zum Spielbericht'!$J$202 -> 0 | AI44: =+'Anhang zum Spielbericht'!$K$202 -> 0 | AJ44: =+'Anhang zum Spielbericht'!L202 -> 0 | AK44: =+'Anhang zum Spielbericht'!M202 -> 0 | AL44: =+'Anhang zum Spielbericht'!N202 -> 0 | AM44: =+'Anhang zum Spielbericht'!O202 -> 0 | AN44: =+'Anhang zum Spielbericht'!P202 -> 0 | AO44: =+'Anhang zum Spielbericht'!Q202 -> 0
Q45: =IF(Q8>0,RANK(Q8,$Q$8:$Z$8,10),"0") -> 4 | R45: =IF(R8>0,RANK(R8,$Q$8:$Z$8,10),"0") -> 5 | S45: 9 | T45: 2 | U45: 10 | V45: 8 | W45: 7 | X45: 3 | Y45: 6 | Z45: 1 | AA45: =IF($AA$8>0,RANK($AA$8,$Q$8:$AA$8,10),"0") -> 9 | AB45: =IF($AB$8>0,RANK($AB$8,$Q$8:$W$8,10),"0") -> 0 | AD45: 10. Antritt | AE45: =+'Anhang zum Spielbericht'!$G$225 -> 0 | AF45: =+'Anhang zum Spielbericht'!$H$225 -> 0 | AG45: =+'Anhang zum Spielbericht'!$I$225 -> 0 | AH45: =+'Anhang zum Spielbericht'!$J$225 -> 0 | AI45: =+'Anhang zum Spielbericht'!$K$225 -> 0 | AJ45: =+'Anhang zum Spielbericht'!L225 -> 0 | AK45: =+'Anhang zum Spielbericht'!M225 -> 0 | AL45: =+'Anhang zum Spielbericht'!N225 -> 0 | AM45: =+'Anhang zum Spielbericht'!O225 -> 0 | AN45: =+'Anhang zum Spielbericht'!P225 -> 0 | AO45: =+'Anhang zum Spielbericht'!Q225 -> 0
Q46: =IF(COUNTIF($Q$8:$Z$8,Q8)>1,"1","") ->  | R46: =IF(COUNTIF($Q$8:$Z$8,R8)>1,"1","") ->  | AA46: =IF(COUNTIF($AA$8:$AA$8,$AA$8)>1,"1","") ->  | AB46: =IF(COUNTIF($Z$8:$AB$8,$AB$8)>1,"1","") ->  | AD46: 11. Antritt | AE46: =+'Anhang zum Spielbericht'!$G$248 -> 0 | AF46: =+'Anhang zum Spielbericht'!$H$248 -> 0 | AG46: =+'Anhang zum Spielbericht'!$I$248 -> 0 | AH46: =+'Anhang zum Spielbericht'!$J$248 -> 0 | AI46: =+'Anhang zum Spielbericht'!$K$248 -> 0 | AJ46: =+'Anhang zum Spielbericht'!L248 -> 0 | AK46: =+'Anhang zum Spielbericht'!M248 -> 0 | AL46: =+'Anhang zum Spielbericht'!N248 -> 0 | AM46: =+'Anhang zum Spielbericht'!O248 -> 0 | AN46: =+'Anhang zum Spielbericht'!P248 -> 0 | AO46: =+'Anhang zum Spielbericht'!Q248 -> 0
AD47: 12. Antritt | AE47: =+'Anhang zum Spielbericht'!$G$271 -> 0 | AF47: =+'Anhang zum Spielbericht'!$H$271 -> 0 | AG47: =+'Anhang zum Spielbericht'!$I$271 -> 0 | AH47: =+'Anhang zum Spielbericht'!$J$271 -> 0 | AI47: =+'Anhang zum Spielbericht'!$K$271 -> 0 | AJ47: =+'Anhang zum Spielbericht'!L271 -> 0 | AK47: =+'Anhang zum Spielbericht'!M271 -> 0 | AL47: =+'Anhang zum Spielbericht'!N271 -> 0 | AM47: =+'Anhang zum Spielbericht'!O271 -> 0 | AN47: =+'Anhang zum Spielbericht'!P271 -> 0 | AO47: =+'Anhang zum Spielbericht'!Q271 -> 0
Q48: 6. Antritt | AD48: 13. Antritt | AE48: =+'Anhang zum Spielbericht'!$G$294 -> 0 | AF48: =+'Anhang zum Spielbericht'!$H$294 -> 0 | AG48: =+'Anhang zum Spielbericht'!$I$294 -> 0 | AH48: =+'Anhang zum Spielbericht'!$J$294 -> 0 | AI48: =+'Anhang zum Spielbericht'!$K$294 -> 0 | AJ48: =+'Anhang zum Spielbericht'!L294 -> 0 | AK48: =+'Anhang zum Spielbericht'!M294 -> 0 | AL48: =+'Anhang zum Spielbericht'!N294 -> 0 | AM48: =+'Anhang zum Spielbericht'!O294 -> 0 | AN48: =+'Anhang zum Spielbericht'!P294 -> 0 | AO48: =+'Anhang zum Spielbericht'!Q294 -> 0
Q49: =IF($Q$51="1",+$Q$50+0.5,+$Q$50) -> 0.5 | R49: =IF($R$51="1",+$R$50+0.5,+$R$50) -> 0.5 | S49: =IF($S$51="1",+$S$50+0.5,+$S$50) -> 0.5 | T49: =IF($T$51="1",+$T$50+0.5,+$T$50) -> 0.5 | U49: =IF($U$51="1",+$U$50+0.5,+$U$50) -> 0.5 | V49: =IF($V$51="1",+$V$50+0.5,+$V$50) -> 0.5 | W49: =IF($W$51="1",+$W$50+0.5,+$W$50) -> 0.5 | X49: =IF($X$51="1",+$X$50+0.5,+$X$50) -> 0.5 | Y49: =IF($Y$51="1",+$Y$50+0.5,+$Y$50) -> 0.5 | Z49: =IF($Z$51="1",+$Z$50+0.5,+$Z$50) -> 0.5 | AA49: =IF($AA$51="1",+$AA$50+0.5,+$AA$50) -> 11 | AB49: =IF($AB$51="1",+$AB$50+0.5,+$AB$50) -> 0.5 | AD49: 14. Antritt | AE49: =+'Anhang zum Spielbericht'!$G$317 -> 0 | AF49: =+'Anhang zum Spielbericht'!$H$317 -> 0 | AG49: =+'Anhang zum Spielbericht'!$I$317 -> 0 | AH49: =+'Anhang zum Spielbericht'!$J$317 -> 0 | AI49: =+'Anhang zum Spielbericht'!$K$317 -> 0 | AJ49: =+'Anhang zum Spielbericht'!L317 -> 0 | AK49: =+'Anhang zum Spielbericht'!M317 -> 0 | AL49: =+'Anhang zum Spielbericht'!N317 -> 0 | AM49: =+'Anhang zum Spielbericht'!O317 -> 0 | AN49: =+'Anhang zum Spielbericht'!P317 -> 0 | AO49: =+'Anhang zum Spielbericht'!Q317 -> 0
Q50: =IF(Q9>0,RANK(Q9,$Q$9:$Z$9,10),"0") -> 0 | R50: =IF(R9>0,RANK(R9,$Q$9:$Z$9,10),"0") -> 0 | S50: 0 | T50: 0 | U50: 0 | V50: 0 | W50: 0 | X50: 0 | Y50: 0 | Z50: 0 | AA50: =IF($AA$9>0,RANK($AA$9,$Q$9:$AA$9,10),"0") -> 11 | AB50: =IF($AB$9>0,RANK($AB$9,$Q$9:$W$9,10),"0") -> 0 | AD50: Gesamt Pins: | AE50: =SUM($AE$36:$AE$49) -> 8859 | AF50: =SUM($AF$36:$AF$49) -> 7877 | AG50: =SUM($AG$36:$AG$49) -> 9487 | AH50: =SUM($AH$36:$AH$49) -> 8054 | AI50: =SUM($AI$36:$AI$49) -> 9425 | AJ50: =SUM($AJ$36:$AJ$49) -> 9634 | AK50: =SUM(AK36:AK49) -> 8772 | AL50: =SUM($AL$36:$AL$49) -> 8223 | AM50: =SUM($AM$36:$AM$49) -> 9100 | AN50: =SUM($AN$36:$AN$49) -> 8727 | AW50: S R H 1 | BB50: B W V 4 | BO50: S R H 1 | CA50: B W V 4
Q51: =IF(COUNTIF($Q$9:$Z$9,Q9)>1,"1","") -> 1 | R51: =IF(COUNTIF($Q$9:$Z$9,R9)>1,"1","") -> 1 | S51: 1 | T51: 1 | U51: 1 | V51: 1 | W51: 1 | X51: 1 | Y51: 1 | Z51: 1 | AA51: =IF(COUNTIF($Q$9:$AA$9,$AA$9)>1,"1","") ->  | AB51: =IF(COUNTIF($Q$9:$W$9,$AB$9)>1,"1","") -> 1
AE52: 1. Antritt | AF52: 2. Antritt | AG52: 3. Antritt | AH52: 4. Antritt | AI52: 5. Antritt | AJ52: 6. Antritt | AK52: 7. Antritt | AL52: 8. Antritt | AM52: 9. Antritt | AN52: 10. Antritt | AO52: 11. Antritt | AP52: 12. Antritt | AQ52: 13. Antritt | AR52: 14. Antritt | AS52: Gesamt Pins:
Q53: 7. Antritt | AD53: =+$F$4 -> EAG 1 | AE53: =+'Anhang zum Spielbericht'!$G$19 -> 1886 | AF53: =+'Anhang zum Spielbericht'!$G$40 -> 1744 | AG53: =+'Anhang zum Spielbericht'!$G$63 -> 1556 | AH53: =+'Anhang zum Spielbericht'!$G$87 -> 2006 | AI53: =+'Anhang zum Spielbericht'!$G$110 -> 1667 | AJ53: =+'Anhang zum Spielbericht'!$G$133 -> 0 | AK53: =+'Anhang zum Spielbericht'!$G$156 -> 0 | AL53: =+'Anhang zum Spielbericht'!$G$179 -> 0 | AM53: =+'Anhang zum Spielbericht'!$G$202 -> 0 | AN53: =+'Anhang zum Spielbericht'!$G$225 -> 0 | AO53: =+'Anhang zum Spielbericht'!$G$248 -> 0 | AP53: =+'Anhang zum Spielbericht'!$G$271 -> 0 | AQ53: =+'Anhang zum Spielbericht'!$G$294 -> 0 | AR53: =+'Anhang zum Spielbericht'!$G$317 -> 0 | AS53: =SUM($AE$53:$AR$53) -> 8859
Q54: =IF($Q$56="1",+$Q$55+0.5,+$Q$55) -> 0 | R54: =IF($R$56="1",+$R$55+0.5,+$R$55) -> 0 | S54: =IF($S$56="1",+$S$55+0.5,+$S$55) -> 0 | T54: =IF($T$56="1",+$T$55+0.5,+$T$55) -> 0 | U54: =IF($U$56="1",+$U$55+0.5,+$U$55) -> 0 | V54: =IF($V$56="1",+$V$55+0.5,+$V$55) -> 0 | W54: =IF($W$56="1",+$W$55+0.5,+$W$55) -> 0 | X54: =IF($X$56="1",+$X$55+0.5,+$X$55) -> 0 | Y54: =IF($Y$56="1",+$Y$55+0.5,+$Y$55) -> 0 | Z54: =IF($Z$56="1",+$Z$55+0.5,+$Z$55) -> 0 | AA54: =IF($AA$56="1",+$AA$55+0.5,+$AA$55) -> 11 | AB54: =IF($AB$56="1",+$AB$55+0.5,+$AB$55) -> 0.5 | AD54: =+$F$5 -> ESV 2 | AE54: =+'Anhang zum Spielbericht'!$H$19 -> 1512 | AF54: =+'Anhang zum Spielbericht'!$H$40 -> 1687 | AG54: =+'Anhang zum Spielbericht'!$H$63 -> 1438 | AH54: =+'Anhang zum Spielbericht'!$H$87 -> 1569 | AI54: =+'Anhang zum Spielbericht'!$H$110 -> 1671 | AJ54: =+'Anhang zum Spielbericht'!$H$133 -> 0 | AK54: =+'Anhang zum Spielbericht'!$H$156 -> 0 | AL54: =+'Anhang zum Spielbericht'!$H$179 -> 0 | AM54: =+'Anhang zum Spielbericht'!$H$202 -> 0 | AN54: =+'Anhang zum Spielbericht'!$H$225 -> 0 | AO54: =+'Anhang zum Spielbericht'!$H$248 -> 0 | AP54: =+'Anhang zum Spielbericht'!$H$271 -> 0 | AQ54: =+'Anhang zum Spielbericht'!$H$294 -> 0 | AR54: =+'Anhang zum Spielbericht'!$H$317 -> 0 | AS54: =SUM($AE$54:$AR$54) -> 7877
G55: KAH 1 | H55: DAT 2 | Q55: =IF(Q10>0,RANK(Q10,$Q$10:$Z$10,10),"0") -> 0 | R55: =IF(R10>0,RANK(R10,$Q$10:$Z$10,10),"0") -> 0 | S55: 0 | T55: 0 | U55: 0 | V55: 0 | W55: 0 | X55: 0 | Y55: 0 | Z55: 0 | AA55: =IF($AA$10>0,RANK($AA$10,$Q$10:$AA$10,10),"0") -> 11 | AB55: =IF($AB$10>0,RANK($AB$10,$Q$10:$W$10,10),"0") -> 0 | AD55: =+$F$6 -> AXA 1 | AE55: =+'Anhang zum Spielbericht'!$I$19 -> 1599 | AF55: =+'Anhang zum Spielbericht'!$I$40 -> 2044 | AG55: =+'Anhang zum Spielbericht'!$I$63 -> 1865 | AH55: =+'Anhang zum Spielbericht'!$I$87 -> 2034 | AI55: =+'Anhang zum Spielbericht'!$I$110 -> 1945 | AJ55: =+'Anhang zum Spielbericht'!$I$133 -> 0 | AK55: =+'Anhang zum Spielbericht'!$I$156 -> 0 | AL55: =+'Anhang zum Spielbericht'!$I$179 -> 0 | AM55: =+'Anhang zum Spielbericht'!$I$202 -> 0 | AN55: =+'Anhang zum Spielbericht'!$I$225 -> 0 | AO55: =+'Anhang zum Spielbericht'!$I$248 -> 0 | AP55: =+'Anhang zum Spielbericht'!$I$271 -> 0 | AQ55: =+'Anhang zum Spielbericht'!$I$294 -> 0 | AR55: =+'Anhang zum Spielbericht'!$I$317 -> 0 | AS55: =SUM($AE$55:$AR$55) -> 9487
G56: BAS 2 | H56: JUS 2 | Q56: =IF(COUNTIF(Q10:$Z$10,$Q$7)>1,"1","") ->  | R56: =IF(COUNTIF(R10:$Z$10,$Q$7)>1,"1","") ->  | S56: =IF(COUNTIF(S10:$Z$10,$Q$7)>1,"1","") ->  | T56: =IF(COUNTIF(T10:$Z$10,$Q$7)>1,"1","") ->  | U56: =IF(COUNTIF(U10:$Z$10,$Q$7)>1,"1","") ->  | V56: =IF(COUNTIF(V10:$Z$10,$Q$7)>1,"1","") ->  | W56: =IF(COUNTIF(W10:$Z$10,$Q$7)>1,"1","") ->  | X56: =IF(COUNTIF(X10:$Z$10,$Q$7)>1,"1","") ->  | Y56: =IF(COUNTIF(Y10:$Z$10,$Q$7)>1,"1","") ->  | Z56: =IF(COUNTIF(Z10:$Z$10,$Q$7)>1,"1","") ->  | AA56: =IF(COUNTIF($Q$10:$AA$10,$AA$7)>1,"1","") ->  | AB56: =IF(COUNTIF($Q$10:$W$10,$AB$7)>1,"1","") -> 1 | AD56: =+$F$7 -> ERG 3 | AE56: =+'Anhang zum Spielbericht'!$J$19 -> 1547 | AF56: =+'Anhang zum Spielbericht'!$J$40 -> 1586 | AG56: =+'Anhang zum Spielbericht'!$J$63 -> 1696 | AH56: =+'Anhang zum Spielbericht'!$J$87 -> 1656 | AI56: =+'Anhang zum Spielbericht'!$J$110 -> 1569 | AJ56: =+'Anhang zum Spielbericht'!$J$133 -> 0 | AK56: =+'Anhang zum Spielbericht'!$J$156 -> 0 | AL56: =+'Anhang zum Spielbericht'!$J$179 -> 0 | AM56: =+'Anhang zum Spielbericht'!$J$202 -> 0 | AN56: =+'Anhang zum Spielbericht'!$J$225 -> 0 | AO56: =+'Anhang zum Spielbericht'!$J$248 -> 0 | AP56: =+'Anhang zum Spielbericht'!$J$271 -> 0 | AQ56: =+'Anhang zum Spielbericht'!$J$294 -> 0 | AR56: =+'Anhang zum Spielbericht'!$J$317 -> 0 | AS56: =SUM($AE$56:$AR$56) -> 8054
G57: SGS 1 | H57: GAS 1 | AD57: =+$F$8 -> DAT 2 | AE57: =+'Anhang zum Spielbericht'!$K$19 -> 1817 | AF57: =+'Anhang zum Spielbericht'!$K$40 -> 1967 | AG57: =+'Anhang zum Spielbericht'!$K$63 -> 1661 | AH57: =+'Anhang zum Spielbericht'!$K$87 -> 2005 | AI57: =+'Anhang zum Spielbericht'!$K$110 -> 1975 | AJ57: =+'Anhang zum Spielbericht'!$K$133 -> 0 | AK57: =+'Anhang zum Spielbericht'!$K$156 -> 0 | AL57: =+'Anhang zum Spielbericht'!$K$179 -> 0 | AM57: =+'Anhang zum Spielbericht'!$K$202 -> 0 | AN57: =+'Anhang zum Spielbericht'!$K$225 -> 0 | AO57: =+'Anhang zum Spielbericht'!$K$248 -> 0 | AP57: =+'Anhang zum Spielbericht'!$K$271 -> 0 | AQ57: =+'Anhang zum Spielbericht'!$K$294 -> 0 | AR57: =+'Anhang zum Spielbericht'!$K$317 -> 0 | AS57: =SUM($AE$57:$AR$57) -> 9425
G58: FAH 2 | H58: FAH 3 | Q58: 8. Antritt | AD58: =+$F$9 -> PAN 1 | AE58: =+'Anhang zum Spielbericht'!$L$19 -> 1921 | AF58: =+'Anhang zum Spielbericht'!$L$40 -> 1955 | AG58: =+'Anhang zum Spielbericht'!$L$63 -> 1847 | AH58: =+'Anhang zum Spielbericht'!$L$87 -> 2032 | AI58: =+'Anhang zum Spielbericht'!$L$110 -> 1879 | AJ58: =+'Anhang zum Spielbericht'!$L$133 -> 0 | AK58: =+'Anhang zum Spielbericht'!$L$156 -> 0 | AL58: =+'Anhang zum Spielbericht'!$L$179 -> 0 | AM58: =+'Anhang zum Spielbericht'!$L$202 -> 0 | AN58: =+'Anhang zum Spielbericht'!$L$225 -> 0 | AO58: =+'Anhang zum Spielbericht'!$L$248 -> 0 | AP58: =+'Anhang zum Spielbericht'!$L$271 -> 0 | AQ58: =+'Anhang zum Spielbericht'!$L$294 -> 0 | AR58: =+'Anhang zum Spielbericht'!$L$317 -> 0 | AS58: =SUM($AE$58:$AR$58) -> 9634 | AW58: E D 2 | BB58: E L B 1 | BO58: E D 2 | CA58: E L B 1
G59: CLP 1 | H59: OTT 3 | Q59: =IF($Q$61="1",+$Q$60+0.5,+$Q$60) -> 0.5 | R59: =IF($R$61="1",+$R$60+0.5,+$R$60) -> 0.5 | S59: =IF($S$61="1",+$S$60+0.5,+$S$60) -> 0.5 | T59: =IF($T$61="1",+$T$60+0.5,+$T$60) -> 0.5 | U59: =IF($U$61="1",+$U$60+0.5,+$U$60) -> 0.5 | V59: =IF($V$61="1",+$V$60+0.5,+$V$60) -> 0.5 | W59: =IF($W$61="1",+$W$60+0.5,+$W$60) -> 0.5 | X59: =IF($X$61="1",+$X$60+0.5,+$X$60) -> 0.5 | Y59: =IF($Y$61="1",+$Y$60+0.5,+$Y$60) -> 0.5 | Z59: =IF($Z$61="1",+$Z$60+0.5,+$Z$60) -> 0.5 | AA59: =IF($AA$61="1",+$AA$60+0.5,+$AA$60) -> 11 | AB59: =IF($AB$61="1",+$AB$60+0.5,+$AB$60) -> 0.5 | AD59: =+$F$10 -> GEN 3 | AE59: =+'Anhang zum Spielbericht'!$M$19 -> 1734 | AF59: =+'Anhang zum Spielbericht'!$M$40 -> 1646 | AG59: =+'Anhang zum Spielbericht'!$M$63 -> 1758 | AH59: =+'Anhang zum Spielbericht'!$M$87 -> 1845 | AI59: =+'Anhang zum Spielbericht'!$M$110 -> 1789 | AJ59: =+'Anhang zum Spielbericht'!$M$133 -> 0 | AK59: =+'Anhang zum Spielbericht'!$M$156 -> 0 | AL59: =+'Anhang zum Spielbericht'!$M$179 -> 0 | AM59: =+'Anhang zum Spielbericht'!$M$202 -> 0 | AN59: =+'Anhang zum Spielbericht'!$M$225 -> 0 | AO59: =+'Anhang zum Spielbericht'!$M$248 -> 0 | AP59: =+'Anhang zum Spielbericht'!$M$271 -> 0 | AQ59: =+'Anhang zum Spielbericht'!$M$294 -> 0 | AR59: =+'Anhang zum Spielbericht'!$M$317 -> 0 | AS59: =SUM($AE$59:$AR$59) -> 8772
G60: TRE 1 | H60: HAS 7 | Q60: =IF(Q11>0,RANK(Q11,$Q$11:$Z$11,10),"0") -> 0 | R60: =IF(R11>0,RANK(R11,$Q$11:$Z$11,10),"0") -> 0 | S60: 0 | T60: 0 | U60: 0 | V60: 0 | W60: 0 | X60: 0 | Y60: 0 | Z60: 0 | AA60: =IF($AA$11>0,RANK($AA$11,$Q$11:$AA$11,10),"0") -> 11 | AB60: =IF($AB$11>0,RANK($AB$11,$Q$11:$W$11,10),"0") -> 0 | AD60: =+$F$11 -> FAH 3 | AE60: =+'Anhang zum Spielbericht'!$N$19 -> 1951 | AF60: =+'Anhang zum Spielbericht'!$N$40 -> 1438 | AG60: =+'Anhang zum Spielbericht'!$N$63 -> 1588 | AH60: =+'Anhang zum Spielbericht'!$N$87 -> 1671 | AI60: =+'Anhang zum Spielbericht'!$N$110 -> 1575 | AJ60: =+'Anhang zum Spielbericht'!$N$133 -> 0 | AK60: =+'Anhang zum Spielbericht'!$N$156 -> 0 | AL60: =+'Anhang zum Spielbericht'!$N$179 -> 0 | AM60: =+'Anhang zum Spielbericht'!$N$202 -> 0 | AN60: =+'Anhang zum Spielbericht'!$N$225 -> 0 | AO60: =+'Anhang zum Spielbericht'!$N$248 -> 0 | AP60: =+'Anhang zum Spielbericht'!$N$271 -> 0 | AQ60: =+'Anhang zum Spielbericht'!$N$294 -> 0 | AR60: =+'Anhang zum Spielbericht'!$N$317 -> 0 | AS60: =SUM($AE$60:$AR$60) -> 8223
Q61: =IF(COUNTIF($Q$11:$Z$11,Q11)>1,"1","") -> 1 | R61: =IF(COUNTIF($Q$11:$Z$11,R11)>1,"1","") -> 1 | S61: 1 | T61: 1 | U61: 1 | V61: 1 | W61: 1 | X61: 1 | Y61: 1 | Z61: 1 | AA61: =IF(COUNTIF($Q$11:$AA$11,$AA$11)>1,"1","") ->  | AB61: =IF(COUNTIF($Q$11:$W$11,$AB$11)>1,"1","") -> 1 | AD61: =+$F$12 -> HAS 5 | AE61: =+'Anhang zum Spielbericht'!$O$19 -> 1756 | AF61: =+'Anhang zum Spielbericht'!$O$40 -> 1854 | AG61: =+'Anhang zum Spielbericht'!$O$63 -> 1928 | AH61: =+'Anhang zum Spielbericht'!$O$87 -> 1792 | AI61: =+'Anhang zum Spielbericht'!$O$110 -> 1770 | AJ61: =+'Anhang zum Spielbericht'!$O$133 -> 0 | AK61: =+'Anhang zum Spielbericht'!$O$156 -> 0 | AL61: =+'Anhang zum Spielbericht'!$O$179 -> 0 | AM61: =+'Anhang zum Spielbericht'!$O$202 -> 0 | AN61: =+'Anhang zum Spielbericht'!$O$225 -> 0 | AO61: =+'Anhang zum Spielbericht'!$O$248 -> 0 | AP61: =+'Anhang zum Spielbericht'!$O$271 -> 0 | AQ61: =+'Anhang zum Spielbericht'!$O$294 -> 0 | AR61: =+'Anhang zum Spielbericht'!$O$317 -> 0 | AS61: =SUM($AE$61:$AR$61) -> 9100
AD62: =+$F$13 -> BWV 5 | AE62: =+'Anhang zum Spielbericht'!$P$19 -> 1827 | AF62: =+'Anhang zum Spielbericht'!$P$40 -> 1835 | AG62: =+'Anhang zum Spielbericht'!$P$63 -> 1746 | AH62: =+'Anhang zum Spielbericht'!$P$87 -> 2024 | AI62: =+'Anhang zum Spielbericht'!$P$110 -> 1295 | AJ62: =+'Anhang zum Spielbericht'!$P$133 -> 0 | AK62: =+'Anhang zum Spielbericht'!$P$156 -> 0 | AL62: =+'Anhang zum Spielbericht'!$P$179 -> 0 | AM62: =+'Anhang zum Spielbericht'!$P$202 -> 0 | AN62: =+'Anhang zum Spielbericht'!$P$225 -> 0 | AO62: =+'Anhang zum Spielbericht'!$P$248 -> 0 | AP62: =+'Anhang zum Spielbericht'!$P$271 -> 0 | AQ62: =+'Anhang zum Spielbericht'!$P$294 -> 0 | AR62: =+'Anhang zum Spielbericht'!$P$317 -> 0 | AS62: =SUM($AE$62:$AR$62) -> 8727
Q63: 9. Antritt | AE63: =+'Anhang zum Spielbericht'!$Q$19 -> 0 | AF63: =+'Anhang zum Spielbericht'!$Q$40 -> 0 | AG63: =+'Anhang zum Spielbericht'!$Q$63 -> 541 | AH63: =+'Anhang zum Spielbericht'!$Q$87 -> 0 | AI63: =+'Anhang zum Spielbericht'!$Q$110 -> 0 | AJ63: =+'Anhang zum Spielbericht'!$Q$133 -> 0 | AK63: =+'Anhang zum Spielbericht'!$Q$156 -> 0 | AL63: =+'Anhang zum Spielbericht'!$Q$179 -> 0 | AM63: =+'Anhang zum Spielbericht'!$Q$202 -> 0 | AN63: =+'Anhang zum Spielbericht'!$Q$225 -> 0 | AO63: =+'Anhang zum Spielbericht'!$Q$248 -> 0 | AP63: =+'Anhang zum Spielbericht'!$Q$271 -> 0 | AQ63: =+'Anhang zum Spielbericht'!$Q$294 -> 0 | AR63: =+'Anhang zum Spielbericht'!$Q$317 -> 0 | AS63: =SUM($AE$63:$AR$63) -> 541
Q64: =IF($Q$66="1",+$Q$65+0.5,+$Q$65) -> 0.5 | R64: =IF($R$66="1",+$R$65+0.5,+$R$65) -> 0.5 | S64: =IF($S$66="1",+$S$65+0.5,+$S$65) -> 0.5 | T64: =IF($T$66="1",+$T$65+0.5,+$T$65) -> 0.5 | U64: =IF($U$66="1",+$U$65+0.5,+$U$65) -> 0.5 | V64: =IF($V$66="1",+$V$65+0.5,+$V$65) -> 0.5 | W64: =IF($W$66="1",+$W$65+0.5,+$W$65) -> 0.5 | X64: =IF($X$66="1",+$X$65+0.5,+$X$65) -> 0.5 | Y64: =IF($Y$66="1",+$Y$65+0.5,+$Y$65) -> 0.5 | Z64: =IF($Z$66="1",+$Z$65+0.5,+$Z$65) -> 0.5 | AA64: =IF($AA$66="1",+$AA$65+0.5,+$AA$65) -> 11 | AB64: =IF($AB$66="1",+$AB$65+0.5,+$AB$65) -> 0.5
Q65: =IF(Q12>0,RANK(Q12,$Q$12:$Z$12,10),"0") -> 0 | R65: =IF(R12>0,RANK(R12,$Q$12:$Z$12,10),"0") -> 0 | S65: 0 | T65: 0 | U65: 0 | V65: 0 | W65: 0 | X65: 0 | Y65: 0 | Z65: 0 | AA65: =IF($AA$12>0,RANK($AA$12,$Q$12:$AA$12,10),"0") -> 11 | AB65: =IF($AB$12>0,RANK($AB$12,$Q$12:$W$12,10),"0") -> 0
Q66: =IF(COUNTIF($Q$12:$Z$12,Q12)>1,"1","") -> 1 | R66: =IF(COUNTIF($Q$12:$Z$12,R12)>1,"1","") -> 1 | S66: 1 | T66: 1 | U66: 1 | V66: 1 | W66: 1 | X66: 1 | Y66: 1 | Z66: 1 | AA66: =IF(COUNTIF($Q$12:$AA$12,$AA$12)>1,"1","") ->  | AB66: =IF(COUNTIF($Q$12:$W$12,$AB$12)>1,"1","") -> 1 | AW66: D K Y 1 | BB66: J U L 1 | BO66: D K Y 1 | CA66: J U L 1
Q68: 10. Antritt
Q69: =IF($Q$71="1",+$Q$70+0.5,+$Q$70) -> 0.5 | R69: =IF($R$71="1",+$R$70+0.5,+$R$70) -> 0.5 | S69: =IF($S$71="1",+$S$70+0.5,+$S$70) -> 0.5 | T69: =IF($T$71="1",+$T$70+0.5,+$T$70) -> 0.5 | U69: =IF($U$71="1",+$U$70+0.5,+$U$70) -> 0.5 | V69: =IF($V$71="1",+$V$70+0.5,+$V$70) -> 0.5 | W69: =IF($W$71="1",+$W$70+0.5,+$W$70) -> 0.5 | X69: =IF($X$71="1",+$X$70+0.5,+$X$70) -> 0.5 | Y69: =IF($Y$71="1",+$Y$70+0.5,+$Y$70) -> 0.5 | Z69: =IF($Z$71="1",+$Z$70+0.5,+$Z$70) -> 0.5 | AA69: =IF($AA$71="1",+$AA$70+0.5,+$AA$70) -> 11 | AB69: =IF($AB$71="1",+$AB$70+0.5,+$AB$70) -> 0.5
Q70: =IF(Q13>0,RANK(Q13,$Q$13:$Z$13,10),"0") -> 0 | R70: =IF(R13>0,RANK(R13,$Q$13:$Z$13,10),"0") -> 0 | S70: 0 | T70: 0 | U70: 0 | V70: 0 | W70: 0 | X70: 0 | Y70: 0 | Z70: 0 | AA70: =IF($AA$13>0,RANK($AA$13,$Q$13:$AA$13,10),"0") -> 11 | AB70: =IF($AB$13>0,RANK($AB$13,$Q$13:$W$13,10),"0") -> 0
Q71: =IF(COUNTIF($Q$13:$Z$13,Q13)>1,"1","") -> 1 | R71: =IF(COUNTIF($Q$13:$Z$13,R13)>1,"1","") -> 1 | S71: 1 | T71: 1 | U71: 1 | V71: 1 | W71: 1 | X71: 1 | Y71: 1 | Z71: 1 | AA71: =IF(COUNTIF($Q$13:$AA$13,$AA$13)>1,"1","") ->  | AB71: =IF(COUNTIF($Q$13:$W$13,$AB$13)>1,"1","") -> 1
Q73: 11. Antritt
Q74: =IF($Q$76="1",+$Q$75+0.5,+$Q$75) -> 0.5 | R74: =IF($R$76="1",+$R$75+0.5,+$R$75) -> 0.5 | S74: =IF($S$76="1",+$S$75+0.5,+$S$75) -> 0.5 | T74: =IF($T$76="1",+$T$75+0.5,+$T$75) -> 0.5 | U74: =IF($U$76="1",+$U$75+0.5,+$U$75) -> 0.5 | V74: =IF($V$76="1",+$V$75+0.5,+$V$75) -> 0.5 | W74: =IF($W$76="1",+$W$75+0.5,+$W$75) -> 0.5 | X74: =IF($X$76="1",+$X$75+0.5,+$X$75) -> 0.5 | Y74: =IF($Y$76="1",+$Y$75+0.5,+$Y$75) -> 0.5 | Z74: =IF($Z$76="1",+$Z$75+0.5,+$Z$75) -> 0.5 | AA74: =IF($AA$76="1",+$AA$75+0.5,+$AA$75) -> 11 | AB74: =IF($AB$76="1",+$AB$75+0.5,+$AB$75) -> 0.5 | AW74: H P A 1 | BB74: D A T 1 | BO74: H P A 1 | CA74: D A T 1
Q75: =IF(Q14>0,RANK(Q14,$Q$14:$Z$14,10),"0") -> 0 | R75: =IF(R14>0,RANK(R14,$Q$14:$Z$14,10),"0") -> 0 | S75: 0 | T75: 0 | U75: 0 | V75: 0 | W75: 0 | X75: 0 | Y75: 0 | Z75: 0 | AA75: =IF($AA$14>0,RANK($AA$14,$Q$14:$AA$14,10),"0") -> 11 | AB75: =IF($AB$14>0,RANK($AB$14,$Q$14:$W$14,10),"0") -> 0
Q76: =IF(COUNTIF($Q$14:$Z$14,Q14)>1,"1","") -> 1 | R76: =IF(COUNTIF($Q$14:$Z$14,R14)>1,"1","") -> 1 | S76: 1 | T76: 1 | U76: 1 | V76: 1 | W76: 1 | X76: 1 | Y76: 1 | Z76: 1 | AA76: =IF(COUNTIF($Q$14:$AA$14,$AA$14)>1,"1","") ->  | AB76: =IF(COUNTIF($Q$14:$W$14,$AB$14)>1,"1","") -> 1
Q78: 12. Antritt
Q79: =IF($Q$81="1",+$Q$80+0.5,+$Q$80) -> 0.5 | R79: =IF($R$81="1",+$R$80+0.5,+$R$80) -> 0.5 | S79: =IF($S$81="1",+$S$80+0.5,+$S$80) -> 0.5 | T79: =IF($T$81="1",+$T$80+0.5,+$T$80) -> 0.5 | U79: =IF($U$81="1",+$U$80+0.5,+$U$80) -> 0.5 | V79: =IF($V$81="1",+$V$80+0.5,+$V$80) -> 0.5 | W79: =IF($W$81="1",+$W$80+0.5,+$W$80) -> 0.5 | X79: =IF($X$81="1",+$X$80+0.5,+$X$80) -> 0.5 | Y79: =IF($Y$81="1",+$Y$80+0.5,+$Y$80) -> 0.5 | Z79: =IF($Z$81="1",+$Z$80+0.5,+$Z$80) -> 0.5 | AA79: =IF($AA$81="1",+$AA$80+0.5,+$AA$80) -> 11 | AB79: =IF($AB$81="1",+$AB$80+0.5,+$AB$80) -> 0.5
Q80: =IF(Q15>0,RANK(Q15,$Q$15:$Z$15,10),"0") -> 0 | R80: =IF(R15>0,RANK(R15,$Q$15:$Z$15,10),"0") -> 0 | S80: 0 | T80: 0 | U80: 0 | V80: 0 | W80: 0 | X80: 0 | Y80: 0 | Z80: 0 | AA80: =IF($AA$15>0,RANK($AA$15,$Q$15:$AA$15,10),"0") -> 11 | AB80: =IF($AB$15>0,RANK($AB$15,$Q$15:$W$15,10),"0") -> 0
Q81: =IF(COUNTIF($Q$15:$Z$15,Q15)>1,"1","") -> 1 | R81: =IF(COUNTIF($Q$15:$Z$15,R15)>1,"1","") -> 1 | S81: 1 | T81: 1 | U81: 1 | V81: 1 | W81: 1 | X81: 1 | Y81: 1 | Z81: 1 | AA81: =IF(COUNTIF($Q$15:$AA$15,$AA$15)>1,"1","") ->  | AB81: =IF(COUNTIF($Q$15:$W$15,$AB$15)>1,"1","") -> 1
AW82: K S 2 | BB82: P A N 1 | BO82: K S 2 | CA82: P A N 1
Q83: 13. Antritt
Q84: =IF($Q$86="1",+$Q$85+0.5,+$Q$85) -> 0.5 | R84: =IF($R$86="1",+$R$85+0.5,+$R$85) -> 0.5 | S84: =IF($S$86="1",+$S$85+0.5,+$S$85) -> 0.5 | T84: =IF($T$86="1",+$T$85+0.5,+$T$85) -> 0.5 | U84: =IF($U$86="1",+$U$85+0.5,+$U$85) -> 0.5 | V84: =IF($V$86="1",+$V$85+0.5,+$V$85) -> 0.5 | W84: =IF($W$86="1",+$W$85+0.5,+$W$85) -> 0.5 | X84: =IF($X$86="1",+$X$85+0.5,+$X$85) -> 0.5 | Y84: =IF($Y$86="1",+$Y$85+0.5,+$Y$85) -> 0.5 | Z84: =IF($Z$86="1",+$Z$85+0.5,+$Z$85) -> 0.5 | AA84: =IF($AA$86="1",+$AA$85+0.5,+$AA$85) -> 11 | AB84: =IF($AB$86="1",+$AB$85+0.5,+$AB$85) -> 0.5
Q85: =IF(Q16>0,RANK(Q16,$Q$16:$Z$16,10),"0") -> 0 | R85: =IF(R16>0,RANK(R16,$Q$16:$Z$16,10),"0") -> 0 | S85: 0 | T85: 0 | U85: 0 | V85: 0 | W85: 0 | X85: 0 | Y85: 0 | Z85: 0 | AA85: =IF($AA$16>0,RANK($AA$16,$Q$16:$AA$16,10),"0") -> 11 | AB85: =IF($AB$16>0,RANK($AB$16,$Q$16:$W$16,10),"0") -> 0
Q86: =IF(COUNTIF($Q$16:$Z$16,Q16)>1,"1","") -> 1 | R86: =IF(COUNTIF($Q$16:$Z$16,R16)>1,"1","") -> 1 | S86: 1 | T86: 1 | U86: 1 | V86: 1 | W86: 1 | X86: 1 | Y86: 1 | Z86: 1 | AA86: =IF(COUNTIF($Q$16:$AA$16,$AA$16)>1,"1","") ->  | AB86: =IF(COUNTIF($Q$16:$W$16,$AB$16)>1,"1","") -> 1
Q88: 14. Antritt
Q89: =IF($Q$91="1",+$Q$90+0.5,+$Q$90) -> 0.5 | R89: =IF($R$91="1",+$R$90+0.5,+$R$90) -> 0.5 | S89: =IF($S$91="1",+$S$90+0.5,+$S$90) -> 0.5 | T89: =IF($T$91="1",+$T$90+0.5,+$T$90) -> 0.5 | U89: =IF($U$91="1",+$U$90+0.5,+$U$90) -> 0.5 | V89: =IF($V$91="1",+$V$90+0.5,+$V$90) -> 0.5 | W89: =IF($W$91="1",+$W$90+0.5,+$W$90) -> 0.5 | X89: =IF($X$91="1",+$X$90+0.5,+$X$90) -> 0.5 | Y89: =IF($Y$91="1",+$Y$90+0.5,+$Y$90) -> 0.5 | Z89: =IF($Z$91="1",+$Z$90+0.5,+$Z$90) -> 0.5 | AA89: =IF($AA$91="1",+$AA$90+0.5,+$AA$90) -> 11 | AB89: =IF($AB$91="1",+$AB$90+0.5,+$AB$90) -> 0.5
Q90: =IF(Q17>0,RANK(Q17,$Q$17:$Z$17,10),"0") -> 0 | R90: =IF(R17>0,RANK(R17,$Q$17:$Z$17,10),"0") -> 0 | S90: 0 | T90: 0 | U90: 0 | V90: 0 | W90: 0 | X90: 0 | Y90: 0 | Z90: 0 | AA90: =IF($AA$17>0,RANK($AA$17,$Q$17:$AA$17,10),"0") -> 11 | AB90: =IF($AB$17>0,RANK($AB$17,$Q$17:$W$17,10),"0") -> 0
Q91: =IF(COUNTIF($Q$17:$Z$17,Q17)>1,"1","") -> 1 | R91: =IF(COUNTIF($Q$17:$Z$17,R17)>1,"1","") -> 1 | S91: 1 | T91: 1 | U91: 1 | V91: 1 | W91: 1 | X91: 1 | Y91: 1 | Z91: 1 | AA91: =IF(COUNTIF($Q$17:$AA$17,$AA$17)>1,"1","") ->  | AB91: =IF(COUNTIF($Q$17:$W$17,$AB$17)>1,"1","") -> 1

Sheet Hilfstabelle (hidden)
AP2: Anhang zum Spielbericht | AR2: Spielberichte drucken | AZ2: Für Spielereinteilung | BK2: Für Kalender | CH2: Anhang zum Spielbericht
A3: Spieler, bei neue Saison neue Formel bei Bahn | F3: Für Spielberichte | I3: Anhang zum Spielbericht | U3: Mitglieder | V3: Passnummer | AW3: =+'Spielbogen 10er'!J5 -> OT | AX3: =IF(AW3="OT","Othmarschen","Wandsbek") -> Othmarschen | AZ3: =+'Offizielle BSV-Rangliste'!F9 -> Annegret Schmidt | BA3: =+'Offizielle BSV-Rangliste'!I9 -> 137.5079365 | BB3: 1. | BC3: =+B5 -> 2025-09-09 | BD3: =+C5&" - ("&AW3&")" -> Othmarschen - (OT) | BF3: Jahr | BG3: Mannschaftsschnitt letzte Saison | BK3: 1. Antritt | BL3: =+AX3 -> Othmarschen | BO3: Turniere | BP3: Meldeschluss | BQ3: Termine | BS3: Anlage für Übersicht der Klasse | CH3: Datenüberprüfung | CI3: Klicken | CJ3: Datenmatrix | CK3: Spalte1
A4: Antritt | B4: Datum | C4: Bahn | D4: Jahr | F4: Datum | G4: Klasse | I4: Antritt | J4: Datum | K4: Bahn | L4: Ausrichter | O4: Strafgeldliste | R4: Spielereinteilung | U4: Annegret Schmidt | V4: 19222 | AR4: 1. Antritt | AU4: =+Mannschaftsübersicht!D8 -> Panasonic 1 | AV4: =+Mannschaftsübersicht!C8 -> 1. | AW4: =+'Spielbogen 10er'!J6 -> WB | AX4: =IF(AW4="OT","Othmarschen","Wandsbek") -> Wandsbek | AZ4: =+'Offizielle BSV-Rangliste'!F10 -> Ilona Wetzel | BA4: =+'Offizielle BSV-Rangliste'!I10 -> 153.755102 | BB4: 2. | BC4: =+B6 -> 2025-09-23 | BD4: =+C6&" - ("&AW4&")" -> Wandsbek - (WB) | BF4: 24/25 | BG4: Pins | BH4: Schnitt Mann. | BI4: Schnitt Einzel | BK4: =+BC3 -> 2025-09-09 | BL4: =+Spielereinteilung!B106 -> Jörg Frahm | BN4: Meldeschluss | BO4: ED = Eröffnungsdoppel | BP4: =+'Anmeldegruppen Turniere'!$AC$7 -> 2025-08-20 | BQ4: =+'Anmeldegruppen Turniere'!$AB$8 -> 13. / 14. 09. 2025 | BS4: =IF($K$5="Wandsbek","WB","OT") -> OT | BT4: =IF($K$6="Wandsbek","WB","OT") -> WB | BU4: =IF($K$7="Wandsbek","WB","OT") -> OT | BV4: =IF($K$8="Wandsbek","WB","OT") -> WB | BW4: =IF($K$9="Wandsbek","WB","OT") -> OT | BX4: =IF($K$10="Wandsbek","WB","OT") -> WB | BY4: =IF($K$11="Wandsbek","WB","OT") -> OT | BZ4: =IF($K$12="Wandsbek","WB","OT") -> WB | CA4: =IF($K$13="Wandsbek","WB","OT") -> OT | CB4: =IF($K$14="Wandsbek","WB","OT") -> WB | CC4: =IF($K$15="Wandsbek","WB","OT") -> OT | CD4: =IF($K$16="Wandsbek","WB","OT") -> WB | CE4: =IF($K$17="Wandsbek","WB","OT") -> OT | CF4: =IF($K$18="Wandsbek","WB","OT") -> WB | CH4: 10. Antritt | CI4: =HYPERLINK(VLOOKUP(CH4,Anhang_zum_Spielbericht_Datenmatrix,2,0),"Hier klicken") -> Hier klicken | CJ4: 1. Antritt | CK4: #='Anhang zum Spielbericht'!Anhang_zum_Spielbericht_1_Antritt
A5: 1. | B5: =+'Hilfstabelle Mannschaften'!C4 -> 2025-09-09 | C5: =+AX3 -> Othmarschen | D5: =+'Hilfstabelle Mannschaften'!I8 -> 2025/2026 | F5: =+B5 -> 2025-09-09 | G5: =+'Hilfstabelle Mannschaften'!I4 -> B2 | I5: 1 | J5: =+$B$5 -> 2025-09-09 | K5: =+C5 -> Othmarschen | L5: =+'Hilfstabelle Mannschaften'!E4 -> Eppendorf AG 1 | M5: =+'Spielbogen 10er'!G9 -> EAG 1 | O5: 1. Antritt | P5: =+J5 -> 2025-09-09 | R5: =+B5 -> 2025-09-09 | S5: =IF($K$5="Wandsbek","WB","OT") -> OT | U5: Deniz Hagelstein | V5: 24775 | X5: Anhang zum Spielbericht | AA5: =+L5 -> Eppendorf AG 1 | AB5: =+L6 -> Energie Sportvereinigung 2 | AC5: =+L7 -> AXA 1 | AD5: =+L8 -> ERGO Sports 3 | AE5: =+L9 -> Dataport 2 | AF5: =+L10 -> Panasonic 1 | AG5: =+L11 -> Generali 3 | AH5: =+L12 -> Finanzamt 3 | AI5: =+L13 -> HASPA 5 | AJ5: =+L14 -> BWVL 5 | AK5: =+L15 -> Eppendorf AG 1 | AP5: 2. Antritt | AR5: 2. Antritt | AU5: =+Mannschaftsübersicht!D9 -> AXA 1 | AV5: =+Mannschaftsübersicht!C9 -> 2. | AW5: =+'Spielbogen 10er'!J7 -> OT | AX5: Othmarschen | AZ5: =+'Offizielle BSV-Rangliste'!F16 -> Mario Jurk | BA5: =+'Offizielle BSV-Rangliste'!I16 -> 180.2777778 | BB5: 3. | BC5: =+B7 -> 2025-10-07 | BD5: Othmarschen - (OT) | BG5: 26254 | BH5: 1875 | BI5: 156.27 | BL5: =+Spielereinteilung!B107 -> Ilona Wetzel | BS5: =+$B$5 -> 2025-09-09 | BT5: =+$B$6 -> 2025-09-23 | BU5: =+$B$7 -> 2025-10-07 | BV5: =+$B$8 -> 2025-10-21 | BW5: =+$B$9 -> 2025-11-04 | BX5: =+$B$10 -> 2025-11-18 | BY5: =+$B$11 -> 2026-01-13 | BZ5: =+$B$12 -> 2026-01-27 | CA5: =+$B$13 -> 2026-02-10 | CB5: =+$B$14 -> 2026-02-24 | CC5: =+$B$15 -> 2026-03-10 | CD5: =+$B$16 -> 2026-03-24 | CE5: =+$B$17 -> 2026-04-07 | CF5: =+$B$18 -> 2026-04-21 | CJ5: 2. Antritt | CK5: #='Anhang zum Spielbericht'!Anhang_zum_Spielbericht_2_Antritt
A6: 2. | B6: =+'Hilfstabelle Mannschaften'!C5 -> 2025-09-23 | C6: Wandsbek | F6: =+B6 -> 2025-09-23 | I6: 2 | J6: =+$B$6 -> 2025-09-23 | K6: =+C6 -> Wandsbek | L6: =+'Hilfstabelle Mannschaften'!E5 -> Energie Sportvereinigung 2 | M6: =+'Spielbogen 10er'!G10 -> ESV 2 | O6: 2. Antritt | P6: =+J6 -> 2025-09-23 | R6: 2025-09-23 | S6: =IF($K$6="Wandsbek","WB","OT") -> WB | U6: Frank Nijholt | V6: 24774 | X6: =+P5 -> 2025-09-09 | Y6: 1 | AA6: =VLOOKUP(AA5,$AU$4:$AV$14,2,0) -> 6. | AB6: 10. | AC6: 2. | AD6: 9. | AE6: 3. | AF6: 1. | AG6: 7. | AH6: 8. | AI6: 4. | AJ6: 5. | AK6: 6. | AP6: 3. Antritt | AR6: 3. Antritt | AU6: =+Mannschaftsübersicht!D10 -> Dataport 2 | AV6: =+Mannschaftsübersicht!C10 -> 3. | AW6: =+'Spielbogen 10er'!J8 -> WB | AX6: Wandsbek | AZ6: =+'Offizielle BSV-Rangliste'!F17 -> Kai Roßberg | BA6: =+'Offizielle BSV-Rangliste'!I17 -> 179.4166667 | BB6: 4. | BC6: =+B8 -> 2025-10-21 | BD6: Wandsbek - (WB) | BL6: =+Spielereinteilung!B108 -> Michael Wetzel | BN6: Meldeschluss | BO6: HC = Hamburg Cup | BP6: =+'Anmeldegruppen Turniere'!$AC$11 -> 2025-09-03 | BQ6: =+'Anmeldegruppen Turniere'!$AB$11 -> 27. / 28. 09. 2025 | CJ6: 3. Antritt | CK6: #='Anhang zum Spielbericht'!Anhang_zum_Spielbericht_3_Antritt
A7: 3. | B7: =+'Hilfstabelle Mannschaften'!C6 -> 2025-10-07 | C7: Othmarschen | F7: 2025-10-07 | I7: 3 | J7: =+$B$7 -> 2025-10-07 | K7: Othmarschen | L7: =+'Hilfstabelle Mannschaften'!E6 -> AXA 1 | M7: =+'Spielbogen 10er'!G11 -> AXA 1 | O7: 3. Antritt | P7: 2025-10-07 | R7: 2025-10-07 | S7: =IF($K$7="Wandsbek","WB","OT") -> OT | U7: Ilona Wetzel | V7: 22115 | X7: 2025-09-23 | Y7: 2 | AP7: 4. Antritt | AR7: 4. Antritt | AU7: =+Mannschaftsübersicht!D11 -> HASPA 5 | AV7: =+Mannschaftsübersicht!C11 -> 4. | AW7: =+'Spielbogen 10er'!J9 -> OT | AX7: Othmarschen | AZ7: =+'Offizielle BSV-Rangliste'!F18 -> Michael Wetzel | BA7: =+'Offizielle BSV-Rangliste'!I18 -> 176.7857143 | BB7: 5. | BC7: =+B9 -> 2025-11-04 | BD7: Othmarschen - (OT) | BL7: =+Spielereinteilung!B109 -> Kai Roßberg | BQ7: =+'Anmeldegruppen Turniere'!$AB$12 -> 11. / 12. 10. 2025 | CJ7: 4. Antritt | CK7: #='Anhang zum Spielbericht'!Anhang_zum_Spielbericht_4_Antritt
A8: 4. | B8: =+'Hilfstabelle Mannschaften'!C7 -> 2025-10-21 | C8: Wandsbek | F8: 2025-10-21 | I8: 4 | J8: =+$B$8 -> 2025-10-21 | K8: Wandsbek | L8: =+'Hilfstabelle Mannschaften'!E7 -> ERGO Sports 3 | M8: =+'Spielbogen 10er'!G12 -> ERG 3 | O8: 4. Antritt | P8: 2025-10-21 | R8: 2025-10-21 | S8: =IF($K$8="Wandsbek","WB","OT") -> WB | U8: Jörg Frahm | V8: 19221 | X8: 2025-10-07 | Y8: 3 | AA8: Hilfstabelle Mannschaften: Q3 - AA3 | AP8: 5. Antritt | AR8: 5. Antritt | AU8: =+Mannschaftsübersicht!D12 -> BWVL 5 | AV8: =+Mannschaftsübersicht!C12 -> 5. | AW8: =+'Spielbogen 10er'!J10 -> WB | AX8: Wandsbek | AZ8: =+'Offizielle BSV-Rangliste'!F19 -> Jörg Frahm | BA8: =+'Offizielle BSV-Rangliste'!I19 -> 170.9677419 | BB8: 6. | BC8: =+B10 -> 2025-11-18 | BD8: Wandsbek - (WB) | BK8: 2. Antritt | BL8: =+AX4 -> Wandsbek | CJ8: 5. Antritt | CK8: #='Anhang zum Spielbericht'!Anhang_zum_Spielbericht_5_Antritt
A9: 5. | B9: =+'Hilfstabelle Mannschaften'!C8 -> 2025-11-04 | C9: Othmarschen | F9: 2025-11-04 | I9: 5 | J9: =+$B$9 -> 2025-11-04 | K9: Othmarschen | L9: =+'Hilfstabelle Mannschaften'!E8 -> Dataport 2 | M9: =+'Spielbogen 10er'!G13 -> DAT 2 | O9: 5. Antritt | P9: 2025-11-04 | R9: 2025-11-04 | S9: =IF($K$9="Wandsbek","WB","OT") -> OT | U9: Kai Roßberg | V9: 21889 | X9: 2025-10-21 | Y9: 4 | AA9: =+M5 -> EAG 1 | AB9: =+M6 -> ESV 2 | AC9: =+M7 -> AXA 1 | AD9: =+M8 -> ERG 3 | AE9: =+M9 -> DAT 2 | AF9: =+M10 -> PAN 1 | AG9: =+M11 -> GEN 3 | AH9: =+M12 -> FAH 3 | AI9: =+M13 -> HAS 5 | AJ9: =+M14 -> BWV 5 | AK9: =+M15 -> EAG 1 | AL9: =+M16 -> ESV 2 | AM9: =+M17 -> AXA 1 | AN9: =+M18 -> ERG 3 | AP9: 6. Antritt | AR9: 6. Antritt | AU9: =+Mannschaftsübersicht!D13 -> Eppendorf AG 1 | AV9: =+Mannschaftsübersicht!C13 -> 6. | AW9: =+'Spielbogen 10er'!J11 -> OT | AX9: Othmarschen | AZ9: =+'Offizielle BSV-Rangliste'!F20 -> Frank Nijholt | BA9: =+'Offizielle BSV-Rangliste'!I20 -> 136.7333333 | BB9: 7. | BC9: =+B11 -> 2026-01-13 | BD9: Othmarschen - (OT) | BK9: =+BC4 -> 2025-09-23 | BL9: =+Spielereinteilung!K106 -> Frank Nijholt | BN9: Meldeschluss | BO9: HM = Herbst-Mixed | BP9: =+'Anmeldegruppen Turniere'!$AC$14 -> 2025-10-22 | BQ9: =+'Anmeldegruppen Turniere'!$AB$14 -> 15. / 16. 11. 2025 | CJ9: 6. Antritt | CK9: #='Anhang zum Spielbericht'!Anhang_zum_Spielbericht_6_Antritt
A10: 6. | B10: =+'Hilfstabelle Mannschaften'!C9 -> 2025-11-18 | C10: Wandsbek | F10: 2025-11-18 | I10: 6 | J10: =+$B$10 -> 2025-11-18 | K10: Wandsbek | L10: =+'Hilfstabelle Mannschaften'!E9 -> Panasonic 1 | M10: =+'Spielbogen 10er'!G14 -> PAN 1 | O10: 6. Antritt | P10: 2025-11-18 | R10: 2025-11-18 | S10: =IF($K$10="Wandsbek","WB","OT") -> WB | U10: Mario Jurk | V10: 23302 | X10: 2025-11-04 | Y10: 5 | AP10: 7. Antritt | AR10: 7. Antritt | AU10: =+Mannschaftsübersicht!D14 -> Generali 3 | AV10: =+Mannschaftsübersicht!C14 -> 7. | AW10: =+'Spielbogen 10er'!J12 -> WB | AX10: Wandsbek | AZ10: =+'Offizielle BSV-Rangliste'!F21 -> Deniz Hagelstein | BA10: =+'Offizielle BSV-Rangliste'!I21 -> 134.1904762 | BB10: 8. | BC10: =+B12 -> 2026-01-27 | BD10: Wandsbek - (WB) | BL10: =+Spielereinteilung!K107 -> Annegret Schmidt | CJ10: 7. Antritt | CK10: #='Anhang zum Spielbericht'!Anhang_zum_Spielbericht_7_Antritt
A11: 7. | B11: =+'Hilfstabelle Mannschaften'!C10 -> 2026-01-13 | C11: Othmarschen | F11: 2026-01-13 | I11: 7 | J11: =+$B$11 -> 2026-01-13 | K11: Othmarschen | L11: =+'Hilfstabelle Mannschaften'!E10 -> Generali 3 | M11: =+'Spielbogen 10er'!G15 -> GEN 3 | O11: 7. Antritt | P11: 2026-01-13 | R11: 2026-01-13 | S11: =IF($K$11="Wandsbek","WB","OT") -> OT | U11: Matthias Nolte | V11: 20137 | X11: 2025-11-18 | Y11: 6 | AP11: 8. Antritt | AR11: 8. Antritt | AU11: =+Mannschaftsübersicht!D15 -> Finanzamt 3 | AV11: =+Mannschaftsübersicht!C15 -> 8. | AW11: =+'Spielbogen 10er'!J13 -> OT | AX11: Othmarschen | AZ11: =+'Offizielle BSV-Rangliste'!F22 -> Matthias Nolte | BA11: =+'Offizielle BSV-Rangliste'!I22 -> 133.3333333 | BB11: 9. | BC11: =+B13 -> 2026-02-10 | BD11: Othmarschen - (OT) | BL11: =+Spielereinteilung!K108 -> Jörg Frahm | BN11: Meldeschluss | BO11: WB = Weihnachts-Bowling | BP11: =+'Anmeldegruppen Turniere'!$AC$19 -> 2025-11-19 | BQ11: =+'Anmeldegruppen Turniere'!$AB$19 -> 13. / 14. 12. 2025 | CJ11: 8. Antritt | CK11: #='Anhang zum Spielbericht'!Anhang_zum_Spielbericht_8_Antritt
A12: 8. | B12: =+'Hilfstabelle Mannschaften'!C11 -> 2026-01-27 | C12: Wandsbek | F12: 2026-01-27 | I12: 8 | J12: =+$B$12 -> 2026-01-27 | K12: Wandsbek | L12: =+'Hilfstabelle Mannschaften'!E11 -> Finanzamt 3 | M12: =+'Spielbogen 10er'!G16 -> FAH 3 | O12: 8. Antritt | P12: 2026-01-27 | R12: 2026-01-27 | S12: =IF($K$12="Wandsbek","WB","OT") -> WB | U12: Michael Wetzel | V12: 22113 | X12: 2026-01-13 | Y12: 7 | AP12: 9. Antritt | AR12: 9. Antritt | AU12: =+Mannschaftsübersicht!D16 -> ERGO Sports 3 | AV12: =+Mannschaftsübersicht!C16 -> 9. | AW12: =+'Spielbogen 10er'!J14 -> WB | AX12: Wandsbek | BB12: 10. | BC12: =+B14 -> 2026-02-24 | BD12: Wandsbek - (WB) | BL12: =+Spielereinteilung!K109 -> Kai Roßberg | CJ12: 9. Antritt | CK12: #='Anhang zum Spielbericht'!Anhang_zum_Spielbericht_9_Antritt
A13: 9. | B13: =+'Hilfstabelle Mannschaften'!C12 -> 2026-02-10 | C13: Othmarschen | F13: 2026-02-10 | I13: 9 | J13: =+$B$13 -> 2026-02-10 | K13: Othmarschen | L13: =+'Hilfstabelle Mannschaften'!E12 -> HASPA 5 | M13: =+'Spielbogen 10er'!G17 -> HAS 5 | O13: 9. Antritt | P13: 2026-02-10 | R13: 2026-02-10 | S13: =IF($K$13="Wandsbek","WB","OT") -> OT | X13: 2026-01-27 | Y13: 8 | AP13: 10. Antritt | AR13: 10. Antritt | AU13: =+Mannschaftsübersicht!D17 -> Energie Sportvereinigung 2 | AV13: =+Mannschaftsübersicht!C17 -> 10. | AW13: =+'Spielbogen 10er'!J15 -> OT | AX13: Othmarschen | BB13: 11. | BC13: =+B15 -> 2026-03-10 | BD13: Othmarschen - (OT) | BK13: 3. Antritt | BL13: =+AX5 -> Othmarschen | BN13: Meldeschluss | BO13: EM = Einzelmeisterschaft | BP13: =+'Anmeldegruppen Turniere'!$AC$22 -> 24. Dezember 2025 | BQ13: =+'Anmeldegruppen Turniere'!$AB$22 -> 17. / 18. 01. 2026 | CJ13: 10. Antritt | CK13: #='Anhang zum Spielbericht'!Anhang_zum_Spielbericht_10_Antritt
A14: 10. | B14: =+'Hilfstabelle Mannschaften'!C13 -> 2026-02-24 | C14: Wandsbek | F14: 2026-02-24 | I14: 10 | J14: =+$B$14 -> 2026-02-24 | K14: Wandsbek | L14: =+'Hilfstabelle Mannschaften'!E13 -> BWVL 5 | M14: =+'Spielbogen 10er'!G18 -> BWV 5 | O14: 10. Antritt | P14: 2026-02-24 | R14: 2026-02-24 | S14: =IF($K$14="Wandsbek","WB","OT") -> WB | X14: 2026-02-10 | Y14: 9 | AP14: 11. Antritt | AR14: 11. Antritt | AU14: =+Mannschaftsübersicht!D18 -> Eppendorf AG 1 | AV14: =+Mannschaftsübersicht!C18 -> 11. | AW14: =+'Spielbogen 10er'!J16 -> WB | AX14: Wandsbek | BB14: 12. | BC14: =+B16 -> 2026-03-24 | BD14: Wandsbek - (WB) | BK14: =+BC5 -> 2025-10-07 | BL14: =+Spielereinteilung!T106 -> Matthias Nolte | CJ14: 11. Antritt | CK14: #='Anhang zum Spielbericht'!Anhang_zum_Spielbericht_11_Antritt
A15: 11. | B15: =+'Hilfstabelle Mannschaften'!C14 -> 2026-03-10 | C15: Othmarschen | F15: 2026-03-10 | I15: 11 | J15: =+$B$15 -> 2026-03-10 | K15: Othmarschen | L15: =+'Hilfstabelle Mannschaften'!E14 -> Eppendorf AG 1 | M15: =+M5 -> EAG 1 | O15: 11. Antritt | P15: 2026-03-10 | R15: 2026-03-10 | S15: =IF($K$15="Wandsbek","WB","OT") -> OT | X15: 2026-02-24 | Y15: 10 | AP15: 12. Antritt | AR15: 12. Antritt | AW15: =+'Spielbogen 10er'!J17 -> OT | AX15: Othmarschen | BB15: 13. | BC15: =+B17 -> 2026-04-07 | BD15: Othmarschen - (OT) | BL15: =+Spielereinteilung!T107 -> Ilona Wetzel | BN15: Meldeschluss | BO15: FM = Frühjahrs-Mixed | BP15: =+'Anmeldegruppen Turniere'!$AC$25 -> 2026-02-25 | BQ15: =+'Anmeldegruppen Turniere'!$AB$25 -> 21. / 22. 03. 2026 | CJ15: 12. Antritt | CK15: #='Anhang zum Spielbericht'!Anhang_zum_Spielbericht_12_Antritt
A16: 12. | B16: =+'Hilfstabelle Mannschaften'!C15 -> 2026-03-24 | C16: Wandsbek | F16: 2026-03-24 | I16: 12 | J16: =+$B$16 -> 2026-03-24 | K16: Wandsbek | L16: =+'Hilfstabelle Mannschaften'!E15 -> Energie Sportvereinigung 2 | M16: =+M6 -> ESV 2 | O16: 12. Antritt | P16: 2026-03-24 | R16: 2026-03-24 | S16: =IF($K$16="Wandsbek","WB","OT") -> WB | X16: 2026-03-10 | Y16: 11 | AP16: 13. Antritt | AR16: 13. Antritt | AW16: =+'Spielbogen 10er'!J18 -> WB | AX16: Wandsbek | BB16: 14. | BC16: =+B18 -> 2026-04-21 | BD16: Wandsbek - (WB) | BL16: =+Spielereinteilung!T108 -> Annegret Schmidt | CJ16: 13. Antritt | CK16: #='Anhang zum Spielbericht'!Anhang_zum_Spielbericht_13_Antritt
A17: 13. | B17: =+'Hilfstabelle Mannschaften'!C16 -> 2026-04-07 | C17: Othmarschen | F17: 2026-04-07 | I17: 13 | J17: =+$B$17 -> 2026-04-07 | K17: Othmarschen | L17: =+'Hilfstabelle Mannschaften'!E16 -> AXA 1 | M17: AXA 1 | O17: 13. Antritt | P17: 2026-04-07 | R17: 2026-04-07 | S17: =IF($K$17="Wandsbek","WB","OT") -> OT | X17: 2026-03-24 | Y17: 12 | AP17: 14. Antritt | AR17: 14. Antritt | BL17: =+Spielereinteilung!T109 -> Kai Roßberg | BN17: Meldeschluss | BO17: DM = Doppelmeisterschaft | BP17: =+'Anmeldegruppen Turniere'!$AC$30 -> 2026-04-01 | BQ17: =+'Anmeldegruppen Turniere'!$AB$30 -> 25. / 26. 04. 2026 | CJ17: 14. Antritt | CK17: #='Anhang zum Spielbericht'!Anhang_zum_Spielbericht_14_Antritt
A18: 14. | B18: =+'Hilfstabelle Mannschaften'!C17 -> 2026-04-21 | C18: Wandsbek | F18: 2026-04-21 | I18: 14 | J18: =+$B$18 -> 2026-04-21 | K18: Wandsbek | L18: =+'Hilfstabelle Mannschaften'!E17 -> ERGO Sports 3 | M18: ERG 3 | O18: 14. Antritt | P18: 2026-04-21 | R18: 2026-04-21 | S18: =IF($K$18="Wandsbek","WB","OT") -> WB | X18: 2026-04-07 | Y18: 13 | BK18: 4. Antritt | BL18: =+AX6 -> Wandsbek | BQ18: =+'Anmeldegruppen Turniere'!$AB$31 -> 09. / 10. 05. 2026
X19: 2026-04-21 | Y19: 14 | BK19: =+BC6 -> 2025-10-21 | BL19: =+Spielereinteilung!AC106 -> Frank Nijholt
BL20: =+Spielereinteilung!AC107 -> Deniz Hagelstein
BL21: =+Spielereinteilung!AC108 -> Michael Wetzel
BL22: =+Spielereinteilung!AC109 -> Mario Jurk
BK23: 5. Antritt | BL23: =+AX7 -> Othmarschen
BK24: =+BC7 -> 2025-11-04 | BL24: =+Spielereinteilung!AL106 -> Matthias Nolte
BL25: =+Spielereinteilung!AL107 -> Deniz Hagelstein
BL26: =+Spielereinteilung!AL108 -> Ilona Wetzel
BL27: =+Spielereinteilung!AL109 -> Kai Roßberg
BK28: 6. Antritt | BL28: =+AX8 -> Wandsbek
BK29: =+BC8 -> 2025-11-18 | BL29: =+Spielereinteilung!B115 -> Frank Nijholt
BL30: =+Spielereinteilung!B116 -> Ilona Wetzel
BL31: =+Spielereinteilung!B117 -> Michael Wetzel
BL32: =+Spielereinteilung!B118 -> Mario Jurk
BK33: 7. Antritt | BL33: =+AX9 -> Othmarschen
BK34: =+BC9 -> 2026-01-13 | BL34: =+Spielereinteilung!K115 -> Matthias Nolte
BL35: =+Spielereinteilung!K116 -> Frank Nijholt
BL36: =+Spielereinteilung!K117 -> Annegret Schmidt
BL37: =+Spielereinteilung!K118 -> Mario Jurk
BK38: 8. Antritt | BL38: =+AX10 -> Wandsbek
BK39: =+BC10 -> 2026-01-27 | BL39: =+Spielereinteilung!T115 -> Ilona Wetzel
BL40: =+Spielereinteilung!T116 -> Jörg Frahm
BL41: =+Spielereinteilung!T117 -> Kai Roßberg
BL42: =+Spielereinteilung!T118 -> Mario Jurk
BK43: 9. Antritt | BL43: =+AX11 -> Othmarschen
BK44: =+BC11 -> 2026-02-10 | BL44: =+Spielereinteilung!AC115 -> Annegret Schmidt
BL45: =+Spielereinteilung!AC116 -> Ilona Wetzel
BL46: =+Spielereinteilung!AC117 -> Jörg Frahm
BL47: =+Spielereinteilung!AC118 -> Michael Wetzel
BK48: 10. Antritt | BL48: =+AX12 -> Wandsbek
BK49: =+BC12 -> 2026-02-24 | BL49: =+Spielereinteilung!AL115 -> Frank Nijholt
BL50: =+Spielereinteilung!AL116 -> Annegret Schmidt
BL51: =+Spielereinteilung!AL117 -> Deniz Hagelstein
BL52: =+Spielereinteilung!AL118 -> Michael Wetzel
BK53: 11. Antritt- | BL53: =+AX13 -> Othmarschen
BK54: =+BC13 -> 2026-03-10 | BL54: =+Spielereinteilung!B124 -> Matthias Nolte
BL55: =+Spielereinteilung!B125 -> Deniz Hagelstein
BL56: =+Spielereinteilung!B126 -> Frank Nijholt
BL57: =+Spielereinteilung!B127 -> Mario Jurk
BK58: 12. Antritt- | BL58: =+AX14 -> Wandsbek
BK59: =+BC14 -> 2026-03-24 | BL59: =+Spielereinteilung!K124 -> Deniz Hagelstein
BL60: =+Spielereinteilung!K125 -> Annegret Schmidt
BL61: =+Spielereinteilung!K126 -> Kai Roßberg
BL62: =+Spielereinteilung!K127 -> Mario Jurk
BK63: 13. Antritt- | BL63: =+AX15 -> Othmarschen
BK64: =+BC15 -> 2026-04-07 | BL64: =+Spielereinteilung!T124 -> Matthias Nolte
BL65: =+Spielereinteilung!T125 -> Jörg Frahm
BL66: =+Spielereinteilung!T126 -> Michael Wetzel
BL67: =+Spielereinteilung!T127 -> Mario Jurk
BK68: 14. Antritt- | BL68: =+AX16 -> Wandsbek
BK69: =+BC16 -> 2026-04-21 | BL69: =+Spielereinteilung!AC124 -> Deniz Hagelstein
BL70: =+Spielereinteilung!AC125 -> Ilona Wetzel
BL71: =+Spielereinteilung!AC126 -> Jörg Frahm
BL72: =+Spielereinteilung!AC127 -> Michael Wetzel

Sheet Anhang zum Spielbericht
A1: Start | EO1: Start | FE1: Start | FU1: Start | GK1: Start | HA1: Start
A2: Rangliste | EO2: Rangliste | FE2: Rangliste | FU2: Rangliste | GK2: Rangliste | HA2: Rangliste
E4: Anhang zum Spielbericht B O W L I N G
Q5: Punktspielserie
E6: alle Felder sind unbedingt auszufüllen und mit dem Original-Spielbericht einzusenden.
G8: Klasse: | H8: =+Hilfstabelle!$G$5 -> B2 | J8: Antritt-Nr. : | K8: 1 | L8: Datum : | M8: =VLOOKUP(K8,Hilfstabelle!$I$5:$J$18,2,0) -> 2025-09-09 | N8: Halle : | O8: =VLOOKUP(K8,Hilfstabelle!$I$5:$L$18,3,0) -> Othmarschen
G10: Ausrichter BSG: | I10: =+VLOOKUP(K8,Hilfstabelle!$I$5:$L$18,4,0)&"" -> Eppendorf AG 1 | L10: Mannschaftsführer: Michael Wetzel - Telefon: 0172/412 45 69
G11: Bahn: | H11: Bahn: | I11: Bahn: | J11: Bahn: | K11: Bahn: | L11: Bahn: | M11: Bahn: | N11: Bahn: | O11: Bahn: | P11: Bahn: | Q11: Bahn:
E12: Durch- gänge | G12: BSG | H12: BSG | I12: BSG | J12: BSG | K12: BSG | L12: BSG | M12: BSG | N12: BSG | O12: BSG | P12: BSG | Q12: BSG
G13: =VLOOKUP(G14,Hilfstabelle!$L$5:$M$16,2,0) -> EAG 1 | H13: =VLOOKUP(H14,Hilfstabelle!$L$5:$M$16,2,0) -> ESV 2 | I13: =VLOOKUP(I14,Hilfstabelle!$L$5:$M$16,2,0) -> AXA 1 | J13: =VLOOKUP(J14,Hilfstabelle!$L$5:$M$16,2,0) -> ERG 3 | K13: =VLOOKUP(K14,Hilfstabelle!$L$5:$M$16,2,0) -> DAT 2 | L13: =VLOOKUP(L14,Hilfstabelle!$L$5:$M$16,2,0) -> PAN 1 | M13: =VLOOKUP(M14,Hilfstabelle!$L$5:$M$16,2,0) -> GEN 3 | N13: =VLOOKUP(N14,Hilfstabelle!$L$5:$M$16,2,0) -> FAH 3 | O13: =VLOOKUP(O14,Hilfstabelle!$L$5:$M$16,2,0) -> HAS 5 | P13: =VLOOKUP(P14,Hilfstabelle!$L$5:$M$16,2,0) -> BWV 5 | Q13: =VLOOKUP(Q14,Hilfstabelle!$L$5:$M$16,2,0) -> EAG 1
G14: =+Hilfstabelle!$L$5 -> Eppendorf AG 1 | H14: =+Hilfstabelle!$L$6 -> Energie Sportvereinigung 2 | I14: =+Hilfstabelle!$L$7 -> AXA 1 | J14: =+Hilfstabelle!$L$8 -> ERGO Sports 3 | K14: =+Hilfstabelle!$L$9 -> Dataport 2 | L14: =+Hilfstabelle!$L$10 -> Panasonic 1 | M14: =+Hilfstabelle!$L$11 -> Generali 3 | N14: =+Hilfstabelle!$L$12 -> Finanzamt 3 | O14: =+Hilfstabelle!$L$13 -> HASPA 5 | P14: =+Hilfstabelle!$L$14 -> BWVL 5 | Q14: =+Hilfstabelle!$L$15 -> Eppendorf AG 1
E15: 1 | G15: 621 | H15: 539 | I15: 464 | J15: 514 | K15: 619 | L15: 633 | M15: 587 | N15: 717 | O15: 593 | P15: 629
E16: 2 | G16: 583 | H16: 463 | I16: 585 | J16: 543 | K16: 595 | L16: 582 | M16: 573 | N16: 644 | O16: 624 | P16: 601
E17: 1 + 2 | G17: =+G16+G15 -> 1204 | H17: 1002 | I17: 1049 | J17: 1057 | K17: 1214 | L17: 1215 | M17: 1160 | N17: 1361 | O17: 1217 | P17: 1230 | Q17: =+Q16+Q15 -> 0
E18: 3 | G18: 682 | H18: 510 | I18: 550 | J18: 490 | K18: 603 | L18: 706 | M18: 574 | N18: 590 | O18: 539 | P18: 597
E19: Pins Gesamt | G19: =+G18+G17 -> 1886 | H19: 1512 | I19: 1599 | J19: 1547 | K19: 1817 | L19: 1921 | M19: 1734 | N19: 1951 | O19: 1756 | P19: 1827 | Q19: 0
E20: Punkte Antritt | G20: =IF(G23="1",+G22+0.5,+G22) -> 8 | H20: 1 | I20: 3 | J20: 2 | K20: 6 | L20: 9 | M20: 4 | N20: 10 | O20: 5 | P20: 7 | Q20: 0
G22: =IF(G15>0,RANK(G19,$G$19:$P$19,10),"0") -> 8 | H22: =IF(H15>0,RANK(H19,$G$19:$P$19,10),"0") -> 1 | I22: 3 | J22: 2 | K22: 6 | L22: 9 | M22: 4 | N22: 10 | O22: 5 | P22: 7 | Q22: =IF(Q15>0,RANK(Q19,$G$19:$P$19,10),"0") -> 0
G23: =IF(COUNTIF($G$22:$P$22,G22)>1,"1","") -> 
E24: Anhang zum Spielbericht B O W L I N G | U24: =+#REF!/2 ->  | V24: =+#REF!/2 ->  | X24: =+#REF!/2 ->  | Y24: =+#REF!/2 ->  | Z24: =+#REF!/2 ->  | AA24: =+#REF!/2 ->  | AB24: =+#REF!/2 ->  | AC24: =+#REF!/2 ->  | AD24: =+#REF!/2 -> 
Q25: Punktspielserie
E26: alle Felder sind unbedingt auszufüllen und mit dem Original-Spielbericht einzusenden.
G28: Klasse: | H28: =+Hilfstabelle!$G$5 -> B2 | J28: Antritt-Nr. : | K28: 2 | L28: Datum : | M28: =VLOOKUP(K28,Hilfstabelle!$I$5:$J$18,2,0) -> 2025-09-23 | N28: Halle : | O28: =VLOOKUP(K28,Hilfstabelle!$I$5:$L$18,3,0) -> Wandsbek
G30: Ausrichter BSG: | I30: =+VLOOKUP(K28,Hilfstabelle!$I$5:$L$18,4,0)&"" -> Energie Sportvereinigung 2 | L30: Mannschaftsführer: Michael Wetzel - Telefon: 0172/412 45 69
G31: Bahn: | H31: Bahn: | I31: Bahn: | J31: Bahn: | K31: Bahn: | L31: Bahn: | M31: Bahn: | N31: Bahn: | O31: Bahn: | P31: Bahn: | Q31: Bahn:
E32: Durch- gänge | G32: BSG | H32: BSG | I32: BSG | J32: BSG | K32: BSG | L32: BSG | M32: BSG | N32: BSG | O32: BSG | P32: BSG | Q32: BSG
G33: =VLOOKUP(G34,Hilfstabelle!$L$5:$M$16,2,0) -> EAG 1 | H33: =VLOOKUP(H34,Hilfstabelle!$L$5:$M$16,2,0) -> ESV 2 | I33: =VLOOKUP(I34,Hilfstabelle!$L$5:$M$16,2,0) -> AXA 1 | J33: =VLOOKUP(J34,Hilfstabelle!$L$5:$M$16,2,0) -> ERG 3 | K33: =VLOOKUP(K34,Hilfstabelle!$L$5:$M$16,2,0) -> DAT 2 | L33: =VLOOKUP(L34,Hilfstabelle!$L$5:$M$16,2,0) -> PAN 1 | M33: =VLOOKUP(M34,Hilfstabelle!$L$5:$M$16,2,0) -> GEN 3 | N33: =VLOOKUP(N34,Hilfstabelle!$L$5:$M$16,2,0) -> FAH 3 | O33: =VLOOKUP(O34,Hilfstabelle!$L$5:$M$16,2,0) -> HAS 5 | P33: =VLOOKUP(P34,Hilfstabelle!$L$5:$M$16,2,0) -> BWV 5 | Q33: =VLOOKUP(Q34,Hilfstabelle!$L$5:$M$16,2,0) -> EAG 1
G34: =+Hilfstabelle!$L$5 -> Eppendorf AG 1 | H34: =+Hilfstabelle!$L$6 -> Energie Sportvereinigung 2 | I34: =+Hilfstabelle!$L$7 -> AXA 1 | J34: =+Hilfstabelle!$L$8 -> ERGO Sports 3 | K34: =+Hilfstabelle!$L$9 -> Dataport 2 | L34: =+Hilfstabelle!$L$10 -> Panasonic 1 | M34: =+Hilfstabelle!$L$11 -> Generali 3 | N34: =+Hilfstabelle!$L$12 -> Finanzamt 3 | O34: =+Hilfstabelle!$L$13 -> HASPA 5 | P34: =+Hilfstabelle!$L$14 -> BWVL 5 | Q34: =+Hilfstabelle!$L$15 -> Eppendorf AG 1
E35: Platz | G35: =HLOOKUP(G34,Hilfstabelle!$AA$5:$AK$6,2,0) -> 6. | H35: =HLOOKUP(H34,Hilfstabelle!$AA$5:$AK$6,2,0) -> 10. | I35: =HLOOKUP(I34,Hilfstabelle!$AA$5:$AK$6,2,0) -> 2. | J35: =HLOOKUP(J34,Hilfstabelle!$AA$5:$AK$6,2,0) -> 9. | K35: =HLOOKUP(K34,Hilfstabelle!$AA$5:$AK$6,2,0) -> 3. | L35: =HLOOKUP(L34,Hilfstabelle!$AA$5:$AK$6,2,0) -> 1. | M35: =HLOOKUP(M34,Hilfstabelle!$AA$5:$AK$6,2,0) -> 7. | N35: =HLOOKUP(N34,Hilfstabelle!$AA$5:$AK$6,2,0) -> 8. | O35: =HLOOKUP(O34,Hilfstabelle!$AA$5:$AK$6,2,0) -> 4. | P35: =HLOOKUP(P34,Hilfstabelle!$AA$5:$AK$6,2,0) -> 5. | Q35: =HLOOKUP(Q34,Hilfstabelle!$AA$5:$AK$6,2,0) -> 6.
E36: 1 | G36: 566 | H36: 568 | I36: 679 | J36: 552 | K36: 666 | L36: 614 | M36: 531 | N36: 517 | O36: 666 | P36: 568
E37: 2 | G37: 573 | H37: 515 | I37: 682 | J37: 505 | K37: 689 | L37: 694 | M37: 567 | N37: 513 | O37: 575 | P37: 676
E38: 1 + 2 | G38: =+G37+G36 -> 1139 | H38: 1083 | I38: 1361 | J38: 1057 | K38: 1355 | L38: 1308 | M38: 1098 | N38: 1030 | O38: 1241 | P38: 1244 | Q38: =+Q37+Q36 -> 0
E39: 3 | G39: 605 | H39: 604 | I39: 683 | J39: 529 | K39: 612 | L39: 647 | M39: 548 | N39: 408 | O39: 613 | P39: 591
E40: Pins Gesamt | G40: =+G39+G38 -> 1744 | H40: 1687 | I40: 2044 | J40: 1586 | K40: 1967 | L40: 1955 | M40: 1646 | N40: 1438 | O40: 1854 | P40: 1835 | Q40: 0
E41: Punkte Antritt | G41: =IF(G46="1",+G45+0.5,+G45) -> 5 | H41: =IF(H46="1",+H45+0.5,+H45) -> 4 | I41: 10 | J41: 2 | K41: 9 | L41: 8 | M41: 3 | N41: 1 | O41: 7 | P41: 6 | Q41: 0
E42: Punkte A L T | G42: =+G20 -> 8 | H42: 1 | I42: 3 | J42: 2 | K42: 6 | L42: 9 | M42: 4 | N42: 10 | O42: 5 | P42: 7 | Q42: 0
E43: Punkte N E U | G43: =IF(G36>0,+G42+G41," ") -> 13 | H43: =IF(H36>0,+H42+H41," ") -> 5 | I43: 13 | J43: 4 | K43: 15 | L43: 17 | M43: 7 | N43: 11 | O43: 12 | P43: 13
E44: Gesamt Pins | G44: =+G40+G19 -> 3630 | H44: 3199 | I44: 3643 | J44: 3133 | K44: 3784 | L44: 3876 | M44: 3380 | N44: 3389 | O44: 3610 | P44: 3662 | Q44: 0
G45: =IF(G36>0,RANK(G40,$G$40:$P$40,10),"0") -> 5 | H45: =IF(H36>0,RANK(H40,$G$40:$P$40,10),"0") -> 4 | I45: 10 | J45: 2 | K45: 9 | L45: 8 | M45: 3 | N45: 1 | O45: 7 | P45: 6 | Q45: =IF(Q36>0,RANK(Q40,$G$40:$P$40,10),"0") -> 0 | R45: =IF(R36>0,RANK(R40,$G$40:$S$40,10),"0") -> 0 | S45: 0
G46: =IF(COUNTIF($G$45:$P$45,G45)>1,"1","") ->  | H46: =IF(COUNTIF($G$45:$P$45,H45)>1,"1","") ->  | Q46: =IF(COUNTIF($G$45:$P$45,Q45)>1,"1","") ->  | R46: =IF(COUNTIF($G$45:$S$45,R45)>1,"1","") -> 1 | S46: 1
E47: Anhang zum Spielbericht B O W L I N G
Q48: Punktspielserie
E49: alle Felder sind unbedingt auszufüllen und mit dem Original-Spielbericht einzusenden.
G51: Klasse: | H51: =+Hilfstabelle!$G$5 -> B2 | J51: Antritt-Nr. : | K51: 3 | L51: Datum : | M51: =VLOOKUP(K51,Hilfstabelle!$I$5:$J$18,2,0) -> 2025-10-07 | N51: Halle : | O51: =VLOOKUP(K51,Hilfstabelle!$I$5:$L$18,3,0) -> Othmarschen
G53: Ausrichter BSG: | I53: =+VLOOKUP(K51,Hilfstabelle!$I$5:$L$18,4,0)&"" -> AXA 1 | L53: Mannschaftsführer: Michael Wetzel - Telefon: 0172/412 45 69
G54: Bahn: 4 | H54: Bahn: 11 | I54: Bahn: 3 | J54: Bahn: 12 | K54: Bahn: 6 | L54: Bahn: 9 | M54: Bahn: 5 | N54: Bahn: 8 | O54: Bahn: 10 | P54: Bahn: 7 | Q54: Bahn:
E55: Durch- gänge | G55: BSG | H55: BSG | I55: BSG | J55: BSG | K55: BSG | L55: BSG | M55: BSG | N55: BSG | O55: BSG | P55: BSG | Q55: BSG
G56: =VLOOKUP(G57,Hilfstabelle!$L$5:$M$16,2,0) -> EAG 1 | H56: =VLOOKUP(H57,Hilfstabelle!$L$5:$M$16,2,0) -> ESV 2 | I56: =VLOOKUP(I57,Hilfstabelle!$L$5:$M$16,2,0) -> AXA 1 | J56: =VLOOKUP(J57,Hilfstabelle!$L$5:$M$16,2,0) -> ERG 3 | K56: =VLOOKUP(K57,Hilfstabelle!$L$5:$M$16,2,0) -> DAT 2 | L56: =VLOOKUP(L57,Hilfstabelle!$L$5:$M$16,2,0) -> PAN 1 | M56: =VLOOKUP(M57,Hilfstabelle!$L$5:$M$16,2,0) -> GEN 3 | N56: =VLOOKUP(N57,Hilfstabelle!$L$5:$M$16,2,0) -> FAH 3 | O56: =VLOOKUP(O57,Hilfstabelle!$L$5:$M$16,2,0) -> HAS 5 | P56: =VLOOKUP(P57,Hilfstabelle!$L$5:$M$16,2,0) -> BWV 5 | Q56: =VLOOKUP(Q57,Hilfstabelle!$L$5:$M$16,2,0) -> EAG 1
G57: =+Hilfstabelle!$L$5 -> Eppendorf AG 1 | H57: =+Hilfstabelle!$L$6 -> Energie Sportvereinigung 2 | I57: =+Hilfstabelle!$L$7 -> AXA 1 | J57: =+Hilfstabelle!$L$8 -> ERGO Sports 3 | K57: =+Hilfstabelle!$L$9 -> Dataport 2 | L57: =+Hilfstabelle!$L$10 -> Panasonic 1 | M57: =+Hilfstabelle!$L$11 -> Generali 3 | N57: =+Hilfstabelle!$L$12 -> Finanzamt 3 | O57: =+Hilfstabelle!$L$13 -> HASPA 5 | P57: =+Hilfstabelle!$L$14 -> BWVL 5 | Q57: =+Hilfstabelle!$L$15 -> Eppendorf AG 1
E58: Platz | G58: =HLOOKUP(G57,Hilfstabelle!$AA$5:$AK$6,2,0) -> 6. | H58: =HLOOKUP(H57,Hilfstabelle!$AA$5:$AK$6,2,0) -> 10. | I58: =HLOOKUP(I57,Hilfstabelle!$AA$5:$AK$6,2,0) -> 2. | J58: =HLOOKUP(J57,Hilfstabelle!$AA$5:$AK$6,2,0) -> 9. | K58: =HLOOKUP(K57,Hilfstabelle!$AA$5:$AK$6,2,0) -> 3. | L58: =HLOOKUP(L57,Hilfstabelle!$AA$5:$AK$6,2,0) -> 1. | M58: =HLOOKUP(M57,Hilfstabelle!$AA$5:$AK$6,2,0) -> 7. | N58: =HLOOKUP(N57,Hilfstabelle!$AA$5:$AK$6,2,0) -> 8. | O58: =HLOOKUP(O57,Hilfstabelle!$AA$5:$AK$6,2,0) -> 4. | P58: =HLOOKUP(P57,Hilfstabelle!$AA$5:$AK$6,2,0) -> 5. | Q58: =HLOOKUP(Q57,Hilfstabelle!$AA$5:$AK$6,2,0) -> 6.
E59: 1 | G59: 587 | H59: 454 | I59: 621 | J59: 543 | K59: 561 | L59: 610 | M59: 622 | N59: 531 | O59: 624 | P59: 605
E60: 2 | G60: 522 | H60: 546 | I60: 651 | J60: 573 | K60: 523 | L60: 608 | M60: 590 | N60: 484 | O60: 704 | P60: 600
E61: 1 + 2 | G61: =+G60+G59 -> 1109 | H61: 1000 | I61: 1272 | J61: 1116 | K61: 1084 | L61: 1218 | M61: 1212 | N61: 1015 | O61: 1328 | P61: 1205 | Q61: =+Q60+Q59 -> 0
E62: 3 | G62: 447 | H62: 438 | I62: 593 | J62: 580 | K62: 577 | L62: 629 | M62: 546 | N62: 573 | O62: 600 | P62: 541 | Q62: 541
E63: Pins Gesamt | G63: =+G62+G61 -> 1556 | H63: 1438 | I63: 1865 | J63: 1696 | K63: 1661 | L63: 1847 | M63: 1758 | N63: 1588 | O63: 1928 | P63: 1746 | Q63: 541
E64: Punkte Antritt | G64: =IF(G69="1",+G68+0.5,+G68) -> 2 | H64: =IF(H69="1",+H68+0.5,+H68) -> 1 | I64: 9 | J64: 5 | K64: 4 | L64: 8 | M64: 7 | N64: 3 | O64: 10 | P64: 6 | Q64: 0
E65: Punkte A L T | G65: =+G43 -> 13 | H65: 5 | I65: 13 | J65: 4 | K65: 15 | L65: 17 | M65: 7 | N65: 11 | O65: 12 | P65: 13
E66: Punkte N E U | G66: =IF(G59>0,+G65+G64," ") -> 15 | H66: 6 | I66: 22 | J66: 9 | K66: 19 | L66: 25 | M66: 14 | N66: 14 | O66: 22 | P66: 19
E67: Gesamt Pins | G67: =+G63+G44 -> 5186 | H67: 4637 | I67: 5508 | J67: 4829 | K67: 5445 | L67: 5723 | M67: 5138 | N67: 4977 | O67: 5538 | P67: 5408 | Q67: 541
G68: =IF(G59>0,RANK(G63,$G$63:$P$63,10),"0") -> 2 | H68: =IF(H59>0,RANK(H63,$G$63:$P$63,10),"0") -> 1 | I68: 9 | J68: 5 | K68: 4 | L68: 8 | M68: 7 | N68: 3 | O68: 10 | P68: 6 | Q68: =IF(Q59>0,RANK(Q63,$G$63:$P$63,10),"0") -> 0
G69: =IF(COUNTIF($G$68:$P$68,G68)>1,"1","") ->  | H69: =IF(COUNTIF($G$68:$P$68,H68)>1,"1","") ->  | Q69: =IF(COUNTIF($G$68:$P$68,Q68)>1,"1","") -> 
G70: =IF(COUNTIF($F$20:$M$20,G68)>1,"1","") -> 
E71: Anhang zum Spielbericht B O W L I N G
Q72: Punktspielserie
E73: alle Felder sind unbedingt auszufüllen und mit dem Original-Spielbericht einzusenden.
G75: Klasse: | H75: =+Hilfstabelle!$G$5 -> B2 | J75: Antritt-Nr. : | K75: 4 | L75: Datum : | M75: =VLOOKUP(K75,Hilfstabelle!$I$5:$J$18,2,0) -> 2025-10-21 | N75: Halle : | O75: =VLOOKUP(K75,Hilfstabelle!$I$5:$L$18,3,0) -> Wandsbek
G77: Ausrichter BSG: | I77: =+VLOOKUP(K75,Hilfstabelle!$I$5:$L$18,4,0)&"" -> ERGO Sports 3 | L77: Mannschaftsführer: Michael Wetzel - Telefon: 0172/412 45 69
G78: Bahn: | H78: Bahn: | I78: Bahn: | J78: Bahn: | K78: Bahn: | L78: Bahn: | M78: Bahn: | N78: Bahn: | O78: Bahn: | P78: Bahn: | Q78: Bahn:
E79: Durch- gänge | G79: BSG | H79: BSG | I79: BSG | J79: BSG | K79: BSG | L79: BSG | M79: BSG | N79: BSG | O79: BSG | P79: BSG | Q79: BSG
G80: =VLOOKUP(G81,Hilfstabelle!$L$5:$M$16,2,0) -> EAG 1 | H80: =VLOOKUP(H81,Hilfstabelle!$L$5:$M$16,2,0) -> ESV 2 | I80: =VLOOKUP(I81,Hilfstabelle!$L$5:$M$16,2,0) -> AXA 1 | J80: =VLOOKUP(J81,Hilfstabelle!$L$5:$M$16,2,0) -> ERG 3 | K80: =VLOOKUP(K81,Hilfstabelle!$L$5:$M$16,2,0) -> DAT 2 | L80: =VLOOKUP(L81,Hilfstabelle!$L$5:$M$16,2,0) -> PAN 1 | M80: =VLOOKUP(M81,Hilfstabelle!$L$5:$M$16,2,0) -> GEN 3 | N80: =VLOOKUP(N81,Hilfstabelle!$L$5:$M$16,2,0) -> FAH 3 | O80: =VLOOKUP(O81,Hilfstabelle!$L$5:$M$16,2,0) -> HAS 5 | P80: =VLOOKUP(P81,Hilfstabelle!$L$5:$M$16,2,0) -> BWV 5 | Q80: =VLOOKUP(Q81,Hilfstabelle!$L$5:$M$16,2,0) -> EAG 1
G81: =+Hilfstabelle!$L$5 -> Eppendorf AG 1 | H81: =+Hilfstabelle!$L$6 -> Energie Sportvereinigung 2 | I81: =+Hilfstabelle!$L$7 -> AXA 1 | J81: =+Hilfstabelle!$L$8 -> ERGO Sports 3 | K81: =+Hilfstabelle!$L$9 -> Dataport 2 | L81: =+Hilfstabelle!$L$10 -> Panasonic 1 | M81: =+Hilfstabelle!$L$11 -> Generali 3 | N81: =+Hilfstabelle!$L$12 -> Finanzamt 3 | O81: =+Hilfstabelle!$L$13 -> HASPA 5 | P81: =+Hilfstabelle!$L$14 -> BWVL 5 | Q81: =+Hilfstabelle!$L$15 -> Eppendorf AG 1
E82: Platz | G82: =HLOOKUP(G81,Hilfstabelle!$AA$5:$AK$6,2,0) -> 6. | H82: =HLOOKUP(H81,Hilfstabelle!$AA$5:$AK$6,2,0) -> 10. | I82: =HLOOKUP(I81,Hilfstabelle!$AA$5:$AK$6,2,0) -> 2. | J82: =HLOOKUP(J81,Hilfstabelle!$AA$5:$AK$6,2,0) -> 9. | K82: =HLOOKUP(K81,Hilfstabelle!$AA$5:$AK$6,2,0) -> 3. | L82: =HLOOKUP(L81,Hilfstabelle!$AA$5:$AK$6,2,0) -> 1. | M82: =HLOOKUP(M81,Hilfstabelle!$AA$5:$AK$6,2,0) -> 7. | N82: =HLOOKUP(N81,Hilfstabelle!$AA$5:$AK$6,2,0) -> 8. | O82: =HLOOKUP(O81,Hilfstabelle!$AA$5:$AK$6,2,0) -> 4. | P82: =HLOOKUP(P81,Hilfstabelle!$AA$5:$AK$6,2,0) -> 5. | Q82: =HLOOKUP(Q81,Hilfstabelle!$AA$5:$AK$6,2,0) -> 6. | S82: =MIN(G82:M82) -> 0
E83: 1 | G83: 720 | H83: 595 | I83: 707 | J83: 524 | K83: 633 | L83: 716 | M83: 618 | N83: 618 | O83: 566 | P83: 674
E84: 2 | G84: 668 | H84: 469 | I84: 699 | J84: 595 | K84: 711 | L84: 636 | M84: 624 | N84: 514 | O84: 601 | P84: 673
E85: 1 + 2 | G85: =+G84+G83 -> 1388 | H85: 1064 | I85: 1406 | J85: 1119 | K85: 1344 | L85: 1352 | M85: 1242 | N85: 1132 | O85: 1167 | P85: 1347 | Q85: =+Q84+Q83 -> 0
E86: 3 | G86: 618 | H86: 505 | I86: 628 | J86: 537 | K86: 661 | L86: 680 | M86: 603 | N86: 539 | O86: 625 | P86: 677
E87: Pins Gesamt | G87: =+G86+G85 -> 2006 | H87: 1569 | I87: 2034 | J87: 1656 | K87: 2005 | L87: 2032 | M87: 1845 | N87: 1671 | O87: 1792 | P87: 2024 | Q87: 0
E88: Punkte Antritt | G88: =IF(G93="1",+G92+0.5,+G92) -> 7 | H88: =IF(H93="1",+H92+0.5,+H92) -> 1 | I88: 10 | J88: 2 | K88: 6 | L88: 9 | M88: 5 | N88: 3 | O88: 4 | P88: 8 | Q88: 0
E89: Punkte A L T | G89: =+G66 -> 15 | H89: 6 | I89: 22 | J89: 9 | K89: 19 | L89: 25 | M89: 14 | N89: 14 | O89: 22 | P89: 19
E90: Punkte N E U | G90: =IF(G83>0,+G89+G88," ") -> 22 | H90: =IF(H83>0,+H89+H88," ") -> 7 | I90: 32 | J90: 11 | K90: 25 | L90: 34 | M90: 19 | N90: 17 | O90: 26 | P90: 27
E91: Gesamt Pins | G91: =+G87+G67 -> 7192 | H91: 6206 | I91: 7542 | J91: 6485 | K91: 7450 | L91: 7755 | M91: 6983 | N91: 6648 | O91: 7330 | P91: 7432 | Q91: 541
G92: =IF(G83>0,RANK(G87,$G$87:$P$87,10),"0") -> 7 | H92: =IF(H83>0,RANK(H87,$G$87:$P$87,10),"0") -> 1 | I92: 10 | J92: 2 | K92: 6 | L92: 9 | M92: 5 | N92: 3 | O92: 4 | P92: 8 | Q92: =IF(Q83>0,RANK(Q87,$G$87:$P$87,10),"0") -> 0
G93: =IF(COUNTIF($G$92:$P$92,G92)>1,"1","") ->  | H93: =IF(COUNTIF($G$92:$P$92,H92)>1,"1","") ->  | Q93: =IF(COUNTIF($G$92:$P$92,Q92)>1,"1","") -> 
E94: Anhang zum Spielbericht B O W L I N G
Q95: Punktspielserie
E96: alle Felder sind unbedingt auszufüllen und mit dem Original-Spielbericht einzusenden.
G98: Klasse: | H98: =+Hilfstabelle!$G$5 -> B2 | J98: Antritt-Nr. : | K98: 5 | L98: Datum : | M98: =VLOOKUP(K98,Hilfstabelle!$I$5:$J$18,2,0) -> 2025-11-04 | N98: Halle : | O98: =VLOOKUP(K98,Hilfstabelle!$I$5:$L$18,3,0) -> Othmarschen
G100: Ausrichter BSG: | I100: =+VLOOKUP(K98,Hilfstabelle!$I$5:$L$18,4,0)&"" -> Dataport 2 | L100: Mannschaftsführer: Michael Wetzel - Telefon: 0172/412 45 69
G101: Bahn: | H101: Bahn: | I101: Bahn: | J101: Bahn: | K101: Bahn: | L101: Bahn: | M101: Bahn: | N101: Bahn: | O101: Bahn: | P101: Bahn: | Q101: Bahn:
E102: Durch- gänge | G102: BSG | H102: BSG | I102: BSG | J102: BSG | K102: BSG | L102: BSG | M102: BSG | N102: BSG | O102: BSG | P102: BSG | Q102: BSG
G103: =VLOOKUP(G104,Hilfstabelle!$L$5:$M$16,2,0) -> EAG 1 | H103: =VLOOKUP(H104,Hilfstabelle!$L$5:$M$16,2,0) -> ESV 2 | I103: =VLOOKUP(I104,Hilfstabelle!$L$5:$M$16,2,0) -> AXA 1 | J103: =VLOOKUP(J104,Hilfstabelle!$L$5:$M$16,2,0) -> ERG 3 | K103: =VLOOKUP(K104,Hilfstabelle!$L$5:$M$16,2,0) -> DAT 2 | L103: =VLOOKUP(L104,Hilfstabelle!$L$5:$M$16,2,0) -> PAN 1 | M103: =VLOOKUP(M104,Hilfstabelle!$L$5:$M$16,2,0) -> GEN 3 | N103: =VLOOKUP(N104,Hilfstabelle!$L$5:$M$16,2,0) -> FAH 3 | O103: =VLOOKUP(O104,Hilfstabelle!$L$5:$M$16,2,0) -> HAS 5 | P103: =VLOOKUP(P104,Hilfstabelle!$L$5:$M$16,2,0) -> BWV 5 | Q103: =VLOOKUP(Q104,Hilfstabelle!$L$5:$M$16,2,0) -> EAG 1
G104: =+Hilfstabelle!$L$5 -> Eppendorf AG 1 | H104: =+Hilfstabelle!$L$6 -> Energie Sportvereinigung 2 | I104: =+Hilfstabelle!$L$7 -> AXA 1 | J104: =+Hilfstabelle!$L$8 -> ERGO Sports 3 | K104: =+Hilfstabelle!$L$9 -> Dataport 2 | L104: =+Hilfstabelle!$L$10 -> Panasonic 1 | M104: =+Hilfstabelle!$L$11 -> Generali 3 | N104: =+Hilfstabelle!$L$12 -> Finanzamt 3 | O104: =+Hilfstabelle!$L$13 -> HASPA 5 | P104: =+Hilfstabelle!$L$14 -> BWVL 5 | Q104: =+Hilfstabelle!$L$15 -> Eppendorf AG 1
E105: Platz | G105: =HLOOKUP(G104,Hilfstabelle!$AA$5:$AK$6,2,0) -> 6. | H105: =HLOOKUP(H104,Hilfstabelle!$AA$5:$AK$6,2,0) -> 10. | I105: =HLOOKUP(I104,Hilfstabelle!$AA$5:$AK$6,2,0) -> 2. | J105: =HLOOKUP(J104,Hilfstabelle!$AA$5:$AK$6,2,0) -> 9. | K105: =HLOOKUP(K104,Hilfstabelle!$AA$5:$AK$6,2,0) -> 3. | L105: =HLOOKUP(L104,Hilfstabelle!$AA$5:$AK$6,2,0) -> 1. | M105: =HLOOKUP(M104,Hilfstabelle!$AA$5:$AK$6,2,0) -> 7. | N105: =HLOOKUP(N104,Hilfstabelle!$AA$5:$AK$6,2,0) -> 8. | O105: =HLOOKUP(O104,Hilfstabelle!$AA$5:$AK$6,2,0) -> 4. | P105: =HLOOKUP(P104,Hilfstabelle!$AA$5:$AK$6,2,0) -> 5. | Q105: =HLOOKUP(Q104,Hilfstabelle!$AA$5:$AK$6,2,0) -> 6.
E106: 1 | G106: 566 | H106: 524 | I106: 601 | J106: 530 | K106: 626 | L106: 591 | M106: 625 | N106: 487 | O106: 615 | P106: 433
E107: 2 | G107: 537 | H107: 583 | I107: 609 | J107: 512 | K107: 663 | L107: 633 | M107: 540 | N107: 585 | O107: 629 | P107: 472
E108: 1 + 2 | G108: =+G107+G106 -> 1103 | H108: 1107 | I108: 1210 | J108: 1042 | K108: 1289 | L108: 1224 | M108: 1165 | N108: 1072 | O108: 1244 | P108: 905 | Q108: =+Q107+Q106 -> 0
E109: 3 | G109: 564 | H109: 564 | I109: 735 | J109: 527 | K109: 686 | L109: 655 | M109: 624 | N109: 503 | O109: 526 | P109: 390
E110: Pins Gesamt | G110: =+G109+G108 -> 1667 | H110: 1671 | I110: 1945 | J110: 1569 | K110: 1975 | L110: 1879 | M110: 1789 | N110: 1575 | O110: 1770 | P110: 1295 | Q110: 0
E111: Punkte Antritt | G111: =IF(G116="1",+G115+0.5,+G115) -> 4 | H111: =IF(H116="1",+H115+0.5,+H115) -> 5 | I111: 9 | J111: 2 | K111: 10 | L111: 8 | M111: 7 | N111: 3 | O111: 6 | P111: 1 | Q111: 0
E112: Punkte A L T | G112: =+G90 -> 22 | H112: 7 | I112: 32 | J112: 11 | K112: 25 | L112: 34 | M112: 19 | N112: 17 | O112: 26 | P112: 27
E113: Punkte N E U | G113: =IF(G106>0,+G112+G111," ") -> 26 | H113: =IF(H106>0,+H112+H111," ") -> 12 | I113: 41 | J113: 13 | K113: 35 | L113: 42 | M113: 26 | N113: 20 | O113: 32 | P113: 28
E114: Gesamt Pins | G114: =+G110+G91 -> 8859 | H114: 7877 | I114: 9487 | J114: 8054 | K114: 9425 | L114: 9634 | M114: 8772 | N114: 8223 | O114: 9100 | P114: 8727 | Q114: 541
G115: =IF(G106>0,RANK(G110,$G$110:$P$110,10),"0") -> 4 | H115: 5 | I115: 9 | J115: 2 | K115: 10 | L115: 8 | M115: 7 | N115: 3 | O115: 6 | P115: 1 | Q115: 0
G116: =IF(COUNTIF($G$115:$P$115,G115)>1,"1","") -> 
E117: Anhang zum Spielbericht B O W L I N G
Q118: Punktspielserie
E119: alle Felder sind unbedingt auszufüllen und mit dem Original-Spielbericht einzusenden.
G121: Klasse: | H121: =+Hilfstabelle!$G$5 -> B2 | J121: Antritt-Nr. : | K121: 6 | L121: Datum : | M121: =VLOOKUP(K121,Hilfstabelle!$I$5:$J$18,2,0) -> 2025-11-18 | N121: Halle : | O121: =VLOOKUP(K121,Hilfstabelle!$I$5:$L$18,3,0) -> Wandsbek
G123: Ausrichter BSG: | I123: =+VLOOKUP(K121,Hilfstabelle!$I$5:$L$18,4,0)&"" -> Panasonic 1 | L123: Mannschaftsführer: Michael Wetzel - Telefon: 0172/412 45 69
G124: Bahn: | H124: Bahn: | I124: Bahn: | J124: Bahn: | K124: Bahn: | L124: Bahn: | M124: Bahn: | N124: Bahn: | O124: Bahn: | P124: Bahn: | Q124: Bahn:
E125: Durch- gänge | G125: BSG | H125: BSG | I125: BSG | J125: BSG | K125: BSG | L125: BSG | M125: BSG | N125: BSG | O125: BSG | P125: BSG | Q125: BSG
G126: =VLOOKUP(G127,Hilfstabelle!$L$5:$M$16,2,0) -> EAG 1 | H126: =VLOOKUP(H127,Hilfstabelle!$L$5:$M$16,2,0) -> ESV 2 | I126: =VLOOKUP(I127,Hilfstabelle!$L$5:$M$16,2,0) -> AXA 1 | J126: =VLOOKUP(J127,Hilfstabelle!$L$5:$M$16,2,0) -> ERG 3 | K126: =VLOOKUP(K127,Hilfstabelle!$L$5:$M$16,2,0) -> DAT 2 | L126: =VLOOKUP(L127,Hilfstabelle!$L$5:$M$16,2,0) -> PAN 1 | M126: =VLOOKUP(M127,Hilfstabelle!$L$5:$M$16,2,0) -> GEN 3 | N126: =VLOOKUP(N127,Hilfstabelle!$L$5:$M$16,2,0) -> FAH 3 | O126: =VLOOKUP(O127,Hilfstabelle!$L$5:$M$16,2,0) -> HAS 5 | P126: =VLOOKUP(P127,Hilfstabelle!$L$5:$M$16,2,0) -> BWV 5 | Q126: =VLOOKUP(Q127,Hilfstabelle!$L$5:$M$16,2,0) -> EAG 1
G127: =+Hilfstabelle!$L$5 -> Eppendorf AG 1 | H127: =+Hilfstabelle!$L$6 -> Energie Sportvereinigung 2 | I127: =+Hilfstabelle!$L$7 -> AXA 1 | J127: =+Hilfstabelle!$L$8 -> ERGO Sports 3 | K127: =+Hilfstabelle!$L$9 -> Dataport 2 | L127: =+Hilfstabelle!$L$10 -> Panasonic 1 | M127: =+Hilfstabelle!$L$11 -> Generali 3 | N127: =+Hilfstabelle!$L$12 -> Finanzamt 3 | O127: =+Hilfstabelle!$L$13 -> HASPA 5 | P127: =+Hilfstabelle!$L$14 -> BWVL 5 | Q127: =+Hilfstabelle!$L$15 -> Eppendorf AG 1
E128: Platz | G128: =HLOOKUP(G127,Hilfstabelle!$AA$5:$AK$6,2,0) -> 6. | H128: =HLOOKUP(H127,Hilfstabelle!$AA$5:$AK$6,2,0) -> 10. | I128: =HLOOKUP(I127,Hilfstabelle!$AA$5:$AK$6,2,0) -> 2. | J128: =HLOOKUP(J127,Hilfstabelle!$AA$5:$AK$6,2,0) -> 9. | K128: =HLOOKUP(K127,Hilfstabelle!$AA$5:$AK$6,2,0) -> 3. | L128: =HLOOKUP(L127,Hilfstabelle!$AA$5:$AK$6,2,0) -> 1. | M128: =HLOOKUP(M127,Hilfstabelle!$AA$5:$AK$6,2,0) -> 7. | N128: =HLOOKUP(N127,Hilfstabelle!$AA$5:$AK$6,2,0) -> 8. | O128: =HLOOKUP(O127,Hilfstabelle!$AA$5:$AK$6,2,0) -> 4. | P128: =HLOOKUP(P127,Hilfstabelle!$AA$5:$AK$6,2,0) -> 5. | Q128: =HLOOKUP(Q127,Hilfstabelle!$AA$5:$AK$6,2,0) -> 6.
E129: 1
E130: 2
E131: 1 + 2 | G131: =+G130+G129 -> 0 | H131: 0 | I131: 0 | J131: 0 | K131: 0 | L131: 0 | M131: 0 | N131: 0 | O131: 0 | P131: 0 | Q131: =+Q130+Q129 -> 0
E132: 3
E133: Pins Gesamt | G133: =+G132+G131 -> 0 | H133: 0 | I133: 0 | J133: 0 | K133: 0 | L133: 0 | M133: 0 | N133: 0 | O133: 0 | P133: 0 | Q133: 0
E134: Punkte Antritt | G134: =IF(G139="1",+G138+0.5,+G138) -> 0.5 | H134: =IF(H139="1",+H138+0.5,+H138) -> 0.5 | I134: 0.5 | J134: 0.5 | K134: 0.5 | L134: 0.5 | M134: 0.5 | N134: 0.5 | O134: 0.5 | P134: 0.5 | Q134: 0.5
E135: Punkte A L T | G135: =+G113 -> 26 | H135: 12 | I135: 41 | J135: 13 | K135: 35 | L135: 42 | M135: 26 | N135: 20 | O135: 32 | P135: 28
E136: Punkte N E U | G136: =IF(G129>0,+G135+G134," ") ->  | H136: =IF(H129>0,+H135+H134," ") -> 
E137: Gesamt Pins | G137: =+G133+G114 -> 8859 | H137: 7877 | I137: 9487 | J137: 8054 | K137: 9425 | L137: 9634 | M137: 8772 | N137: 8223 | O137: 9100 | P137: 8727 | Q137: 541
G138: =IF(G129>0,RANK(G133,$G$133:$P$133,10),"0") -> 0 | H138: 0 | I138: 0 | J138: 0 | K138: 0 | L138: 0 | M138: 0 | N138: 0 | O138: 0 | P138: 0 | Q138: 0
G139: =IF(COUNTIF($G$138:$P$138,G138)>1,"1","") -> 1 | H139: 1 | I139: 1 | J139: 1 | K139: 1 | L139: 1 | M139: 1 | N139: 1 | O139: 1 | P139: 1 | Q139: 1
E140: Anhang zum Spielbericht B O W L I N G
Q141: Punktspielserie
E142: alle Felder sind unbedingt auszufüllen und mit dem Original-Spielbericht einzusenden.
G144: Klasse: | H144: =+Hilfstabelle!$G$5 -> B2 | J144: Antritt-Nr. : | K144: 7 | L144: Datum : | M144: =VLOOKUP(K144,Hilfstabelle!$I$5:$J$18,2,0) -> 2026-01-13 | N144: Halle : | O144: =VLOOKUP(K144,Hilfstabelle!$I$5:$L$18,3,0) -> Othmarschen
G146: Ausrichter BSG: | I146: =+VLOOKUP(K144,Hilfstabelle!$I$5:$L$18,4,0)&"" -> Generali 3 | L146: Mannschaftsführer: Michael Wetzel - Telefon: 0172/412 45 69
G147: Bahn: | H147: Bahn: | I147: Bahn: | J147: Bahn: | K147: Bahn: | L147: Bahn: | M147: Bahn: | N147: Bahn: | O147: Bahn: | P147: Bahn: | Q147: Bahn:
E148: Durch- gänge | G148: BSG | H148: BSG | I148: BSG | J148: BSG | K148: BSG | L148: BSG | M148: BSG | N148: BSG | O148: BSG | P148: BSG | Q148: BSG
G149: =VLOOKUP(G150,Hilfstabelle!$L$5:$M$16,2,0) -> EAG 1 | H149: =VLOOKUP(H150,Hilfstabelle!$L$5:$M$16,2,0) -> ESV 2 | I149: =VLOOKUP(I150,Hilfstabelle!$L$5:$M$16,2,0) -> AXA 1 | J149: =VLOOKUP(J150,Hilfstabelle!$L$5:$M$16,2,0) -> ERG 3 | K149: =VLOOKUP(K150,Hilfstabelle!$L$5:$M$16,2,0) -> DAT 2 | L149: =VLOOKUP(L150,Hilfstabelle!$L$5:$M$16,2,0) -> PAN 1 | M149: =VLOOKUP(M150,Hilfstabelle!$L$5:$M$16,2,0) -> GEN 3 | N149: =VLOOKUP(N150,Hilfstabelle!$L$5:$M$16,2,0) -> FAH 3 | O149: =VLOOKUP(O150,Hilfstabelle!$L$5:$M$16,2,0) -> HAS 5 | P149: =VLOOKUP(P150,Hilfstabelle!$L$5:$M$16,2,0) -> BWV 5 | Q149: =VLOOKUP(Q150,Hilfstabelle!$L$5:$M$16,2,0) -> EAG 1
G150: =+Hilfstabelle!$L$5 -> Eppendorf AG 1 | H150: =+Hilfstabelle!$L$6 -> Energie Sportvereinigung 2 | I150: =+Hilfstabelle!$L$7 -> AXA 1 | J150: =+Hilfstabelle!$L$8 -> ERGO Sports 3 | K150: =+Hilfstabelle!$L$9 -> Dataport 2 | L150: =+Hilfstabelle!$L$10 -> Panasonic 1 | M150: =+Hilfstabelle!$L$11 -> Generali 3 | N150: =+Hilfstabelle!$L$12 -> Finanzamt 3 | O150: =+Hilfstabelle!$L$13 -> HASPA 5 | P150: =+Hilfstabelle!$L$14 -> BWVL 5 | Q150: =+Hilfstabelle!$L$15 -> Eppendorf AG 1
E151: Platz | G151: =HLOOKUP(G150,Hilfstabelle!$AA$5:$AK$6,2,0) -> 6. | H151: =HLOOKUP(H150,Hilfstabelle!$AA$5:$AK$6,2,0) -> 10. | I151: =HLOOKUP(I150,Hilfstabelle!$AA$5:$AK$6,2,0) -> 2. | J151: =HLOOKUP(J150,Hilfstabelle!$AA$5:$AK$6,2,0) -> 9. | K151: =HLOOKUP(K150,Hilfstabelle!$AA$5:$AK$6,2,0) -> 3. | L151: =HLOOKUP(L150,Hilfstabelle!$AA$5:$AK$6,2,0) -> 1. | M151: =HLOOKUP(M150,Hilfstabelle!$AA$5:$AK$6,2,0) -> 7. | N151: =HLOOKUP(N150,Hilfstabelle!$AA$5:$AK$6,2,0) -> 8. | O151: =HLOOKUP(O150,Hilfstabelle!$AA$5:$AK$6,2,0) -> 4. | P151: =HLOOKUP(P150,Hilfstabelle!$AA$5:$AK$6,2,0) -> 5. | Q151: =HLOOKUP(Q150,Hilfstabelle!$AA$5:$AK$6,2,0) -> 6.
E152: 1
E153: 2
E154: 1 + 2 | G154: =+G153+G152 -> 0 | H154: 0 | I154: 0 | J154: 0 | K154: 0 | L154: 0 | M154: 0 | N154: 0 | O154: 0 | P154: 0 | Q154: =+Q153+Q152 -> 0
E155: 3
E156: Pins Gesamt | G156: =+G155+G154 -> 0 | H156: 0 | I156: 0 | J156: 0 | K156: 0 | L156: 0 | M156: 0 | N156: 0 | O156: 0 | P156: 0 | Q156: 0
E157: Punkte Antritt | G157: =IF(G162="1",+G161+0.5,+G161) -> 0.5 | H157: =IF(H162="1",+H161+0.5,+H161) -> 0.5 | I157: 0.5 | J157: 0.5 | K157: 0.5 | L157: 0.5 | M157: 0.5 | N157: 0.5 | O157: 0.5 | P157: 0.5 | Q157: 0.5
E158: Punkte A L T | G158: =+G136 -> 
E159: Punkte N E U | G159: =IF(G152>0,+G158+G157," ") ->  | H159: =IF(H152>0,+H158+H157," ") -> 
E160: Gesamt Pins | G160: =+G156+G137 -> 8859 | H160: 7877 | I160: 9487 | J160: 8054 | K160: 9425 | L160: 9634 | M160: 8772 | N160: 8223 | O160: 9100 | P160: 8727 | Q160: 541
G161: =IF(G152>0,RANK(G156,$G$156:$P$156,10),"0") -> 0 | H161: 0 | I161: 0 | J161: 0 | K161: 0 | L161: 0 | M161: 0 | N161: 0 | O161: 0 | P161: 0 | Q161: 0
G162: =IF(COUNTIF($G$161:$P$161,G161)>1,"1","") -> 1 | H162: 1 | I162: 1 | J162: 1 | K162: 1 | L162: 1 | M162: 1 | N162: 1 | O162: 1 | P162: 1 | Q162: 1
E163: Anhang zum Spielbericht B O W L I N G
Q164: Punktspielserie
E165: alle Felder sind unbedingt auszufüllen und mit dem Original-Spielbericht einzusenden.
G167: Klasse: | H167: =+Hilfstabelle!$G$5 -> B2 | J167: Antritt-Nr. : | K167: 8 | L167: Datum : | M167: =VLOOKUP(K167,Hilfstabelle!$I$5:$J$18,2,0) -> 2026-01-27 | N167: Halle : | O167: =VLOOKUP(K167,Hilfstabelle!$I$5:$L$18,3,0) -> Wandsbek
G169: Ausrichter BSG: | I169: =+VLOOKUP(K167,Hilfstabelle!$I$5:$L$18,4,0)&"" -> Finanzamt 3 | L169: Mannschaftsführer: Michael Wetzel - Telefon: 0172/412 45 69
G170: Bahn: | H170: Bahn: | I170: Bahn: | J170: Bahn: | K170: Bahn: | L170: Bahn: | M170: Bahn: | N170: Bahn: | O170: Bahn: | P170: Bahn: | Q170: Bahn:
E171: Durch- gänge | G171: BSG | H171: BSG | I171: BSG | J171: BSG | K171: BSG | L171: BSG | M171: BSG | N171: BSG | O171: BSG | P171: BSG | Q171: BSG
G172: =VLOOKUP(G173,Hilfstabelle!$L$5:$M$16,2,0) -> EAG 1 | H172: =VLOOKUP(H173,Hilfstabelle!$L$5:$M$16,2,0) -> ESV 2 | I172: =VLOOKUP(I173,Hilfstabelle!$L$5:$M$16,2,0) -> AXA 1 | J172: =VLOOKUP(J173,Hilfstabelle!$L$5:$M$16,2,0) -> ERG 3 | K172: =VLOOKUP(K173,Hilfstabelle!$L$5:$M$16,2,0) -> DAT 2 | L172: =VLOOKUP(L173,Hilfstabelle!$L$5:$M$16,2,0) -> PAN 1 | M172: =VLOOKUP(M173,Hilfstabelle!$L$5:$M$16,2,0) -> GEN 3 | N172: =VLOOKUP(N173,Hilfstabelle!$L$5:$M$16,2,0) -> FAH 3 | O172: =VLOOKUP(O173,Hilfstabelle!$L$5:$M$16,2,0) -> HAS 5 | P172: =VLOOKUP(P173,Hilfstabelle!$L$5:$M$16,2,0) -> BWV 5 | Q172: =VLOOKUP(Q173,Hilfstabelle!$L$5:$M$16,2,0) -> EAG 1
G173: =+Hilfstabelle!$L$5 -> Eppendorf AG 1 | H173: =+Hilfstabelle!$L$6 -> Energie Sportvereinigung 2 | I173: =+Hilfstabelle!$L$7 -> AXA 1 | J173: =+Hilfstabelle!$L$8 -> ERGO Sports 3 | K173: =+Hilfstabelle!$L$9 -> Dataport 2 | L173: =+Hilfstabelle!$L$10 -> Panasonic 1 | M173: =+Hilfstabelle!$L$11 -> Generali 3 | N173: =+Hilfstabelle!$L$12 -> Finanzamt 3 | O173: =+Hilfstabelle!$L$13 -> HASPA 5 | P173: =+Hilfstabelle!$L$14 -> BWVL 5 | Q173: =+Hilfstabelle!$L$15 -> Eppendorf AG 1
E174: Platz | G174: =HLOOKUP(G173,Hilfstabelle!$AA$5:$AK$6,2,0) -> 6. | H174: =HLOOKUP(H173,Hilfstabelle!$AA$5:$AK$6,2,0) -> 10. | I174: =HLOOKUP(I173,Hilfstabelle!$AA$5:$AK$6,2,0) -> 2. | J174: =HLOOKUP(J173,Hilfstabelle!$AA$5:$AK$6,2,0) -> 9. | K174: =HLOOKUP(K173,Hilfstabelle!$AA$5:$AK$6,2,0) -> 3. | L174: =HLOOKUP(L173,Hilfstabelle!$AA$5:$AK$6,2,0) -> 1. | M174: =HLOOKUP(M173,Hilfstabelle!$AA$5:$AK$6,2,0) -> 7. | N174: =HLOOKUP(N173,Hilfstabelle!$AA$5:$AK$6,2,0) -> 8. | O174: =HLOOKUP(O173,Hilfstabelle!$AA$5:$AK$6,2,0) -> 4. | P174: =HLOOKUP(P173,Hilfstabelle!$AA$5:$AK$6,2,0) -> 5. | Q174: =HLOOKUP(Q173,Hilfstabelle!$AA$5:$AK$6,2,0) -> 6.
E175: 1
E176: 2
E177: 1 + 2 | G177: =+G176+G175 -> 0 | H177: 0 | I177: 0 | J177: 0 | K177: 0 | L177: 0 | M177: 0 | N177: 0 | O177: 0 | P177: 0 | Q177: =+Q176+Q175 -> 0
E178: 3
E179: Pins Gesamt | G179: =+G178+G177 -> 0 | H179: 0 | I179: 0 | J179: 0 | K179: 0 | L179: 0 | M179: 0 | N179: 0 | O179: 0 | P179: 0 | Q179: 0
E180: Punkte Antritt | G180: =IF(G185="1",+G184+0.5,+G184) -> 0.5 | H180: =IF(H185="1",+H184+0.5,+H184) -> 0.5 | I180: 0.5 | J180: 0.5 | K180: 0.5 | L180: 0.5 | M180: 0.5 | N180: 0.5 | O180: 0.5 | P180: 0.5 | Q180: 0.5
E181: Punkte A L T | G181: =+G159 -> 
E182: Punkte N E U | G182: =IF(G175>0,+G181+G180," ") ->  | H182: =IF(H175>0,+H181+H180," ") -> 
E183: Gesamt Pins | G183: =+G179+G160 -> 8859 | H183: 7877 | I183: 9487 | J183: 8054 | K183: 9425 | L183: 9634 | M183: 8772 | N183: 8223 | O183: 9100 | P183: 8727 | Q183: 541
G184: =IF(G175>0,RANK(G179,$G$179:$P$179,10),"0") -> 0 | H184: 0 | I184: 0 | J184: 0 | K184: 0 | L184: 0 | M184: 0 | N184: 0 | O184: 0 | P184: 0 | Q184: 0
G185: =IF(COUNTIF($G$184:$P$184,G184)>1,"1","") -> 1 | H185: 1 | I185: 1 | J185: 1 | K185: 1 | L185: 1 | M185: 1 | N185: 1 | O185: 1 | P185: 1 | Q185: 1
E186: Anhang zum Spielbericht B O W L I N G
Q187: Punktspielserie
E188: alle Felder sind unbedingt auszufüllen und mit dem Original-Spielbericht einzusenden.
G190: Klasse: | H190: =+Hilfstabelle!$G$5 -> B2 | J190: Antritt-Nr. : | K190: 9 | L190: Datum : | M190: =VLOOKUP(K190,Hilfstabelle!$I$5:$J$18,2,0) -> 2026-02-10 | N190: Halle : | O190: =VLOOKUP(K190,Hilfstabelle!$I$5:$L$18,3,0) -> Othmarschen
G192: Ausrichter BSG: | I192: =+VLOOKUP(K190,Hilfstabelle!$I$5:$L$18,4,0)&"" -> HASPA 5 | L192: Mannschaftsführer: Michael Wetzel - Telefon: 0172/412 45 69
G193: Bahn: | H193: Bahn: | I193: Bahn: | J193: Bahn: | K193: Bahn: | L193: Bahn: | M193: Bahn: | N193: Bahn: | O193: Bahn: | P193: Bahn: | Q193: Bahn:
E194: Durch- gänge | G194: BSG | H194: BSG | I194: BSG | J194: BSG | K194: BSG | L194: BSG | M194: BSG | N194: BSG | O194: BSG | P194: BSG | Q194: BSG
G195: =VLOOKUP(G196,Hilfstabelle!$L$5:$M$16,2,0) -> EAG 1 | H195: =VLOOKUP(H196,Hilfstabelle!$L$5:$M$16,2,0) -> ESV 2 | I195: =VLOOKUP(I196,Hilfstabelle!$L$5:$M$16,2,0) -> AXA 1 | J195: =VLOOKUP(J196,Hilfstabelle!$L$5:$M$16,2,0) -> ERG 3 | K195: =VLOOKUP(K196,Hilfstabelle!$L$5:$M$16,2,0) -> DAT 2 | L195: =VLOOKUP(L196,Hilfstabelle!$L$5:$M$16,2,0) -> PAN 1 | M195: =VLOOKUP(M196,Hilfstabelle!$L$5:$M$16,2,0) -> GEN 3 | N195: =VLOOKUP(N196,Hilfstabelle!$L$5:$M$16,2,0) -> FAH 3 | O195: =VLOOKUP(O196,Hilfstabelle!$L$5:$M$16,2,0) -> HAS 5 | P195: =VLOOKUP(P196,Hilfstabelle!$L$5:$M$16,2,0) -> BWV 5 | Q195: =VLOOKUP(Q196,Hilfstabelle!$L$5:$M$16,2,0) -> EAG 1
G196: =+Hilfstabelle!$L$5 -> Eppendorf AG 1 | H196: =+Hilfstabelle!$L$6 -> Energie Sportvereinigung 2 | I196: =+Hilfstabelle!$L$7 -> AXA 1 | J196: =+Hilfstabelle!$L$8 -> ERGO Sports 3 | K196: =+Hilfstabelle!$L$9 -> Dataport 2 | L196: =+Hilfstabelle!$L$10 -> Panasonic 1 | M196: =+Hilfstabelle!$L$11 -> Generali 3 | N196: =+Hilfstabelle!$L$12 -> Finanzamt 3 | O196: =+Hilfstabelle!$L$13 -> HASPA 5 | P196: =+Hilfstabelle!$L$14 -> BWVL 5 | Q196: =+Hilfstabelle!$L$15 -> Eppendorf AG 1
E197: Platz | G197: =HLOOKUP(G196,Hilfstabelle!$AA$5:$AK$6,2,0) -> 6. | H197: =HLOOKUP(H196,Hilfstabelle!$AA$5:$AK$6,2,0) -> 10. | I197: =HLOOKUP(I196,Hilfstabelle!$AA$5:$AK$6,2,0) -> 2. | J197: =HLOOKUP(J196,Hilfstabelle!$AA$5:$AK$6,2,0) -> 9. | K197: =HLOOKUP(K196,Hilfstabelle!$AA$5:$AK$6,2,0) -> 3. | L197: =HLOOKUP(L196,Hilfstabelle!$AA$5:$AK$6,2,0) -> 1. | M197: =HLOOKUP(M196,Hilfstabelle!$AA$5:$AK$6,2,0) -> 7. | N197: =HLOOKUP(N196,Hilfstabelle!$AA$5:$AK$6,2,0) -> 8. | O197: =HLOOKUP(O196,Hilfstabelle!$AA$5:$AK$6,2,0) -> 4. | P197: =HLOOKUP(P196,Hilfstabelle!$AA$5:$AK$6,2,0) -> 5. | Q197: =HLOOKUP(Q196,Hilfstabelle!$AA$5:$AK$6,2,0) -> 6.
E198: 1
E199: 2
E200: 1 + 2 | G200: =+G199+G198 -> 0 | H200: 0 | I200: 0 | J200: 0 | K200: 0 | L200: 0 | M200: 0 | N200: 0 | O200: 0 | P200: 0 | Q200: =+Q199+Q198 -> 0
E201: 3
E202: Pins Gesamt | G202: =+G201+G200 -> 0 | H202: 0 | I202: 0 | J202: 0 | K202: 0 | L202: 0 | M202: 0 | N202: 0 | O202: 0 | P202: 0 | Q202: 0
E203: Punkte Antritt | G203: =IF(G208="1",+G207+0.5,+G207) -> 0.5 | H203: =IF(H208="1",+H207+0.5,+H207) -> 0.5 | I203: 0.5 | J203: 0.5 | K203: 0.5 | L203: 0.5 | M203: 0.5 | N203: 0.5 | O203: 0.5 | P203: 0.5 | Q203: 0.5
E204: Punkte A L T | G204: =+G182 -> 
E205: Punkte N E U | G205: =IF(G198>0,+G204+G203," ") ->  | H205: =IF(H198>0,+H204+H203," ") -> 
E206: Gesamt Pins | G206: =+G202+G183 -> 8859 | H206: 7877 | I206: 9487 | J206: 8054 | K206: 9425 | L206: 9634 | M206: 8772 | N206: 8223 | O206: 9100 | P206: 8727 | Q206: 541
G207: =IF(G198>0,RANK(G202,$G$202:$P$202,10),"0") -> 0 | H207: 0 | I207: 0 | J207: 0 | K207: 0 | L207: 0 | M207: 0 | N207: 0 | O207: 0 | P207: 0 | Q207: 0
G208: =IF(COUNTIF($G$207:$P$207,G207)>1,"1","") -> 1 | H208: 1 | I208: 1 | J208: 1 | K208: 1 | L208: 1 | M208: 1 | N208: 1 | O208: 1 | P208: 1 | Q208: 1
E209: Anhang zum Spielbericht B O W L I N G
Q210: Punktspielserie
E211: alle Felder sind unbedingt auszufüllen und mit dem Original-Spielbericht einzusenden.
G213: Klasse: | H213: =+Hilfstabelle!$G$5 -> B2 | J213: Antritt-Nr. : | K213: 10 | L213: Datum : | M213: =VLOOKUP(K213,Hilfstabelle!$I$5:$J$18,2,0) -> 2026-02-24 | N213: Halle : | O213: =VLOOKUP(K213,Hilfstabelle!$I$5:$L$18,3,0) -> Wandsbek
G215: Ausrichter BSG: | I215: =+VLOOKUP(K213,Hilfstabelle!$I$5:$L$18,4,0)&"" -> BWVL 5 | L215: Mannschaftsführer: Michael Wetzel - Telefon: 0172/412 45 69
G216: Bahn: | H216: Bahn: | I216: Bahn: | J216: Bahn: | K216: Bahn: | L216: Bahn: | M216: Bahn: | N216: Bahn: | O216: Bahn: | P216: Bahn: | Q216: Bahn:
E217: Durch- gänge | G217: BSG | H217: BSG | I217: BSG | J217: BSG | K217: BSG | L217: BSG | M217: BSG | N217: BSG | O217: BSG | P217: BSG | Q217: BSG
G218: =VLOOKUP(G219,Hilfstabelle!$L$5:$M$16,2,0) -> EAG 1 | H218: =VLOOKUP(H219,Hilfstabelle!$L$5:$M$16,2,0) -> ESV 2 | I218: =VLOOKUP(I219,Hilfstabelle!$L$5:$M$16,2,0) -> AXA 1 | J218: =VLOOKUP(J219,Hilfstabelle!$L$5:$M$16,2,0) -> ERG 3 | K218: =VLOOKUP(K219,Hilfstabelle!$L$5:$M$16,2,0) -> DAT 2 | L218: =VLOOKUP(L219,Hilfstabelle!$L$5:$M$16,2,0) -> PAN 1 | M218: =VLOOKUP(M219,Hilfstabelle!$L$5:$M$16,2,0) -> GEN 3 | N218: =VLOOKUP(N219,Hilfstabelle!$L$5:$M$16,2,0) -> FAH 3 | O218: =VLOOKUP(O219,Hilfstabelle!$L$5:$M$16,2,0) -> HAS 5 | P218: =VLOOKUP(P219,Hilfstabelle!$L$5:$M$16,2,0) -> BWV 5 | Q218: =VLOOKUP(Q219,Hilfstabelle!$L$5:$M$16,2,0) -> EAG 1
G219: =+Hilfstabelle!$L$5 -> Eppendorf AG 1 | H219: =+Hilfstabelle!$L$6 -> Energie Sportvereinigung 2 | I219: =+Hilfstabelle!$L$7 -> AXA 1 | J219: =+Hilfstabelle!$L$8 -> ERGO Sports 3 | K219: =+Hilfstabelle!$L$9 -> Dataport 2 | L219: =+Hilfstabelle!$L$10 -> Panasonic 1 | M219: =+Hilfstabelle!$L$11 -> Generali 3 | N219: =+Hilfstabelle!$L$12 -> Finanzamt 3 | O219: =+Hilfstabelle!$L$13 -> HASPA 5 | P219: =+Hilfstabelle!$L$14 -> BWVL 5 | Q219: =+Hilfstabelle!$L$15 -> Eppendorf AG 1
E220: Platz | G220: =HLOOKUP(G219,Hilfstabelle!$AA$5:$AK$6,2,0) -> 6. | H220: =HLOOKUP(H219,Hilfstabelle!$AA$5:$AK$6,2,0) -> 10. | I220: =HLOOKUP(I219,Hilfstabelle!$AA$5:$AK$6,2,0) -> 2. | J220: =HLOOKUP(J219,Hilfstabelle!$AA$5:$AK$6,2,0) -> 9. | K220: =HLOOKUP(K219,Hilfstabelle!$AA$5:$AK$6,2,0) -> 3. | L220: =HLOOKUP(L219,Hilfstabelle!$AA$5:$AK$6,2,0) -> 1. | M220: =HLOOKUP(M219,Hilfstabelle!$AA$5:$AK$6,2,0) -> 7. | N220: =HLOOKUP(N219,Hilfstabelle!$AA$5:$AK$6,2,0) -> 8. | O220: =HLOOKUP(O219,Hilfstabelle!$AA$5:$AK$6,2,0) -> 4. | P220: =HLOOKUP(P219,Hilfstabelle!$AA$5:$AK$6,2,0) -> 5. | Q220: =HLOOKUP(Q219,Hilfstabelle!$AA$5:$AK$6,2,0) -> 6.
E221: 1
E222: 2
... 93 more rows

Sheet Spielberichte
A1: Start
A2: Rangliste
F4: Spielbericht BOWLING
F5: Betriebssportverband Hamburg e.V. | P5: Punktspielserie
F6: alle Felder sind unbedingt auszufüllen,da sonst der Spielbericht ungültig ist
A8: Spielberichte drucken | F8: Klasse | G8: Herren | H8: =+Hilfstabelle!G5 -> B2 | I8: Antritt Nr. | J8: 1 | L8: Datum | M8: =+Hilfstabelle!B5 -> 2025-09-09 | N8: BSG | O8: PAN 1
G10: X) | H10: Pass-Nr. | I10: Vor-und Zuname | M10: I | N10: II | O10: III | P10: Gesamt
F11: 1 | H11: =IF(I11>0,VLOOKUP(I11,Tabelle2[#Data],2,0),"") -> 19221 | I11: =+Spielereinteilung!B14 -> Jörg Frahm | P11: =+O11+N11+M11 -> 0
F12: 2 | H12: =IF(I12>0,VLOOKUP(I12,Tabelle2[#Data],2,0),"") -> 22115 | I12: =+Spielereinteilung!B16 -> Ilona Wetzel | P12: =+O12+N12+M12 -> 0
A13: Spielberichte anzeigen | F13: 3 | H13: =IF(I13>0,VLOOKUP(I13,Tabelle2[#Data],2,0),"") -> 22113 | I13: =+Spielereinteilung!B18 -> Michael Wetzel | P13: 0
F14: 4 | H14: =IF(I14>0,VLOOKUP(I14,Tabelle2[#Data],2,0),"") -> 21889 | I14: =+Spielereinteilung!B20 -> Kai Roßberg | P14: 0
F15: 5
F16: Bitte mit einem x) versehen | I16: Unterschrift des Spiel- | M16: =SUM(M11:M15) -> 0 | N16: 0 | O16: 0 | P16: =SUM(P11:P15) -> 0
F17: wenn Ersatzspieler/in | I17: partners
F19: Spielbericht BOWLING
F20: Betriebssportverband Hamburg e.V. | P20: Punktspielserie
F21: alle Felder sind unbedingt auszufüllen,da sonst der Spielbericht ungültig ist
F23: Klasse | G23: Herren | H23: =+H8 -> B2 | I23: Antritt Nr. | J23: =J8 -> 1 | L23: Datum | M23: =+M8 -> 2025-09-09 | N23: BSG | O23: =+O8 -> PAN 1
G25: X) | H25: Pass-Nr. | I25: Vor-und Zuname | M25: I | N25: II | O25: III | P25: Gesamt
F26: 1 | G26: =G11 -> 0 | H26: =+H11 -> 19221 | I26: Jörg Frahm | P26: =+O26+N26+M26 -> 0
F27: 2 | G27: =G12 -> 0 | H27: 22115 | I27: Ilona Wetzel | P27: =+O27+N27+M27 -> 0
F28: 3 | G28: =G13 -> 0 | H28: 22113 | I28: Michael Wetzel | P28: 0
F29: 4 | G29: =G14 -> 0 | H29: 21889 | I29: Kai Roßberg | P29: 0
F30: 5 | G30: =G15 -> 0 | H30: 0 | I30: 0
F31: Bitte mit einem x) versehen | I31: Unterschrift des Spiel- | P31: =+P29+P27+P26+P28 -> 0
F32: wenn Ersatzspieler/in | I32: partners
F40: Spielbericht BOWLING
F41: Betriebssportverband Hamburg e.V. | P41: Punktspielserie
F42: alle Felder sind unbedingt auszufüllen,da sonst der Spielbericht ungültig ist
F44: Klasse | G44: Herren | H44: =+H8 -> B2 | I44: Antritt Nr. | J44: 2 | L44: Datum | M44: =+Hilfstabelle!B6 -> 2025-09-23 | N44: BSG | O44: PAN 1
G46: X) | H46: Pass-Nr. | I46: Vor-und Zuname | M46: I | N46: II | O46: III | P46: Gesamt
F47: 1 | H47: =IF(I47>0,VLOOKUP(I47,Tabelle2[#Data],2,0),"") -> 24774 | I47: =+Spielereinteilung!K14 -> Frank Nijholt
F48: 2 | H48: =IF(I48>0,VLOOKUP(I48,Tabelle2[#Data],2,0),"") -> 19222 | I48: =+Spielereinteilung!K16 -> Annegret Schmidt
F49: 3 | H49: =IF(I49>0,VLOOKUP(I49,Tabelle2[#Data],2,0),"") -> 19221 | I49: =+Spielereinteilung!K18 -> Jörg Frahm
F50: 4 | H50: =IF(I50>0,VLOOKUP(I50,Tabelle2[#Data],2,0),"") -> 21889 | I50: =+Spielereinteilung!K20 -> Kai Roßberg
F51: 5
F52: Bitte mit einem x) versehen | I52: Unterschrift des Spiel-
F53: wenn Ersatzspieler/in | I53: partners
F55: Spielbericht BOWLING
F56: Betriebssportverband Hamburg e.V. | P56: Punktspielserie
F57: alle Felder sind unbedingt auszufüllen,da sonst der Spielbericht ungültig ist
F59: Klasse | G59: Herren | H59: =+H44 -> B2 | I59: Antritt Nr. | J59: =J44 -> 2 | L59: Datum | M59: =+M44 -> 2025-09-23 | N59: BSG | O59: =+O44 -> PAN 1
G61: X) | H61: Pass-Nr. | I61: Vor-und Zuname | M61: I | N61: II | O61: III | P61: Gesamt
F62: 1 | G62: =G47 -> 0 | H62: =+H47 -> 24774 | I62: Frank Nijholt
F63: 2 | G63: =G48 -> 0 | H63: 19222 | I63: Annegret Schmidt
F64: 3 | G64: =G49 -> 0 | H64: 19221 | I64: Jörg Frahm
F65: 4 | G65: =G50 -> 0 | H65: 21889 | I65: Kai Roßberg
F66: 5 | G66: =G51 -> 0 | H66: 0 | I66: 0
F67: Bitte mit einem x) versehen | I67: Unterschrift des Spiel-
F68: wenn Ersatzspieler/in | I68: partners
F76: Spielbericht BOWLING
F77: Betriebssportverband Hamburg e.V. | P77: Punktspielserie
F78: alle Felder sind unbedingt auszufüllen,da sonst der Spielbericht ungültig ist
F80: Klasse | G80: Herren | H80: =+H44 -> B2 | I80: Antritt Nr. | J80: 3 | L80: Datum | M80: =+Hilfstabelle!B7 -> 2025-10-07 | N80: BSG | O80: PAN 1
G82: X) | H82: Pass-Nr. | I82: Vor-und Zuname | M82: I | N82: II | O82: III | P82: Gesamt
F83: 1 | H83: =IF(I83>0,VLOOKUP(I83,Tabelle2[#Data],2,0),"") -> 20137 | I83: =+Spielereinteilung!T14 -> Matthias Nolte
F84: 2 | H84: =IF(I84>0,VLOOKUP(I84,Tabelle2[#Data],2,0),"") -> 22115 | I84: =+Spielereinteilung!T16 -> Ilona Wetzel
F85: 3 | H85: =IF(I85>0,VLOOKUP(I85,Tabelle2[#Data],2,0),"") -> 19222 | I85: =+Spielereinteilung!T18 -> Annegret Schmidt
F86: 4 | H86: =IF(I86>0,VLOOKUP(I86,Tabelle2[#Data],2,0),"") -> 21889 | I86: =+Spielereinteilung!T20 -> Kai Roßberg
F87: 5
F88: Bitte mit einem x) versehen | I88: Unterschrift des Spiel-
F89: wenn Ersatzspieler/in | I89: partners
F91: Spielbericht BOWLING
F92: Betriebssportverband Hamburg e.V. | P92: Punktspielserie
F93: alle Felder sind unbedingt auszufüllen,da sonst der Spielbericht ungültig ist
F95: Klasse | G95: Herren | H95: =+H80 -> B2 | I95: Antritt Nr. | J95: =J80 -> 3 | L95: Datum | M95: =+M80 -> 2025-10-07 | N95: BSG | O95: =+O80 -> PAN 1
G97: X) | H97: Pass-Nr. | I97: Vor-und Zuname | M97: I | N97: II | O97: III | P97: Gesamt
F98: 1 | G98: =G83 -> 0 | H98: =+H83 -> 20137 | I98: Matthias Nolte
F99: 2 | G99: =G84 -> 0 | H99: 22115 | I99: Ilona Wetzel
F100: 3 | G100: =G85 -> 0 | H100: 19222 | I100: Annegret Schmidt
F101: 4 | G101: =G86 -> 0 | H101: 21889 | I101: Kai Roßberg
F102: 5 | G102: =G87 -> 0 | H102: 0 | I102: 0
F103: Bitte mit einem x) versehen | I103: Unterschrift des Spiel-
F104: wenn Ersatzspieler/in | I104: partners
F112: Spielbericht BOWLING
F113: Betriebssportverband Hamburg e.V. | P113: Punktspielserie
F114: alle Felder sind unbedingt auszufüllen,da sonst der Spielbericht ungültig ist
F116: Klasse | G116: Herren | H116: =+H80 -> B2 | I116: Antritt Nr. | J116: 4 | L116: Datum | M116: =+Hilfstabelle!B8 -> 2025-10-21 | N116: BSG | O116: PAN 1
G118: X) | H118: Pass-Nr. | I118: Vor-und Zuname | M118: I | N118: II | O118: III | P118: Gesamt
F119: 1 | H119: =IF(I119>0,VLOOKUP(I119,Tabelle2[#Data],2,0),"") -> 24774 | I119: =+Spielereinteilung!AC14 -> Frank Nijholt
F120: 2 | H120: =IF(I120>0,VLOOKUP(I120,Tabelle2[#Data],2,0),"") -> 24775 | I120: =+Spielereinteilung!AC16 -> Deniz Hagelstein
F121: 3 | H121: =IF(I121>0,VLOOKUP(I121,Tabelle2[#Data],2,0),"") -> 22113 | I121: =+Spielereinteilung!AC18 -> Michael Wetzel
F122: 4 | H122: =IF(I122>0,VLOOKUP(I122,Tabelle2[#Data],2,0),"") -> 23302 | I122: =+Spielereinteilung!AC20 -> Mario Jurk
F123: 5
F124: Bitte mit einem x) versehen | I124: Unterschrift des Spiel-
F125: wenn Ersatzspieler/in | I125: partners
F127: Spielbericht BOWLING
F128: Betriebssportverband Hamburg e.V. | P128: Punktspielserie
F129: alle Felder sind unbedingt auszufüllen,da sonst der Spielbericht ungültig ist
F131: Klasse | G131: Herren | H131: =+H116 -> B2 | I131: Antritt Nr. | J131: =J116 -> 4 | L131: Datum | M131: =+M116 -> 2025-10-21 | N131: BSG | O131: =+O116 -> PAN 1
G133: X) | H133: Pass-Nr. | I133: Vor-und Zuname | M133: I | N133: II | O133: III | P133: Gesamt
F134: 1 | G134: =G119 -> 0 | H134: =+H119 -> 24774 | I134: Frank Nijholt
F135: 2 | G135: =G120 -> 0 | H135: 24775 | I135: Deniz Hagelstein
F136: 3 | G136: =G121 -> 0 | H136: 22113 | I136: Michael Wetzel
F137: 4 | G137: =G122 -> 0 | H137: 23302 | I137: Mario Jurk
F138: 5 | G138: =G123 -> 0 | H138: 0 | I138: 0
F139: Bitte mit einem x) versehen | I139: Unterschrift des Spiel-
F140: wenn Ersatzspieler/in | I140: partners
F148: Spielbericht BOWLING
F149: Betriebssportverband Hamburg e.V. | P149: Punktspielserie
F150: alle Felder sind unbedingt auszufüllen,da sonst der Spielbericht ungültig ist
F152: Klasse | G152: Herren | H152: =+H116 -> B2 | I152: Antritt Nr. | J152: 5 | L152: Datum | M152: =+Hilfstabelle!B9 -> 2025-11-04 | N152: BSG | O152: PAN 1
G154: X) | H154: Pass-Nr. | I154: Vor-und Zuname | M154: I | N154: II | O154: III | P154: Gesamt
F155: 1 | H155: =IF(I155>0,VLOOKUP(I155,Tabelle2[#Data],2,0),"") -> 20137 | I155: =+Spielereinteilung!AL14 -> Matthias Nolte
F156: 2 | H156: =IF(I156>0,VLOOKUP(I156,Tabelle2[#Data],2,0),"") -> 24775 | I156: =+Spielereinteilung!AL16 -> Deniz Hagelstein
F157: 3 | H157: =IF(I157>0,VLOOKUP(I157,Tabelle2[#Data],2,0),"") -> 22115 | I157: =+Spielereinteilung!AL18 -> Ilona Wetzel
F158: 4 | H158: =IF(I158>0,VLOOKUP(I158,Tabelle2[#Data],2,0),"") -> 21889 | I158: =+Spielereinteilung!AL20 -> Kai Roßberg
F159: 5
F160: Bitte mit einem x) versehen | I160: Unterschrift des Spiel-
F161: wenn Ersatzspieler/in | I161: partners
F163: Spielbericht BOWLING
F164: Betriebssportverband Hamburg e.V. | P164: Punktspielserie
F165: alle Felder sind unbedingt auszufüllen,da sonst der Spielbericht ungültig ist
F167: Klasse | G167: Herren | H167: =+H152 -> B2 | I167: Antritt Nr. | J167: =J152 -> 5 | L167: Datum | M167: =+M152 -> 2025-11-04 | N167: BSG | O167: =+O152 -> PAN 1
G169: X) | H169: Pass-Nr. | I169: Vor-und Zuname | M169: I | N169: II | O169: III | P169: Gesamt
F170: 1 | G170: =G155 -> 0 | H170: =+H155 -> 20137 | I170: Matthias Nolte
F171: 2 | G171: =G156 -> 0 | H171: 24775 | I171: Deniz Hagelstein
F172: 3 | G172: =G157 -> 0 | H172: 22115 | I172: Ilona Wetzel
F173: 4 | G173: =G158 -> 0 | H173: 21889 | I173: Kai Roßberg
F174: 5 | G174: =G159 -> 0 | H174: 0 | I174: 0
F175: Bitte mit einem x) versehen | I175: Unterschrift des Spiel-
F176: wenn Ersatzspieler/in | I176: partners
F184: Spielbericht BOWLING
F185: Betriebssportverband Hamburg e.V. | P185: Punktspielserie
F186: alle Felder sind unbedingt auszufüllen,da sonst der Spielbericht ungültig ist
F188: Klasse | G188: Herren | H188: =+H152 -> B2 | I188: Antritt Nr. | J188: 6 | L188: Datum | M188: =+Hilfstabelle!B10 -> 2025-11-18 | N188: BSG | O188: PAN 1
G190: X) | H190: Pass-Nr. | I190: Vor-und Zuname | M190: I | N190: II | O190: III | P190: Gesamt
F191: 1 | H191: =IF(I191>0,VLOOKUP(I191,Tabelle2[#Data],2,0),"") -> 24774 | I191: =+Spielereinteilung!B40 -> Frank Nijholt
F192: 2 | H192: =IF(I192>0,VLOOKUP(I192,Tabelle2[#Data],2,0),"") -> 22115 | I192: =+Spielereinteilung!B42 -> Ilona Wetzel
F193: 3 | H193: =IF(I193>0,VLOOKUP(I193,Tabelle2[#Data],2,0),"") -> 22113 | I193: =+Spielereinteilung!B44 -> Michael Wetzel
F194: 4 | H194: =IF(I194>0,VLOOKUP(I194,Tabelle2[#Data],2,0),"") -> 23302 | I194: =+Spielereinteilung!B46 -> Mario Jurk
F195: 5
F196: Bitte mit einem x) versehen | I196: Unterschrift des Spiel-
F197: wenn Ersatzspieler/in | I197: partners
F199: Spielbericht BOWLING
F200: Betriebssportverband Hamburg e.V. | P200: Punktspielserie
F201: alle Felder sind unbedingt auszufüllen,da sonst der Spielbericht ungültig ist
F203: Klasse | G203: Herren | H203: =+H188 -> B2 | I203: Antritt Nr. | J203: =J188 -> 6 | L203: Datum | M203: =+M188 -> 2025-11-18 | N203: BSG | O203: =+O188 -> PAN 1
G205: X) | H205: Pass-Nr. | I205: Vor-und Zuname | M205: I | N205: II | O205: III | P205: Gesamt
F206: 1 | G206: =G191 -> 0 | H206: =+H191 -> 24774 | I206: Frank Nijholt
F207: 2 | G207: =G192 -> 0 | H207: 22115 | I207: Ilona Wetzel
F208: 3 | G208: =G193 -> 0 | H208: 22113 | I208: Michael Wetzel
F209: 4 | G209: =G194 -> 0 | H209: 23302 | I209: Mario Jurk
F210: 5 | G210: =G195 -> 0 | H210: 0 | I210: 0
F211: Bitte mit einem x) versehen | I211: Unterschrift des Spiel-
F212: wenn Ersatzspieler/in | I212: partners
F220: Spielbericht BOWLING
F221: Betriebssportverband Hamburg e.V. | P221: Punktspielserie
F222: alle Felder sind unbedingt auszufüllen,da sonst der Spielbericht ungültig ist
F224: Klasse | G224: Herren | H224: =+H188 -> B2 | I224: Antritt Nr. | J224: 7 | L224: Datum | M224: =+Hilfstabelle!B11 -> 2026-01-13 | N224: BSG | O224: PAN 1
G226: X) | H226: Pass-Nr. | I226: Vor-und Zuname | M226: I | N226: II | O226: III | P226: Gesamt
F227: 1 | H227: =IF(I227>0,VLOOKUP(I227,Tabelle2[#Data],2,0),"") -> 20137 | I227: =+Spielereinteilung!K40 -> Matthias Nolte
F228: 2 | H228: =IF(I228>0,VLOOKUP(I228,Tabelle2[#Data],2,0),"") -> 24774 | I228: =+Spielereinteilung!K42 -> Frank Nijholt
F229: 3 | H229: =IF(I229>0,VLOOKUP(I229,Tabelle2[#Data],2,0),"") -> 19222 | I229: =+Spielereinteilung!K44 -> Annegret Schmidt
F230: 4 | H230: =IF(I230>0,VLOOKUP(I230,Tabelle2[#Data],2,0),"") -> 23302 | I230: =+Spielereinteilung!K46 -> Mario Jurk
F231: 5
F232: Bitte mit einem x) versehen | I232: Unterschrift des Spiel-
F233: wenn Ersatzspieler/in | I233: partners
F235: Spielbericht BOWLING
F236: Betriebssportverband Hamburg e.V. | P236: Punktspielserie
F237: alle Felder sind unbedingt auszufüllen,da sonst der Spielbericht ungültig ist
F239: Klasse | G239: Herren | H239: =+H224 -> B2 | I239: Antritt Nr. | J239: =J224 -> 7 | L239: Datum | M239: =+M224 -> 2026-01-13 | N239: BSG | O239: =+O224 -> PAN 1
G241: X) | H241: Pass-Nr. | I241: Vor-und Zuname | M241: I | N241: II | O241: III | P241: Gesamt
F242: 1 | G242: =G227 -> 0 | H242: =+H227 -> 20137 | I242: =+I227 -> Matthias Nolte
F243: 2 | G243: =G228 -> 0 | H243: =+H228 -> 24774 | I243: =+I228 -> Frank Nijholt
F244: 3 | G244: =G229 -> 0 | H244: =+H229 -> 19222 | I244: =+I229 -> Annegret Schmidt
F245: 4 | G245: =G230 -> 0 | H245: =+H230 -> 23302 | I245: =+I230 -> Mario Jurk
F246: 5 | G246: =G231 -> 0 | H246: =+Spielberichte!H195 -> 0 | I246: =+I231 -> 0
F247: Bitte mit einem x) versehen | I247: Unterschrift des Spiel-
F248: wenn Ersatzspieler/in | I248: partners
F256: Spielbericht BOWLING
F257: Betriebssportverband Hamburg e.V. | P257: Punktspielserie
F258: alle Felder sind unbedingt auszufüllen,da sonst der Spielbericht ungültig ist
F260: Klasse | G260: Herren | H260: =+H224 -> B2 | I260: Antritt Nr. | J260: 8 | L260: Datum | M260: =+Hilfstabelle!B12 -> 2026-01-27 | N260: BSG | O260: PAN 1
G262: X) | H262: Pass-Nr. | I262: Vor-und Zuname | M262: I | N262: II | O262: III | P262: Gesamt
F263: 1 | H263: =IF(I263>0,VLOOKUP(I263,Tabelle2[#Data],2,0),"") -> 22115 | I263: =+Spielereinteilung!T40 -> Ilona Wetzel
F264: 2 | H264: =IF(I264>0,VLOOKUP(I264,Tabelle2[#Data],2,0),"") -> 19221 | I264: =+Spielereinteilung!T42 -> Jörg Frahm
F265: 3 | H265: =IF(I265>0,VLOOKUP(I265,Tabelle2[#Data],2,0),"") -> 21889 | I265: =+Spielereinteilung!T44 -> Kai Roßberg
F266: 4 | H266: =IF(I266>0,VLOOKUP(I266,Tabelle2[#Data],2,0),"") -> 23302 | I266: =+Spielereinteilung!T46 -> Mario Jurk
F267: 5
F268: Bitte mit einem x) versehen | I268: Unterschrift des Spiel-
F269: wenn Ersatzspieler/in | I269: partners
F271: Spielbericht BOWLING
F272: Betriebssportverband Hamburg e.V. | P272: Punktspielserie
F273: alle Felder sind unbedingt auszufüllen,da sonst der Spielbericht ungültig ist
F275: Klasse | G275: Herren | H275: =+H260 -> B2 | I275: Antritt Nr. | J275: =J260 -> 8 | L275: Datum | M275: =+M260 -> 2026-01-27 | N275: BSG | O275: =+O260 -> PAN 1
G277: X) | H277: Pass-Nr. | I277: Vor-und Zuname | M277: I | N277: II | O277: III | P277: Gesamt
F278: 1 | G278: =G263 -> 0 | H278: =+H263 -> 22115 | I278: Ilona Wetzel
F279: 2 | G279: =G264 -> 0 | H279: 19221 | I279: Jörg Frahm
F280: 3 | G280: =G265 -> 0 | H280: 21889 | I280: Kai Roßberg
F281: 4 | G281: =G266 -> 0 | H281: 23302 | I281: Mario Jurk
F282: 5 | G282: =G267 -> 0 | H282: 0 | I282: 0
F283: Bitte mit einem x) versehen | I283: Unterschrift des Spiel-
F284: wenn Ersatzspieler/in | I284: partners
F292: Spielbericht BOWLING
F293: Betriebssportverband Hamburg e.V. | P293: Punktspielserie
F294: alle Felder sind unbedingt auszufüllen,da sonst der Spielbericht ungültig ist
F296: Klasse | G296: Herren | H296: =+H260 -> B2 | I296: Antritt Nr. | J296: 9 | L296: Datum | M296: =+Hilfstabelle!B13 -> 2026-02-10 | N296: BSG | O296: PAN 1
G298: X) | H298: Pass-Nr. | I298: Vor-und Zuname | M298: I | N298: II | O298: III | P298: Gesamt
F299: 1 | H299: =IF(I299>0,VLOOKUP(I299,Tabelle2[#Data],2,0),"") -> 19222 | I299: =+Spielereinteilung!AC40 -> Annegret Schmidt
... 138 more rows

Sheet Spielereinteilung
A1: Start
A2: Rangliste
G3: =+"Spielplan 1. Mannschaft, Saison "&+Hilfstabelle!D5 -> Spielplan 1. Mannschaft, Saison 2025/2026
G5: ="Mannschaftsschnitt Saison: "&Hilfstabelle!BF4&" - Schnitt Mannschaft: "&Hilfstabelle!BH5&" Schnitt Spieler: "&Hilfstabelle!BI5 -> Mannschaftsschnitt Saison: 24/25 - Schnitt Mannschaft: 1875 Schnitt Spieler: 156,27 | AN5: Übersicht
B8: 2025 / 1. - 5. Antritt
B12: Bahn: | D12: =VLOOKUP(F13,Hilfstabelle!$BC$3:$BD$16,2,0) -> Othmarschen - (OT) | K12: Bahn: | M12: =VLOOKUP(O13,Hilfstabelle!$BC$3:$BD$16,2,0) -> Wandsbek - (WB) | T12: Bahn: | V12: =VLOOKUP(X13,Hilfstabelle!$BC$3:$BD$16,2,0) -> Othmarschen - (OT) | AC12: Bahn: | AE12: =VLOOKUP(AG13,Hilfstabelle!$BC$3:$BD$16,2,0) -> Wandsbek - (WB) | AL12: Bahn: | AN12: =VLOOKUP(AP13,Hilfstabelle!$BC$3:$BD$16,2,0) -> Othmarschen - (OT)
B13: 1. | C13: Antritt | F13: =VLOOKUP(B13,Hilfstabelle!$A$5:$B$18,2,0) -> 2025-09-09 | K13: 2. | L13: Antritt | O13: =VLOOKUP(K13,Hilfstabelle!$A$5:$B$18,2,0) -> 2025-09-23 | T13: 3. | U13: Antritt | X13: =VLOOKUP(T13,Hilfstabelle!$A$5:$B$18,2,0) -> 2025-10-07 | AC13: 4. | AD13: Antritt | AG13: =VLOOKUP(AC13,Hilfstabelle!$A$5:$B$18,2,0) -> 2025-10-21 | AL13: 5. | AM13: Antritt | AP13: =VLOOKUP(AL13,Hilfstabelle!$A$5:$B$18,2,0) -> 2025-11-04
B14: =+B106 -> Jörg Frahm | G14: =IFERROR(VLOOKUP(B14,Hilfstabelle!$AZ$3:$BA$11,2,0),"") -> 170.9677419 | K14: =+K106 -> Frank Nijholt | P14: =IFERROR(VLOOKUP(K14,Hilfstabelle!$AZ$3:$BA$11,2,0),"") -> 136.7333333 | T14: =+T106 -> Matthias Nolte | Y14: =IFERROR(VLOOKUP(T14,Hilfstabelle!$AZ$3:$BA$11,2,0),"") -> 133.3333333 | AC14: =+AC106 -> Frank Nijholt | AH14: =IFERROR(VLOOKUP(AC14,Hilfstabelle!$AZ$3:$BA$11,2,0),"") -> 136.7333333 | AL14: =+AL106 -> Matthias Nolte | AQ14: =IFERROR(VLOOKUP(AL14,Hilfstabelle!$AZ$3:$BA$11,2,0),"") -> 133.3333333
B15: Heute gespielt: | G15: =IFERROR(VLOOKUP(B14,'Hilfstabelle Spieler'!$O$4:$P$12,2,0),"")/3 -> 143.6666667 | K15: Heute gespielt: | P15: =IFERROR(VLOOKUP(K14,'Hilfstabelle Spieler'!$O$4:$AC$12,3,0),"")/3 -> 166.6666667 | T15: Heute gespielt: | Y15: =IFERROR(VLOOKUP(T14,'Hilfstabelle Spieler'!$O$4:$AC$12,4,0),"")/3 -> 142.6666667 | AC15: Heute gespielt: | AH15: =IFERROR(VLOOKUP(AC14,'Hilfstabelle Spieler'!$O$4:$AC$12,5,0),"")/3 -> 143.6666667 | AL15: Heute gespielt: | AQ15: =IFERROR(VLOOKUP(AL14,'Hilfstabelle Spieler'!$O$4:$AC$12,6,0),"")/3 -> 131
B16: =+B107 -> Ilona Wetzel | G16: =IFERROR(VLOOKUP(B16,Hilfstabelle!$AZ$3:$BA$11,2,0),"") -> 153.755102 | K16: =+K107 -> Annegret Schmidt | P16: =IFERROR(VLOOKUP(K16,Hilfstabelle!$AZ$3:$BA$11,2,0),"") -> 137.5079365 | T16: =+T107 -> Ilona Wetzel | Y16: =IFERROR(VLOOKUP(T16,Hilfstabelle!$AZ$3:$BA$11,2,0),"") -> 153.755102 | AC16: =+AC107 -> Deniz Hagelstein | AH16: =IFERROR(VLOOKUP(AC16,Hilfstabelle!$AZ$3:$BA$11,2,0),"") -> 134.1904762 | AL16: =+AL107 -> Deniz Hagelstein | AQ16: =IFERROR(VLOOKUP(AL16,Hilfstabelle!$AZ$3:$BA$11,2,0),"") -> 134.1904762
B17: Heute gespielt: | G17: =IFERROR(VLOOKUP(B16,'Hilfstabelle Spieler'!$O$4:$P$12,2,0),"")/3 -> 140 | K17: Heute gespielt: | P17: =IFERROR(VLOOKUP(K16,'Hilfstabelle Spieler'!$O$4:$AC$12,3,0),"")/3 -> 137.6666667 | T17: Heute gespielt: | Y17: =IFERROR(VLOOKUP(T16,'Hilfstabelle Spieler'!$O$4:$AC$12,4,0),"")/3 -> 141.3333333 | AC17: Heute gespielt: | AH17: =IFERROR(VLOOKUP(AC16,'Hilfstabelle Spieler'!$O$4:$AC$12,5,0),"")/3 -> 161.6666667 | AL17: Heute gespielt: | AQ17: =IFERROR(VLOOKUP(AL16,'Hilfstabelle Spieler'!$O$4:$AC$12,6,0),"")/3 -> 
B18: =+B108 -> Michael Wetzel | G18: =IFERROR(VLOOKUP(B18,Hilfstabelle!$AZ$3:$BA$11,2,0),"") -> 176.7857143 | K18: =+K108 -> Jörg Frahm | P18: =IFERROR(VLOOKUP(K18,Hilfstabelle!$AZ$3:$BA$11,2,0),"") -> 170.9677419 | T18: =+T108 -> Annegret Schmidt | Y18: =IFERROR(VLOOKUP(T18,Hilfstabelle!$AZ$3:$BA$11,2,0),"") -> 137.5079365 | AC18: =+AC108 -> Michael Wetzel | AH18: =IFERROR(VLOOKUP(AC18,Hilfstabelle!$AZ$3:$BA$11,2,0),"") -> 176.7857143 | AL18: =+AL108 -> Ilona Wetzel | AQ18: =IFERROR(VLOOKUP(AL18,Hilfstabelle!$AZ$3:$BA$11,2,0),"") -> 153.755102
B19: Heute gespielt: | G19: =IFERROR(VLOOKUP(B18,'Hilfstabelle Spieler'!$O$4:$P$12,2,0),"")/3 -> 174.6666667 | K19: Heute gespielt: | P19: =IFERROR(VLOOKUP(K18,'Hilfstabelle Spieler'!$O$4:$AC$12,3,0),"")/3 -> 165.3333333 | T19: Heute gespielt: | Y19: =IFERROR(VLOOKUP(T18,'Hilfstabelle Spieler'!$O$4:$AC$12,4,0),"")/3 -> 147.6666667 | AC19: Heute gespielt: | AH19: =IFERROR(VLOOKUP(AC18,'Hilfstabelle Spieler'!$O$4:$AC$12,5,0),"")/3 -> 162.6666667 | AL19: Heute gespielt: | AQ19: =IFERROR(VLOOKUP(AL18,'Hilfstabelle Spieler'!$O$4:$AC$12,6,0),"")/3 -> 158.3333333
B20: =+B109 -> Kai Roßberg | G20: =IFERROR(VLOOKUP(B20,Hilfstabelle!$AZ$3:$BA$11,2,0),"") -> 179.4166667 | K20: =+K109 -> Kai Roßberg | P20: =IFERROR(VLOOKUP(K20,Hilfstabelle!$AZ$3:$BA$11,2,0),"") -> 179.4166667 | T20: =+T109 -> Kai Roßberg | Y20: =IFERROR(VLOOKUP(T20,Hilfstabelle!$AZ$3:$BA$11,2,0),"") -> 179.4166667 | AC20: =+AC109 -> Mario Jurk | AH20: =IFERROR(VLOOKUP(AC20,Hilfstabelle!$AZ$3:$BA$11,2,0),"") -> 180.2777778 | AL20: =+AL109 -> Kai Roßberg | AQ20: =IFERROR(VLOOKUP(AL20,Hilfstabelle!$AZ$3:$BA$11,2,0),"") -> 179.4166667
B21: Heute gespielt: | G21: =IFERROR(VLOOKUP(B20,'Hilfstabelle Spieler'!$O$4:$P$12,2,0),"")/3 -> 182 | K21: Heute gespielt: | P21: =IFERROR(VLOOKUP(K20,'Hilfstabelle Spieler'!$O$4:$AC$12,3,0),"")/3 -> 182 | T21: Heute gespielt: | Y21: =IFERROR(VLOOKUP(T20,'Hilfstabelle Spieler'!$O$4:$AC$12,4,0),"")/3 -> 184 | AC21: Heute gespielt: | AH21: =IFERROR(VLOOKUP(AC20,'Hilfstabelle Spieler'!$O$4:$AC$12,5,0),"")/3 -> 209.3333333 | AL21: Heute gespielt: | AQ21: =IFERROR(VLOOKUP(AL20,'Hilfstabelle Spieler'!$O$4:$AC$12,6,0),"")/3 -> 157.3333333
B23: Zu erwartender Mannschaftsschnitt: | G23: =SUM(G14+G16+G18+G20)/4 -> 170.2313062 | K23: Zu erwartender Mannschaftsschnitt: | P23: =SUM(P14+P16+P18+P20)/4 -> 156.1564196 | T23: Zu erwartender Mannschaftsschnitt: | Y23: =SUM(Y14+Y16+Y18+Y20)/4 -> 151.0032596 | AC23: Zu erwartender Mannschaftsschnitt: | AH23: =SUM(AH14+AH16+AH18+AH20)/4 -> 156.9968254 | AL23: Zu erwartender Mannschaftsschnitt: | AQ23: =SUM(AQ14+AQ16+AQ18+AQ20)/4 -> 150.1738946
G24: =SUM(G23*12) -> 2042.775675 | P24: =SUM(P23*12) -> 1873.877035 | Y24: =SUM(Y23*12) -> 1812.039116 | AH24: =SUM(AH23*12) -> 1883.961905 | AQ24: =SUM(AQ23*12) -> 1802.086735
B25: Tatsächliches Ergebnis: | G25: =+G26/12 -> 160.0833333 | K25: Tatsächliches Ergebnis: | P25: =+P26/12 -> 162.9166667 | T25: Tatsächliches Ergebnis: | Y25: =+Y26/12 -> 153.9166667 | AC25: Tatsächliches Ergebnis: | AH25: =+AH26/12 -> 169.3333333 | AL25: Tatsächliches Ergebnis: | AQ25: =+AQ26/12 -> 156.5833333
G26: =+'Übersicht der Klasse B4'!H18 -> 1921 | P26: =+'Übersicht der Klasse B4'!I18 -> 1955 | Y26: =+'Übersicht der Klasse B4'!J18 -> 1847 | AH26: =+'Übersicht der Klasse B4'!K18 -> 2032 | AQ26: =+'Übersicht der Klasse B4'!L18 -> 1879
B28: Reserve | K28: Reserve | T28: Reserve | AC28: Reserve | AL28: Reserve
B29: Annegret Schmidt | G29: =IFERROR(VLOOKUP(B29,Hilfstabelle!$AZ$3:$BA$11,2,0),"") -> 137.5079365 | K29: Mario Jurk | P29: =IFERROR(VLOOKUP(K29,Hilfstabelle!$AZ$3:$BA$11,2,0),"") -> 180.2777778 | T29: Jörg Frahm | Y29: =IFERROR(VLOOKUP(T29,Hilfstabelle!$AZ$3:$BA$11,2,0),"") -> 170.9677419 | AC29: Ilona Wetzel | AH29: =IFERROR(VLOOKUP(AC29,Hilfstabelle!$AZ$3:$BA$11,2,0),"") -> 153.755102 | AL29: Annegret Schmidt | AQ29: =IFERROR(VLOOKUP(AL29,Hilfstabelle!$AZ$3:$BA$11,2,0),"") -> 137.5079365
B30: Matthias Nolte | G30: =IFERROR(VLOOKUP(B30,Hilfstabelle!$AZ$3:$BA$11,2,0),"") -> 133.3333333 | K30: Deniz Hagelstein | P30: =IFERROR(VLOOKUP(K30,Hilfstabelle!$AZ$3:$BA$11,2,0),"") -> 134.1904762 | T30: Mario Jurk | Y30: =IFERROR(VLOOKUP(T30,Hilfstabelle!$AZ$3:$BA$11,2,0),"") -> 180.2777778 | AC30: Matthias Nolte | AH30: =IFERROR(VLOOKUP(AC30,Hilfstabelle!$AZ$3:$BA$11,2,0),"") -> 133.3333333 | AL30: Mario Jurk | AQ30: =IFERROR(VLOOKUP(AL30,Hilfstabelle!$AZ$3:$BA$11,2,0),"") -> 180.2777778
B31: Frank Nijholt | G31: =IFERROR(VLOOKUP(B31,Hilfstabelle!$AZ$3:$BA$11,2,0),"") -> 136.7333333 | K31: Matthias Nolte | P31: =IFERROR(VLOOKUP(K31,Hilfstabelle!$AZ$3:$BA$11,2,0),"") -> 133.3333333 | T31: Frank Nijholt | Y31: =IFERROR(VLOOKUP(T31,Hilfstabelle!$AZ$3:$BA$11,2,0),"") -> 136.7333333 | AC31: Annegret Schmidt | AH31: =IFERROR(VLOOKUP(AC31,Hilfstabelle!$AZ$3:$BA$11,2,0),"") -> 137.5079365 | AL31: Frank Nijholt | AQ31: =IFERROR(VLOOKUP(AL31,Hilfstabelle!$AZ$3:$BA$11,2,0),"") -> 136.7333333
B32: Mario Jurk | G32: =IFERROR(VLOOKUP(B32,Hilfstabelle!$AZ$3:$BA$11,2,0),"") -> 180.2777778 | K32: Michael Wetzel | P32: =IFERROR(VLOOKUP(K32,Hilfstabelle!$AZ$3:$BA$11,2,0),"") -> 176.7857143 | T32: Deniz Hagelstein | Y32: =IFERROR(VLOOKUP(T32,Hilfstabelle!$AZ$3:$BA$11,2,0),"") -> 134.1904762 | AC32: Kai Roßberg | AH32: =IFERROR(VLOOKUP(AC32,Hilfstabelle!$AZ$3:$BA$11,2,0),"") -> 179.4166667 | AL32: Jörg Frahm | AQ32: =IFERROR(VLOOKUP(AL32,Hilfstabelle!$AZ$3:$BA$11,2,0),"") -> 170.9677419
B33: Deniz Hagelstein | G33: =IFERROR(VLOOKUP(B33,Hilfstabelle!$AZ$3:$BA$11,2,0),"") -> 134.1904762 | K33: Ilona Wetzel | P33: =IFERROR(VLOOKUP(K33,Hilfstabelle!$AZ$3:$BA$11,2,0),"") -> 153.755102 | T33: Michael Wetzel | Y33: =IFERROR(VLOOKUP(T33,Hilfstabelle!$AZ$3:$BA$11,2,0),"") -> 176.7857143 | AC33: Jörg Frahm | AH33: =IFERROR(VLOOKUP(AC33,Hilfstabelle!$AZ$3:$BA$11,2,0),"") -> 170.9677419 | AL33: Michael Wetzel | AQ33: =IFERROR(VLOOKUP(AL33,Hilfstabelle!$AZ$3:$BA$11,2,0),"") -> 176.7857143
B35: 2026 / 6. - 14. Antritt
B38: Bahn: | D38: =VLOOKUP(F39,Hilfstabelle!$BC$3:$BD$16,2,0) -> Wandsbek - (WB) | K38: Bahn: | M38: =VLOOKUP(O39,Hilfstabelle!$BC$3:$BD$16,2,0) -> Othmarschen - (OT) | T38: Bahn: | V38: =VLOOKUP(X39,Hilfstabelle!$BC$3:$BD$16,2,0) -> Wandsbek - (WB) | AC38: Bahn: | AE38: =VLOOKUP(AG39,Hilfstabelle!$BC$3:$BD$16,2,0) -> Othmarschen - (OT) | AL38: Bahn: | AN38: =VLOOKUP(AP39,Hilfstabelle!$BC$3:$BD$16,2,0) -> Wandsbek - (WB) | AU38: Bahn: | AW38: =VLOOKUP(AY39,Hilfstabelle!$BC$3:$BD$16,2,0) -> Othmarschen - (OT)
B39: 6. | C39: Antritt | F39: =VLOOKUP(B39,Hilfstabelle!$A$5:$B$18,2,0) -> 2025-11-18 | K39: 7. | L39: Antritt | O39: =VLOOKUP(K39,Hilfstabelle!$A$5:$B$18,2,0) -> 2026-01-13 | T39: 8. | U39: Antritt | X39: =VLOOKUP(T39,Hilfstabelle!$A$5:$B$18,2,0) -> 2026-01-27 | AC39: 9. | AD39: Antritt | AG39: =VLOOKUP(AC39,Hilfstabelle!$A$5:$B$18,2,0) -> 2026-02-10 | AL39: 10. | AM39: Antritt | AP39: =VLOOKUP(AL39,Hilfstabelle!$A$5:$B$18,2,0) -> 2026-02-24 | AU39: 11. | AV39: Antritt | AY39: =VLOOKUP(AU39,Hilfstabelle!$A$5:$B$18,2,0) -> 2026-03-10
B40: =+B115 -> Frank Nijholt | G40: =IFERROR(VLOOKUP(B40,Hilfstabelle!$AZ$3:$BA$11,2,0),"") -> 136.7333333 | K40: =+K115 -> Matthias Nolte | P40: =IFERROR(VLOOKUP(K40,Hilfstabelle!$AZ$3:$BA$11,2,0),"") -> 133.3333333 | T40: =+T115 -> Ilona Wetzel | Y40: =IFERROR(VLOOKUP(T40,Hilfstabelle!$AZ$3:$BA$11,2,0),"") -> 153.755102 | AC40: =+AC115 -> Annegret Schmidt | AH40: =IFERROR(VLOOKUP(AC40,Hilfstabelle!$AZ$3:$BA$11,2,0),"") -> 137.5079365 | AL40: =+AL115 -> Frank Nijholt | AQ40: =IFERROR(VLOOKUP(AL40,Hilfstabelle!$AZ$3:$BA$11,2,0),"") -> 136.7333333 | AU40: =+B124 -> Matthias Nolte | AZ40: =IFERROR(VLOOKUP(AU40,Hilfstabelle!$AZ$3:$BA$11,2,0),"") -> 133.3333333
B41: Heute gespielt: | G41: =IFERROR(VLOOKUP(B40,'Hilfstabelle Spieler'!$O$4:$AC$12,7,0),"")/3 ->  | K41: Heute gespielt: | P41: =IFERROR(VLOOKUP(K40,'Hilfstabelle Spieler'!$O$4:$AC$12,8,0),"")/3 ->  | T41: Heute gespielt: | Y41: =IFERROR(VLOOKUP(T40,'Hilfstabelle Spieler'!$O$4:$AC$12,9,0),"")/3 ->  | AC41: Heute gespielt: | AH41: =IFERROR(VLOOKUP(AC40,'Hilfstabelle Spieler'!$O$4:$AC$12,10,0),"")/3 ->  | AL41: Heute gespielt: | AQ41: =IFERROR(VLOOKUP(AL40,'Hilfstabelle Spieler'!$O$4:$AC$12,11,0),"")/3 ->  | AU41: Heute gespielt: | AZ41: =IFERROR(VLOOKUP(AU40,'Hilfstabelle Spieler'!$O$4:$AC$12,12,0),"")/3 -> 
B42: =+B116 -> Ilona Wetzel | G42: =IFERROR(VLOOKUP(B42,Hilfstabelle!$AZ$3:$BA$11,2,0),"") -> 153.755102 | K42: =+K116 -> Frank Nijholt | P42: =IFERROR(VLOOKUP(K42,Hilfstabelle!$AZ$3:$BA$11,2,0),"") -> 136.7333333 | T42: =+T116 -> Jörg Frahm | Y42: =IFERROR(VLOOKUP(T42,Hilfstabelle!$AZ$3:$BA$11,2,0),"") -> 170.9677419 | AC42: =+AC116 -> Ilona Wetzel | AH42: =IFERROR(VLOOKUP(AC42,Hilfstabelle!$AZ$3:$BA$11,2,0),"") -> 153.755102 | AL42: =+AL116 -> Annegret Schmidt | AQ42: =IFERROR(VLOOKUP(AL42,Hilfstabelle!$AZ$3:$BA$11,2,0),"") -> 137.5079365 | AU42: =+B125 -> Deniz Hagelstein | AZ42: =IFERROR(VLOOKUP(AU42,Hilfstabelle!$AZ$3:$BA$11,2,0),"") -> 134.1904762
B43: Heute gespielt: | G43: =IFERROR(VLOOKUP(B42,'Hilfstabelle Spieler'!$O$4:$AC$12,7,0),"")/3 ->  | K43: Heute gespielt: | P43: =IFERROR(VLOOKUP(K42,'Hilfstabelle Spieler'!$O$4:$AC$12,8,0),"")/3 ->  | T43: Heute gespielt: | Y43: =IFERROR(VLOOKUP(T42,'Hilfstabelle Spieler'!$O$4:$AC$12,9,0),"")/3 ->  | AC43: Heute gespielt: | AH43: =IFERROR(VLOOKUP(AC42,'Hilfstabelle Spieler'!$O$4:$AC$12,10,0),"")/3 ->  | AL43: Heute gespielt: | AQ43: =IFERROR(VLOOKUP(AL42,'Hilfstabelle Spieler'!$O$4:$AC$12,11,0),"")/3 ->  | AU43: Heute gespielt: | AZ43: =IFERROR(VLOOKUP(AU42,'Hilfstabelle Spieler'!$O$4:$AC$12,12,0),"")/3 -> 
B44: =+B117 -> Michael Wetzel | G44: =IFERROR(VLOOKUP(B44,Hilfstabelle!$AZ$3:$BA$11,2,0),"") -> 176.7857143 | K44: =+K117 -> Annegret Schmidt | P44: =IFERROR(VLOOKUP(K44,Hilfstabelle!$AZ$3:$BA$11,2,0),"") -> 137.5079365 | T44: =+T117 -> Kai Roßberg | Y44: =IFERROR(VLOOKUP(T44,Hilfstabelle!$AZ$3:$BA$11,2,0),"") -> 179.4166667 | AC44: =+AC117 -> Jörg Frahm | AH44: =IFERROR(VLOOKUP(AC44,Hilfstabelle!$AZ$3:$BA$11,2,0),"") -> 170.9677419 | AL44: =+AL117 -> Deniz Hagelstein | AQ44: =IFERROR(VLOOKUP(AL44,Hilfstabelle!$AZ$3:$BA$11,2,0),"") -> 134.1904762 | AU44: =+B126 -> Frank Nijholt | AZ44: =IFERROR(VLOOKUP(AU44,Hilfstabelle!$AZ$3:$BA$11,2,0),"") -> 136.7333333
B45: Heute gespielt: | G45: =IFERROR(VLOOKUP(B44,'Hilfstabelle Spieler'!$O$4:$AC$12,7,0),"")/3 ->  | K45: Heute gespielt: | P45: =IFERROR(VLOOKUP(K44,'Hilfstabelle Spieler'!$O$4:$AC$12,8,0),"")/3 ->  | T45: Heute gespielt: | Y45: =IFERROR(VLOOKUP(T44,'Hilfstabelle Spieler'!$O$4:$AC$12,9,0),"")/3 ->  | AC45: Heute gespielt: | AH45: =IFERROR(VLOOKUP(AC44,'Hilfstabelle Spieler'!$O$4:$AC$12,10,0),"")/3 ->  | AL45: Heute gespielt: | AQ45: =IFERROR(VLOOKUP(AL44,'Hilfstabelle Spieler'!$O$4:$AC$12,11,0),"")/3 ->  | AU45: Heute gespielt: | AZ45: =IFERROR(VLOOKUP(AU44,'Hilfstabelle Spieler'!$O$4:$AC$12,12,0),"")/3 -> 
B46: =+B118 -> Mario Jurk | G46: =IFERROR(VLOOKUP(B46,Hilfstabelle!$AZ$3:$BA$11,2,0),"") -> 180.2777778 | K46: =+K118 -> Mario Jurk | P46: =IFERROR(VLOOKUP(K46,Hilfstabelle!$AZ$3:$BA$11,2,0),"") -> 180.2777778 | T46: =+T118 -> Mario Jurk | Y46: =IFERROR(VLOOKUP(T46,Hilfstabelle!$AZ$3:$BA$11,2,0),"") -> 180.2777778 | AC46: =+AC118 -> Michael Wetzel | AH46: =IFERROR(VLOOKUP(AC46,Hilfstabelle!$AZ$3:$BA$11,2,0),"") -> 176.7857143 | AL46: =+AL118 -> Michael Wetzel | AQ46: =IFERROR(VLOOKUP(AL46,Hilfstabelle!$AZ$3:$BA$11,2,0),"") -> 176.7857143 | AU46: =+B127 -> Mario Jurk | AZ46: =IFERROR(VLOOKUP(AU46,Hilfstabelle!$AZ$3:$BA$11,2,0),"") -> 180.2777778
B47: Heute gespielt: | G47: =IFERROR(VLOOKUP(B46,'Hilfstabelle Spieler'!$O$4:$AC$12,7,0),"")/3 ->  | K47: Heute gespielt: | P47: =IFERROR(VLOOKUP(K46,'Hilfstabelle Spieler'!$O$4:$AC$12,8,0),"")/3 ->  | T47: Heute gespielt: | Y47: =IFERROR(VLOOKUP(T46,'Hilfstabelle Spieler'!$O$4:$AC$12,9,0),"")/3 ->  | AC47: Heute gespielt: | AH47: =IFERROR(VLOOKUP(AC46,'Hilfstabelle Spieler'!$O$4:$AC$12,10,0),"")/3 ->  | AL47: Heute gespielt: | AQ47: =IFERROR(VLOOKUP(AL46,'Hilfstabelle Spieler'!$O$4:$AC$12,11,0),"")/3 ->  | AU47: Heute gespielt: | AZ47: =IFERROR(VLOOKUP(AU46,'Hilfstabelle Spieler'!$O$4:$AC$12,12,0),"")/3 -> 
B49: Zu erwartender Mannschaftsschnitt: | G49: =SUM(G40+G42+G44+G46)/4 -> 161.8879819 | K49: Zu erwartender Mannschaftsschnitt: | P49: =SUM(P40+P42+P44+P46)/4 -> 146.9630952 | T49: Zu erwartender Mannschaftsschnitt: | Y49: =SUM(Y40+Y42+Y44+Y46)/4 -> 171.1043221 | AC49: Zu erwartender Mannschaftsschnitt: | AH49: =SUM(AH40+AH42+AH44+AH46)/4 -> 159.7541237 | AL49: Zu erwartender Mannschaftsschnitt: | AQ49: =SUM(AQ40+AQ42+AQ44+AQ46)/4 -> 146.3043651 | AU49: Zu erwartender Mannschaftsschnitt: | AZ49: =SUM(AZ40+AZ42+AZ44+AZ46)/4 -> 146.1337302
G50: =SUM(G49*12) -> 1942.655782 | P50: =SUM(P49*12) -> 1763.557143 | Y50: =SUM(Y49*12) -> 2053.251865 | AH50: =SUM(AH49*12) -> 1917.049484 | AQ50: =SUM(AQ49*12) -> 1755.652381 | AZ50: =SUM(AZ49*12) -> 1753.604762
B51: Tatsächliches Ergebnis: | G51: =+G52/12 -> 0 | K51: Tatsächliches Ergebnis: | P51: =+P52/12 -> 0 | T51: Tatsächliches Ergebnis: | Y51: =+Y52/12 -> 0 | AC51: Tatsächliches Ergebnis: | AH51: =+AH52/12 -> 0 | AL51: Tatsächliches Ergebnis: | AQ51: =+AQ52/12 -> 0 | AU51: Tatsächliches Ergebnis: | AZ51: =+AZ52/12 -> 0
G52: =+'Übersicht der Klasse B4'!M18 -> 0 | P52: =+'Übersicht der Klasse B4'!N18 -> 0 | Y52: =+'Übersicht der Klasse B4'!O18 -> 0 | AH52: =+'Übersicht der Klasse B4'!P18 -> 0 | AQ52: =+'Übersicht der Klasse B4'!Q18 -> 0 | AZ52: =+'Übersicht der Klasse B4'!R18 -> 0
B54: Reserve | K54: Reserve | T54: Reserve | AC54: Reserve | AL54: Reserve | AU54: Reserve
B55: Annegret Schmidt | G55: =IFERROR(VLOOKUP(B55,Hilfstabelle!$AZ$3:$BA$11,2,0),"") -> 137.5079365 | K55: Deniz Hagelstein | P55: =IFERROR(VLOOKUP(K55,Hilfstabelle!$AZ$3:$BA$11,2,0),"") -> 134.1904762 | T55: Annegret Schmidt | Y55: =IFERROR(VLOOKUP(T55,Hilfstabelle!$AZ$3:$BA$11,2,0),"") -> 137.5079365 | AC55: Kai Roßberg | AH55: =IFERROR(VLOOKUP(AC55,Hilfstabelle!$AZ$3:$BA$11,2,0),"") -> 179.4166667 | AL55: Kai Roßberg | AQ55: =IFERROR(VLOOKUP(AL55,Hilfstabelle!$AZ$3:$BA$11,2,0),"") -> 179.4166667 | AU55: Jörg Frahm | AZ55: =IFERROR(VLOOKUP(AU55,Hilfstabelle!$AZ$3:$BA$11,2,0),"") -> 170.9677419
B56: Matthias Nolte | G56: =IFERROR(VLOOKUP(B56,Hilfstabelle!$AZ$3:$BA$11,2,0),"") -> 133.3333333 | K56: Ilona Wetzel | P56: =IFERROR(VLOOKUP(K56,Hilfstabelle!$AZ$3:$BA$11,2,0),"") -> 153.755102 | T56: Deniz Hagelstein | Y56: =IFERROR(VLOOKUP(T56,Hilfstabelle!$AZ$3:$BA$11,2,0),"") -> 134.1904762 | AC56: Frank Nijholt | AH56: =IFERROR(VLOOKUP(AC56,Hilfstabelle!$AZ$3:$BA$11,2,0),"") -> 136.7333333 | AL56: Jörg Frahm | AQ56: =IFERROR(VLOOKUP(AL56,Hilfstabelle!$AZ$3:$BA$11,2,0),"") -> 170.9677419 | AU56: Michael Wetzel | AZ56: =IFERROR(VLOOKUP(AU56,Hilfstabelle!$AZ$3:$BA$11,2,0),"") -> 176.7857143
B57: Deniz Hagelstein | G57: =IFERROR(VLOOKUP(B57,Hilfstabelle!$AZ$3:$BA$11,2,0),"") -> 134.1904762 | K57: Jörg Frahm | P57: =IFERROR(VLOOKUP(K57,Hilfstabelle!$AZ$3:$BA$11,2,0),"") -> 170.9677419 | T57: Frank Nijholt | Y57: =IFERROR(VLOOKUP(T57,Hilfstabelle!$AZ$3:$BA$11,2,0),"") -> 136.7333333 | AC57: Mario Jurk | AH57: =IFERROR(VLOOKUP(AC57,Hilfstabelle!$AZ$3:$BA$11,2,0),"") -> 180.2777778 | AL57: Mario Jurk | AQ57: =IFERROR(VLOOKUP(AL57,Hilfstabelle!$AZ$3:$BA$11,2,0),"") -> 180.2777778 | AU57: Ilona Wetzel | AZ57: =IFERROR(VLOOKUP(AU57,Hilfstabelle!$AZ$3:$BA$11,2,0),"") -> 153.755102
B58: Kai Roßberg | G58: =IFERROR(VLOOKUP(B58,Hilfstabelle!$AZ$3:$BA$11,2,0),"") -> 179.4166667 | K58: Michael Wetzel | P58: =IFERROR(VLOOKUP(K58,Hilfstabelle!$AZ$3:$BA$11,2,0),"") -> 176.7857143 | T58: Michael Wetzel | Y58: =IFERROR(VLOOKUP(T58,Hilfstabelle!$AZ$3:$BA$11,2,0),"") -> 176.7857143 | AC58: Deniz Hagelstein | AH58: =IFERROR(VLOOKUP(AC58,Hilfstabelle!$AZ$3:$BA$11,2,0),"") -> 134.1904762 | AL58: Ilona Wetzel | AQ58: =IFERROR(VLOOKUP(AL58,Hilfstabelle!$AZ$3:$BA$11,2,0),"") -> 153.755102 | AU58: Annegret Schmidt | AZ58: =IFERROR(VLOOKUP(AU58,Hilfstabelle!$AZ$3:$BA$11,2,0),"") -> 137.5079365
B59: Jörg Frahm | G59: =IFERROR(VLOOKUP(B59,Hilfstabelle!$AZ$3:$BA$11,2,0),"") -> 170.9677419 | K59: Kai Roßberg | P59: =IFERROR(VLOOKUP(K59,Hilfstabelle!$AZ$3:$BA$11,2,0),"") -> 179.4166667 | T59: Matthias Nolte | Y59: =IFERROR(VLOOKUP(T59,Hilfstabelle!$AZ$3:$BA$11,2,0),"") -> 133.3333333 | AC59: Matthias Nolte | AH59: =IFERROR(VLOOKUP(AC59,Hilfstabelle!$AZ$3:$BA$11,2,0),"") -> 133.3333333 | AL59: Matthias Nolte | AQ59: =IFERROR(VLOOKUP(AL59,Hilfstabelle!$AZ$3:$BA$11,2,0),"") -> 133.3333333 | AU59: Kai Roßberg | AZ59: =IFERROR(VLOOKUP(AU59,Hilfstabelle!$AZ$3:$BA$11,2,0),"") -> 179.4166667
B62: Bahn: | D62: =VLOOKUP(F63,Hilfstabelle!$BC$3:$BD$16,2,0) -> Wandsbek - (WB) | K62: Bahn: | M62: =VLOOKUP(O63,Hilfstabelle!$BC$3:$BD$16,2,0) -> Othmarschen - (OT) | T62: Bahn: | V62: =VLOOKUP(X63,Hilfstabelle!$BC$3:$BD$16,2,0) -> Wandsbek - (WB)
B63: 12. | C63: Antritt | F63: =VLOOKUP(B63,Hilfstabelle!$A$5:$B$18,2,0) -> 2026-03-24 | K63: 13. | L63: Antritt | O63: =VLOOKUP(K63,Hilfstabelle!$A$5:$B$18,2,0) -> 2026-04-07 | T63: 14. | U63: Antritt | X63: =VLOOKUP(T63,Hilfstabelle!$A$5:$B$18,2,0) -> 2026-04-21
B64: =+K124 -> Deniz Hagelstein | G64: =IFERROR(VLOOKUP(B64,Hilfstabelle!$AZ$3:$BA$11,2,0),"") -> 134.1904762 | K64: =+T124 -> Matthias Nolte | P64: =IFERROR(VLOOKUP(K64,Hilfstabelle!$AZ$3:$BA$11,2,0),"") -> 133.3333333 | T64: =+AC124 -> Deniz Hagelstein | Y64: =IFERROR(VLOOKUP(T64,Hilfstabelle!$AZ$3:$BA$11,2,0),"") -> 134.1904762
B65: Heute gespielt: | G65: =IFERROR(VLOOKUP(B64,'Hilfstabelle Spieler'!$O$4:$AC$12,13,0),"")/3 ->  | K65: Heute gespielt: | P65: =IFERROR(VLOOKUP(K64,'Hilfstabelle Spieler'!$O$4:$AC$12,14,0),"")/3 ->  | T65: Heute gespielt: | Y65: =IFERROR(VLOOKUP(T64,'Hilfstabelle Spieler'!$O$4:$AC$12,15,0),"")/3 -> 
B66: =+K125 -> Annegret Schmidt | G66: =IFERROR(VLOOKUP(B66,Hilfstabelle!$AZ$3:$BA$11,2,0),"") -> 137.5079365 | K66: =+T125 -> Jörg Frahm | P66: =IFERROR(VLOOKUP(K66,Hilfstabelle!$AZ$3:$BA$11,2,0),"") -> 170.9677419 | T66: =+AC125 -> Ilona Wetzel | Y66: =IFERROR(VLOOKUP(T66,Hilfstabelle!$AZ$3:$BA$11,2,0),"") -> 153.755102
B67: Heute gespielt: | G67: =IFERROR(VLOOKUP(B66,'Hilfstabelle Spieler'!$O$4:$AC$12,13,0),"")/3 ->  | K67: Heute gespielt: | P67: =IFERROR(VLOOKUP(K66,'Hilfstabelle Spieler'!$O$4:$AC$12,14,0),"")/3 ->  | T67: Heute gespielt: | Y67: =IFERROR(VLOOKUP(T66,'Hilfstabelle Spieler'!$O$4:$AC$12,15,0),"")/3 -> 
B68: =+K126 -> Kai Roßberg | G68: =IFERROR(VLOOKUP(B68,Hilfstabelle!$AZ$3:$BA$11,2,0),"") -> 179.4166667 | K68: =+T126 -> Michael Wetzel | P68: =IFERROR(VLOOKUP(K68,Hilfstabelle!$AZ$3:$BA$11,2,0),"") -> 176.7857143 | T68: =+AC126 -> Jörg Frahm | Y68: =IFERROR(VLOOKUP(T68,Hilfstabelle!$AZ$3:$BA$11,2,0),"") -> 170.9677419
B69: Heute gespielt: | G69: =IFERROR(VLOOKUP(B68,'Hilfstabelle Spieler'!$O$4:$AC$12,13,0),"")/3 ->  | K69: Heute gespielt: | P69: =IFERROR(VLOOKUP(K68,'Hilfstabelle Spieler'!$O$4:$AC$12,14,0),"")/3 ->  | T69: Heute gespielt: | Y69: =IFERROR(VLOOKUP(T68,'Hilfstabelle Spieler'!$O$4:$AC$12,15,0),"")/3 -> 
B70: =+K127 -> Mario Jurk | G70: =IFERROR(VLOOKUP(B70,Hilfstabelle!$AZ$3:$BA$11,2,0),"") -> 180.2777778 | K70: =+T127 -> Mario Jurk | P70: =IFERROR(VLOOKUP(K70,Hilfstabelle!$AZ$3:$BA$11,2,0),"") -> 180.2777778 | T70: =+AC127 -> Michael Wetzel | Y70: =IFERROR(VLOOKUP(T70,Hilfstabelle!$AZ$3:$BA$11,2,0),"") -> 176.7857143
B71: Heute gespielt: | G71: =IFERROR(VLOOKUP(B70,'Hilfstabelle Spieler'!$O$4:$AC$12,13,0),"")/3 ->  | K71: Heute gespielt: | P71: =IFERROR(VLOOKUP(K70,'Hilfstabelle Spieler'!$O$4:$AC$12,14,0),"")/3 ->  | T71: Heute gespielt: | Y71: =IFERROR(VLOOKUP(T70,'Hilfstabelle Spieler'!$O$4:$AC$12,15,0),"")/3 -> 
B73: Zu erwartender Mannschaftsschnitt: | G73: =SUM(G64+G66+G68+G70)/4 -> 157.8482143 | K73: Zu erwartender Mannschaftsschnitt: | P73: =SUM(P64+P66+P68+P70)/4 -> 165.3411418 | T73: Zu erwartender Mannschaftsschnitt: | Y73: =SUM(Y64+Y66+Y68+Y70)/4 -> 158.9247586
G74: =SUM(G73*12) -> 1894.178571 | P74: =SUM(P73*12) -> 1984.093702 | Y74: 1907.097103
B75: Tatsächliches Ergebnis: | G75: =+G76/12 -> 0 | K75: Tatsächliches Ergebnis: | P75: =+P76/12 -> 0 | T75: Tatsächliches Ergebnis: | Y75: =+Y76/12 -> 0
G76: =+'Übersicht der Klasse B4'!S18 -> 0 | P76: =+'Übersicht der Klasse B4'!T18 -> 0 | Y76: =+'Übersicht der Klasse B4'!U18 -> 0
B78: Reserve | K78: Reserve | T78: Reserve
B79: Frank Nijholt | G79: =IFERROR(VLOOKUP(B79,Hilfstabelle!$AZ$3:$BA$11,2,0),"") -> 136.7333333 | K79: Annegret Schmidt | P79: =IFERROR(VLOOKUP(K79,Hilfstabelle!$AZ$3:$BA$11,2,0),"") -> 137.5079365 | T79: Frank Nijholt | Y79: =IFERROR(VLOOKUP(T79,Hilfstabelle!$AZ$3:$BA$11,2,0),"") -> 136.7333333
B80: Ilona Wetzel | G80: =IFERROR(VLOOKUP(B80,Hilfstabelle!$AZ$3:$BA$11,2,0),"") -> 153.755102 | K80: Ilona Wetzel | P80: =IFERROR(VLOOKUP(K80,Hilfstabelle!$AZ$3:$BA$11,2,0),"") -> 153.755102 | T80: Annegret Schmidt | Y80: =IFERROR(VLOOKUP(T80,Hilfstabelle!$AZ$3:$BA$11,2,0),"") -> 137.5079365
B81: Michael Wetzel | G81: =IFERROR(VLOOKUP(B81,Hilfstabelle!$AZ$3:$BA$11,2,0),"") -> 176.7857143 | K81: Frank Nijholt | P81: =IFERROR(VLOOKUP(K81,Hilfstabelle!$AZ$3:$BA$11,2,0),"") -> 136.7333333 | T81: Kai Roßberg | Y81: =IFERROR(VLOOKUP(T81,Hilfstabelle!$AZ$3:$BA$11,2,0),"") -> 179.4166667
B82: Matthias Nolte | G82: =IFERROR(VLOOKUP(B82,Hilfstabelle!$AZ$3:$BA$11,2,0),"") -> 133.3333333 | K82: Deniz Hagelstein | P82: =IFERROR(VLOOKUP(K82,Hilfstabelle!$AZ$3:$BA$11,2,0),"") -> 134.1904762 | T82: Mario Jurk | Y82: =IFERROR(VLOOKUP(T82,Hilfstabelle!$AZ$3:$BA$11,2,0),"") -> 180.2777778
B83: Jörg Frahm | G83: =IFERROR(VLOOKUP(B83,Hilfstabelle!$AZ$3:$BA$11,2,0),"") -> 170.9677419 | K83: Kai Roßberg | P83: =IFERROR(VLOOKUP(K83,Hilfstabelle!$AZ$3:$BA$11,2,0),"") -> 179.4166667 | T83: Matthias Nolte | Y83: =IFERROR(VLOOKUP(T83,Hilfstabelle!$AZ$3:$BA$11,2,0),"") -> 133.3333333
B85: Übersicht
B87: =+Hilfstabelle!S5 -> OT | F87: =+Hilfstabelle!S6 -> WB | J87: =+Hilfstabelle!S7 -> OT | N87: =+Hilfstabelle!S8 -> WB | R87: =+Hilfstabelle!S9 -> OT | V87: =+Hilfstabelle!S10 -> WB | Z87: =+Hilfstabelle!S11 -> OT | AD87: =+Hilfstabelle!S12 -> WB | AH87: =+Hilfstabelle!S13 -> OT | AL87: =+Hilfstabelle!S14 -> WB | AP87: =+Hilfstabelle!S15 -> OT | AT87: =+Hilfstabelle!S16 -> WB | AX87: =+Hilfstabelle!S17 -> OT | BB87: =+Hilfstabelle!S18 -> WB
B88: 1. Antritt | F88: 2. Antritt | J88: 3. Antritt | N88: 4. Antritt | R88: 5. Antritt | V88: 6. Antritt | Z88: 7. Antritt | AD88: 8. Antritt | AH88: 9. Antritt | AL88: 10. Antritt | AP88: 11. Antritt | AT88: 12. Antritt | AX88: 13. Antritt | BB88: 14. Antritt
B89: =+F13 -> 2025-09-09 | F89: =+O13 -> 2025-09-23 | J89: =+X13 -> 2025-10-07 | N89: =+AG13 -> 2025-10-21 | R89: =+AP13 -> 2025-11-04 | V89: =+F39 -> 2025-11-18 | Z89: =+O39 -> 2026-01-13 | AD89: =+X39 -> 2026-01-27 | AH89: =+AG39 -> 2026-02-10 | AL89: =+AP39 -> 2026-02-24 | AP89: =+AY39 -> 2026-03-10 | AT89: =+F63 -> 2026-03-24 | AX89: =+O63 -> 2026-04-07 | BB89: =+X63 -> 2026-04-21
B90: =IFERROR(_xlfn.IFS(B14="Annegret Schmidt","Anne",B14="Ilona Wetzel","Ilona",B14="Michael Wetzel","Michael",B14="Mario Jurk","Mario",B14="Kai Roßberg","Kai",B14="Deniz Hagelstein","Deniz",B14="Frank Nijholt","Frank",B14="Matthias Nolte","Matthias",B14="Jörg Frahm","Jörg"),"") -> Jörg | F90: =_xlfn.IFS(K14="Annegret Schmidt","Anne",K14="Ilona Wetzel","Ilona",K14="Michael Wetzel","Michael",K14="Mario Jurk","Mario",K14="Kai Roßberg","Kai",K14="Deniz Hagelstein","Deniz",K14="Frank Nijholt","Frank",K14="Matthias Nolte","Matthias",K14="Jörg Frahm","Jörg") -> Frank | J90: =_xlfn.IFS(T14="Annegret Schmidt","Anne",T14="Ilona Wetzel","Ilona",T14="Michael Wetzel","Michael",T14="Mario Jurk","Mario",T14="Kai Roßberg","Kai",T14="Deniz Hagelstein","Deniz",T14="Frank Nijholt","Frank",T14="Matthias Nolte","Matthias",T14="Jörg Frahm","Jörg") -> Matthias | N90: =_xlfn.IFS(AC14="Annegret Schmidt","Anne",AC14="Ilona Wetzel","Ilona",AC14="Michael Wetzel","Michael",AC14="Mario Jurk","Mario",AC14="Kai Roßberg","Kai",AC14="Deniz Hagelstein","Deniz",AC14="Frank Nijholt","Frank",AC14="Matthias Nolte","Matthias",AC14="Jörg Frahm","Jörg") -> Frank | R90: =_xlfn.IFS(AL14="Annegret Schmidt","Anne",AL14="Ilona Wetzel","Ilona",AL14="Michael Wetzel","Michael",AL14="Mario Jurk","Mario",AL14="Kai Roßberg","Kai",AL14="Deniz Hagelstein","Deniz",AL14="Frank Nijholt","Frank",AL14="Matthias Nolte","Matthias",AL14="Jörg Frahm","Jörg") -> Matthias | V90: =_xlfn.IFS(B40="Annegret Schmidt","Anne",B40="Ilona Wetzel","Ilona",B40="Michael Wetzel","Michael",B40="Mario Jurk","Mario",B40="Kai Roßberg","Kai",B40="Deniz Hagelstein","Deniz",B40="Frank Nijholt","Frank",B40="Matthias Nolte","Matthias",B40="Jörg Frahm","Jörg") -> Frank | Z90: =_xlfn.IFS(K40="Annegret Schmidt","Anne",K40="Ilona Wetzel","Ilona",K40="Michael Wetzel","Michael",K40="Mario Jurk","Mario",K40="Kai Roßberg","Kai",K40="Deniz Hagelstein","Deniz",K40="Frank Nijholt","Frank",K40="Matthias Nolte","Matthias",K40="Jörg Frahm","Jörg") -> Matthias | AD90: =_xlfn.IFS(T40="Annegret Schmidt","Anne",T40="Ilona Wetzel","Ilona",T40="Michael Wetzel","Michael",T40="Mario Jurk","Mario",T40="Kai Roßberg","Kai",T40="Deniz Hagelstein","Deniz",T40="Frank Nijholt","Frank",T40="Matthias Nolte","Matthias",T40="Jörg Frahm","Jörg") -> Ilona | AH90: =_xlfn.IFS(AC40="Annegret Schmidt","Anne",AC40="Ilona Wetzel","Ilona",AC40="Michael Wetzel","Michael",AC40="Mario Jurk","Mario",AC40="Kai Roßberg","Kai",AC40="Deniz Hagelstein","Deniz",AC40="Frank Nijholt","Frank",AC40="Matthias Nolte","Matthias",AC40="Jörg Frahm","Jörg") -> Anne | AL90: =_xlfn.IFS(AL40="Annegret Schmidt","Anne",AL40="Ilona Wetzel","Ilona",AL40="Michael Wetzel","Michael",AL40="Mario Jurk","Mario",AL40="Kai Roßberg","Kai",AL40="Deniz Hagelstein","Deniz",AL40="Frank Nijholt","Frank",AL40="Matthias Nolte","Matthias",AL40="Jörg Frahm","Jörg") -> Frank | AP90: =_xlfn.IFS(AU40="Annegret Schmidt","Anne",AU40="Ilona Wetzel","Ilona",AU40="Michael Wetzel","Michael",AU40="Mario Jurk","Mario",AU40="Kai Roßberg","Kai",AU40="Deniz Hagelstein","Deniz",AU40="Frank Nijholt","Frank",AU40="Matthias Nolte","Matthias",AU40="Jörg Frahm","Jörg") -> Matthias | AT90: =_xlfn.IFS(B64="Annegret Schmidt","Anne",B64="Ilona Wetzel","Ilona",B64="Michael Wetzel","Michael",B64="Mario Jurk","Mario",B64="Kai Roßberg","Kai",B64="Deniz Hagelstein","Deniz",B64="Frank Nijholt","Frank",B64="Matthias Nolte","Matthias",B64="Jörg Frahm","Jörg") -> Deniz | AX90: =_xlfn.IFS(K64="Annegret Schmidt","Anne",K64="Ilona Wetzel","Ilona",K64="Michael Wetzel","Michael",K64="Mario Jurk","Mario",K64="Kai Roßberg","Kai",K64="Deniz Hagelstein","Deniz",K64="Frank Nijholt","Frank",K64="Matthias Nolte","Matthias",K64="Jörg Frahm","Jörg") -> Matthias | BB90: =_xlfn.IFS(T64="Annegret Schmidt","Anne",T64="Ilona Wetzel","Ilona",T64="Michael Wetzel","Michael",T64="Mario Jurk","Mario",T64="Kai Roßberg","Kai",T64="Deniz Hagelstein","Deniz",T64="Frank Nijholt","Frank",T64="Matthias Nolte","Matthias",T64="Jörg Frahm","Jörg") -> Deniz
B91: =IFERROR(_xlfn.IFS(B16="Annegret Schmidt","Anne",B16="Ilona Wetzel","Ilona",B16="Michael Wetzel","Michael",B16="Mario Jurk","Mario",B16="Kai Roßberg","Kai",B16="Deniz Hagelstein","Deniz",B16="Frank Nijholt","Frank",B16="Matthias Nolte","Matthias",B16="Jörg Frahm","Jörg"),"") -> Ilona | F91: =_xlfn.IFS(K16="Annegret Schmidt","Anne",K16="Ilona Wetzel","Ilona",K16="Michael Wetzel","Michael",K16="Mario Jurk","Mario",K16="Kai Roßberg","Kai",K16="Deniz Hagelstein","Deniz",K16="Frank Nijholt","Frank",K16="Matthias Nolte","Matthias",K16="Jörg Frahm","Jörg") -> Anne | J91: =_xlfn.IFS(T16="Annegret Schmidt","Anne",T16="Ilona Wetzel","Ilona",T16="Michael Wetzel","Michael",T16="Mario Jurk","Mario",T16="Kai Roßberg","Kai",T16="Deniz Hagelstein","Deniz",T16="Frank Nijholt","Frank",T16="Matthias Nolte","Matthias",T16="Jörg Frahm","Jörg") -> Ilona | N91: =_xlfn.IFS(AC16="Annegret Schmidt","Anne",AC16="Ilona Wetzel","Ilona",AC16="Michael Wetzel","Michael",AC16="Mario Jurk","Mario",AC16="Kai Roßberg","Kai",AC16="Deniz Hagelstein","Deniz",AC16="Frank Nijholt","Frank",AC16="Matthias Nolte","Matthias",AC16="Jörg Frahm","Jörg") -> Deniz | R91: =_xlfn.IFS(AL16="Annegret Schmidt","Anne",AL16="Ilona Wetzel","Ilona",AL16="Michael Wetzel","Michael",AL16="Mario Jurk","Mario",AL16="Kai Roßberg","Kai",AL16="Deniz Hagelstein","Deniz",AL16="Frank Nijholt","Frank",AL16="Matthias Nolte","Matthias",AL16="Jörg Frahm","Jörg") -> Deniz | V91: =_xlfn.IFS(B42="Annegret Schmidt","Anne",B42="Ilona Wetzel","Ilona",B42="Michael Wetzel","Michael",B42="Mario Jurk","Mario",B42="Kai Roßberg","Kai",B42="Deniz Hagelstein","Deniz",B42="Frank Nijholt","Frank",B42="Matthias Nolte","Matthias",B42="Jörg Frahm","Jörg") -> Ilona | Z91: =_xlfn.IFS(K42="Annegret Schmidt","Anne",K42="Ilona Wetzel","Ilona",K42="Michael Wetzel","Michael",K42="Mario Jurk","Mario",K42="Kai Roßberg","Kai",K42="Deniz Hagelstein","Deniz",K42="Frank Nijholt","Frank",K42="Matthias Nolte","Matthias",K42="Jörg Frahm","Jörg") -> Frank | AD91: =_xlfn.IFS(T42="Annegret Schmidt","Anne",T42="Ilona Wetzel","Ilona",T42="Michael Wetzel","Michael",T42="Mario Jurk","Mario",T42="Kai Roßberg","Kai",T42="Deniz Hagelstein","Deniz",T42="Frank Nijholt","Frank",T42="Matthias Nolte","Matthias",T42="Jörg Frahm","Jörg") -> Jörg | AH91: =_xlfn.IFS(AC42="Annegret Schmidt","Anne",AC42="Ilona Wetzel","Ilona",AC42="Michael Wetzel","Michael",AC42="Mario Jurk","Mario",AC42="Kai Roßberg","Kai",AC42="Deniz Hagelstein","Deniz",AC42="Frank Nijholt","Frank",AC42="Matthias Nolte","Matthias",AC42="Jörg Frahm","Jörg") -> Ilona | AL91: =_xlfn.IFS(AL42="Annegret Schmidt","Anne",AL42="Ilona Wetzel","Ilona",AL42="Michael Wetzel","Michael",AL42="Mario Jurk","Mario",AL42="Kai Roßberg","Kai",AL42="Deniz Hagelstein","Deniz",AL42="Frank Nijholt","Frank",AL42="Matthias Nolte","Matthias",AL42="Jörg Frahm","Jörg") -> Anne | AP91: =_xlfn.IFS(AU42="Annegret Schmidt","Anne",AU42="Ilona Wetzel","Ilona",AU42="Michael Wetzel","Michael",AU42="Mario Jurk","Mario",AU42="Kai Roßberg","Kai",AU42="Deniz Hagelstein","Deniz",AU42="Frank Nijholt","Frank",AU42="Matthias Nolte","Matthias",AU42="Jörg Frahm","Jörg") -> Deniz | AT91: =_xlfn.IFS(B66="Annegret Schmidt","Anne",B66="Ilona Wetzel","Ilona",B66="Michael Wetzel","Michael",B66="Mario Jurk","Mario",B66="Kai Roßberg","Kai",B66="Deniz Hagelstein","Deniz",B66="Frank Nijholt","Frank",B66="Matthias Nolte","Matthias",B66="Jörg Frahm","Jörg") -> Anne | AX91: =_xlfn.IFS(K66="Annegret Schmidt","Anne",K66="Ilona Wetzel","Ilona",K66="Michael Wetzel","Michael",K66="Mario Jurk","Mario",K66="Kai Roßberg","Kai",K66="Deniz Hagelstein","Deniz",K66="Frank Nijholt","Frank",K66="Matthias Nolte","Matthias",K66="Jörg Frahm","Jörg") -> Jörg | BB91: =_xlfn.IFS(T66="Annegret Schmidt","Anne",T66="Ilona Wetzel","Ilona",T66="Michael Wetzel","Michael",T66="Mario Jurk","Mario",T66="Kai Roßberg","Kai",T66="Deniz Hagelstein","Deniz",T66="Frank Nijholt","Frank",T66="Matthias Nolte","Matthias",T66="Jörg Frahm","Jörg") -> Ilona
B92: =IFERROR(_xlfn.IFS(B18="Annegret Schmidt","Anne",B18="Ilona Wetzel","Ilona",B18="Michael Wetzel","Michael",B18="Mario Jurk","Mario",B18="Kai Roßberg","Kai",B18="Deniz Hagelstein","Deniz",B18="Frank Nijholt","Frank",B18="Matthias Nolte","Matthias",B18="Jörg Frahm","Jörg"),"") -> Michael | F92: =_xlfn.IFS(K18="Annegret Schmidt","Anne",K18="Ilona Wetzel","Ilona",K18="Michael Wetzel","Michael",K18="Mario Jurk","Mario",K18="Kai Roßberg","Kai",K18="Deniz Hagelstein","Deniz",K18="Frank Nijholt","Frank",K18="Matthias Nolte","Matthias",K18="Jörg Frahm","Jörg") -> Jörg | J92: =_xlfn.IFS(T18="Annegret Schmidt","Anne",T18="Ilona Wetzel","Ilona",T18="Michael Wetzel","Michael",T18="Mario Jurk","Mario",T18="Kai Roßberg","Kai",T18="Deniz Hagelstein","Deniz",T18="Frank Nijholt","Frank",T18="Matthias Nolte","Matthias",T18="Jörg Frahm","Jörg") -> Anne | N92: =_xlfn.IFS(AC18="Annegret Schmidt","Anne",AC18="Ilona Wetzel","Ilona",AC18="Michael Wetzel","Michael",AC18="Mario Jurk","Mario",AC18="Kai Roßberg","Kai",AC18="Deniz Hagelstein","Deniz",AC18="Frank Nijholt","Frank",AC18="Matthias Nolte","Matthias",AC18="Jörg Frahm","Jörg") -> Michael | R92: =_xlfn.IFS(AL18="Annegret Schmidt","Anne",AL18="Ilona Wetzel","Ilona",AL18="Michael Wetzel","Michael",AL18="Mario Jurk","Mario",AL18="Kai Roßberg","Kai",AL18="Deniz Hagelstein","Deniz",AL18="Frank Nijholt","Frank",AL18="Matthias Nolte","Matthias",AL18="Jörg Frahm","Jörg") -> Ilona | V92: =_xlfn.IFS(B44="Annegret Schmidt","Anne",B44="Ilona Wetzel","Ilona",B44="Michael Wetzel","Michael",B44="Mario Jurk","Mario",B44="Kai Roßberg","Kai",B44="Deniz Hagelstein","Deniz",B44="Frank Nijholt","Frank",B44="Matthias Nolte","Matthias",B44="Jörg Frahm","Jörg") -> Michael | Z92: =_xlfn.IFS(K44="Annegret Schmidt","Anne",K44="Ilona Wetzel","Ilona",K44="Michael Wetzel","Michael",K44="Mario Jurk","Mario",K44="Kai Roßberg","Kai",K44="Deniz Hagelstein","Deniz",K44="Frank Nijholt","Frank",K44="Matthias Nolte","Matthias",K44="Jörg Frahm","Jörg") -> Anne | AD92: =_xlfn.IFS(T44="Annegret Schmidt","Anne",T44="Ilona Wetzel","Ilona",T44="Michael Wetzel","Michael",T44="Mario Jurk","Mario",T44="Kai Roßberg","Kai",T44="Deniz Hagelstein","Deniz",T44="Frank Nijholt","Frank",T44="Matthias Nolte","Matthias",T44="Jörg Frahm","Jörg") -> Kai | AH92: =_xlfn.IFS(AC44="Annegret Schmidt","Anne",AC44="Ilona Wetzel","Ilona",AC44="Michael Wetzel","Michael",AC44="Mario Jurk","Mario",AC44="Kai Roßberg","Kai",AC44="Deniz Hagelstein","Deniz",AC44="Frank Nijholt","Frank",AC44="Matthias Nolte","Matthias",AC44="Jörg Frahm","Jörg") -> Jörg | AL92: =_xlfn.IFS(AL44="Annegret Schmidt","Anne",AL44="Ilona Wetzel","Ilona",AL44="Michael Wetzel","Michael",AL44="Mario Jurk","Mario",AL44="Kai Roßberg","Kai",AL44="Deniz Hagelstein","Deniz",AL44="Frank Nijholt","Frank",AL44="Matthias Nolte","Matthias",AL44="Jörg Frahm","Jörg") -> Deniz | AP92: =_xlfn.IFS(AU44="Annegret Schmidt","Anne",AU44="Ilona Wetzel","Ilona",AU44="Michael Wetzel","Michael",AU44="Mario Jurk","Mario",AU44="Kai Roßberg","Kai",AU44="Deniz Hagelstein","Deniz",AU44="Frank Nijholt","Frank",AU44="Matthias Nolte","Matthias",AU44="Jörg Frahm","Jörg") -> Frank | AT92: =_xlfn.IFS(B68="Annegret Schmidt","Anne",B68="Ilona Wetzel","Ilona",B68="Michael Wetzel","Michael",B68="Mario Jurk","Mario",B68="Kai Roßberg","Kai",B68="Deniz Hagelstein","Deniz",B68="Frank Nijholt","Frank",B68="Matthias Nolte","Matthias",B68="Jörg Frahm","Jörg") -> Kai | AX92: =_xlfn.IFS(K68="Annegret Schmidt","Anne",K68="Ilona Wetzel","Ilona",K68="Michael Wetzel","Michael",K68="Mario Jurk","Mario",K68="Kai Roßberg","Kai",K68="Deniz Hagelstein","Deniz",K68="Frank Nijholt","Frank",K68="Matthias Nolte","Matthias",K68="Jörg Frahm","Jörg") -> Michael | BB92: =_xlfn.IFS(T68="Annegret Schmidt","Anne",T68="Ilona Wetzel","Ilona",T68="Michael Wetzel","Michael",T68="Mario Jurk","Mario",T68="Kai Roßberg","Kai",T68="Deniz Hagelstein","Deniz",T68="Frank Nijholt","Frank",T68="Matthias Nolte","Matthias",T68="Jörg Frahm","Jörg") -> Jörg
B93: =IFERROR(_xlfn.IFS(B20="Annegret Schmidt","Anne",B20="Ilona Wetzel","Ilona",B20="Michael Wetzel","Michael",B20="Mario Jurk","Mario",B20="Kai Roßberg","Kai",B20="Deniz Hagelstein","Deniz",B20="Frank Nijholt","Frank",B20="Matthias Nolte","Matthias",B20="Jörg Frahm","Jörg"),"") -> Kai | F93: =_xlfn.IFS(K20="Annegret Schmidt","Anne",K20="Ilona Wetzel","Ilona",K20="Michael Wetzel","Michael",K20="Mario Jurk","Mario",K20="Kai Roßberg","Kai",K20="Deniz Hagelstein","Deniz",K20="Frank Nijholt","Frank",K20="Matthias Nolte","Matthias",K20="Jörg Frahm","Jörg") -> Kai | J93: =_xlfn.IFS(T20="Annegret Schmidt","Anne",T20="Ilona Wetzel","Ilona",T20="Michael Wetzel","Michael",T20="Mario Jurk","Mario",T20="Kai Roßberg","Kai",T20="Deniz Hagelstein","Deniz",T20="Frank Nijholt","Frank",T20="Matthias Nolte","Matthias",T20="Jörg Frahm","Jörg") -> Kai | N93: =_xlfn.IFS(AC20="Annegret Schmidt","Anne",AC20="Ilona Wetzel","Ilona",AC20="Michael Wetzel","Michael",AC20="Mario Jurk","Mario",AC20="Kai Roßberg","Kai",AC20="Deniz Hagelstein","Deniz",AC20="Frank Nijholt","Frank",AC20="Matthias Nolte","Matthias",AC20="Jörg Frahm","Jörg") -> Mario | R93: =_xlfn.IFS(AL20="Annegret Schmidt","Anne",AL20="Ilona Wetzel","Ilona",AL20="Michael Wetzel","Michael",AL20="Mario Jurk","Mario",AL20="Kai Roßberg","Kai",AL20="Deniz Hagelstein","Deniz",AL20="Frank Nijholt","Frank",AL20="Matthias Nolte","Matthias",AL20="Jörg Frahm","Jörg") -> Kai | V93: =_xlfn.IFS(B46="Annegret Schmidt","Anne",B46="Ilona Wetzel","Ilona",B46="Michael Wetzel","Michael",B46="Mario Jurk","Mario",B46="Kai Roßberg","Kai",B46="Deniz Hagelstein","Deniz",B46="Frank Nijholt","Frank",B46="Matthias Nolte","Matthias",B46="Jörg Frahm","Jörg") -> Mario | Z93: =_xlfn.IFS(K46="Annegret Schmidt","Anne",K46="Ilona Wetzel","Ilona",K46="Michael Wetzel","Michael",K46="Mario Jurk","Mario",K46="Kai Roßberg","Kai",K46="Deniz Hagelstein","Deniz",K46="Frank Nijholt","Frank",K46="Matthias Nolte","Matthias",K46="Jörg Frahm","Jörg") -> Mario | AD93: =_xlfn.IFS(T46="Annegret Schmidt","Anne",T46="Ilona Wetzel","Ilona",T46="Michael Wetzel","Michael",T46="Mario Jurk","Mario",T46="Kai Roßberg","Kai",T46="Deniz Hagelstein","Deniz",T46="Frank Nijholt","Frank",T46="Matthias Nolte","Matthias",T46="Jörg Frahm","Jörg") -> Mario | AH93: =_xlfn.IFS(AC46="Annegret Schmidt","Anne",AC46="Ilona Wetzel","Ilona",AC46="Michael Wetzel","Michael",AC46="Mario Jurk","Mario",AC46="Kai Roßberg","Kai",AC46="Deniz Hagelstein","Deniz",AC46="Frank Nijholt","Frank",AC46="Matthias Nolte","Matthias",AC46="Jörg Frahm","Jörg") -> Michael | AL93: =_xlfn.IFS(AL46="Annegret Schmidt","Anne",AL46="Ilona Wetzel","Ilona",AL46="Michael Wetzel","Michael",AL46="Mario Jurk","Mario",AL46="Kai Roßberg","Kai",AL46="Deniz Hagelstein","Deniz",AL46="Frank Nijholt","Frank",AL46="Matthias Nolte","Matthias",AL46="Jörg Frahm","Jörg") -> Michael | AP93: =_xlfn.IFS(AU46="Annegret Schmidt","Anne",AU46="Ilona Wetzel","Ilona",AU46="Michael Wetzel","Michael",AU46="Mario Jurk","Mario",AU46="Kai Roßberg","Kai",AU46="Deniz Hagelstein","Deniz",AU46="Frank Nijholt","Frank",AU46="Matthias Nolte","Matthias",AU46="Jörg Frahm","Jörg") -> Mario | AT93: =_xlfn.IFS(B70="Annegret Schmidt","Anne",B70="Ilona Wetzel","Ilona",B70="Michael Wetzel","Michael",B70="Mario Jurk","Mario",B70="Kai Roßberg","Kai",B70="Deniz Hagelstein","Deniz",B70="Frank Nijholt","Frank",B70="Matthias Nolte","Matthias",B70="Jörg Frahm","Jörg") -> Mario | AX93: =_xlfn.IFS(K70="Annegret Schmidt","Anne",K70="Ilona Wetzel","Ilona",K70="Michael Wetzel","Michael",K70="Mario Jurk","Mario",K70="Kai Roßberg","Kai",K70="Deniz Hagelstein","Deniz",K70="Frank Nijholt","Frank",K70="Matthias Nolte","Matthias",K70="Jörg Frahm","Jörg") -> Mario | BB93: =_xlfn.IFS(T70="Annegret Schmidt","Anne",T70="Ilona Wetzel","Ilona",T70="Michael Wetzel","Michael",T70="Mario Jurk","Mario",T70="Kai Roßberg","Kai",T70="Deniz Hagelstein","Deniz",T70="Frank Nijholt","Frank",T70="Matthias Nolte","Matthias",T70="Jörg Frahm","Jörg") -> Michael
B95: =_xlfn.IFS(B29="Annegret Schmidt","Anne",B29="Ilona Wetzel","Ilona",B29="Michael Wetzel","Michael",B29="Mario Jurk","Mario",B29="Kai Roßberg","Kai",B29="Deniz Hagelstein","Deniz",B29="Frank Nijholt","Frank",B29="Matthias Nolte","Matthias",B29="Jörg Frahm","Jörg") -> Anne | F95: =_xlfn.IFS(K29="Annegret Schmidt","Anne",K29="Ilona Wetzel","Ilona",K29="Michael Wetzel","Michael",K29="Mario Jurk","Mario",K29="Kai Roßberg","Kai",K29="Deniz Hagelstein","Deniz",K29="Frank Nijholt","Frank",K29="Matthias Nolte","Matthias",K29="Jörg Frahm","Jörg") -> Mario | J95: =_xlfn.IFS(T29="Annegret Schmidt","Anne",T29="Ilona Wetzel","Ilona",T29="Michael Wetzel","Michael",T29="Mario Jurk","Mario",T29="Kai Roßberg","Kai",T29="Deniz Hagelstein","Deniz",T29="Frank Nijholt","Frank",T29="Matthias Nolte","Matthias",T29="Jörg Frahm","Jörg") -> Jörg | N95: =_xlfn.IFS(AC29="Annegret Schmidt","Anne",AC29="Ilona Wetzel","Ilona",AC29="Michael Wetzel","Michael",AC29="Mario Jurk","Mario",AC29="Kai Roßberg","Kai",AC29="Deniz Hagelstein","Deniz",AC29="Frank Nijholt","Frank",AC29="Matthias Nolte","Matthias",AC29="Jörg Frahm","Jörg") -> Ilona | R95: =_xlfn.IFS(AL29="Annegret Schmidt","Anne",AL29="Ilona Wetzel","Ilona",AL29="Michael Wetzel","Michael",AL29="Mario Jurk","Mario",AL29="Kai Roßberg","Kai",AL29="Deniz Hagelstein","Deniz",AL29="Frank Nijholt","Frank",AL29="Matthias Nolte","Matthias",AL29="Jörg Frahm","Jörg") -> Anne | V95: =_xlfn.IFS(B55="Annegret Schmidt","Anne",B55="Ilona Wetzel","Ilona",B55="Michael Wetzel","Michael",B55="Mario Jurk","Mario",B55="Kai Roßberg","Kai",B55="Deniz Hagelstein","Deniz",B55="Frank Nijholt","Frank",B55="Matthias Nolte","Matthias",B55="Jörg Frahm","Jörg") -> Anne | Z95: =_xlfn.IFS(K55="Annegret Schmidt","Anne",K55="Ilona Wetzel","Ilona",K55="Michael Wetzel","Michael",K55="Mario Jurk","Mario",K55="Kai Roßberg","Kai",K55="Deniz Hagelstein","Deniz",K55="Frank Nijholt","Frank",K55="Matthias Nolte","Matthias",K55="Jörg Frahm","Jörg") -> Deniz | AD95: =_xlfn.IFS(T55="Annegret Schmidt","Anne",T55="Ilona Wetzel","Ilona",T55="Michael Wetzel","Michael",T55="Mario Jurk","Mario",T55="Kai Roßberg","Kai",T55="Deniz Hagelstein","Deniz",T55="Frank Nijholt","Frank",T55="Matthias Nolte","Matthias",T55="Jörg Frahm","Jörg") -> Anne | AH95: =_xlfn.IFS(AC55="Annegret Schmidt","Anne",AC55="Ilona Wetzel","Ilona",AC55="Michael Wetzel","Michael",AC55="Mario Jurk","Mario",AC55="Kai Roßberg","Kai",AC55="Deniz Hagelstein","Deniz",AC55="Frank Nijholt","Frank",AC55="Matthias Nolte","Matthias",AC55="Jörg Frahm","Jörg") -> Kai | AL95: =_xlfn.IFS(AL55="Annegret Schmidt","Anne",AL55="Ilona Wetzel","Ilona",AL55="Michael Wetzel","Michael",AL55="Mario Jurk","Mario",AL55="Kai Roßberg","Kai",AL55="Deniz Hagelstein","Deniz",AL55="Frank Nijholt","Frank",AL55="Matthias Nolte","Matthias",AL55="Jörg Frahm","Jörg") -> Kai | AP95: =_xlfn.IFS(AU55="Annegret Schmidt","Anne",AU55="Ilona Wetzel","Ilona",AU55="Michael Wetzel","Michael",AU55="Mario Jurk","Mario",AU55="Kai Roßberg","Kai",AU55="Deniz Hagelstein","Deniz",AU55="Frank Nijholt","Frank",AU55="Matthias Nolte","Matthias",AU55="Jörg Frahm","Jörg") -> Jörg | AT95: =_xlfn.IFS(B79="Annegret Schmidt","Anne",B79="Ilona Wetzel","Ilona",B79="Michael Wetzel","Michael",B79="Mario Jurk","Mario",B79="Kai Roßberg","Kai",B79="Deniz Hagelstein","Deniz",B79="Frank Nijholt","Frank",B79="Matthias Nolte","Matthias",B79="Jörg Frahm","Jörg") -> Frank | AX95: =_xlfn.IFS(K79="Annegret Schmidt","Anne",K79="Ilona Wetzel","Ilona",K79="Michael Wetzel","Michael",K79="Mario Jurk","Mario",K79="Kai Roßberg","Kai",K79="Deniz Hagelstein","Deniz",K79="Frank Nijholt","Frank",K79="Matthias Nolte","Matthias",K79="Jörg Frahm","Jörg") -> Anne | BB95: =_xlfn.IFS(T79="Annegret Schmidt","Anne",T79="Ilona Wetzel","Ilona",T79="Michael Wetzel","Michael",T79="Mario Jurk","Mario",T79="Kai Roßberg","Kai",T79="Deniz Hagelstein","Deniz",T79="Frank Nijholt","Frank",T79="Matthias Nolte","Matthias",T79="Jörg Frahm","Jörg") -> Frank
B96: =_xlfn.IFS(B30="Annegret Schmidt","Anne",B30="Ilona Wetzel","Ilona",B30="Michael Wetzel","Michael",B30="Mario Jurk","Mario",B30="Kai Roßberg","Kai",B30="Deniz Hagelstein","Deniz",B30="Frank Nijholt","Frank",B30="Matthias Nolte","Matthias",B30="Jörg Frahm","Jörg") -> Matthias | F96: =_xlfn.IFS(K30="Annegret Schmidt","Anne",K30="Ilona Wetzel","Ilona",K30="Michael Wetzel","Michael",K30="Mario Jurk","Mario",K30="Kai Roßberg","Kai",K30="Deniz Hagelstein","Deniz",K30="Frank Nijholt","Frank",K30="Matthias Nolte","Matthias",K30="Jörg Frahm","Jörg") -> Deniz | J96: =_xlfn.IFS(T30="Annegret Schmidt","Anne",T30="Ilona Wetzel","Ilona",T30="Michael Wetzel","Michael",T30="Mario Jurk","Mario",T30="Kai Roßberg","Kai",T30="Deniz Hagelstein","Deniz",T30="Frank Nijholt","Frank",T30="Matthias Nolte","Matthias",T30="Jörg Frahm","Jörg") -> Mario | N96: =_xlfn.IFS(AC30="Annegret Schmidt","Anne",AC30="Ilona Wetzel","Ilona",AC30="Michael Wetzel","Michael",AC30="Mario Jurk","Mario",AC30="Kai Roßberg","Kai",AC30="Deniz Hagelstein","Deniz",AC30="Frank Nijholt","Frank",AC30="Matthias Nolte","Matthias",AC30="Jörg Frahm","Jörg") -> Matthias | R96: =_xlfn.IFS(AL30="Annegret Schmidt","Anne",AL30="Ilona Wetzel","Ilona",AL30="Michael Wetzel","Michael",AL30="Mario Jurk","Mario",AL30="Kai Roßberg","Kai",AL30="Deniz Hagelstein","Deniz",AL30="Frank Nijholt","Frank",AL30="Matthias Nolte","Matthias",AL30="Jörg Frahm","Jörg") -> Mario | V96: =_xlfn.IFS(B56="Annegret Schmidt","Anne",B56="Ilona Wetzel","Ilona",B56="Michael Wetzel","Michael",B56="Mario Jurk","Mario",B56="Kai Roßberg","Kai",B56="Deniz Hagelstein","Deniz",B56="Frank Nijholt","Frank",B56="Matthias Nolte","Matthias",B56="Jörg Frahm","Jörg") -> Matthias | Z96: =_xlfn.IFS(K56="Annegret Schmidt","Anne",K56="Ilona Wetzel","Ilona",K56="Michael Wetzel","Michael",K56="Mario Jurk","Mario",K56="Kai Roßberg","Kai",K56="Deniz Hagelstein","Deniz",K56="Frank Nijholt","Frank",K56="Matthias Nolte","Matthias",K56="Jörg Frahm","Jörg") -> Ilona | AD96: =_xlfn.IFS(T56="Annegret Schmidt","Anne",T56="Ilona Wetzel","Ilona",T56="Michael Wetzel","Michael",T56="Mario Jurk","Mario",T56="Kai Roßberg","Kai",T56="Deniz Hagelstein","Deniz",T56="Frank Nijholt","Frank",T56="Matthias Nolte","Matthias",T56="Jörg Frahm","Jörg") -> Deniz | AH96: =_xlfn.IFS(AC56="Annegret Schmidt","Anne",AC56="Ilona Wetzel","Ilona",AC56="Michael Wetzel","Michael",AC56="Mario Jurk","Mario",AC56="Kai Roßberg","Kai",AC56="Deniz Hagelstein","Deniz",AC56="Frank Nijholt","Frank",AC56="Matthias Nolte","Matthias",AC56="Jörg Frahm","Jörg") -> Frank | AL96: =_xlfn.IFS(AL56="Annegret Schmidt","Anne",AL56="Ilona Wetzel","Ilona",AL56="Michael Wetzel","Michael",AL56="Mario Jurk","Mario",AL56="Kai Roßberg","Kai",AL56="Deniz Hagelstein","Deniz",AL56="Frank Nijholt","Frank",AL56="Matthias Nolte","Matthias",AL56="Jörg Frahm","Jörg") -> Jörg | AP96: =_xlfn.IFS(AU56="Annegret Schmidt","Anne",AU56="Ilona Wetzel","Ilona",AU56="Michael Wetzel","Michael",AU56="Mario Jurk","Mario",AU56="Kai Roßberg","Kai",AU56="Deniz Hagelstein","Deniz",AU56="Frank Nijholt","Frank",AU56="Matthias Nolte","Matthias",AU56="Jörg Frahm","Jörg") -> Michael | AT96: =_xlfn.IFS(B80="Annegret Schmidt","Anne",B80="Ilona Wetzel","Ilona",B80="Michael Wetzel","Michael",B80="Mario Jurk","Mario",B80="Kai Roßberg","Kai",B80="Deniz Hagelstein","Deniz",B80="Frank Nijholt","Frank",B80="Matthias Nolte","Matthias",B80="Jörg Frahm","Jörg") -> Ilona | AX96: =_xlfn.IFS(K80="Annegret Schmidt","Anne",K80="Ilona Wetzel","Ilona",K80="Michael Wetzel","Michael",K80="Mario Jurk","Mario",K80="Kai Roßberg","Kai",K80="Deniz Hagelstein","Deniz",K80="Frank Nijholt","Frank",K80="Matthias Nolte","Matthias",K80="Jörg Frahm","Jörg") -> Ilona | BB96: =_xlfn.IFS(T80="Annegret Schmidt","Anne",T80="Ilona Wetzel","Ilona",T80="Michael Wetzel","Michael",T80="Mario Jurk","Mario",T80="Kai Roßberg","Kai",T80="Deniz Hagelstein","Deniz",T80="Frank Nijholt","Frank",T80="Matthias Nolte","Matthias",T80="Jörg Frahm","Jörg") -> Anne
B97: =_xlfn.IFS(B31="Annegret Schmidt","Anne",B31="Ilona Wetzel","Ilona",B31="Michael Wetzel","Michael",B31="Mario Jurk","Mario",B31="Kai Roßberg","Kai",B31="Deniz Hagelstein","Deniz",B31="Frank Nijholt","Frank",B31="Matthias Nolte","Matthias",B31="Jörg Frahm","Jörg") -> Frank | F97: =_xlfn.IFS(K31="Annegret Schmidt","Anne",K31="Ilona Wetzel","Ilona",K31="Michael Wetzel","Michael",K31="Mario Jurk","Mario",K31="Kai Roßberg","Kai",K31="Deniz Hagelstein","Deniz",K31="Frank Nijholt","Frank",K31="Matthias Nolte","Matthias",K31="Jörg Frahm","Jörg") -> Matthias | J97: =_xlfn.IFS(T31="Annegret Schmidt","Anne",T31="Ilona Wetzel","Ilona",T31="Michael Wetzel","Michael",T31="Mario Jurk","Mario",T31="Kai Roßberg","Kai",T31="Deniz Hagelstein","Deniz",T31="Frank Nijholt","Frank",T31="Matthias Nolte","Matthias",T31="Jörg Frahm","Jörg") -> Frank | N97: =_xlfn.IFS(AC31="Annegret Schmidt","Anne",AC31="Ilona Wetzel","Ilona",AC31="Michael Wetzel","Michael",AC31="Mario Jurk","Mario",AC31="Kai Roßberg","Kai",AC31="Deniz Hagelstein","Deniz",AC31="Frank Nijholt","Frank",AC31="Matthias Nolte","Matthias",AC31="Jörg Frahm","Jörg") -> Anne | R97: =_xlfn.IFS(AL31="Annegret Schmidt","Anne",AL31="Ilona Wetzel","Ilona",AL31="Michael Wetzel","Michael",AL31="Mario Jurk","Mario",AL31="Kai Roßberg","Kai",AL31="Deniz Hagelstein","Deniz",AL31="Frank Nijholt","Frank",AL31="Matthias Nolte","Matthias",AL31="Jörg Frahm","Jörg") -> Frank | V97: =_xlfn.IFS(B57="Annegret Schmidt","Anne",B57="Ilona Wetzel","Ilona",B57="Michael Wetzel","Michael",B57="Mario Jurk","Mario",B57="Kai Roßberg","Kai",B57="Deniz Hagelstein","Deniz",B57="Frank Nijholt","Frank",B57="Matthias Nolte","Matthias",B57="Jörg Frahm","Jörg",B57="Jörg Frahm (Abw)","Jörg (Abw)",B57="Michael Wetzel (Abw)","Michael (Abw)") -> Deniz | Z97: =_xlfn.IFS(K57="Annegret Schmidt","Anne",K57="Ilona Wetzel","Ilona",K57="Michael Wetzel","Michael",K57="Mario Jurk","Mario",K57="Kai Roßberg","Kai",K57="Deniz Hagelstein","Deniz",K57="Frank Nijholt","Frank",K57="Matthias Nolte","Matthias",K57="Jörg Frahm","Jörg") -> Jörg | AD97: =_xlfn.IFS(T57="Annegret Schmidt","Anne",T57="Ilona Wetzel","Ilona",T57="Michael Wetzel","Michael",T57="Mario Jurk","Mario",T57="Kai Roßberg","Kai",T57="Deniz Hagelstein","Deniz",T57="Frank Nijholt","Frank",T57="Matthias Nolte","Matthias",T57="Jörg Frahm","Jörg") -> Frank | AH97: =_xlfn.IFS(AC57="Annegret Schmidt","Anne",AC57="Ilona Wetzel","Ilona",AC57="Michael Wetzel","Michael",AC57="Mario Jurk","Mario",AC57="Kai Roßberg","Kai",AC57="Deniz Hagelstein","Deniz",AC57="Frank Nijholt","Frank",AC57="Matthias Nolte","Matthias",AC57="Jörg Frahm","Jörg") -> Mario | AL97: =_xlfn.IFS(AL57="Annegret Schmidt","Anne",AL57="Ilona Wetzel","Ilona",AL57="Michael Wetzel","Michael",AL57="Mario Jurk","Mario",AL57="Kai Roßberg","Kai",AL57="Deniz Hagelstein","Deniz",AL57="Frank Nijholt","Frank",AL57="Matthias Nolte","Matthias",AL57="Jörg Frahm","Jörg") -> Mario | AP97: =_xlfn.IFS(AU57="Annegret Schmidt","Anne",AU57="Ilona Wetzel","Ilona",AU57="Michael Wetzel","Michael",AU57="Mario Jurk","Mario",AU57="Kai Roßberg","Kai",AU57="Deniz Hagelstein","Deniz",AU57="Frank Nijholt","Frank",AU57="Matthias Nolte","Matthias",AU57="Jörg Frahm","Jörg") -> Ilona | AT97: =_xlfn.IFS(B81="Annegret Schmidt","Anne",B81="Ilona Wetzel","Ilona",B81="Michael Wetzel","Michael",B81="Mario Jurk","Mario",B81="Kai Roßberg","Kai",B81="Deniz Hagelstein","Deniz",B81="Frank Nijholt","Frank",B81="Matthias Nolte","Matthias",B81="Jörg Frahm","Jörg") -> Michael | AX97: =_xlfn.IFS(K81="Annegret Schmidt","Anne",K81="Ilona Wetzel","Ilona",K81="Michael Wetzel","Michael",K81="Mario Jurk","Mario",K81="Kai Roßberg","Kai",K81="Deniz Hagelstein","Deniz",K81="Frank Nijholt","Frank",K81="Matthias Nolte","Matthias",K81="Jörg Frahm","Jörg") -> Frank | BB97: =_xlfn.IFS(T81="Annegret Schmidt","Anne",T81="Ilona Wetzel","Ilona",T81="Michael Wetzel","Michael",T81="Mario Jurk","Mario",T81="Kai Roßberg","Kai",T81="Deniz Hagelstein","Deniz",T81="Frank Nijholt","Frank",T81="Matthias Nolte","Matthias",T81="Jörg Frahm","Jörg") -> Kai
